Workbook

Sheet NameConvs
C1: Short Name | D1: Abbréviation
A2: Rapport WAPP | B2: =OFFSET(D2,0,lang) -> Energy Carrier | C2: =OFFSET(C1,0,lang) -> Short Name | D2: Energy Carrier | E2: Forme d'énergie | F2: Code | I2: eps | J2: 1e-08
A3: BIO | B3: Biomass | C3: BIO | D3: Biomass | E3: Biomasse | F3: b-p
A4: COAL | B4: Coal | C4: COA | D4: Coal | E4: Charbon | F4: c-p | I4: Language | J4: 0 | K4: 0 = English | M4: dry year | N4: =adb_all!N14 -> 1 | O4: 0 = average year
A5: DO | B5: Diesel | C5: ODS | D5: Diesel | E5: Diesel Ordinaire | F5: o-p | K5: 1 = Français | O5: 1 = dry year
A6: GO | B6: Gas Oil | C6: OGS | D6: Gas Oil | E6: Gasoil
A7: HFO | B7: HFO | C7: OHF | D7: HFO | E7: Fioul lourd | F7: h-p
A8: LCO | B8: Crude | C8: OLC | D8: Crude | E8: Brut leger | F8: p-p
A9: LFO | B9: =OFFSET(D9,0,lang) -> Light Fuel Oil | C9: OLF | D9: Light Fuel Oil | E9: Fioul leger
A10: NAPHTA | B10: =OFFSET(D10,0,lang) -> Naphta | C10: NAP | D10: Naphta | E10: Naphta
B11: Electricity | C11: ELC | D11: Electricity | E11: Electricite
B12: Geothermal | C12: GEO | D12: Geothermal | E12: Geothermique | I12: First year modelled | J12: 2010
B13: Hydro | C13: HYD | D13: Hydro | E13: Hydro
A14: NG | B14: Gas | C14: GAS | D14: Gas | E14: Gaz | F14: g-p
B15: Nuclear | C15: NUC | D15: Nuclear | E15: Nucleaire | F15: n-p
B16: PS Turbine | C16: PST | D16: PS Turbine | E16: Turbine Pompage hydrolique | H16: Primary | I16: Primaire
B17: PS Pump | C17: PSP | D17: PS Pump | E17: Pompe Pompage hydrolique | H17: Secondary | I17: Secondaire
A18: SOLAR | B18: Solar | C18: SOL | D18: Solar | E18: Solaire | H18: Tertiary | I18: Tertiaire
A19: WIND | B19: Wind | C19: WND | D19: Wind | E19: Eolienne | H19: Final | I19: Finale
A21: Processes/Technologies prefix
A22: Power plant | B22: EP
A23: Interruptible contracts for electricity | B23: EI
A24: Heat/power plant | B24: EH
A25: Heat plant | B25: HP
A26: Import | B26: IM
A27: Export | B27: EX
A28: Transmission (local) | B28: ET
A29: Distribution | B29: ED
A30: Transmission Link | B30: EL
A32: Tech Qualifier
A33: Open gas cycle | B33: OC | D33: CC | E33: Combined Cycle | F33: Cycle Combiné
A34: Combined gas Cycle | B34: CC | D34: GT | E34: Gas Turbine | F34: Turbine à gaz
A35: Pulverised Coal | B35: PF | D35: ST | E35: Steam Turbine | F35: Turbine à vapeur
A36: Supercritical coal | B36: SC | D36: HYD | E36: Hydro | F36: Centrale hydroélectrique
A37: Integrated Gasification combined cycle | B37: IG | D37: ROR | E37: Run of river | F37: au fil de l’eau
A38: Fluidized Bed | B38: FB | D38: DAM | E38: Dam | F38: avec lac de retenue
A39: Conventional Nuclear/pressurized water reactor | B39: PW | D39: DI | E39: Diesel Generators | F39: Groupe diesel
A40: PBMR | B40: PB | D40: WT | E40: Wind | F40: Eolienne
A41: Photovoltaics | B41: PV | D41: S | E41: Solar | F41: Centrale solaire
A42: Concentrated Solar Tower | B42: TW | D42: BIO | E42: Biomass | F42: Centrale biomasse
A43: Concentrated Solar trough | B43: TR
A46: Aditional Tech Qualifier
A47: Large | B47: L
A48: Small | B48: S
A49: Off-grid | B49: O
A51: Processes/Technologies sufix
A52: Existing | B52: EX
A53: New Committed | B53: NC
A54: New uncommitted | B54: NU | I54: 1000
I55: Resource Potential | L55: MW | M55: Mwyr | N55: MW | O55: Mwyr | P55: MW | Q55: MW | R55: MW | T55: Comparison of Previous and New Estimates (MW)
A56: Countries | F56: Geographie | G56: Gas Source | H56: 1-Losses | I56: Hydro Exist+Planned | J56: Other Hydro | K56: Mini Hydro | L56: Solar Conc | M56: Solar Thermal Limit | N56: Solar PV | O56: Solar PV | P56: Biomass | Q56: Wind 25 | R56: Wind 30 | T56: Solar Conc | U56: New | V56: Solar PV | W56: New | X56: Wind 25 | Y56: New | Z56: Wind 30 | AA56: New | AC56: Solar Thermal (TWh) | AE56: Solar PV (TWh)
A57: Burkina | B57: BUR | C57: 01 | D57: =LEFT(B57,2)&"w" -> BUw | E57: =A57 -> Burkina | F57: Inland | G57: NA | H57: =1-SUMIF(OtherData!$C$20:$C$32,B57,OtherData!$D$20:$D$32) -> 1 | I57: =SUMIF('Total Existing Capacity'!$B$3:$B$15,B57,'Total Existing Capacity'!$E$3:$E$15)+SUMIF('Total Existing Capacity'!$B$20:$B$32,B57,'Total Existing Capacity'!$D$20:$D$32) -> 229.728 | K57: 140 | L57: =L62*2 -> 5907.400552 | M57: =M62*2 -> 2067.590193 | N57: =SUMIF($D$72:$D$85,$B57,G$72:G$85)/(0.2*8.76)*1000 -> 44189.49604 | O57: =SUMIF($D$72:$D$85,B57,$G$72:$G$85)*1000/8.76 -> 8837.899209 | P57: =P67 -> 250 | Q57: =SUMIF($D$72:$D$85,$B57,H$72:H$85)/(8.76*0.25)*1000 -> 4742.006471 | R57: =SUMIF($D$72:$D$85,$B57,I$72:I$85)/(8.76*0.3)*1000 -> 28.67043618 | T57: 20000 | U57: =L57 -> 5907.400552 | V57: =T57 -> 20000 | W57: =N57 -> 44189.49604 | X57: 0 | Y57: =Q57 -> 4742.006471 | Z57: 0 | AA57: =R57 -> 28.67043618 | AC57: =M57*8.76/1000 -> 18.11209009 | AE57: =O57*8.76/1000 -> 77.41999707
A58: Cote d'Ivoire | B58: CIV | C58: 02 | D58: =LEFT(B58,2)&"w" -> CIw | E58: Cote d'Ivoire | F58: Coastal | G58: LOCal | H58: =1-SUMIF(OtherData!$C$20:$C$32,B58,OtherData!$D$20:$D$32) -> 1 | I58: =SUMIF('Total Existing Capacity'!$B$3:$B$15,B58,'Total Existing Capacity'!$E$3:$E$15)+SUMIF('Total Existing Capacity'!$B$20:$B$32,B58,'Total Existing Capacity'!$D$20:$D$32) -> 2421.3 | K58: =(I58+J58)*0.1 -> 242.13 | L58: =SUMIF($D$72:$D$85,$B58,F$72:F$85)/(0.35*8.76)*1000 -> 720.3316695 | M58: =SUMIF($D$72:$D$85,B58,$F$72:$F$85)*1000/8.76 -> 252.1160843 | N58: =SUMIF($D$72:$D$85,$B58,G$72:G$85)/(0.2*8.76)*1000 -> 58930.53853 | O58: =SUMIF($D$72:$D$85,B58,$G$72:$G$85)*1000/8.76 -> 11786.10771 | P58: =1.35*P60 -> 1350 | Q58: 491.4199849 | R58: 0 | T58: 2700 | U58: =L58 -> 720.3316695 | V58: =T58 -> 2700 | W58: =N58 -> 58930.53853 | X58: 0 | Y58: 491.4199849 | Z58: 0 | AA58: 0 | AC58: =M58*8.76/1000 -> 2.208536899 | AE58: 103.2463035
A59: Gambia | B59: GAM | C59: 03 | D59: GAw | E59: Gambia | F59: Coastal | G59: LNG | H59: =1-SUMIF(OtherData!$C$20:$C$32,B59,OtherData!$D$20:$D$32) -> 1 | I59: =SUMIF('Total Existing Capacity'!$B$3:$B$15,B59,'Total Existing Capacity'!$E$3:$E$15)+SUMIF('Total Existing Capacity'!$B$20:$B$32,B59,'Total Existing Capacity'!$D$20:$D$32) -> 116.8 | K59: 11.68 | L59: =SUMIF($D$72:$D$85,$B59,F$72:F$85)/(0.35*8.76)*1000 -> 1030.301752 | M59: 360.6056133 | N59: 2707.14611 | O59: =SUMIF($D$72:$D$85,B59,$G$72:$G$85)*1000/8.76 -> 541.429222 | P59: =0.05*P67 -> 12.5 | Q59: 197.4366817 | R59: 5.124182898 | T59: 450 | U59: =L59 -> 1030.301752 | V59: =T59 -> 450 | W59: 2707.14611 | X59: 5000 | Y59: 197.4366817 | Z59: 5000 | AA59: 5.124182898 | AC59: 3.158905173 | AE59: 4.742919984
A60: Ghana | B60: GHA | C60: 04 | D60: GHw | E60: Ghana | F60: Coastal | G60: GOA | H60: =1-SUMIF(OtherData!$C$20:$C$32,B60,OtherData!$D$20:$D$32) -> 1 | I60: =SUMIF('Total Existing Capacity'!$B$3:$B$15,B60,'Total Existing Capacity'!$E$3:$E$15)+SUMIF('Total Existing Capacity'!$B$20:$B$32,B60,'Total Existing Capacity'!$D$20:$D$32) -> 2570 | K60: 1 | L60: 748.2102764 | M60: 261.8735968 | N60: 43631.73429 | O60: 8726.346858 | P60: 1000 | Q60: 691.4501248 | R60: 9.077110667 | T60: 6800 | U60: 748.2102764 | V60: =T60 -> 6800 | W60: 43631.73429 | X60: 5000 | Y60: 691.4501248 | Z60: 5000 | AA60: 9.077110667 | AC60: 2.294012708 | AE60: 76.44279848
A61: Guinea | B61: GUI | C61: 05 | D61: GUw | E61: Guinea | F61: Coastal | G61: LNG | H61: =1-SUMIF(OtherData!$C$20:$C$32,B61,OtherData!$D$20:$D$32) -> 1 | I61: =SUMIF('Total Existing Capacity'!$B$3:$B$15,B61,'Total Existing Capacity'!$E$3:$E$15)+SUMIF('Total Existing Capacity'!$B$20:$B$32,B61,'Total Existing Capacity'!$D$20:$D$32) -> 3460.195 | K61: 346.0195 | L61: 1524.179965 | M61: 533.4629878 | N61: 29703.04725 | O61: 5940.60945 | P61: 656 | Q61: 2.410815086 | R61: 0 | T61: 2400 | U61: 1524.179965 | V61: =T61 -> 2400 | W61: 29703.04725 | X61: 5000 | Y61: 2.410815086 | Z61: 5000 | AA61: 0 | AC61: 4.673135773 | AE61: 52.03973878
A62: Guinea-Bissau | B62: GBI | C62: 06 | D62: GBw | E62: Guinea-Bissau | F62: Coastal | G62: LNG | H62: =1-SUMIF(OtherData!$C$20:$C$32,B62,OtherData!$D$20:$D$32) -> 1 | I62: =SUMIF('Total Existing Capacity'!$B$3:$B$15,B62,'Total Existing Capacity'!$E$3:$E$15)+SUMIF('Total Existing Capacity'!$B$20:$B$32,B62,'Total Existing Capacity'!$D$20:$D$32) -> 17.272 | K62: 1.7272 | L62: 2953.700276 | M62: 1033.795097 | N62: 8519.251529 | O62: 1703.850306 | P62: =0.15*P67 -> 37.5 | Q62: 141.699923 | R62: 0 | T62: 20 | U62: 2953.700276 | V62: 1000 | W62: 8519.251529 | X62: 5000 | Y62: 141.699923 | Z62: 0 | AA62: 0 | AC62: 9.056045046 | AE62: 14.92572868
A63: Liberia | B63: LIB | C63: 07 | D63: LIw | E63: Liberia | F63: Coastal | G63: LNG | H63: =1-SUMIF(OtherData!$C$20:$C$32,B63,OtherData!$D$20:$D$32) -> 1 | I63: =SUMIF('Total Existing Capacity'!$B$3:$B$15,B63,'Total Existing Capacity'!$E$3:$E$15)+SUMIF('Total Existing Capacity'!$B$20:$B$32,B63,'Total Existing Capacity'!$D$20:$D$32) -> 979.14 | K63: 1000 | L63: 0 | M63: 0 | N63: 3808.499694 | O63: 761.6999387 | P63: =0.3*P58 -> 405 | Q63: 0 | R63: 0 | T63: 0 | U63: 0 | V63: 1000 | W63: 3808.499694 | X63: 0 | Y63: 0 | Z63: 0 | AA63: 0 | AC63: 0 | AE63: 6.672491463
A64: Mali | B64: MAL | C64: 08 | D64: MAw | E64: Mali | F64: Inland | G64: NA | H64: =1-SUMIF(OtherData!$C$20:$C$32,B64,OtherData!$D$20:$D$32) -> 1 | I64: =SUMIF('Total Existing Capacity'!$B$3:$B$15,B64,'Total Existing Capacity'!$E$3:$E$15)+SUMIF('Total Existing Capacity'!$B$20:$B$32,B64,'Total Existing Capacity'!$D$20:$D$32) -> 721.405 | K64: 72.1405 | L64: =L57*2 -> 11814.8011 | M64: =M57*2 -> 4135.180386 | N64: 45127.94315 | O64: 9025.588631 | P64: 250 | Q64: 2195.340215 | R64: 0 | T64: 20000 | U64: 11814.8011 | V64: =T64 -> 20000 | W64: 45127.94315 | X64: 5000 | Y64: 2195.340215 | Z64: 5000 | AA64: 0 | AC64: 36.22418018 | AE64: 79.0641564
A65: Niger | B65: NIG | C65: 09 | D65: NIw | E65: Niger | F65: Inland | G65: NA | H65: =1-SUMIF(OtherData!$C$20:$C$32,B65,OtherData!$D$20:$D$32) -> 1 | I65: =SUMIF('Total Existing Capacity'!$B$3:$B$15,B65,'Total Existing Capacity'!$E$3:$E$15)+SUMIF('Total Existing Capacity'!$B$20:$B$32,B65,'Total Existing Capacity'!$D$20:$D$32) -> 345.1 | K65: 50 | L65: 28797.44059 | M65: 10079.10421 | N65: 89434.84429 | O65: 17886.96886 | P65: 250 | Q65: 16698.84949 | R65: 5014.646555 | T65: 20000 | U65: 28797.44059 | V65: 20000 | W65: 89434.84429 | X65: 5000 | Y65: 16698.84949 | Z65: 5000 | AA65: 5014.646555 | AC65: 88.29295286 | AE65: 156.6898472
A66: Nigeria | B66: NGA | C66: 10 | D66: NGw | E66: Nigeria | F66: Coastal | G66: LOCal | H66: =1-SUMIF(OtherData!$C$20:$C$32,B66,OtherData!$D$20:$D$32) -> 1 | I66: =SUMIF('Total Existing Capacity'!$B$3:$B$15,B66,'Total Existing Capacity'!$E$3:$E$15)+SUMIF('Total Existing Capacity'!$B$20:$B$32,B66,'Total Existing Capacity'!$D$20:$D$32) -> 15357.8 | K66: 3500 | L66: 32762.53181 | M66: 11466.88614 | N66: 185252.0396 | O66: 37050.40793 | P66: 10000 | Q66: 14688.57058 | R66: 362.684563 | T66: 20000 | U66: 32762.53181 | V66: 20000 | W66: 185252.0396 | X66: 5000 | Y66: 14688.57058 | Z66: 5000 | AA66: 362.684563 | AC66: 100.4499225 | AE66: 324.5615734
A67: Senegal | B67: SEN | C67: 11 | D67: SEw | E67: Senegal | F67: Coastal | G67: LNG | H67: =1-SUMIF(OtherData!$C$20:$C$32,B67,OtherData!$D$20:$D$32) -> 1 | I67: =SUMIF('Total Existing Capacity'!$B$3:$B$15,B67,'Total Existing Capacity'!$E$3:$E$15)+SUMIF('Total Existing Capacity'!$B$20:$B$32,B67,'Total Existing Capacity'!$D$20:$D$32) -> 1040.97 | K67: 104.097 | L67: 5013.20124 | M67: 1754.620434 | N67: 42914.22281 | O67: 8582.844561 | P67: 250 | Q67: 6226.264135 | R67: 1242.708735 | T67: 20000 | U67: 5013.20124 | V67: 20000 | W67: 42914.22281 | X67: 5000 | Y67: 6226.264135 | Z67: 5000 | AA67: 1242.708735 | AC67: 15.370475 | AE67: 75.18571836
A68: Sierra Leone | B68: SIE | C68: 12 | D68: SIw | E68: Sierra Leone | F68: Coastal | G68: LNG | H68: =1-SUMIF(OtherData!$C$20:$C$32,B68,OtherData!$D$20:$D$32) -> 1 | I68: =SUMIF('Total Existing Capacity'!$B$3:$B$15,B68,'Total Existing Capacity'!$E$3:$E$15)+SUMIF('Total Existing Capacity'!$B$20:$B$32,B68,'Total Existing Capacity'!$D$20:$D$32) -> 854.38 | K68: 85.438 | L68: 642.7913922 | M68: 224.9769873 | N68: 8555.799823 | O68: 1711.159965 | P68: =P67 -> 250 | Q68: 0 | R68: 0 | T68: 14400 | U68: 642.7913922 | V68: 14400 | W68: 8555.799823 | X68: 0 | Y68: 0 | Z68: 0 | AA68: 0 | AC68: 1.970798408 | AE68: 14.98976129
A69: Togo/Benin | B69: TBN | C69: 13 | D69: TBw | E69: Togo/Benin | F69: Coastal | G69: GOA | H69: =1-SUMIF(OtherData!$C$20:$C$32,B69,OtherData!$D$20:$D$32) -> 1 | I69: =SUMIF('Total Existing Capacity'!$B$3:$B$15,B69,'Total Existing Capacity'!$E$3:$E$15)+SUMIF('Total Existing Capacity'!$B$20:$B$32,B69,'Total Existing Capacity'!$D$20:$D$32) -> 618.232 | K69: =224*1.5 -> 336 | L69: 0 | M69: 0 | N69: 29426.8362 | O69: 5885.367241 | P69: =408+549 -> 957 | Q69: 551.8485477 | R69: 0 | T69: =600+4800 -> 5400 | U69: 0 | V69: 5400 | W69: 29426.8362 | X69: =[1]RESULTS_Regions!$N$50/(0.25*8.76)*1000 -> 461.9273251 | Y69: 551.8485477 | Z69: 5000 | AA69: 0 | AC69: 0 | AE69: 51.55581703
A71: Utilities | B71: Country | E71: TWh (1% of land) | F71: CSP | G71: PV | H71: Wind (20) | I71: Wind (30+40)
D72: =B69 -> TBN | E72: =[1]RESULTS_Regions!A50 -> Benin | F72: =[1]RESULTS_Regions!G50 -> 0 | G72: =[1]RESULTS_Regions!J50 -> 38.98495829 | H72: =[1]RESULTS_Regions!N50 -> 1.011620842 | I72: =[1]RESULTS_Regions!O50+[1]RESULTS_Regions!P50 -> 0
D73: =B57 -> BUR | E73: =[1]RESULTS_Regions!A51 -> Burkina Faso | F73: =[1]RESULTS_Regions!G51 -> 0 | G73: =[1]RESULTS_Regions!J51 -> 77.41999707 | H73: =[1]RESULTS_Regions!N51 -> 10.38499417 | I73: =[1]RESULTS_Regions!O51+[1]RESULTS_Regions!P51 -> 0.07534590628
D74: =B58 -> CIV | E74: =[1]RESULTS_Regions!A52 -> Côte d'Ivoire | F74: =[1]RESULTS_Regions!G52 -> 2.208536899 | G74: =[1]RESULTS_Regions!J52 -> 103.2463035 | H74: =[1]RESULTS_Regions!N52 -> 1.076209767 | I74: =[1]RESULTS_Regions!O52+[1]RESULTS_Regions!P52 -> 0
D75: =B59 -> GAM | E75: =[1]RESULTS_Regions!A53 -> Gambia | F75: =[1]RESULTS_Regions!G53 -> 3.158905173 | G75: =[1]RESULTS_Regions!J53 -> 4.742919984 | H75: =[1]RESULTS_Regions!N53 -> 0.4323863328 | I75: =[1]RESULTS_Regions!O53+[1]RESULTS_Regions!P53 -> 0.01346635266
D76: =B60 -> GHA | E76: =[1]RESULTS_Regions!A54 -> Ghana | F76: =[1]RESULTS_Regions!G54 -> 2.294012708 | G76: =[1]RESULTS_Regions!J54 -> 76.44279848 | H76: =[1]RESULTS_Regions!N54 -> 1.514275773 | I76: =[1]RESULTS_Regions!O54+[1]RESULTS_Regions!P54 -> 0.02385464683
D77: =B61 -> GUI | E77: =[1]RESULTS_Regions!A55 -> Guinea | F77: =[1]RESULTS_Regions!G55 -> 4.673135773 | G77: =[1]RESULTS_Regions!J55 -> 52.03973878 | H77: =[1]RESULTS_Regions!N55 -> 0.005279685038 | I77: =[1]RESULTS_Regions!O55+[1]RESULTS_Regions!P55 -> 0
D78: =B62 -> GBI | E78: =[1]RESULTS_Regions!A56 -> Guinea-Bissau | F78: =[1]RESULTS_Regions!G56 -> 9.056045046 | G78: =[1]RESULTS_Regions!J56 -> 14.92572868 | H78: =[1]RESULTS_Regions!N56 -> 0.3103228313 | I78: =[1]RESULTS_Regions!O56+[1]RESULTS_Regions!P56 -> 0
D79: LIB | E79: =[1]RESULTS_Regions!A57 -> Liberia | F79: =[1]RESULTS_Regions!G57 -> 0 | G79: =[1]RESULTS_Regions!J57 -> 6.672491463 | H79: =[1]RESULTS_Regions!N57 -> 0 | I79: =[1]RESULTS_Regions!O57+[1]RESULTS_Regions!P57 -> 0
D80: MAL | E80: =[1]RESULTS_Regions!A58 -> Mali | F80: =[1]RESULTS_Regions!G58 -> 0 | G80: =[1]RESULTS_Regions!J58 -> 79.0641564 | H80: =[1]RESULTS_Regions!N58 -> 4.80779507 | I80: =[1]RESULTS_Regions!O58+[1]RESULTS_Regions!P58 -> 0
D81: NIG | E81: =[1]RESULTS_Regions!A59 -> Niger | F81: =[1]RESULTS_Regions!G59 -> 88.29295286 | G81: =[1]RESULTS_Regions!J59 -> 156.6898472 | H81: =[1]RESULTS_Regions!N59 -> 36.57048038 | I81: =[1]RESULTS_Regions!O59+[1]RESULTS_Regions!P59 -> 13.17849115
D82: NGA | E82: =[1]RESULTS_Regions!A60 -> Nigeria | F82: =[1]RESULTS_Regions!G60 -> 100.4499225 | G82: =[1]RESULTS_Regions!J60 -> 324.5615734 | H82: =[1]RESULTS_Regions!N60 -> 32.16796957 | I82: =[1]RESULTS_Regions!O60+[1]RESULTS_Regions!P60 -> 0.9531350315
D83: SEN | E83: =[1]RESULTS_Regions!A61 -> Senegal | F83: =[1]RESULTS_Regions!G61 -> 15.370475 | G83: =[1]RESULTS_Regions!J61 -> 75.18571836 | H83: =[1]RESULTS_Regions!N61 -> 13.63551846 | I83: =[1]RESULTS_Regions!O61+[1]RESULTS_Regions!P61 -> 3.265838555
D84: SIE | E84: =[1]RESULTS_Regions!A62 -> Sierra Leone | F84: =[1]RESULTS_Regions!G62 -> 1.970798408 | G84: =[1]RESULTS_Regions!J62 -> 14.98976129 | H84: =[1]RESULTS_Regions!N62 -> 0 | I84: =[1]RESULTS_Regions!O62+[1]RESULTS_Regions!P62 -> 0
D85: =B69 -> TBN | E85: =[1]RESULTS_Regions!A63 -> Togo | F85: =[1]RESULTS_Regions!G63 -> 0 | G85: =[1]RESULTS_Regions!J63 -> 12.57085874 | H85: =[1]RESULTS_Regions!N63 -> 0.1969274776 | I85: =[1]RESULTS_Regions!O63+[1]RESULTS_Regions!P63 -> 0
A87: =B3&"/"&OFFSET($H$16,0,lang) -> Biomass/Primary | B87: b-p
A88: Coal/Primary | B88: c-p
A89: Diesel/Primary | B89: o-p
A90: Gas Oil/Primary | B90: s-p
A91: HFO/Primary | B91: h-p
A92: Crude/Primary | B92: p-p
A93: Light Fuel Oil/Primary | B93: l-p
A94: =B14&"/"&OFFSET($H$16,0,lang) -> Gas/Primary | B94: g-p
A95: =B15&"/"&OFFSET($H$16,0,lang) -> Nuclear/Primary | B95: n-p
A99: =$B$11&"/"&OFFSET($H$18,0,lang) -> Electricity/Tertiary | B99: e-t
A100: =$B$11&"/"&OFFSET($H$19,0,lang) -> Electricity/Final | B100: e-f
A102: =$B$11&"/"&OFFSET($H$17,0,lang)&"/"&B57 -> Electricity/Secondary/BUR | B102: e-A | C102: =RIGHT(A102,3) -> BUR | D102: =B102 -> e-A
A103: Electricity/Secondary/CIV | B103: e-B | C103: CIV | D103: =B103 -> e-B
A104: Electricity/Secondary/GAM | B104: e-C | C104: GAM | D104: e-C
A105: Electricity/Secondary/GHA | B105: e-D | C105: GHA | D105: e-D
A106: Electricity/Secondary/GUI | B106: e-E | C106: GUI | D106: e-E
A107: Electricity/Secondary/GBI | B107: e-F | C107: GBI | D107: e-F
A108: Electricity/Secondary/LIB | B108: e-G | C108: LIB | D108: e-G
A109: Electricity/Secondary/MAL | B109: e-H | C109: MAL | D109: e-H
A110: Electricity/Secondary/NIG | B110: e-I | C110: NIG | D110: e-I
A111: Electricity/Secondary/NGA | B111: e-J | C111: NGA | D111: e-J
A112: Electricity/Secondary/SEN | B112: e-K | C112: SEN | D112: e-K
A113: Electricity/Secondary/SIE | B113: e-L | C113: SIE | D113: e-L
A114: Electricity/Secondary/TBN | B114: e-M | C114: TBN | D114: e-M
B118: Country | C118: Contry Code | D118: Multi-region code | E118: Multi-region id
B119: =E57 -> Burkina | C119: =B57 -> BUR | D119: =D57 -> BUw | E119: a
B120: =E58 -> Cote d'Ivoire | C120: =B58 -> CIV | D120: =D58 -> CIw | E120: b
B121: Gambia | C121: GAM | D121: GAw | E121: c
B122: Ghana | C122: GHA | D122: GHw | E122: d
B123: Guinea | C123: GUI | D123: GUw | E123: e
B124: Guinea-Bissau | C124: GBI | D124: GBw | E124: f
B125: Liberia | C125: LIB | D125: LIw | E125: g
B126: Mali | C126: MAL | D126: MAw | E126: h
B127: Niger | C127: NIG | D127: NIw | E127: i
B128: Nigeria | C128: NGA | D128: NGw | E128: j
B129: Senegal | C129: SEN | D129: SEw | E129: k
B130: Sierra Leone | C130: SIE | D130: SIw | E130: l
B131: Togo/Benin | C131: TBN | D131: TBw | E131: m
B135: Inga Assumptions
B136: losses are 8.4% for Inga-Nigeria (page 334 of Volume 2-1_Rapport de prefaisabilite_EX-0274_(11_09_23).pdf). The same section gives an investment cost of 1.155 m$ for 1300 MW, which is around 900$/kW for the lines.
B137: =1.16/0.0013 -> 892.3076923 | C137: (pg 7 of Note de synthese_prefaisabilite_EX-0292_11_09_30)
B138: transmission | C138: Gen (start) | D138: Gen (later)
B139: 17 | C139: 35 | D139: 15 | E139: $/MWh
B140: =B139*8.76 -> 148.92 | C140: =C139*8.76*1.08 -> 331.128 | D140: =D139*8.76 -> 131.4 | E140: $/kwyr

Sheet Total Existing Capacity
A1: Country | B1: short name | C1: Thermal Capacity | D1: Hydro Capacity | E1: Total Capacity | F1: Total Thermal Energy | G1: Max hydro Energy | H1: Max Hydro Energy Dry year | I1: Total Energy | J1: Total Energy Dry Year | O1: Wind Potential
C2: MW | D2: MW | E2: MW | F2: GWh | G2: GWh | H2: GWh | I2: GWh | J2: GWh | N2: Burkina | O2: Average (6 m/s)
A3: Burkina | B3: =NameConvs!B57 -> BUR | C3: =IF(ISNA(VLOOKUP($B3,'WAPP Thermal Existing'!$D$1:$T$504,6,0)),0,VLOOKUP($B3,'WAPP Thermal Existing'!$D$1:$T$504,6,0)) -> 146.49 | D3: =SUMIF('WAPP Hydro Existing'!$D$1:$D$250,$B3,'WAPP Hydro Existing'!$G$1:$G$250) -> 23.238 | E3: =SUM(C3:D3) -> 169.728 | F3: =IF(ISNA(VLOOKUP($B3,'WAPP Thermal Existing'!$D$1:$T$504,17,0)),0,VLOOKUP($B3,'WAPP Thermal Existing'!$D$1:$T$504,17,0)) -> 1015.14532 | G3: =SUMIF('WAPP Hydro Existing'!$D$1:$D$250,$B3,'WAPP Hydro Existing'!$Q$1:$Q$250) -> 91 | H3: =SUMIF('WAPP Hydro Existing'!$D$1:$D$250,$B3,'WAPP Hydro Existing'!$R$1:$R$250) -> 40.5 | I3: =SUM(F3:G3) -> 1106.14532 | J3: =H3+F3 -> 1055.64532 | N3: Cote d'Ivoire | O3: Less than average (4.8 m/s)
A4: Cote d'Ivoire | B4: =NameConvs!B58 -> CIV | C4: =IF(ISNA(VLOOKUP($B4,'WAPP Thermal Existing'!$D$1:$T$504,6,0)),0,VLOOKUP($B4,'WAPP Thermal Existing'!$D$1:$T$504,6,0)) -> 765 | D4: =SUMIF('WAPP Hydro Existing'!$D$1:$D$250,$B4,'WAPP Hydro Existing'!$G$1:$G$250) -> 584.8 | E4: 1349.8 | F4: =IF(ISNA(VLOOKUP($B4,'WAPP Thermal Existing'!$D$1:$T$504,17,0)),0,VLOOKUP($B4,'WAPP Thermal Existing'!$D$1:$T$504,17,0)) -> 5900.09604 | G4: =SUMIF('WAPP Hydro Existing'!$D$1:$D$250,$B4,'WAPP Hydro Existing'!$Q$1:$Q$250) -> 2424 | H4: =SUMIF('WAPP Hydro Existing'!$D$1:$D$250,$B4,'WAPP Hydro Existing'!$R$1:$R$250) -> 1842.24 | I4: 8324.09604 | J4: 7742.33604 | N4: Gambia | O4: Average (6 m/s)
A5: Gambia | B5: =NameConvs!B59 -> GAM | C5: =IF(ISNA(VLOOKUP($B5,'WAPP Thermal Existing'!$D$1:$T$504,6,0)),0,VLOOKUP($B5,'WAPP Thermal Existing'!$D$1:$T$504,6,0)) -> 49.2 | D5: =SUMIF('WAPP Hydro Existing'!$D$1:$D$250,$B5,'WAPP Hydro Existing'!$G$1:$G$250) -> 0 | E5: 49.2 | F5: =IF(ISNA(VLOOKUP($B5,'WAPP Thermal Existing'!$D$1:$T$504,17,0)),0,VLOOKUP($B5,'WAPP Thermal Existing'!$D$1:$T$504,17,0)) -> 345.384 | G5: =SUMIF('WAPP Hydro Existing'!$D$1:$D$250,$B5,'WAPP Hydro Existing'!$Q$1:$Q$250) -> 0 | H5: =SUMIF('WAPP Hydro Existing'!$D$1:$D$250,$B5,'WAPP Hydro Existing'!$R$1:$R$250) -> 0 | I5: 345.384 | J5: 345.384 | N5: Ghana | O5: Average (6 m/s)
A6: Ghana | B6: =NameConvs!B60 -> GHA | C6: =IF(ISNA(VLOOKUP($B6,'WAPP Thermal Existing'!$D$1:$T$504,6,0)),0,VLOOKUP($B6,'WAPP Thermal Existing'!$D$1:$T$504,6,0)) -> 865 | D6: =SUMIF('WAPP Hydro Existing'!$D$1:$D$250,$B6,'WAPP Hydro Existing'!$G$1:$G$250) -> 1044 | E6: 1909 | F6: =IF(ISNA(VLOOKUP($B6,'WAPP Thermal Existing'!$D$1:$T$504,17,0)),0,VLOOKUP($B6,'WAPP Thermal Existing'!$D$1:$T$504,17,0)) -> 5970.14088 | G6: =SUMIF('WAPP Hydro Existing'!$D$1:$D$250,$B6,'WAPP Hydro Existing'!$Q$1:$Q$250) -> 5051 | H6: =SUMIF('WAPP Hydro Existing'!$D$1:$D$250,$B6,'WAPP Hydro Existing'!$R$1:$R$250) -> 3722 | I6: 11021.14088 | J6: 9692.14088 | N6: Guinea | O6: Good (8 m/s)
A7: Guinea | B7: =NameConvs!B61 -> GUI | C7: =IF(ISNA(VLOOKUP($B7,'WAPP Thermal Existing'!$D$1:$T$504,6,0)),0,VLOOKUP($B7,'WAPP Thermal Existing'!$D$1:$T$504,6,0)) -> 19 | D7: =SUMIF('WAPP Hydro Existing'!$D$1:$D$250,$B7,'WAPP Hydro Existing'!$G$1:$G$250) -> 94.9 | E7: 113.9 | F7: =IF(ISNA(VLOOKUP($B7,'WAPP Thermal Existing'!$D$1:$T$504,17,0)),0,VLOOKUP($B7,'WAPP Thermal Existing'!$D$1:$T$504,17,0)) -> 133.38 | G7: =SUMIF('WAPP Hydro Existing'!$D$1:$D$250,$B7,'WAPP Hydro Existing'!$Q$1:$Q$250) -> 481.8 | H7: =SUMIF('WAPP Hydro Existing'!$D$1:$D$250,$B7,'WAPP Hydro Existing'!$R$1:$R$250) -> 378.964 | I7: 615.18 | J7: 512.344 | N7: Guinea-Bissau | O7: Less than average (5 m/s)
A8: Guinea-Bissau | B8: =NameConvs!B62 -> GBI | C8: =IF(ISNA(VLOOKUP($B8,'WAPP Thermal Existing'!$D$1:$T$504,6,0)),0,VLOOKUP($B8,'WAPP Thermal Existing'!$D$1:$T$504,6,0)) -> 3.672 | D8: =SUMIF('WAPP Hydro Existing'!$D$1:$D$250,$B8,'WAPP Hydro Existing'!$G$1:$G$250) -> 0 | E8: 3.672 | F8: =IF(ISNA(VLOOKUP($B8,'WAPP Thermal Existing'!$D$1:$T$504,17,0)),0,VLOOKUP($B8,'WAPP Thermal Existing'!$D$1:$T$504,17,0)) -> 21.4812 | G8: =SUMIF('WAPP Hydro Existing'!$D$1:$D$250,$B8,'WAPP Hydro Existing'!$Q$1:$Q$250) -> 0 | H8: =SUMIF('WAPP Hydro Existing'!$D$1:$D$250,$B8,'WAPP Hydro Existing'!$R$1:$R$250) -> 0 | I8: 21.4812 | J8: 21.4812 | N8: Liberia | O8: Poor
A9: Liberia | B9: =NameConvs!B63 -> LIB | C9: =IF(ISNA(VLOOKUP($B9,'WAPP Thermal Existing'!$D$1:$T$504,6,0)),0,VLOOKUP($B9,'WAPP Thermal Existing'!$D$1:$T$504,6,0)) -> 12.64 | D9: =SUMIF('WAPP Hydro Existing'!$D$1:$D$250,$B9,'WAPP Hydro Existing'!$G$1:$G$250) -> 0 | E9: 12.64 | F9: =IF(ISNA(VLOOKUP($B9,'WAPP Thermal Existing'!$D$1:$T$504,17,0)),0,VLOOKUP($B9,'WAPP Thermal Existing'!$D$1:$T$504,17,0)) -> 88.7328 | G9: =SUMIF('WAPP Hydro Existing'!$D$1:$D$250,$B9,'WAPP Hydro Existing'!$Q$1:$Q$250) -> 0 | H9: =SUMIF('WAPP Hydro Existing'!$D$1:$D$250,$B9,'WAPP Hydro Existing'!$R$1:$R$250) -> 0 | I9: 88.7328 | J9: 88.7328 | N9: Mali | O9: Good (7.2 m/s)
A10: Mali | B10: =NameConvs!B64 -> MAL | C10: =IF(ISNA(VLOOKUP($B10,'WAPP Thermal Existing'!$D$1:$T$504,6,0)),0,VLOOKUP($B10,'WAPP Thermal Existing'!$D$1:$T$504,6,0)) -> 134.35 | D10: =SUMIF('WAPP Hydro Existing'!$D$1:$D$250,$B10,'WAPP Hydro Existing'!$G$1:$G$250) -> 153.18 | E10: 287.53 | F10: =IF(ISNA(VLOOKUP($B10,'WAPP Thermal Existing'!$D$1:$T$504,17,0)),0,VLOOKUP($B10,'WAPP Thermal Existing'!$D$1:$T$504,17,0)) -> 952.6418 | G10: =SUMIF('WAPP Hydro Existing'!$D$1:$D$250,$B10,'WAPP Hydro Existing'!$Q$1:$Q$250) -> 683.3 | H10: =SUMIF('WAPP Hydro Existing'!$D$1:$D$250,$B10,'WAPP Hydro Existing'!$R$1:$R$250) -> 495.1 | I10: 1635.9418 | J10: 1447.7418 | N10: Niger | O10: Good (8 m/s)
A11: Niger | B11: =NameConvs!B65 -> NIG | C11: =IF(ISNA(VLOOKUP($B11,'WAPP Thermal Existing'!$D$1:$T$504,6,0)),0,VLOOKUP($B11,'WAPP Thermal Existing'!$D$1:$T$504,6,0)) -> 66.6 | D11: =SUMIF('WAPP Hydro Existing'!$D$1:$D$250,$B11,'WAPP Hydro Existing'!$G$1:$G$250) -> 0 | E11: 66.6 | F11: =IF(ISNA(VLOOKUP($B11,'WAPP Thermal Existing'!$D$1:$T$504,17,0)),0,VLOOKUP($B11,'WAPP Thermal Existing'!$D$1:$T$504,17,0)) -> 492.24448 | G11: =SUMIF('WAPP Hydro Existing'!$D$1:$D$250,$B11,'WAPP Hydro Existing'!$Q$1:$Q$250) -> 0 | H11: =SUMIF('WAPP Hydro Existing'!$D$1:$D$250,$B11,'WAPP Hydro Existing'!$R$1:$R$250) -> 0 | I11: 492.24448 | J11: 492.24448 | N11: Nigeria | O11: Good (7.8 m/s)
A12: Nigeria | B12: =NameConvs!B66 -> NGA | C12: =IF(ISNA(VLOOKUP($B12,'WAPP Thermal Existing'!$D$1:$T$504,6,0)),0,VLOOKUP($B12,'WAPP Thermal Existing'!$D$1:$T$504,6,0)) -> 3857.8 | D12: =SUMIF('WAPP Hydro Existing'!$D$1:$D$250,$B12,'WAPP Hydro Existing'!$G$1:$G$250) -> 1358.3 | E12: =SUM(C12:D12) -> 5216.1 | F12: =IF(ISNA(VLOOKUP($B12,'WAPP Thermal Existing'!$D$1:$T$504,17,0)),0,VLOOKUP($B12,'WAPP Thermal Existing'!$D$1:$T$504,17,0)) -> 28915.13687 | G12: =SUMIF('WAPP Hydro Existing'!$D$1:$D$250,$B12,'WAPP Hydro Existing'!$Q$1:$Q$250) -> 7476 | H12: =SUMIF('WAPP Hydro Existing'!$D$1:$D$250,$B12,'WAPP Hydro Existing'!$R$1:$R$250) -> 4632 | I12: 36391.13687 | J12: 33547.13687 | N12: Senegal | O12: Average (6 m/s)
A13: Senegal | B13: =NameConvs!B67 -> SEN | C13: =IF(ISNA(VLOOKUP($B13,'WAPP Thermal Existing'!$D$1:$T$504,6,0)),0,VLOOKUP($B13,'WAPP Thermal Existing'!$D$1:$T$504,6,0)) -> 443.5 | D13: =SUMIF('WAPP Hydro Existing'!$D$1:$D$250,$B13,'WAPP Hydro Existing'!$G$1:$G$250) -> 67.65 | E13: 511.15 | F13: =IF(ISNA(VLOOKUP($B13,'WAPP Thermal Existing'!$D$1:$T$504,17,0)),0,VLOOKUP($B13,'WAPP Thermal Existing'!$D$1:$T$504,17,0)) -> 3193.21032 | G13: =SUMIF('WAPP Hydro Existing'!$D$1:$D$250,$B13,'WAPP Hydro Existing'!$Q$1:$Q$250) -> 264 | H13: =SUMIF('WAPP Hydro Existing'!$D$1:$D$250,$B13,'WAPP Hydro Existing'!$R$1:$R$250) -> 165 | I13: 3457.21032 | J13: 3358.21032 | N13: Sierra Leone | O13: Poor
A14: Sierra Leone | B14: =NameConvs!B68 -> SIE | C14: =IF(ISNA(VLOOKUP($B14,'WAPP Thermal Existing'!$D$1:$T$504,6,0)),0,VLOOKUP($B14,'WAPP Thermal Existing'!$D$1:$T$504,6,0)) -> 43.68 | D14: =SUMIF('WAPP Hydro Existing'!$D$1:$D$250,$B14,'WAPP Hydro Existing'!$G$1:$G$250) -> 56 | E14: 99.68 | F14: =IF(ISNA(VLOOKUP($B14,'WAPP Thermal Existing'!$D$1:$T$504,17,0)),0,VLOOKUP($B14,'WAPP Thermal Existing'!$D$1:$T$504,17,0)) -> 306.6336 | G14: =SUMIF('WAPP Hydro Existing'!$D$1:$D$250,$B14,'WAPP Hydro Existing'!$Q$1:$Q$250) -> 320.8 | H14: =SUMIF('WAPP Hydro Existing'!$D$1:$D$250,$B14,'WAPP Hydro Existing'!$R$1:$R$250) -> 158.4 | I14: 627.4336 | J14: 465.0336 | N14: Togo/Benin | O14: Average (6 m/s)
A15: Togo/Benin | B15: =NameConvs!B69 -> TBN | C15: =IF(ISNA(VLOOKUP($B15,'WAPP Thermal Existing'!$D$1:$T$504,6,0)),0,VLOOKUP($B15,'WAPP Thermal Existing'!$D$1:$T$504,6,0)) -> 196.232 | D15: =SUMIF('WAPP Hydro Existing'!$D$1:$D$250,$B15,'WAPP Hydro Existing'!$G$1:$G$250) -> 65 | E15: 261.232 | F15: =IF(ISNA(VLOOKUP($B15,'WAPP Thermal Existing'!$D$1:$T$504,17,0)),0,VLOOKUP($B15,'WAPP Thermal Existing'!$D$1:$T$504,17,0)) -> 1443.954876 | G15: =SUMIF('WAPP Hydro Existing'!$D$1:$D$250,$B15,'WAPP Hydro Existing'!$Q$1:$Q$250) -> 172.7 | H15: =SUMIF('WAPP Hydro Existing'!$D$1:$D$250,$B15,'WAPP Hydro Existing'!$R$1:$R$250) -> 91 | I15: 1616.654876 | J15: 1534.954876
A16: Total | C16: =SUM(C3:C15) -> 6603.164 | D16: =SUM(D3:D15) -> 3447.068 | E16: 10050.232 | F16: 48778.18219 | G16: 16964.6 | H16: 11525.204 | I16: 65742.78219 | J16: 60303.38619
A18: Country | B18: short name | C18: Thermal Capacity | D18: Hydro Capacity | E18: Total Capacity | F18: Total Thermal Energy | G18: Max hydro Energy | H18: Max Hydro Energy Dry year | I18: Total Energy | J18: Total Energy Dry Year | K18: Investment cost hydro
C19: MW | D19: MW | E19: MW | F19: GWh | G19: GWh | H19: GWh | I19: GWh | J19: GWh | K19: $/kW
A20: Burkina | B20: =NameConvs!B57 -> BUR | C20: =SUMIF('SiteSpecific_data Thermal'!$D$1:$D$520,$B20,'SiteSpecific_data Thermal'!$I$1:$I$520) -> 120.25 | D20: =SUMIF('SiteSpecific_data Hydro'!$D$1:$D$412,$B20,'SiteSpecific_data Hydro'!$G$1:$G$412) -> 60 | E20: =SUM(C20:D20) -> 180.25 | F20: =SUMIF('SiteSpecific_data Thermal'!$D$1:$D$520,$B20,'SiteSpecific_data Thermal'!$X$1:$X$520) -> 844.155 | G20: =SUMIF('SiteSpecific_data Hydro'!$D$1:$D$412,$B20,'SiteSpecific_data Hydro'!$Q$1:$Q$412) -> 192.4 | H20: =SUMIF('SiteSpecific_data Hydro'!$D$1:$D$412,$B20,'SiteSpecific_data Hydro'!$R$1:$R$412) -> 146.224 | I20: =SUM(F20:G20) -> 1036.555 | J20: =H20+F20 -> 990.379 | K20: =SUMIF('SiteSpecific_data Hydro'!$D$1:$D$412,$B20,'SiteSpecific_data Hydro'!$O$1:$O$412) -> 5838.6
A21: Cote d'Ivoire | B21: =NameConvs!B58 -> CIV | C21: =SUMIF('SiteSpecific_data Thermal'!$D$1:$D$520,$B21,'SiteSpecific_data Thermal'!$I$1:$I$520) -> 1313 | D21: =SUMIF('SiteSpecific_data Hydro'!$D$1:$D$412,$B21,'SiteSpecific_data Hydro'!$G$1:$G$412) -> 1071.5 | E21: 2384.5 | F21: =SUMIF('SiteSpecific_data Thermal'!$D$1:$D$520,$B21,'SiteSpecific_data Thermal'!$X$1:$X$520) -> 9841.25012 | G21: =SUMIF('SiteSpecific_data Hydro'!$D$1:$D$412,$B21,'SiteSpecific_data Hydro'!$Q$1:$Q$412) -> 4953 | H21: =SUMIF('SiteSpecific_data Hydro'!$D$1:$D$412,$B21,'SiteSpecific_data Hydro'!$R$1:$R$412) -> 2916.12 | I21: 14794.25012 | J21: 12757.37012 | K21: =SUMIF('SiteSpecific_data Hydro'!$D$1:$D$412,$B21,'SiteSpecific_data Hydro'!$O$1:$O$412) -> 3254.989267
A22: Gambia | B22: =NameConvs!B59 -> GAM | C22: =SUMIF('SiteSpecific_data Thermal'!$D$1:$D$520,$B22,'SiteSpecific_data Thermal'!$I$1:$I$520) -> 16.5 | D22: =SUMIF('SiteSpecific_data Hydro'!$D$1:$D$412,$B22,'SiteSpecific_data Hydro'!$G$1:$G$412) -> 67.6 | E22: 84.1 | F22: =SUMIF('SiteSpecific_data Thermal'!$D$1:$D$520,$B22,'SiteSpecific_data Thermal'!$X$1:$X$520) -> 111.438 | G22: =SUMIF('SiteSpecific_data Hydro'!$D$1:$D$412,$B22,'SiteSpecific_data Hydro'!$Q$1:$Q$412) -> 240.66 | H22: =SUMIF('SiteSpecific_data Hydro'!$D$1:$D$412,$B22,'SiteSpecific_data Hydro'!$R$1:$R$412) -> 92.204 | I22: 352.098 | J22: 203.642 | K22: =SUMIF('SiteSpecific_data Hydro'!$D$1:$D$412,$B22,'SiteSpecific_data Hydro'!$O$1:$O$412) -> 2100.284024
A23: Ghana | B23: =NameConvs!B60 -> GHA | C23: =SUMIF('SiteSpecific_data Thermal'!$D$1:$D$520,$B23,'SiteSpecific_data Thermal'!$I$1:$I$520) -> 2524.5 | D23: =SUMIF('SiteSpecific_data Hydro'!$D$1:$D$412,$B23,'SiteSpecific_data Hydro'!$G$1:$G$412) -> 661 | E23: 3185.5 | F23: =SUMIF('SiteSpecific_data Thermal'!$D$1:$D$520,$B23,'SiteSpecific_data Thermal'!$X$1:$X$520) -> 17840.37228 | G23: =SUMIF('SiteSpecific_data Hydro'!$D$1:$D$412,$B23,'SiteSpecific_data Hydro'!$Q$1:$Q$412) -> 2329.6 | H23: =SUMIF('SiteSpecific_data Hydro'!$D$1:$D$412,$B23,'SiteSpecific_data Hydro'!$R$1:$R$412) -> 1010.496 | I23: 20169.97228 | J23: 18850.86828 | K23: =SUMIF('SiteSpecific_data Hydro'!$D$1:$D$412,$B23,'SiteSpecific_data Hydro'!$O$1:$O$412) -> 3121.410488
A24: Guinea | B24: =NameConvs!B61 -> GUI | C24: =SUMIF('SiteSpecific_data Thermal'!$D$1:$D$520,$B24,'SiteSpecific_data Thermal'!$I$1:$I$520) -> 226.8 | D24: =SUMIF('SiteSpecific_data Hydro'!$D$1:$D$412,$B24,'SiteSpecific_data Hydro'!$G$1:$G$412) -> 3346.295 | E24: 3573.095 | F24: =SUMIF('SiteSpecific_data Thermal'!$D$1:$D$520,$B24,'SiteSpecific_data Thermal'!$X$1:$X$520) -> 1592.136 | G24: =SUMIF('SiteSpecific_data Hydro'!$D$1:$D$412,$B24,'SiteSpecific_data Hydro'!$Q$1:$Q$412) -> 14295.85 | H24: =SUMIF('SiteSpecific_data Hydro'!$D$1:$D$412,$B24,'SiteSpecific_data Hydro'!$R$1:$R$412) -> 10973.874 | I24: 15887.986 | J24: 12566.01 | K24: =SUMIF('SiteSpecific_data Hydro'!$D$1:$D$412,$B24,'SiteSpecific_data Hydro'!$O$1:$O$412) -> 2324.485952
A25: Guinea-Bissau | B25: =NameConvs!B62 -> GBI | C25: =SUMIF('SiteSpecific_data Thermal'!$D$1:$D$520,$B25,'SiteSpecific_data Thermal'!$I$1:$I$520) -> 15 | D25: =SUMIF('SiteSpecific_data Hydro'!$D$1:$D$412,$B25,'SiteSpecific_data Hydro'!$G$1:$G$412) -> 13.6 | E25: 28.6 | F25: =SUMIF('SiteSpecific_data Thermal'!$D$1:$D$520,$B25,'SiteSpecific_data Thermal'!$X$1:$X$520) -> 105.3 | G25: =SUMIF('SiteSpecific_data Hydro'!$D$1:$D$412,$B25,'SiteSpecific_data Hydro'!$Q$1:$Q$412) -> 48.13 | H25: =SUMIF('SiteSpecific_data Hydro'!$D$1:$D$412,$B25,'SiteSpecific_data Hydro'!$R$1:$R$412) -> 18.44 | I25: 153.43 | J25: 123.74 | K25: =SUMIF('SiteSpecific_data Hydro'!$D$1:$D$412,$B25,'SiteSpecific_data Hydro'!$O$1:$O$412) -> 2109.154412
A26: Liberia | B26: =NameConvs!B63 -> LIB | C26: =SUMIF('SiteSpecific_data Thermal'!$D$1:$D$520,$B26,'SiteSpecific_data Thermal'!$I$1:$I$520) -> 85 | D26: =SUMIF('SiteSpecific_data Hydro'!$D$1:$D$412,$B26,'SiteSpecific_data Hydro'!$G$1:$G$412) -> 966.5 | E26: 1051.5 | F26: =SUMIF('SiteSpecific_data Thermal'!$D$1:$D$520,$B26,'SiteSpecific_data Thermal'!$X$1:$X$520) -> 613.32696 | G26: =SUMIF('SiteSpecific_data Hydro'!$D$1:$D$412,$B26,'SiteSpecific_data Hydro'!$Q$1:$Q$412) -> 4762.7188 | H26: =SUMIF('SiteSpecific_data Hydro'!$D$1:$D$412,$B26,'SiteSpecific_data Hydro'!$R$1:$R$412) -> 3633.066288 | I26: 5376.04576 | J26: 4246.393248 | K26: =SUMIF('SiteSpecific_data Hydro'!$D$1:$D$412,$B26,'SiteSpecific_data Hydro'!$O$1:$O$412) -> 3204.323275
A27: Mali | B27: =NameConvs!B64 -> MAL | C27: =SUMIF('SiteSpecific_data Thermal'!$D$1:$D$520,$B27,'SiteSpecific_data Thermal'!$I$1:$I$520) -> 365.38 | D27: =SUMIF('SiteSpecific_data Hydro'!$D$1:$D$412,$B27,'SiteSpecific_data Hydro'!$G$1:$G$412) -> 433.875 | E27: 799.255 | F27: =SUMIF('SiteSpecific_data Thermal'!$D$1:$D$520,$B27,'SiteSpecific_data Thermal'!$X$1:$X$520) -> 2651.935968 | G27: =SUMIF('SiteSpecific_data Hydro'!$D$1:$D$412,$B27,'SiteSpecific_data Hydro'!$Q$1:$Q$412) -> 2002.640323 | H27: =SUMIF('SiteSpecific_data Hydro'!$D$1:$D$412,$B27,'SiteSpecific_data Hydro'!$R$1:$R$412) -> 1342.250645 | I27: 4654.576291 | J27: 3994.186613 | K27: =SUMIF('SiteSpecific_data Hydro'!$D$1:$D$412,$B27,'SiteSpecific_data Hydro'!$O$1:$O$412) -> 2216.915468
A28: Niger | B28: =NameConvs!B65 -> NIG | C28: =SUMIF('SiteSpecific_data Thermal'!$D$1:$D$520,$B28,'SiteSpecific_data Thermal'!$I$1:$I$520) -> 249.6 | D28: =SUMIF('SiteSpecific_data Hydro'!$D$1:$D$412,$B28,'SiteSpecific_data Hydro'!$G$1:$G$412) -> 278.5 | E28: 528.1 | F28: =SUMIF('SiteSpecific_data Thermal'!$D$1:$D$520,$B28,'SiteSpecific_data Thermal'!$X$1:$X$520) -> 1855.79432 | G28: =SUMIF('SiteSpecific_data Hydro'!$D$1:$D$412,$B28,'SiteSpecific_data Hydro'!$Q$1:$Q$412) -> 1269.02312 | H28: =SUMIF('SiteSpecific_data Hydro'!$D$1:$D$412,$B28,'SiteSpecific_data Hydro'!$R$1:$R$412) -> 486.4175712 | I28: 3124.81744 | J28: 2342.211891 | K28: =SUMIF('SiteSpecific_data Hydro'!$D$1:$D$412,$B28,'SiteSpecific_data Hydro'!$O$1:$O$412) -> 3406.958707
A29: Nigeria | B29: =NameConvs!B66 -> NGA | C29: =SUMIF('SiteSpecific_data Thermal'!$D$1:$D$520,$B29,'SiteSpecific_data Thermal'!$I$1:$I$520) -> 13581.2 | D29: =SUMIF('SiteSpecific_data Hydro'!$D$1:$D$412,$B29,'SiteSpecific_data Hydro'!$G$1:$G$412)+MSG_Generic!Q242 -> 10141.7 | E29: =SUM(C29:D29) -> 23722.9 | F29: =SUMIF('SiteSpecific_data Thermal'!$D$1:$D$520,$B29,'SiteSpecific_data Thermal'!$X$1:$X$520) -> 101794.3535 | G29: =SUMIF('SiteSpecific_data Hydro'!$D$1:$D$412,$B29,'SiteSpecific_data Hydro'!$Q$1:$Q$412)+MSG_Generic!Q242*G38*8.76 -> 43709.91566 | H29: =SUMIF('SiteSpecific_data Hydro'!$D$1:$D$412,$B29,'SiteSpecific_data Hydro'!$R$1:$R$412)+MSG_Generic!Q242*H38*8.76 -> 33219.5359 | I29: 145504.2692 | J29: 135013.8894 | K29: =SUMIF('SiteSpecific_data Hydro'!$D$1:$D$412,$B29,'SiteSpecific_data Hydro'!$O$1:$O$412) -> 1538
A30: Senegal | B30: =NameConvs!B67 -> SEN | C30: =SUMIF('SiteSpecific_data Thermal'!$D$1:$D$520,$B30,'SiteSpecific_data Thermal'!$I$1:$I$520) -> 1802.5 | D30: =SUMIF('SiteSpecific_data Hydro'!$D$1:$D$412,$B30,'SiteSpecific_data Hydro'!$G$1:$G$412) -> 529.82 | E30: =SUM(C30:D30) -> 2332.32 | F30: =SUMIF('SiteSpecific_data Thermal'!$D$1:$D$520,$B30,'SiteSpecific_data Thermal'!$X$1:$X$520) -> 12118.61668 | G30: =SUMIF('SiteSpecific_data Hydro'!$D$1:$D$412,$B30,'SiteSpecific_data Hydro'!$Q$1:$Q$412) -> 1987.7 | H30: =SUMIF('SiteSpecific_data Hydro'!$D$1:$D$412,$B30,'SiteSpecific_data Hydro'!$R$1:$R$412) -> 1100.18 | I30: 14106.31668 | J30: 13218.79668 | K30: =SUMIF('SiteSpecific_data Hydro'!$D$1:$D$412,$B30,'SiteSpecific_data Hydro'!$O$1:$O$412) -> 3187.033747
A31: Sierra Leone | B31: =NameConvs!B68 -> SIE | C31: =SUMIF('SiteSpecific_data Thermal'!$D$1:$D$520,$B31,'SiteSpecific_data Thermal'!$I$1:$I$520) -> 115 | D31: =SUMIF('SiteSpecific_data Hydro'!$D$1:$D$412,$B31,'SiteSpecific_data Hydro'!$G$1:$G$412) -> 754.7 | E31: =SUM(C31:D31) -> 869.7 | F31: =SUMIF('SiteSpecific_data Thermal'!$D$1:$D$520,$B31,'SiteSpecific_data Thermal'!$X$1:$X$520) -> 861.94984 | G31: =SUMIF('SiteSpecific_data Hydro'!$D$1:$D$412,$B31,'SiteSpecific_data Hydro'!$Q$1:$Q$412) -> 4168 | H31: =SUMIF('SiteSpecific_data Hydro'!$D$1:$D$412,$B31,'SiteSpecific_data Hydro'!$R$1:$R$412) -> 3468 | I31: 5029.94984 | J31: 4329.94984 | K31: =SUMIF('SiteSpecific_data Hydro'!$D$1:$D$412,$B31,'SiteSpecific_data Hydro'!$O$1:$O$412) -> 2381.562873
A32: Togo/Benin | B32: =NameConvs!B69 -> TBN | C32: =SUMIF('SiteSpecific_data Thermal'!$D$1:$D$520,$B32,'SiteSpecific_data Thermal'!$I$1:$I$520) -> 650 | D32: =SUMIF('SiteSpecific_data Hydro'!$D$1:$D$412,$B32,'SiteSpecific_data Hydro'!$G$1:$G$412) -> 357 | E32: =SUM(C32:D32) -> 1007 | F32: =SUMIF('SiteSpecific_data Thermal'!$D$1:$D$520,$B32,'SiteSpecific_data Thermal'!$X$1:$X$520) -> 4774.5612 | G32: =SUMIF('SiteSpecific_data Hydro'!$D$1:$D$412,$B32,'SiteSpecific_data Hydro'!$Q$1:$Q$412) -> 1004 | H32: =SUMIF('SiteSpecific_data Hydro'!$D$1:$D$412,$B32,'SiteSpecific_data Hydro'!$R$1:$R$412) -> 721.88 | I32: 5778.5612 | J32: 5496.4412 | K32: =SUMIF('SiteSpecific_data Hydro'!$D$1:$D$412,$B32,'SiteSpecific_data Hydro'!$O$1:$O$412) -> 2320.190476
A33: Total | C33: =SUM(C20:C32) -> 21064.73 | D33: =SUM(D20:D32) -> 18682.09 | E33: 39746.82 | F33: 155005.1899 | G33: 80963.63791 | H33: 59128.68841 | I33: 235968.8278 | J33: 214133.8783 | K33: =SUMPRODUCT(D20:D32,K20:K32)/D33 -> 2075.260943
K34: =K33*1.14 -> 2365.797475
A35: Grand Total | C35: =C16+C33 -> 27667.894 | D35: =D16+D33 -> 22129.158 | E35: 49797.052 | F35: 203783.372 | G35: 97928.23791 | H35: 70653.89241 | I35: 301711.61 | J35: 274437.2645 | K35: 2075.260943
D38: =SUMIF('SiteSpecific_data Hydro'!$D$1:$D$412,$B29,'SiteSpecific_data Hydro'!$G$1:$G$412) -> 3300 | G38: 0.492 | H38: 0.37392

Sheet VS
B1: Discount Rate | C1: 0.1
B3: Abréviation | D3: CC | E3: GT | F3: ST | G3: DI | H3: HYD | I3: BIO | J3: SOL | K3: WND | M3: DI | N3: SOLPV | O3: SOLCS
G4: DDO | M4: HFO
B5: Consommation spécifique nette | C5: [GJ/MWh] | D5: 8.8 | E5: 12.7 | F5: 10.8 | G5: 10.4 | H5: / | I5: 9.6 | M5: 9.5
B6: Durée de vie | C6: [années] | D6: 25 | E6: 25 | F6: 35 | G6: 30 | H6: 50 | I6: 30 | J6: =N6 -> 20 | K6: =J6 -> 20 | M6: 30 | N6: 20 | O6: =J6 -> 20
B7: Indisponibilité fortuite | C7: [%] | D7: 0.08 | E7: 0.08 | F7: 0.08 | G7: 0.1 | H7: 0.05 | I7: =F7 -> 0.08 | J7: =N7 -> 0.75 | K7: 0.7 | M7: 0.1 | N7: 0.75 | O7: =J7 -> 0.75
B8: Indisponibilité planifiée | C8: [h/an] | D8: 613 | E8: 613 | F8: 613 | G8: 960 | H8: 570 | I8: =0.07*8760 -> 613.2 | J8: =N8 -> 0 | K8: 0 | M8: 960 | N8: 0 | O8: =J8 -> 0
B9: Coûts O&M variables | C9: [$/MWh] | D9: 2 | E9: 2.5 | F9: 3.1 | G9: 10 | H9: 2 | I9: 0 | J9: =I9 -> 0 | K9: 10 | M9: 10
B10: Coûts O&M Fixes | C10: $/kW/yr | I10: 129.6 | J10: =N10 -> 20 | K10: 17 | N10: 20 | O10: 82
B11: Cout investissement | C11: $/kW | D11: =D18*D19 -> 956.5696 | E11: =E18*E19 -> 633.15 | F11: =F18*F19 -> 2488.6656 | G11: =G18*G19 -> 1123.5 | H11: 2400 | I11: =I18*I19 -> 3603.528 | J11: =N11 -> 3660 | K11: 1750 | M11: =M18*M19 -> 1417.5 | N11: 3660 | O11: 5207
B12: Facteur d’utilisation hydro | D12: / | E12: / | F12: / | G12: / | H12: 49.2% | J12: /
B13: Energie hydro | D13: / | E13: / | F13: / | G13: / | H13: 76% * énergie | J13: /
B14: annuelle garantie | H14: annuelle
H15: moyenne
D16: =(1-D8/8760)*(1-D7) -> 0.8556210046 | E16: =(1-E8/8760)*(1-E7) -> 0.8556210046 | F16: 0.8556210046 | G16: 0.801369863 | H16: 0.8881849315 | I16: 0.8556 | J16: 0.25 | K16: 0.3 | L16: 1 | M16: 0.801369863 | N16: 0.25 | O16: 0.25
B18: Overnight Cost | D18: 896 | E18: 603 | F18: 2160 | G18: 1070 | I18: 3240 | M18: 1350
B19: Time (construction schedule) | C19: Apprec. Fact | D19: =SUMPRODUCT($C$20:$C$27,D$20:D$27) -> 1.0676 | E19: =SUMPRODUCT($C$20:$C$27,E$20:E$27) -> 1.05 | F19: =SUMPRODUCT($C$20:$C$27,F$20:F$27) -> 1.15216 | G19: =SUMPRODUCT($C$20:$C$27,G$20:G$27) -> 1.05 | I19: =SUMPRODUCT($C$20:$C$27,I$20:I$27) -> 1.1122 | M19: =SUMPRODUCT($C$20:$C$27,M$20:M$27) -> 1.05
B20: 0 | C20: 1 | D20: 0.5 | E20: 0.5 | F20: 0.2 | G20: 0.5 | I20: 0.45 | M20: 0.5
B21: 1 | C21: =1+C1 -> 1.1 | D21: 0.34 | E21: 0.5 | F21: 0.32 | G21: 0.5 | I21: 0.25 | M21: 0.5
B22: 2 | C22: =(1+$C$1)^B22 -> 1.21 | D22: 0.16 | F22: 0.32 | I22: 0.1
B23: 3 | C23: 1.331 | F23: 0.16 | I23: 0.2
B24: 4 | C24: 1.4641
B25: 5 | C25: 1.61051
B26: 6 | C26: 1.771561
B27: 7 | C27: 1.9487171
B29: Efficiency | D29: =1/(D5/3.6) -> 0.4090909091 | E29: =1/(E5/3.6) -> 0.2834645669 | F29: =1/(F5/3.6) -> 0.3333333333 | G29: =1/(G5/3.6) -> 0.3461538462 | I29: =1/(I5/3.6) -> 0.375 | M29: =1/(M5/3.6) -> 0.3789473684

Sheet WAPP Thermal Existing
B1: English | C1: Name of Station | D1: MESSAGE Name with Country Prefix | E1: MESSAGE Name | F1: Fuel | H1: Plant Capacity | I1: Available Capacity | K1: Heat Rate | N1: Decomissioning year | Q1: Forced Outage | S1: Planned outage | U1: Variable O&M | W1: Fixed O&M | Y1: hist string | AG1: Rehab New Cap
B2: French | C2: Nom de Station | D2: MESSAGE Name with Country Prefix | E2: Nom MESSAGE | F2: Combustible | H2: Capacité installée | I2: Capacité disponible | K2: Conso.spec.nette | N2: Annee de Declassement | Q2: Indisp. Fortuite | S2: Indisp. Planifiée | U2: Coût O&M variable | W2: Coût O&M fixe | Y2: hist texte | AG2: Rehab Cap Nouv
D4: 1 | E4: =D4+1 -> 2 | F4: 3 | G4: 4 | H4: 5 | I4: 6 | J4: 7 | K4: 8 | L4: 9 | M4: 10 | N4: 11 | O4: 12 | P4: 13 | Q4: 14 | R4: 15 | S4: 16 | T4: 17 | U4: 18 | V4: 19 | W4: 20 | X4: 21 | Y4: 22
B5: 1 | C5: =B5+1 -> 2 | D5: =C5+1 -> 3 | E5: =D5+1 -> 4 | F5: 5 | G5: 6 | H5: 7 | I5: 8 | J5: 9 | K5: 10 | L5: 11 | M5: 12 | N5: 13 | O5: 14 | P5: 15 | Q5: 16 | R5: 17 | S5: 18 | T5: 19 | U5: 20 | V5: 21 | W5: 22 | X5: 23 | Y5: 24
B7: Senegal | Z7: 1960 | AA7: =Z7+1 -> 1961 | AB7: =AA7+1 -> 1962 | AC7: =AB7+1 -> 1963 | AD7: 1964 | AE7: 1965 | AF7: 1966 | AG7: 1967 | AH7: 1968 | AI7: 1969 | AJ7: 1970 | AK7: 1971 | AL7: 1972 | AM7: 1973 | AN7: 1974 | AO7: 1975 | AP7: 1976 | AQ7: 1977 | AR7: 1978 | AS7: 1979 | AT7: 1980 | AU7: 1981 | AV7: 1982 | AW7: 1983 | AX7: 1984 | AY7: 1985 | AZ7: 1986 | BA7: 1987 | BB7: 1988 | BC7: 1989 | BD7: 1990 | BE7: 1991 | BF7: 1992 | BG7: 1993 | BH7: 1994 | BI7: 1995 | BJ7: 1996 | BK7: 1997 | BL7: 1998 | BM7: 1999 | BN7: 2000 | BO7: 2001 | BP7: 2002 | BQ7: 2003 | BR7: 2004 | BS7: 2005 | BT7: 2006 | BU7: 2007 | BV7: 2008 | BW7: 2009 | BX7: 2010
B8: SEN | J8: 1ère | M8: Année
F9: 1er | G9: 2e | J9: conso. | L9: 2e conso. | M9: de mise
C10: Nom de | D10: N° | E10: Type | F10: combust | G10: combusti | H10: Capacité | I10: Capacité | J10: spéc. | L10: spéc. | M10: en | N10: Année de | P10: Indisp. | R10: Indisp. | T10: Coûts O&M | V10: Coûts O&M | W10: Coût spéc. | X10: Fabricant et
C11: centrale | D11: unité | E11: unité | F11: ible | G11: ble | H11: installée | I11: disponible | J11: nette | L11: nette | M11: service | N11: déclassement | O11: Statut | P11: fortuite | R11: Planifiée | T11: variables | V11: fixes | W11: investissement | X11: modèle
H12: [MW] | I12: [MW] | J12: [GJ/MWh] | L12: [GJ/MWh] | P12: [%] | R12: [h/an] | T12: [$/MWh] | V12: [$/kW/an] | W12: [$/kW]
A13: =M13&B13 -> 1966STHFO | B13: =E13&F13 -> STHFO | C13: capdesbichesC3VAP | D13: G301 | E13: ST | F13: HFO | H13: 27.5 | I13: 20 | J13: 12.9 | K13: =IF(J13="VS",IF(B13="DIHFO",VS!$M$5,SUMIF(VS!$D$3:$G$3,$E13,VS!$D$5:$G$5)),J13) -> 12.9 | M13: 1966 | N13: VS | O13: Existante | P13: VS | Q13: =IF(P13="VS",SUMIF(VS!$D$3:$G$3,$E13,VS!$D$7:$G$7),P13) -> 0.08 | R13: VS | S13: =IF(R13="VS",SUMIF(VS!$D$3:$G$3,$E13,VS!$D$8:$G$8),R13) -> 613 | T13: VS | U13: =IF(T13="VS",SUMIF(VS!$D$3:$G$3,$E13,VS!$D$9:$G$9),T13) -> 3.1 | X13: alstom
A14: =M14&B14 -> 1976STHFO | B14: =E14&F14 -> STHFO | D14: G302 | E14: ST | F14: HFO | H14: 30 | I14: 13 | J14: 12.9 | K14: =IF(J14="VS",IF(B14="DIHFO",VS!$M$5,SUMIF(VS!$D$3:$G$3,$E14,VS!$D$5:$G$5)),J14) -> 12.9 | M14: 1976 | N14: VS | O14: Existante | P14: VS | Q14: =IF(P14="VS",SUMIF(VS!$D$3:$G$3,$E14,VS!$D$7:$G$7),P14) -> 0.08 | R14: VS | S14: =IF(R14="VS",SUMIF(VS!$D$3:$G$3,$E14,VS!$D$8:$G$8),R14) -> 613 | T14: VS | U14: =IF(T14="VS",SUMIF(VS!$D$3:$G$3,$E14,VS!$D$9:$G$9),T14) -> 3.1 | X14: alstom
A15: 1978STHFO | B15: STHFO | D15: G303 | E15: ST | F15: HFO | H15: 30 | I15: 20 | J15: 12.9 | K15: =IF(J15="VS",IF(B15="DIHFO",VS!$M$5,SUMIF(VS!$D$3:$G$3,$E15,VS!$D$5:$G$5)),J15) -> 12.9 | M15: 1978 | N15: VS | O15: Existante | P15: VS | Q15: =IF(P15="VS",SUMIF(VS!$D$3:$G$3,$E15,VS!$D$7:$G$7),P15) -> 0.08 | R15: VS | S15: =IF(R15="VS",SUMIF(VS!$D$3:$G$3,$E15,VS!$D$8:$G$8),R15) -> 613 | T15: VS | U15: =IF(T15="VS",SUMIF(VS!$D$3:$G$3,$E15,VS!$D$9:$G$9),T15) -> 3.1 | X15: alstom
A16: 1989DIHFO | B16: DIHFO | C16: capdesbichesC4DIES | D16: G401 | E16: DI | F16: HFO | G16: DO | H16: 19 | I16: 18 | J16: 9.4 | K16: =IF(J16="VS",IF(B16="DIHFO",VS!$M$5,SUMIF(VS!$D$3:$G$3,$E16,VS!$D$5:$G$5)),J16) -> 9.4 | L16: VS | M16: 1989 | N16: VS | O16: Existante | P16: VS | Q16: =IF(P16="VS",SUMIF(VS!$D$3:$G$3,$E16,VS!$D$7:$G$7),P16) -> 0.1 | R16: VS | S16: =IF(R16="VS",SUMIF(VS!$D$3:$G$3,$E16,VS!$D$8:$G$8),R16) -> 960 | T16: VS | U16: =IF(T16="VS",SUMIF(VS!$D$3:$G$3,$E16,VS!$D$9:$G$9),T16) -> 10 | X16: PIELSTIK
A17: 1989DIHFO | B17: DIHFO | D17: G402 | E17: DI | F17: HFO | G17: DO | H17: 19 | I17: 18 | J17: 9.4 | K17: =IF(J17="VS",IF(B17="DIHFO",VS!$M$5,SUMIF(VS!$D$3:$G$3,$E17,VS!$D$5:$G$5)),J17) -> 9.4 | L17: VS | M17: 1989 | N17: VS | O17: Existante | P17: VS | Q17: =IF(P17="VS",SUMIF(VS!$D$3:$G$3,$E17,VS!$D$7:$G$7),P17) -> 0.1 | R17: VS | S17: =IF(R17="VS",SUMIF(VS!$D$3:$G$3,$E17,VS!$D$8:$G$8),R17) -> 960 | T17: VS | U17: =IF(T17="VS",SUMIF(VS!$D$3:$G$3,$E17,VS!$D$9:$G$9),T17) -> 10 | X17: PIELSTIK
A18: 1997DIHFO | B18: DIHFO | D18: G403 | E18: DI | F18: HFO | G18: DO | H18: 21 | I18: 18 | J18: 9.2 | K18: =IF(J18="VS",IF(B18="DIHFO",VS!$M$5,SUMIF(VS!$D$3:$G$3,$E18,VS!$D$5:$G$5)),J18) -> 9.2 | L18: VS | M18: 1997 | N18: VS | O18: Existante | P18: VS | Q18: =IF(P18="VS",SUMIF(VS!$D$3:$G$3,$E18,VS!$D$7:$G$7),P18) -> 0.1 | R18: VS | S18: =IF(R18="VS",SUMIF(VS!$D$3:$G$3,$E18,VS!$D$8:$G$8),R18) -> 960 | T18: VS | U18: =IF(T18="VS",SUMIF(VS!$D$3:$G$3,$E18,VS!$D$9:$G$9),T18) -> 10 | X18: PIELSTIK
A19: 2003DIHFO | B19: DIHFO | D19: G404 | E19: DI | F19: HFO | G19: DO | H19: 15 | I19: 15 | J19: 8.8 | K19: =IF(J19="VS",IF(B19="DIHFO",VS!$M$5,SUMIF(VS!$D$3:$G$3,$E19,VS!$D$5:$G$5)),J19) -> 8.8 | L19: VS | M19: 2003 | N19: VS | O19: Existante | P19: VS | Q19: =IF(P19="VS",SUMIF(VS!$D$3:$G$3,$E19,VS!$D$7:$G$7),P19) -> 0.1 | R19: VS | S19: =IF(R19="VS",SUMIF(VS!$D$3:$G$3,$E19,VS!$D$8:$G$8),R19) -> 960 | T19: VS | U19: =IF(T19="VS",SUMIF(VS!$D$3:$G$3,$E19,VS!$D$9:$G$9),T19) -> 10 | X19: VARSILÄT
A20: 2003DIHFO | B20: DIHFO | D20: G405 | E20: DI | F20: HFO | G20: DO | H20: 15 | I20: 15 | J20: 8.8 | K20: =IF(J20="VS",IF(B20="DIHFO",VS!$M$5,SUMIF(VS!$D$3:$G$3,$E20,VS!$D$5:$G$5)),J20) -> 8.8 | L20: VS | M20: 2003 | N20: VS | O20: Existante | P20: VS | Q20: =IF(P20="VS",SUMIF(VS!$D$3:$G$3,$E20,VS!$D$7:$G$7),P20) -> 0.1 | R20: VS | S20: =IF(R20="VS",SUMIF(VS!$D$3:$G$3,$E20,VS!$D$8:$G$8),R20) -> 960 | T20: VS | U20: =IF(T20="VS",SUMIF(VS!$D$3:$G$3,$E20,VS!$D$9:$G$9),T20) -> 10 | X20: VARSILÄT
A21: 1984GTDO | B21: GTDO | C21: capdesbiches | D21: TAG2 | E21: GT | F21: DO | G21: DO | H21: 20 | I21: 18 | J21: 18 | K21: =IF(J21="VS",IF(B21="DIHFO",VS!$M$5,SUMIF(VS!$D$3:$G$3,$E21,VS!$D$5:$G$5)),J21) -> 18 | L21: VS | M21: 1984 | N21: VS | O21: Existante | P21: VS | Q21: =IF(P21="VS",SUMIF(VS!$D$3:$G$3,$E21,VS!$D$7:$G$7),P21) -> 0.08 | R21: VS | S21: =IF(R21="VS",SUMIF(VS!$D$3:$G$3,$E21,VS!$D$8:$G$8),R21) -> 613 | T21: VS | U21: =IF(T21="VS",SUMIF(VS!$D$3:$G$3,$E21,VS!$D$9:$G$9),T21) -> 2.5 | X21: alstom
A22: 1995GTDO | B22: GTDO | D22: TAG3 | E22: GT | F22: DO | G22: JET | H22: 24 | I22: 18 | J22: 16.6 | K22: =IF(J22="VS",IF(B22="DIHFO",VS!$M$5,SUMIF(VS!$D$3:$G$3,$E22,VS!$D$5:$G$5)),J22) -> 16.6 | L22: VS | M22: 1995 | N22: VS | O22: Existante | P22: VS | Q22: =IF(P22="VS",SUMIF(VS!$D$3:$G$3,$E22,VS!$D$7:$G$7),P22) -> 0.08 | R22: VS | S22: =IF(R22="VS",SUMIF(VS!$D$3:$G$3,$E22,VS!$D$8:$G$8),R22) -> 613 | T22: VS | U22: =IF(T22="VS",SUMIF(VS!$D$3:$G$3,$E22,VS!$D$9:$G$9),T22) -> 2.5 | X22: GE
A23: 2006DIHFO | B23: DIHFO | C23: belairC6DIES | D23: G601 | E23: DI | F23: HFO | G23: DO | H23: 16 | I23: 16 | J23: 8.8 | K23: =IF(J23="VS",IF(B23="DIHFO",VS!$M$5,SUMIF(VS!$D$3:$G$3,$E23,VS!$D$5:$G$5)),J23) -> 8.8 | L23: VS | M23: 2006 | N23: VS | O23: Existante | P23: VS | Q23: =IF(P23="VS",SUMIF(VS!$D$3:$G$3,$E23,VS!$D$7:$G$7),P23) -> 0.1 | R23: VS | S23: =IF(R23="VS",SUMIF(VS!$D$3:$G$3,$E23,VS!$D$8:$G$8),R23) -> 960 | T23: VS | U23: =IF(T23="VS",SUMIF(VS!$D$3:$G$3,$E23,VS!$D$9:$G$9),T23) -> 10 | X23: VARSILÄT
A24: 2006DIHFO | B24: DIHFO | D24: G602 | E24: DI | F24: HFO | G24: DO | H24: 16 | I24: 16 | J24: 8.8 | K24: =IF(J24="VS",IF(B24="DIHFO",VS!$M$5,SUMIF(VS!$D$3:$G$3,$E24,VS!$D$5:$G$5)),J24) -> 8.8 | L24: VS | M24: 2006 | N24: VS | O24: Existante | P24: VS | Q24: =IF(P24="VS",SUMIF(VS!$D$3:$G$3,$E24,VS!$D$7:$G$7),P24) -> 0.1 | R24: VS | S24: =IF(R24="VS",SUMIF(VS!$D$3:$G$3,$E24,VS!$D$8:$G$8),R24) -> 960 | T24: VS | U24: =IF(T24="VS",SUMIF(VS!$D$3:$G$3,$E24,VS!$D$9:$G$9),T24) -> 10 | X24: VARSILÄT
A25: 2006DIHFO | B25: DIHFO | D25: G603 | E25: DI | F25: HFO | G25: DO | H25: 16 | I25: 16 | J25: 8.8 | K25: =IF(J25="VS",IF(B25="DIHFO",VS!$M$5,SUMIF(VS!$D$3:$G$3,$E25,VS!$D$5:$G$5)),J25) -> 8.8 | L25: VS | M25: 2006 | N25: VS | O25: Existante | P25: VS | Q25: =IF(P25="VS",SUMIF(VS!$D$3:$G$3,$E25,VS!$D$7:$G$7),P25) -> 0.1 | R25: VS | S25: =IF(R25="VS",SUMIF(VS!$D$3:$G$3,$E25,VS!$D$8:$G$8),R25) -> 960 | T25: VS | U25: =IF(T25="VS",SUMIF(VS!$D$3:$G$3,$E25,VS!$D$9:$G$9),T25) -> 10 | X25: VARSILÄT
A26: 2006DIHFO | B26: DIHFO | D26: G604 | E26: DI | F26: HFO | G26: DO | H26: 16 | I26: 16 | J26: 8.8 | K26: =IF(J26="VS",IF(B26="DIHFO",VS!$M$5,SUMIF(VS!$D$3:$G$3,$E26,VS!$D$5:$G$5)),J26) -> 8.8 | L26: VS | M26: 2006 | N26: VS | O26: Existante | P26: VS | Q26: =IF(P26="VS",SUMIF(VS!$D$3:$G$3,$E26,VS!$D$7:$G$7),P26) -> 0.1 | R26: VS | S26: =IF(R26="VS",SUMIF(VS!$D$3:$G$3,$E26,VS!$D$8:$G$8),R26) -> 960 | T26: VS | U26: =IF(T26="VS",SUMIF(VS!$D$3:$G$3,$E26,VS!$D$9:$G$9),T26) -> 10 | X26: VARSILÄT
A27: 1999GTDO | B27: GTDO | C27: belairC2TAG | D27: TAG4 | E27: GT | F27: DO | H27: 32 | I27: 30 | J27: 15.1 | K27: =IF(J27="VS",IF(B27="DIHFO",VS!$M$5,SUMIF(VS!$D$3:$G$3,$E27,VS!$D$5:$G$5)),J27) -> 15.1 | M27: 1999 | N27: VS | O27: Existante | P27: VS | Q27: =IF(P27="VS",SUMIF(VS!$D$3:$G$3,$E27,VS!$D$7:$G$7),P27) -> 0.08 | R27: VS | S27: =IF(R27="VS",SUMIF(VS!$D$3:$G$3,$E27,VS!$D$8:$G$8),R27) -> 613 | T27: VS | U27: =IF(T27="VS",SUMIF(VS!$D$3:$G$3,$E27,VS!$D$9:$G$9),T27) -> 2.5 | X27: GEFRAME6
A28: 2009DIHFO | B28: DIHFO | C28: C7KAHONE2POWER | D28: G701 | E28: DI | F28: HFO | G28: DO | H28: 15 | I28: 15 | J28: 8.8 | K28: =IF(J28="VS",IF(B28="DIHFO",VS!$M$5,SUMIF(VS!$D$3:$G$3,$E28,VS!$D$5:$G$5)),J28) -> 8.8 | L28: VS | M28: 2009 | N28: VS | O28: Existante | P28: VS | Q28: =IF(P28="VS",SUMIF(VS!$D$3:$G$3,$E28,VS!$D$7:$G$7),P28) -> 0.1 | R28: VS | S28: =IF(R28="VS",SUMIF(VS!$D$3:$G$3,$E28,VS!$D$8:$G$8),R28) -> 960 | T28: VS | U28: =IF(T28="VS",SUMIF(VS!$D$3:$G$3,$E28,VS!$D$9:$G$9),T28) -> 10 | X28: VARSILÄT
A29: 2009DIHFO | B29: DIHFO | D29: G702 | E29: DI | F29: HFO | G29: DO | H29: 15 | I29: 15 | J29: 8.8 | K29: =IF(J29="VS",IF(B29="DIHFO",VS!$M$5,SUMIF(VS!$D$3:$G$3,$E29,VS!$D$5:$G$5)),J29) -> 8.8 | L29: VS | M29: 2009 | N29: VS | O29: Existante | P29: VS | Q29: =IF(P29="VS",SUMIF(VS!$D$3:$G$3,$E29,VS!$D$7:$G$7),P29) -> 0.1 | R29: VS | S29: =IF(R29="VS",SUMIF(VS!$D$3:$G$3,$E29,VS!$D$8:$G$8),R29) -> 960 | T29: VS | U29: =IF(T29="VS",SUMIF(VS!$D$3:$G$3,$E29,VS!$D$9:$G$9),T29) -> 10 | X29: VARSILÄT
A30: 2009DIHFO | B30: DIHFO | D30: G703 | E30: DI | F30: HFO | G30: DO | H30: 15 | I30: 15 | J30: 8.8 | K30: =IF(J30="VS",IF(B30="DIHFO",VS!$M$5,SUMIF(VS!$D$3:$G$3,$E30,VS!$D$5:$G$5)),J30) -> 8.8 | L30: VS | M30: 2009 | N30: VS | O30: Existante | P30: VS | Q30: =IF(P30="VS",SUMIF(VS!$D$3:$G$3,$E30,VS!$D$7:$G$7),P30) -> 0.1 | R30: VS | S30: =IF(R30="VS",SUMIF(VS!$D$3:$G$3,$E30,VS!$D$8:$G$8),R30) -> 960 | T30: VS | U30: =IF(T30="VS",SUMIF(VS!$D$3:$G$3,$E30,VS!$D$9:$G$9),T30) -> 10 | X30: VARSILÄT
A31: 2009DIHFO | B31: DIHFO | D31: G704 | E31: DI | F31: HFO | G31: DO | H31: 15 | I31: 15 | J31: 8.8 | K31: =IF(J31="VS",IF(B31="DIHFO",VS!$M$5,SUMIF(VS!$D$3:$G$3,$E31,VS!$D$5:$G$5)),J31) -> 8.8 | L31: VS | M31: 2009 | N31: VS | O31: Existante | P31: VS | Q31: =IF(P31="VS",SUMIF(VS!$D$3:$G$3,$E31,VS!$D$7:$G$7),P31) -> 0.1 | R31: VS | S31: =IF(R31="VS",SUMIF(VS!$D$3:$G$3,$E31,VS!$D$8:$G$8),R31) -> 960 | T31: VS | U31: =IF(T31="VS",SUMIF(VS!$D$3:$G$3,$E31,VS!$D$9:$G$9),T31) -> 10 | X31: VARSILÄT
A32: 2008DIHFO | B32: DIHFO | C32: CkounouneIPP | D32: GK1 | E32: DI | F32: HFO | G32: DO | H32: 7.5 | I32: 7.5 | J32: 9.2 | K32: =IF(J32="VS",IF(B32="DIHFO",VS!$M$5,SUMIF(VS!$D$3:$G$3,$E32,VS!$D$5:$G$5)),J32) -> 9.2 | L32: VS | M32: 2008 | N32: VS | O32: Existante | P32: VS | Q32: =IF(P32="VS",SUMIF(VS!$D$3:$G$3,$E32,VS!$D$7:$G$7),P32) -> 0.1 | R32: VS | S32: =IF(R32="VS",SUMIF(VS!$D$3:$G$3,$E32,VS!$D$8:$G$8),R32) -> 960 | T32: VS | U32: =IF(T32="VS",SUMIF(VS!$D$3:$G$3,$E32,VS!$D$9:$G$9),T32) -> 10 | X32: Michubishi
A33: 2008DIHFO | B33: DIHFO | D33: GK2 | E33: DI | F33: HFO | G33: DO | H33: 7.5 | I33: 7.5 | J33: 9.2 | K33: =IF(J33="VS",IF(B33="DIHFO",VS!$M$5,SUMIF(VS!$D$3:$G$3,$E33,VS!$D$5:$G$5)),J33) -> 9.2 | L33: VS | M33: 2008 | N33: VS | O33: Existante | P33: VS | Q33: =IF(P33="VS",SUMIF(VS!$D$3:$G$3,$E33,VS!$D$7:$G$7),P33) -> 0.1 | R33: VS | S33: =IF(R33="VS",SUMIF(VS!$D$3:$G$3,$E33,VS!$D$8:$G$8),R33) -> 960 | T33: VS | U33: =IF(T33="VS",SUMIF(VS!$D$3:$G$3,$E33,VS!$D$9:$G$9),T33) -> 10 | X33: MichubishiA
A34: 2008DIHFO | B34: DIHFO | D34: GK3 | E34: DI | F34: HFO | G34: DO | H34: 7.5 | I34: 7.5 | J34: 9.2 | K34: =IF(J34="VS",IF(B34="DIHFO",VS!$M$5,SUMIF(VS!$D$3:$G$3,$E34,VS!$D$5:$G$5)),J34) -> 9.2 | L34: VS | M34: 2008 | N34: VS | O34: Existante | P34: VS | Q34: =IF(P34="VS",SUMIF(VS!$D$3:$G$3,$E34,VS!$D$7:$G$7),P34) -> 0.1 | R34: VS | S34: =IF(R34="VS",SUMIF(VS!$D$3:$G$3,$E34,VS!$D$8:$G$8),R34) -> 960 | T34: VS | U34: =IF(T34="VS",SUMIF(VS!$D$3:$G$3,$E34,VS!$D$9:$G$9),T34) -> 10 | X34: MichubishiisthepropertyofTractebelEngineeringS.A.
A35: 2008DIHFO | B35: DIHFO | D35: GK4 | E35: DI | F35: HFO | G35: DO | H35: 7.5 | I35: 7.5 | J35: 9.2 | K35: =IF(J35="VS",IF(B35="DIHFO",VS!$M$5,SUMIF(VS!$D$3:$G$3,$E35,VS!$D$5:$G$5)),J35) -> 9.2 | L35: VS | M35: 2008 | N35: VS | O35: Existante | P35: VS | Q35: =IF(P35="VS",SUMIF(VS!$D$3:$G$3,$E35,VS!$D$7:$G$7),P35) -> 0.1 | R35: VS | S35: =IF(R35="VS",SUMIF(VS!$D$3:$G$3,$E35,VS!$D$8:$G$8),R35) -> 960 | T35: VS | U35: =IF(T35="VS",SUMIF(VS!$D$3:$G$3,$E35,VS!$D$9:$G$9),T35) -> 10 | X35: Michubishi
A36: 2008DIHFO | B36: DIHFO | D36: GK5 | E36: DI | F36: HFO | G36: DO | H36: 7.5 | I36: 7.5 | J36: 9.2 | K36: =IF(J36="VS",IF(B36="DIHFO",VS!$M$5,SUMIF(VS!$D$3:$G$3,$E36,VS!$D$5:$G$5)),J36) -> 9.2 | L36: VS | M36: 2008 | N36: VS | O36: Existante | P36: VS | Q36: =IF(P36="VS",SUMIF(VS!$D$3:$G$3,$E36,VS!$D$7:$G$7),P36) -> 0.1 | R36: VS | S36: =IF(R36="VS",SUMIF(VS!$D$3:$G$3,$E36,VS!$D$8:$G$8),R36) -> 960 | T36: VS | U36: =IF(T36="VS",SUMIF(VS!$D$3:$G$3,$E36,VS!$D$9:$G$9),T36) -> 10 | X36: Michubishi
A37: 2008DIHFO | B37: DIHFO | D37: GK6 | E37: DI | F37: HFO | G37: DO | H37: 7.5 | I37: 7.5 | J37: 9.2 | K37: =IF(J37="VS",IF(B37="DIHFO",VS!$M$5,SUMIF(VS!$D$3:$G$3,$E37,VS!$D$5:$G$5)),J37) -> 9.2 | L37: VS | M37: 2008 | N37: VS | O37: Existante | P37: VS | Q37: =IF(P37="VS",SUMIF(VS!$D$3:$G$3,$E37,VS!$D$7:$G$7),P37) -> 0.1 | R37: VS | S37: =IF(R37="VS",SUMIF(VS!$D$3:$G$3,$E37,VS!$D$8:$G$8),R37) -> 960 | T37: VS | U37: =IF(T37="VS",SUMIF(VS!$D$3:$G$3,$E37,VS!$D$9:$G$9),T37) -> 10 | X37: Michubishi
A38: 2008DIHFO | B38: DIHFO | D38: GK7 | E38: DI | F38: HFO | G38: DO | H38: 7.5 | I38: 7.5 | J38: 9.2 | K38: =IF(J38="VS",IF(B38="DIHFO",VS!$M$5,SUMIF(VS!$D$3:$G$3,$E38,VS!$D$5:$G$5)),J38) -> 9.2 | L38: VS | M38: 2008 | N38: VS | O38: Existante | P38: VS | Q38: =IF(P38="VS",SUMIF(VS!$D$3:$G$3,$E38,VS!$D$7:$G$7),P38) -> 0.1 | R38: VS | S38: =IF(R38="VS",SUMIF(VS!$D$3:$G$3,$E38,VS!$D$8:$G$8),R38) -> 960 | T38: VS | U38: =IF(T38="VS",SUMIF(VS!$D$3:$G$3,$E38,VS!$D$9:$G$9),T38) -> 10 | X38: Michubishi
A39: 2008DIHFO | B39: DIHFO | D39: GK8 | E39: DI | F39: HFO | G39: DO | H39: 7.5 | I39: 7.5 | J39: 9.2 | K39: =IF(J39="VS",IF(B39="DIHFO",VS!$M$5,SUMIF(VS!$D$3:$G$3,$E39,VS!$D$5:$G$5)),J39) -> 9.2 | L39: VS | M39: 2008 | N39: VS | O39: Existante | P39: VS | Q39: =IF(P39="VS",SUMIF(VS!$D$3:$G$3,$E39,VS!$D$7:$G$7),P39) -> 0.1 | R39: VS | S39: =IF(R39="VS",SUMIF(VS!$D$3:$G$3,$E39,VS!$D$8:$G$8),R39) -> 960 | T39: VS | U39: =IF(T39="VS",SUMIF(VS!$D$3:$G$3,$E39,VS!$D$9:$G$9),T39) -> 10 | X39: Michubishi
A40: 2008DIHFO | B40: DIHFO | D40: GK9 | E40: DI | F40: HFO | G40: DO | H40: 7.5 | I40: 7.5 | J40: 9.2 | K40: =IF(J40="VS",IF(B40="DIHFO",VS!$M$5,SUMIF(VS!$D$3:$G$3,$E40,VS!$D$5:$G$5)),J40) -> 9.2 | L40: VS | M40: 2008 | N40: VS | O40: Existante | P40: VS | Q40: =IF(P40="VS",SUMIF(VS!$D$3:$G$3,$E40,VS!$D$7:$G$7),P40) -> 0.1 | R40: VS | S40: =IF(R40="VS",SUMIF(VS!$D$3:$G$3,$E40,VS!$D$8:$G$8),R40) -> 960 | T40: VS | U40: =IF(T40="VS",SUMIF(VS!$D$3:$G$3,$E40,VS!$D$9:$G$9),T40) -> 10 | X40: Michubishi
A41: 2000CCNAPHTA | B41: CCNAPHTA | C41: GTIIPP | D41: GTIGT | E41: CC | F41: NAPHTA | H41: 35 | I41: 34 | J41: 9.2 | K41: =IF(J41="VS",IF(B41="DIHFO",VS!$M$5,SUMIF(VS!$D$3:$G$3,$E41,VS!$D$5:$G$5)),J41) -> 9.2 | M41: 2000 | N41: VS | O41: Existante | P41: VS | Q41: =IF(P41="VS",SUMIF(VS!$D$3:$G$3,$E41,VS!$D$7:$G$7),P41) -> 0.08 | R41: VS | S41: =IF(R41="VS",SUMIF(VS!$D$3:$G$3,$E41,VS!$D$8:$G$8),R41) -> 613 | T41: VS | U41: =IF(T41="VS",SUMIF(VS!$D$3:$G$3,$E41,VS!$D$9:$G$9),T41) -> 2 | X41: GEFRAME6
A42: 2000CCNAPHTA | B42: CCNAPHTA | C42: GTIIPP | D42: GTIST | E42: CC | F42: =F41 -> NAPHTA | H42: 17 | I42: 15 | J42: 9.2 | K42: =IF(J42="VS",IF(B42="DIHFO",VS!$M$5,SUMIF(VS!$D$3:$G$3,$E42,VS!$D$5:$G$5)),J42) -> 9.2 | M42: 2000 | N42: VS | O42: Existante | P42: VS | Q42: =IF(P42="VS",SUMIF(VS!$D$3:$G$3,$E42,VS!$D$7:$G$7),P42) -> 0.08 | R42: VS | S42: =IF(R42="VS",SUMIF(VS!$D$3:$G$3,$E42,VS!$D$8:$G$8),R42) -> 613 | T42: VS | U42: =IF(T42="VS",SUMIF(VS!$D$3:$G$3,$E42,VS!$D$9:$G$9),T42) -> 2 | X42: GEFRAME6
C44: =OFFSET(C$1,lang,0) -> Name of Station | D44: =OFFSET(D$1,lang,0) -> MESSAGE Name with Country Prefix | E44: =OFFSET(E$1,lang,0) -> MESSAGE Name | F44: =OFFSET(F$1,lang,0) -> Fuel | H44: =OFFSET(H$1,lang,0) -> Plant Capacity | I44: =OFFSET(I$1,lang,0) -> Available Capacity | K44: =OFFSET(K$1,lang,0) -> Heat Rate | N44: =OFFSET(N$1,lang,0) -> Decomissioning year | Q44: =OFFSET(Q$1,lang,0) -> Forced Outage | S44: =OFFSET(S$1,lang,0) -> Planned outage | U44: =OFFSET(U$1,lang,0) -> Variable O&M | W44: =OFFSET(W$1,lang,0) -> Fixed O&M | Y44: =OFFSET(Y$1,lang,0) -> hist string
H45: MW | I45: MW | K45: GJ/MWh | Q45: % | S45: h/yr | U45: US$/MWh | W45: US$/kW-yr
C46: =VLOOKUP(D46,NameConvs!$B$57:$E$69,4,FALSE) -> Senegal | D46: SEN | I46: =SUM(I47:I50) -> 443.5 | T46: =SUM(T47:T50) -> 3193.21032
B47: STHFO | C47: =VLOOKUP(LEFT(B47,2),NameConvs!$D$33:$F$42,lang+2,FALSE)&" "&F47 -> Steam Turbine OHF | D47: =D$46&E47 -> SENEPOHFEXST | E47: ="EP"&F47&"EX"&LEFT(B47,2) -> EPOHFEXST | F47: =VLOOKUP(RIGHT(B47,LEN(B47)-2),NameConvs!$A$4:$C$14,3,FALSE) -> OHF | H47: =SUMIF($B$13:$B$42,$B47,$H$13:$H$42) -> 87.5 | I47: =SUMIF($B$13:$B$42,$B47,$I$13:$I$42) -> 53 | K47: =SUMPRODUCT(--($B$13:$B$42=$B47),$I$13:$I$42,K$13:K$42)/SUMPRODUCT(--($B$13:$B$42=$B47),$I$13:$I$42) -> 12.9 | N47: =IF(VLOOKUP(B47,$B$13:$N$42,N$5,FALSE)="VS","",VLOOKUP(B47,$B$13:$N$42,N$5,FALSE)) ->  | Q47: =SUMPRODUCT(--($B$13:$B$42=$B47),$I$13:$I$42,Q$13:Q$42)/SUMPRODUCT(--($B$13:$B$42=$B47),$I$13:$I$42) -> 0.08 | R47: =S47/8760 -> 0.06997716895 | S47: =SUMPRODUCT(--($B$13:$B$42=$B47),$I$13:$I$42,S$13:S$42)/SUMPRODUCT(--($B$13:$B$42=$B47),$I$13:$I$42) -> 613 | T47: =(1-Q47)*(1-R47)*I47*8.76 -> 397.24772 | U47: =SUMPRODUCT(--($B$13:$B$42=$B47),$I$13:$I$42,U$13:U$42)/SUMPRODUCT(--($B$13:$B$42=$B47),$I$13:$I$42) -> 3.1 | Y47: =Z47&AA47&AB47&AC47&AD47&AE47&AF47&AG47&AH47&AI47&AJ47&AK47&AL47&AM47&AN47&AO47&AP47&AQ47&AR47&AS47&AT47&AU47&AV47&AW47&AX47&AY47&AZ47&BA47&BB47&BC47&BD47&BE47&BF47&BG47&BH47&BI47&BJ47&BK47&BL47&BM47&BN47&BO47&BP47&BQ47&BR47&BS47&BT47&BU47&BV47&BW47&BX47 -> 1966 20 1976 13 1978 20 | Z47: =IF(SUMIF($A$13:$A$42,Z$7&$B47,$I$13:$I$42)=0,"",Z$7&" "&SUMIF($A$13:$A$42,Z$7&$B47,$I$13:$I$42)&" ") ->  | AA47: =IF(SUMIF($A$13:$A$42,AA$7&$B47,$I$13:$I$42)=0,"",AA$7&" "&SUMIF($A$13:$A$42,AA$7&$B47,$I$13:$I$42)&" ") ->  | AF47: 1966 20 | AP47: 1976 13 | AR47: 1978 20
B48: DIHFO | C48: =VLOOKUP(LEFT(B48,2),NameConvs!$D$33:$F$42,lang+2,FALSE)&" "&F48 -> Diesel Generators OHF | D48: =D$46&E48 -> SENEPOHFEXDI | E48: ="EP"&F48&"EX"&LEFT(B48,2) -> EPOHFEXDI | F48: =VLOOKUP(RIGHT(B48,LEN(B48)-2),NameConvs!$A$4:$C$14,3,FALSE) -> OHF | H48: =SUMIF($B$13:$B$42,$B48,$H$13:$H$42) -> 280.5 | I48: =SUMIF($B$13:$B$42,$B48,$I$13:$I$42) -> 275.5 | K48: =SUMPRODUCT(--($B$13:$B$42=$B48),$I$13:$I$42,K$13:K$42)/SUMPRODUCT(--($B$13:$B$42=$B48),$I$13:$I$42) -> 9.002540835 | N48: =IF(VLOOKUP(B48,$B$13:$N$42,N$5,FALSE)="VS","",VLOOKUP(B48,$B$13:$N$42,N$5,FALSE)) ->  | Q48: =SUMPRODUCT(--($B$13:$B$42=$B48),$I$13:$I$42,Q$13:Q$42)/SUMPRODUCT(--($B$13:$B$42=$B48),$I$13:$I$42) -> 0.1 | R48: =S48/8760 -> 0.1095890411 | S48: 960 | T48: =(1-Q48)*(1-R48)*I48*8.76 -> 1934.01 | U48: 10 | Y48: =Z48&AA48&AB48&AC48&AD48&AE48&AF48&AG48&AH48&AI48&AJ48&AK48&AL48&AM48&AN48&AO48&AP48&AQ48&AR48&AS48&AT48&AU48&AV48&AW48&AX48&AY48&AZ48&BA48&BB48&BC48&BD48&BE48&BF48&BG48&BH48&BI48&BJ48&BK48&BL48&BM48&BN48&BO48&BP48&BQ48&BR48&BS48&BT48&BU48&BV48&BW48&BX48 -> 1989 36 1997 18 2003 30 2006 64 2008 67.5 2009 60 | Z48: =IF(SUMIF($A$13:$A$42,Z$7&$B48,$I$13:$I$42)=0,"",Z$7&" "&SUMIF($A$13:$A$42,Z$7&$B48,$I$13:$I$42)&" ") ->  | BC48: 1989 36 | BK48: 1997 18 | BQ48: 2003 30 | BT48: 2006 64 | BV48: 2008 67.5 | BW48: 2009 60
B49: GTDO | C49: =VLOOKUP(LEFT(B49,2),NameConvs!$D$33:$F$42,lang+2,FALSE)&" "&F49 -> Gas Turbine ODS | D49: =D$46&E49 -> SENEPODSEXGT | E49: ="EP"&F49&"EX"&LEFT(B49,2) -> EPODSEXGT | F49: =VLOOKUP(RIGHT(B49,LEN(B49)-2),NameConvs!$A$4:$C$14,3,FALSE) -> ODS | H49: =SUMIF($B$13:$B$42,$B49,$H$13:$H$42) -> 76 | I49: =SUMIF($B$13:$B$42,$B49,$I$13:$I$42) -> 66 | K49: =SUMPRODUCT(--($B$13:$B$42=$B49),$I$13:$I$42,K$13:K$42)/SUMPRODUCT(--($B$13:$B$42=$B49),$I$13:$I$42) -> 16.3 | N49: =IF(VLOOKUP(B49,$B$13:$N$42,N$5,FALSE)="VS","",VLOOKUP(B49,$B$13:$N$42,N$5,FALSE)) ->  | Q49: 0.08 | R49: =S49/8760 -> 0.06997716895 | S49: 613 | T49: =(1-Q49)*(1-R49)*I49*8.76 -> 494.68584 | U49: 2.5 | Y49: =Z49&AA49&AB49&AC49&AD49&AE49&AF49&AG49&AH49&AI49&AJ49&AK49&AL49&AM49&AN49&AO49&AP49&AQ49&AR49&AS49&AT49&AU49&AV49&AW49&AX49&AY49&AZ49&BA49&BB49&BC49&BD49&BE49&BF49&BG49&BH49&BI49&BJ49&BK49&BL49&BM49&BN49&BO49&BP49&BQ49&BR49&BS49&BT49&BU49&BV49&BW49&BX49 -> 1984 18 1995 18 1999 30 | Z49: =IF(SUMIF($A$13:$A$42,Z$7&$B49,$I$13:$I$42)=0,"",Z$7&" "&SUMIF($A$13:$A$42,Z$7&$B49,$I$13:$I$42)&" ") ->  | AX49: 1984 18 | BI49: 1995 18 | BM49: 1999 30
B50: CCNAPHTA | C50: =VLOOKUP(LEFT(B50,2),NameConvs!$D$33:$F$42,lang+2,FALSE)&" "&F50 -> Combined Cycle GAS | D50: =D$46&E50 -> SENEPGASEXCC | E50: ="EP"&F50&"EX"&LEFT(B50,2) -> EPGASEXCC | F50: GAS | H50: =SUMIF($B$13:$B$42,$B50,$H$13:$H$42) -> 52 | I50: =SUMIF($B$13:$B$42,$B50,$I$13:$I$42) -> 49 | K50: =SUMPRODUCT(--($B$13:$B$42=$B50),$I$13:$I$42,K$13:K$42)/SUMPRODUCT(--($B$13:$B$42=$B50),$I$13:$I$42) -> 9.2 | N50: =IF(VLOOKUP(B50,$B$13:$N$42,N$5,FALSE)="VS","",VLOOKUP(B50,$B$13:$N$42,N$5,FALSE)) ->  | Q50: 0.08 | R50: =S50/8760 -> 0.06997716895 | S50: 613 | T50: =(1-Q50)*(1-R50)*I50*8.76 -> 367.26676 | U50: 2 | Y50: =Z50&AA50&AB50&AC50&AD50&AE50&AF50&AG50&AH50&AI50&AJ50&AK50&AL50&AM50&AN50&AO50&AP50&AQ50&AR50&AS50&AT50&AU50&AV50&AW50&AX50&AY50&AZ50&BA50&BB50&BC50&BD50&BE50&BF50&BG50&BH50&BI50&BJ50&BK50&BL50&BM50&BN50&BO50&BP50&BQ50&BR50&BS50&BT50&BU50&BV50&BW50&BX50 -> 2000 49 | Z50: =IF(SUMIF($A$13:$A$42,Z$7&$B50,$I$13:$I$42)=0,"",Z$7&" "&SUMIF($A$13:$A$42,Z$7&$B50,$I$13:$I$42)&" ") ->  | BN50: 2000 49
Z51: =IF(SUMIF($A$13:$A$42,Z$7&$B51,$I$13:$I$42)=0,"",Z$7&" "&SUMIF($A$13:$A$42,Z$7&$B51,$I$13:$I$42)&" ") ->  | AF51: =IF(SUMIF($A$13:$A$42,AF$7&$B51,$I$13:$I$42)=0,"",AF$7&" "&SUMIF($A$13:$A$42,AF$7&$B51,$I$13:$I$42)&" ") -> 
B52: GAMBIA
B53: GAM
C55: ﻿ | J55: 1ère | M55: Année
F56: 1er | G56: 2e | J56: conso. | L56: 2e conso. | M56: de mise | N56: Année de
C57: Nom de | D57: N° | E57: Type | F57: combu | G57: combu | H57: Capacité | I57: Capacité | J57: spéc. | L57: spéc. | M57: en | N57: déclassem | P57: Indisp. | R57: Indisp. | T57: Coûts O&M | V57: Coûts O&M | W57: Coût spéc. | X57: Fabricant et
C58: centrale | D58: unité | E58: unité | F58: stible | G58: stible | H58: installée | I58: disponible | J58: nette | L58: nette | M58: service | N58: ent | O58: Statut | P58: fortuite | R58: Planifiée | T58: variables | V58: fixes | W58: investissement | X58: modèle
H59: [MW] | I59: [MW] | J59: [GJ/MWh] | L59: [GJ/MWh] | P59: [%] | R59: [h/an] | T59: [$/MWh] | V59: [$/kW/an] | W59: [$/kW]
A60: =M60&B60 -> 1981DILFO | B60: =E60&F60 -> DILFO | C60: Kotu | D60: KPS‐G1 | E60: DI | F60: LFO | H60: 3 | I60: 2.6 | J60: 12.5 | K60: =IF(J60="VS",IF(B60="DIHFO",VS!$M$5,SUMIF(VS!$D$3:$G$3,$E60,VS!$D$5:$G$5)),J60) -> 12.5 | M60: 1981 | N60: VS | O60: Existante | P60: VS | Q60: =IF(P60="VS",SUMIF(VS!$D$3:$G$3,$E60,VS!$D$7:$G$7),P60) -> 0.1 | R60: VS | S60: =IF(R60="VS",SUMIF(VS!$D$3:$G$3,$E60,VS!$D$8:$G$8),R60) -> 960 | T60: VS | U60: =IF(T60="VS",SUMIF(VS!$D$3:$G$3,$E60,VS!$D$9:$G$9),T60) -> 10 | X60: Mirrless
A61: 1981DILFO | B61: DILFO | D61: KPS‐G2 | E61: DI | F61: LFO | H61: 3 | I61: 0 | J61: 12.2 | K61: =IF(J61="VS",IF(B61="DIHFO",VS!$M$5,SUMIF(VS!$D$3:$G$3,$E61,VS!$D$5:$G$5)),J61) -> 12.2 | M61: 1981 | N61: VS | O61: Existante | P61: VS | Q61: =IF(P61="VS",SUMIF(VS!$D$3:$G$3,$E61,VS!$D$7:$G$7),P61) -> 0.1 | R61: VS | S61: =IF(R61="VS",SUMIF(VS!$D$3:$G$3,$E61,VS!$D$8:$G$8),R61) -> 960 | T61: VS | U61: =IF(T61="VS",SUMIF(VS!$D$3:$G$3,$E61,VS!$D$9:$G$9),T61) -> 10 | X61: Mirrless
A62: 1997DIHFO | B62: DIHFO | D62: KPS‐G3 | E62: DI | F62: HFO | H62: 3.4 | I62: 2.6 | J62: 10.9 | K62: =IF(J62="VS",IF(B62="DIHFO",VS!$M$5,SUMIF(VS!$D$3:$G$3,$E62,VS!$D$5:$G$5)),J62) -> 10.9 | M62: 1997 | N62: VS | O62: Existante | P62: VS | Q62: =IF(P62="VS",SUMIF(VS!$D$3:$G$3,$E62,VS!$D$7:$G$7),P62) -> 0.1 | R62: VS | S62: =IF(R62="VS",SUMIF(VS!$D$3:$G$3,$E62,VS!$D$8:$G$8),R62) -> 960 | T62: VS | U62: =IF(T62="VS",SUMIF(VS!$D$3:$G$3,$E62,VS!$D$9:$G$9),T62) -> 10 | X62: Mirrless
A63: 2001DIHFO | B63: DIHFO | D63: KPS‐G4 | E63: DI | F63: HFO | H63: 6.4 | I63: 5.5 | J63: 10.3 | K63: =IF(J63="VS",IF(B63="DIHFO",VS!$M$5,SUMIF(VS!$D$3:$G$3,$E63,VS!$D$5:$G$5)),J63) -> 10.3 | M63: 2001 | N63: VS | O63: Existante | P63: VS | Q63: =IF(P63="VS",SUMIF(VS!$D$3:$G$3,$E63,VS!$D$7:$G$7),P63) -> 0.1 | R63: VS | S63: =IF(R63="VS",SUMIF(VS!$D$3:$G$3,$E63,VS!$D$8:$G$8),R63) -> 960 | T63: VS | U63: =IF(T63="VS",SUMIF(VS!$D$3:$G$3,$E63,VS!$D$9:$G$9),T63) -> 10 | X63: Deutz
A64: 1990DIHFO | B64: DIHFO | D64: KPS‐G6 | E64: DI | F64: HFO | H64: 6.4 | I64: 0 | J64: 10 | K64: =IF(J64="VS",IF(B64="DIHFO",VS!$M$5,SUMIF(VS!$D$3:$G$3,$E64,VS!$D$5:$G$5)),J64) -> 10 | M64: 1990 | N64: VS | O64: Existante | P64: VS | Q64: =IF(P64="VS",SUMIF(VS!$D$3:$G$3,$E64,VS!$D$7:$G$7),P64) -> 0.1 | R64: VS | S64: =IF(R64="VS",SUMIF(VS!$D$3:$G$3,$E64,VS!$D$8:$G$8),R64) -> 960 | T64: VS | U64: =IF(T64="VS",SUMIF(VS!$D$3:$G$3,$E64,VS!$D$9:$G$9),T64) -> 10 | X64: MAN B&W
A65: 2001DIHFO | B65: DIHFO | D65: KPS‐G7 | E65: DI | F65: HFO | H65: 6.4 | I65: 5.5 | J65: 10 | K65: =IF(J65="VS",IF(B65="DIHFO",VS!$M$5,SUMIF(VS!$D$3:$G$3,$E65,VS!$D$5:$G$5)),J65) -> 10 | M65: 2001 | N65: VS | O65: Existante | P65: VS | Q65: =IF(P65="VS",SUMIF(VS!$D$3:$G$3,$E65,VS!$D$7:$G$7),P65) -> 0.1 | R65: VS | S65: =IF(R65="VS",SUMIF(VS!$D$3:$G$3,$E65,VS!$D$8:$G$8),R65) -> 960 | T65: VS | U65: =IF(T65="VS",SUMIF(VS!$D$3:$G$3,$E65,VS!$D$9:$G$9),T65) -> 10 | X65: Deutz
A66: 2001DIHFO | B66: DIHFO | D66: KPS‐G8 | E66: DI | F66: HFO | H66: 6.4 | I66: 5.5 | J66: 9.5 | K66: =IF(J66="VS",IF(B66="DIHFO",VS!$M$5,SUMIF(VS!$D$3:$G$3,$E66,VS!$D$5:$G$5)),J66) -> 9.5 | M66: 2001 | N66: VS | O66: Existante | P66: VS | Q66: =IF(P66="VS",SUMIF(VS!$D$3:$G$3,$E66,VS!$D$7:$G$7),P66) -> 0.1 | R66: VS | S66: =IF(R66="VS",SUMIF(VS!$D$3:$G$3,$E66,VS!$D$8:$G$8),R66) -> 960 | T66: VS | U66: =IF(T66="VS",SUMIF(VS!$D$3:$G$3,$E66,VS!$D$9:$G$9),T66) -> 10 | X66: Deutz
A67: 2009DIHFO | B67: DIHFO | D67: KPS‐G9 | E67: DI | F67: HFO | H67: 6.4 | I67: 5.5 | J67: 9.5 | K67: =IF(J67="VS",IF(B67="DIHFO",VS!$M$5,SUMIF(VS!$D$3:$G$3,$E67,VS!$D$5:$G$5)),J67) -> 9.5 | M67: 2009 | N67: VS | O67: Existante | P67: VS | Q67: =IF(P67="VS",SUMIF(VS!$D$3:$G$3,$E67,VS!$D$7:$G$7),P67) -> 0.1 | R67: VS | S67: =IF(R67="VS",SUMIF(VS!$D$3:$G$3,$E67,VS!$D$8:$G$8),R67) -> 960 | T67: VS | U67: =IF(T67="VS",SUMIF(VS!$D$3:$G$3,$E67,VS!$D$9:$G$9),T67) -> 10 | X67: Deutz
A68: 2006DIHFO | B68: DIHFO | C68: Brikama | D68: BRK‐G1 | E68: DI | F68: HFO | H68: 6.4 | I68: 5.5 | J68: 9.5 | K68: =IF(J68="VS",IF(B68="DIHFO",VS!$M$5,SUMIF(VS!$D$3:$G$3,$E68,VS!$D$5:$G$5)),J68) -> 9.5 | M68: 2006 | N68: VS | O68: Existante | P68: VS | Q68: =IF(P68="VS",SUMIF(VS!$D$3:$G$3,$E68,VS!$D$7:$G$7),P68) -> 0.1 | R68: VS | S68: =IF(R68="VS",SUMIF(VS!$D$3:$G$3,$E68,VS!$D$8:$G$8),R68) -> 960 | T68: VS | U68: =IF(T68="VS",SUMIF(VS!$D$3:$G$3,$E68,VS!$D$9:$G$9),T68) -> 10 | X68: Deutz
A69: 2006DIHFO | B69: DIHFO | D69: BRK‐G2 | E69: DI | F69: HFO | H69: 6.4 | I69: 5.5 | J69: 9.5 | K69: =IF(J69="VS",IF(B69="DIHFO",VS!$M$5,SUMIF(VS!$D$3:$G$3,$E69,VS!$D$5:$G$5)),J69) -> 9.5 | M69: 2006 | N69: VS | O69: Existante | P69: VS | Q69: =IF(P69="VS",SUMIF(VS!$D$3:$G$3,$E69,VS!$D$7:$G$7),P69) -> 0.1 | R69: VS | S69: =IF(R69="VS",SUMIF(VS!$D$3:$G$3,$E69,VS!$D$8:$G$8),R69) -> 960 | T69: VS | U69: =IF(T69="VS",SUMIF(VS!$D$3:$G$3,$E69,VS!$D$9:$G$9),T69) -> 10 | X69: Deutz
A70: 2007DIHFO | B70: DIHFO | D70: BRK‐G3 | E70: DI | F70: HFO | H70: 6.4 | I70: 5.5 | J70: 9.5 | K70: =IF(J70="VS",IF(B70="DIHFO",VS!$M$5,SUMIF(VS!$D$3:$G$3,$E70,VS!$D$5:$G$5)),J70) -> 9.5 | M70: 2007 | N70: VS | O70: Existante | P70: VS | Q70: =IF(P70="VS",SUMIF(VS!$D$3:$G$3,$E70,VS!$D$7:$G$7),P70) -> 0.1 | R70: VS | S70: =IF(R70="VS",SUMIF(VS!$D$3:$G$3,$E70,VS!$D$8:$G$8),R70) -> 960 | T70: VS | U70: =IF(T70="VS",SUMIF(VS!$D$3:$G$3,$E70,VS!$D$9:$G$9),T70) -> 10 | X70: Deutz
A71: 2007DIHFO | B71: DIHFO | D71: BRK‐G4 | E71: DI | F71: HFO | H71: 6.4 | I71: 5.5 | J71: 9.5 | K71: =IF(J71="VS",IF(B71="DIHFO",VS!$M$5,SUMIF(VS!$D$3:$G$3,$E71,VS!$D$5:$G$5)),J71) -> 9.5 | M71: 2007 | N71: VS | O71: Existante | P71: VS | Q71: =IF(P71="VS",SUMIF(VS!$D$3:$G$3,$E71,VS!$D$7:$G$7),P71) -> 0.1 | R71: VS | S71: =IF(R71="VS",SUMIF(VS!$D$3:$G$3,$E71,VS!$D$8:$G$8),R71) -> 960 | T71: VS | U71: =IF(T71="VS",SUMIF(VS!$D$3:$G$3,$E71,VS!$D$9:$G$9),T71) -> 10 | X71: Deutz
C73: =OFFSET(C$1,lang,0) -> Name of Station | D73: =OFFSET(D$1,lang,0) -> MESSAGE Name with Country Prefix | E73: =OFFSET(E$1,lang,0) -> MESSAGE Name | F73: =OFFSET(F$1,lang,0) -> Fuel | H73: =OFFSET(H$1,lang,0) -> Plant Capacity | I73: =OFFSET(I$1,lang,0) -> Available Capacity | K73: =OFFSET(K$1,lang,0) -> Heat Rate | N73: =OFFSET(N$1,lang,0) -> Decomissioning year | Q73: =OFFSET(Q$1,lang,0) -> Forced Outage | S73: =OFFSET(S$1,lang,0) -> Planned outage | U73: =OFFSET(U$1,lang,0) -> Variable O&M | W73: =OFFSET(W$1,lang,0) -> Fixed O&M | Y73: =OFFSET(Y$1,lang,0) -> hist string
H74: MW | I74: MW | K74: GJ/MWh | Q74: % | S74: h/yr | U74: US$/MWh | W74: US$/kW-yr
C75: =VLOOKUP(D75,NameConvs!$B$57:$E$69,4,FALSE) -> Gambia | D75: GAM | I75: =SUM(I76:I79) -> 49.2 | T75: =SUM(T76:T79) -> 345.384
B76: DILFO | C76: =VLOOKUP(LEFT(B76,2),NameConvs!$D$33:$F$72,lang+2,FALSE)&" "&F76 -> Diesel Generators ODS | D76: =D$75&E76 -> GAMEPODSEXDI | E76: ="EP"&F76&"EX"&LEFT(B76,2) -> EPODSEXDI | F76: ODS | H76: =SUMIF($B$60:$B$71,$B76,$H$60:$H$71) -> 6 | I76: =SUMIF($B$60:$B$71,$B76,$I$60:$I$71) -> 2.6 | K76: =SUMPRODUCT(--($B$60:$B$71=$B76),$I$60:$I$71,K$60:K$71)/SUMPRODUCT(--($B$60:$B$71=$B76),$I$60:$I$71) -> 12.5 | N76: =IF(VLOOKUP(B76,$B$60:$N$71,N$5,FALSE)="VS","",VLOOKUP(B76,$B$60:$N$71,N$5,FALSE)) ->  | Q76: =SUMPRODUCT(--($B$60:$B$71=$B76),$I$60:$I$71,Q$60:Q$71)/SUMPRODUCT(--($B$60:$B$71=$B76),$I$60:$I$71) -> 0.1 | R76: =S76/8760 -> 0.1095890411 | S76: =SUMPRODUCT(--($B$60:$B$71=$B76),$I$60:$I$71,S$60:S$71)/SUMPRODUCT(--($B$60:$B$71=$B76),$I$60:$I$71) -> 960 | T76: =(1-Q76)*(1-R76)*I76*8.76 -> 18.252 | U76: =SUMPRODUCT(--($B$60:$B$71=$B76),$I$60:$I$71,U$60:U$71)/SUMPRODUCT(--($B$60:$B$71=$B76),$I$60:$I$71) -> 10 | Y76: =Z76&AA76&AB76&AC76&AD76&AE76&AF76&AG76&AH76&AI76&AJ76&AK76&AL76&AM76&AN76&AO76&AP76&AQ76&AR76&AS76&AT76&AU76&AV76&AW76&AX76&AY76&AZ76&BA76&BB76&BC76&BD76&BE76&BF76&BG76&BH76&BI76&BJ76&BK76&BL76&BM76&BN76&BO76&BP76&BQ76&BR76&BS76&BT76&BU76&BV76&BW76&BX76 -> 1981 2.6 | Z76: =IF(SUMIF($A$60:$A$71,Z$7&$B76,$I$60:$I$71)=0,"",Z$7&" "&SUMIF($A$60:$A$71,Z$7&$B76,$I$60:$I$71)&" ") ->  | AJ76: =IF(SUMIF($A$60:$A$71,AJ$7&$B76,$I$60:$I$71)=0,"",AJ$7&" "&SUMIF($A$60:$A$71,AJ$7&$B76,$I$60:$I$71)&" ") ->  | AT76: =IF(SUMIF($A$60:$A$71,AT$7&$B76,$I$60:$I$71)=0,"",AT$7&" "&SUMIF($A$60:$A$71,AT$7&$B76,$I$60:$I$71)&" ") ->  | AU76: 1981 2.6 | BD76: =IF(SUMIF($A$60:$A$71,BD$7&$B76,$I$60:$I$71)=0,"",BD$7&" "&SUMIF($A$60:$A$71,BD$7&$B76,$I$60:$I$71)&" ") ->  | BN76: =IF(SUMIF($A$60:$A$71,BN$7&$B76,$I$60:$I$71)=0,"",BN$7&" "&SUMIF($A$60:$A$71,BN$7&$B76,$I$60:$I$71)&" ") -> 
B77: DIHFO | C77: =VLOOKUP(LEFT(B77,2),NameConvs!$D$33:$F$72,lang+2,FALSE)&" "&F77 -> Diesel Generators OHF | D77: =D$75&E77 -> GAMEPOHFEXDI | E77: ="EP"&F77&"EX"&LEFT(B77,2) -> EPOHFEXDI | F77: =VLOOKUP(RIGHT(B77,LEN(B77)-2),NameConvs!$A$4:$C$14,3,FALSE) -> OHF | H77: =SUMIF($B$60:$B$71,$B77,$H$60:$H$71) -> 61 | I77: =SUMIF($B$60:$B$71,$B77,$I$60:$I$71) -> 46.6 | K77: =SUMPRODUCT(--($B$60:$B$71=$B77),$I$60:$I$71,K$60:K$71)/SUMPRODUCT(--($B$60:$B$71=$B77),$I$60:$I$71) -> 9.731545064 | N77: =IF(VLOOKUP(B77,$B$60:$N$71,N$5,FALSE)="VS","",VLOOKUP(B77,$B$60:$N$71,N$5,FALSE)) ->  | Q77: =SUMPRODUCT(--($B$60:$B$71=$B77),$I$60:$I$71,Q$60:Q$71)/SUMPRODUCT(--($B$60:$B$71=$B77),$I$60:$I$71) -> 0.1 | R77: =S77/8760 -> 0.1095890411 | S77: =SUMPRODUCT(--($B$60:$B$71=$B77),$I$60:$I$71,S$60:S$71)/SUMPRODUCT(--($B$60:$B$71=$B77),$I$60:$I$71) -> 960 | T77: =(1-Q77)*(1-R77)*I77*8.76 -> 327.132 | U77: =SUMPRODUCT(--($B$60:$B$71=$B77),$I$60:$I$71,U$60:U$71)/SUMPRODUCT(--($B$60:$B$71=$B77),$I$60:$I$71) -> 10 | Y77: =Z77&AA77&AB77&AC77&AD77&AE77&AF77&AG77&AH77&AI77&AJ77&AK77&AL77&AM77&AN77&AO77&AP77&AQ77&AR77&AS77&AT77&AU77&AV77&AW77&AX77&AY77&AZ77&BA77&BB77&BC77&BD77&BE77&BF77&BG77&BH77&BI77&BJ77&BK77&BL77&BM77&BN77&BO77&BP77&BQ77&BR77&BS77&BT77&BU77&BV77&BW77&BX77 -> 1997 2.6 2001 16.5 2006 11 2007 11 2009 5.5 | BK77: 1997 2.6 | BO77: 2001 16.5 | BT77: 2006 11 | BU77: 2007 11 | BW77: 2009 5.5
B79: Guinea-Bissau
B80: GBI
C82: ﻿ | J82: 1ère | M82: Année
F83: 1er | G83: 2e | J83: conso. | L83: 2e conso. | M83: de mise
C84: Nom de | D84: N° | E84: Type | F84: combu | G84: combu | H84: Capacité | I84: Capacité | J84: spéc. | L84: spéc. | M84: en | N84: Année de | P84: Indisp. | R84: Indisp. | T84: Coûts O&M | V84: Coûts O&M | W84: Coût spéc. | X84: Fabricant
C85: centrale | D85: unité | E85: unité | F85: stible | G85: stible | H85: installée | I85: disponible | J85: nette | L85: nette | M85: service | N85: déclassement | O85: Statut | P85: fortuite | R85: Planifiée | T85: variables | V85: fixes | W85: investissement | X85: modèle
H86: [MW] | I86: [MW] | J86: [GJ/MWh] | L86: [GJ/MWh] | P86: [%] | R86: [h/an] | T86: [$/MWh] | V86: [$/kW/an] | W86: [$/kW]
A87: =M87&B87 -> 2005DIGO | B87: =E87&F87 -> DIGO | C87: Bissau | D87: GR 2C | E87: DI | F87: GO | H87: 1 | I87: 0.85 | J87: 9.9 | K87: =IF(J87="VS",IF(B87="DIHFO",VS!$M$5,SUMIF(VS!$D$3:$G$3,$E87,VS!$D$5:$G$5)),J87) -> 9.9 | M87: 2005 | N87: VS | O87: Existante | P87: 0.25 | Q87: =IF(P87="VS",SUMIF(VS!$D$3:$G$3,$E87,VS!$D$7:$G$7),P87) -> 0.25 | R87: VS | S87: =IF(R87="VS",SUMIF(VS!$D$3:$G$3,$E87,VS!$D$8:$G$8),R87) -> 960 | T87: VS | U87: =IF(T87="VS",SUMIF(VS!$D$3:$G$3,$E87,VS!$D$9:$G$9),T87) -> 10
A88: =M88&B88 -> 2005DIGO | B88: =E88&F88 -> DIGO | C88: Bissau | D88: GR 3C | E88: DI | F88: GO | H88: 1 | I88: 0.85 | J88: 9.9 | K88: =IF(J88="VS",IF(B88="DIHFO",VS!$M$5,SUMIF(VS!$D$3:$G$3,$E88,VS!$D$5:$G$5)),J88) -> 9.9 | M88: 2005 | N88: VS | O88: Existante | P88: 0.25 | Q88: =IF(P88="VS",SUMIF(VS!$D$3:$G$3,$E88,VS!$D$7:$G$7),P88) -> 0.25 | R88: VS | S88: =IF(R88="VS",SUMIF(VS!$D$3:$G$3,$E88,VS!$D$8:$G$8),R88) -> 960 | T88: VS | U88: =IF(T88="VS",SUMIF(VS!$D$3:$G$3,$E88,VS!$D$9:$G$9),T88) -> 10
A89: =M89&B89 -> 2008DIGO | B89: =E89&F89 -> DIGO | C89: Bissau | D89: GR 4C | E89: DI | F89: GO | H89: 1 | I89: 0.85 | J89: 9.9 | K89: =IF(J89="VS",IF(B89="DIHFO",VS!$M$5,SUMIF(VS!$D$3:$G$3,$E89,VS!$D$5:$G$5)),J89) -> 9.9 | M89: 2008 | N89: VS | O89: Existante | P89: 0.25 | Q89: =IF(P89="VS",SUMIF(VS!$D$3:$G$3,$E89,VS!$D$7:$G$7),P89) -> 0.25 | R89: VS | S89: =IF(R89="VS",SUMIF(VS!$D$3:$G$3,$E89,VS!$D$8:$G$8),R89) -> 960 | T89: VS | U89: =IF(T89="VS",SUMIF(VS!$D$3:$G$3,$E89,VS!$D$9:$G$9),T89) -> 10
A90: =M90&B90 -> 2008DIGO | B90: =E90&F90 -> DIGO | C90: Bissau | D90: GR 1D | E90: DI | F90: GO | H90: 1.32 | I90: 1.122 | J90: 9.9 | K90: =IF(J90="VS",IF(B90="DIHFO",VS!$M$5,SUMIF(VS!$D$3:$G$3,$E90,VS!$D$5:$G$5)),J90) -> 9.9 | M90: 2008 | N90: VS | O90: Existante | P90: 0.25 | Q90: =IF(P90="VS",SUMIF(VS!$D$3:$G$3,$E90,VS!$D$7:$G$7),P90) -> 0.25 | R90: VS | S90: =IF(R90="VS",SUMIF(VS!$D$3:$G$3,$E90,VS!$D$8:$G$8),R90) -> 960 | T90: VS | U90: =IF(T90="VS",SUMIF(VS!$D$3:$G$3,$E90,VS!$D$9:$G$9),T90) -> 10
A91: =M91&B91 -> 2008DIGO | B91: =E91&F91 -> DIGO | C91: Bissau | D91: GR 2D | E91: DI | F91: GO | H91: 1.32 | I91: 0 | J91: 9.9 | K91: =IF(J91="VS",IF(B91="DIHFO",VS!$M$5,SUMIF(VS!$D$3:$G$3,$E91,VS!$D$5:$G$5)),J91) -> 9.9 | M91: 2008 | N91: VS | O91: Existante | P91: 0.25 | Q91: =IF(P91="VS",SUMIF(VS!$D$3:$G$3,$E91,VS!$D$7:$G$7),P91) -> 0.25 | R91: VS | S91: =IF(R91="VS",SUMIF(VS!$D$3:$G$3,$E91,VS!$D$8:$G$8),R91) -> 960 | T91: VS | U91: =IF(T91="VS",SUMIF(VS!$D$3:$G$3,$E91,VS!$D$9:$G$9),T91) -> 10
C93: =OFFSET(C$1,lang,0) -> Name of Station | D93: =OFFSET(D$1,lang,0) -> MESSAGE Name with Country Prefix | E93: =OFFSET(E$1,lang,0) -> MESSAGE Name | F93: =OFFSET(F$1,lang,0) -> Fuel | H93: =OFFSET(H$1,lang,0) -> Plant Capacity | I93: =OFFSET(I$1,lang,0) -> Available Capacity | K93: =OFFSET(K$1,lang,0) -> Heat Rate | N93: =OFFSET(N$1,lang,0) -> Decomissioning year | Q93: =OFFSET(Q$1,lang,0) -> Forced Outage | S93: =OFFSET(S$1,lang,0) -> Planned outage | U93: =OFFSET(U$1,lang,0) -> Variable O&M | W93: =OFFSET(W$1,lang,0) -> Fixed O&M | Y93: =OFFSET(Y$1,lang,0) -> hist string
H94: MW | I94: MW | K94: GJ/MWh | Q94: % | S94: h/yr | U94: US$/MWh | W94: US$/kW-yr
C95: =VLOOKUP(D95,NameConvs!$B$57:$E$69,4,FALSE) -> Guinea-Bissau | D95: GBI | I95: =SUM(I96:I99) -> 3.672 | T95: =SUM(T96:T99) -> 21.4812
B96: DIGO | C96: =VLOOKUP(LEFT(B96,2),NameConvs!$D$33:$F$93,lang+2,FALSE)&" "&F96 -> Diesel Generators ODS | D96: =D95&E96 -> GBIEPODSEXDI | E96: ="EP"&F96&"EX"&LEFT(B96,2) -> EPODSEXDI | F96: ODS | H96: =SUMIF($B$87:$B$91,$B96,$H$87:$H$91) -> 5.64 | I96: =SUMIF($B$87:$B$91,$B96,$I$87:$I$91) -> 3.672 | K96: =SUMPRODUCT(--($B$87:$B$91=$B96),$I$87:$I$91,K$87:K$91)/SUMPRODUCT(--($B$87:$B$91=$B96),$I$87:$I$91) -> 9.9 | N96: =IF(VLOOKUP(B96,$B$87:$N$91,N$5,FALSE)="VS","",VLOOKUP(B96,$B$87:$N$91,N$5,FALSE)) ->  | Q96: =SUMPRODUCT(--($B$87:$B$91=$B96),$I$87:$I$91,Q$87:Q$91)/SUMPRODUCT(--($B$87:$B$91=$B96),$I$87:$I$91) -> 0.25 | R96: =S96/8760 -> 0.1095890411 | S96: =SUMPRODUCT(--($B$87:$B$91=$B96),$I$87:$I$91,S$87:S$91)/SUMPRODUCT(--($B$87:$B$91=$B96),$I$87:$I$91) -> 960 | T96: =(1-Q96)*(1-R96)*I96*8.76 -> 21.4812 | U96: =SUMPRODUCT(--($B$87:$B$91=$B96),$I$87:$I$91,U$87:U$91)/SUMPRODUCT(--($B$87:$B$91=$B96),$I$87:$I$91) -> 10 | Y96: =Z96&AA96&AB96&AC96&AD96&AE96&AF96&AG96&AH96&AI96&AJ96&AK96&AL96&AM96&AN96&AO96&AP96&AQ96&AR96&AS96&AT96&AU96&AV96&AW96&AX96&AY96&AZ96&BA96&BB96&BC96&BD96&BE96&BF96&BG96&BH96&BI96&BJ96&BK96&BL96&BM96&BN96&BO96&BP96&BQ96&BR96&BS96&BT96&BU96&BV96&BW96&BX96 -> 2005 1.7 2008 1.972 | Z96: =IF(SUMIF($A$87:$A$91,Z$7&$B96,$I$87:$I$91)=0,"",Z$7&" "&SUMIF($A$87:$A$91,Z$7&$B96,$I$87:$I$91)&" ") ->  | BF96: =IF(SUMIF($A$87:$A$91,BF$7&$B96,$I$87:$I$91)=0,"",BF$7&" "&SUMIF($A$87:$A$91,BF$7&$B96,$I$87:$I$91)&" ") ->  | BS96: 2005 1.7 | BV96: 2008 1.972
B98: Guinea
B99: GUI
C101: ﻿ | J101: 1ère | M101: Année | N101: Année | W101: Coût
F102: 1er | G102: 2e | I102: Capacité | J102: conso. | L102: 2e conso. | M102: de mise | N102: de | T102: Coûts | W102: spéc.
D103: N° | E103: Type | F103: combus | G103: combus | H103: Capacité | I103: disponibl | J103: spéc. | L103: spéc. | M103: en | N103: déclasse | P103: Indisp. | R103: Indisp. | T103: O&M | V103: Coûts | W103: investiss
C104: Nom de centrale | D104: unité | E104: unité | F104: tible | G104: tible | H104: installée | I104: e | J104: nette | L104: nette | M104: service | N104: ment | O104: Statut | P104: fortuite | R104: Planifiée | T104: variables | V104: O&M fixes | W104: ement | X104: Fabricant et modèle
H105: [MW] | I105: [MW] | J105: [GJ/MWh] | L105: [GJ/MWh] | P105: [%] | R105: [h/an] | T105: [$/MWh] | V105: [$/kW/an] | W105: [$/kW]
A106: =M106&B106 -> 1997DIHFO | B106: =E106&F106 -> DIHFO | C106: Tombo 3 | D106: 1 | E106: DI | F106: HFO | G106: DO | H106: 11.52 | I106: 0 | J106: 9.2 | K106: =IF(J106="VS",IF(B106="DIHFO",VS!$M$5,SUMIF(VS!$D$3:$G$3,$E106,VS!$D$5:$G$5)),J106) -> 9.2 | L106: 9.2 | M106: 1997 | N106: 2012 | O106: Existante | P106: VS | Q106: =IF(P106="VS",SUMIF(VS!$D$3:$G$3,$E106,VS!$D$7:$G$7),P106) -> 0.1 | R106: VS | S106: =IF(R106="VS",SUMIF(VS!$D$3:$G$3,$E106,VS!$D$8:$G$8),R106) -> 960 | T106: VS | U106: =IF(T106="VS",SUMIF(VS!$D$3:$G$3,$E106,VS!$D$9:$G$9),T106) -> 10 | X106: SULZER 16 ZAV 40 S
A107: 1997DIHFO | B107: DIHFO | C107: Tombo 3 | D107: 2 | E107: DI | F107: HFO | G107: DO | H107: 11.52 | I107: 0 | J107: 9.2 | K107: =IF(J107="VS",IF(B107="DIHFO",VS!$M$5,SUMIF(VS!$D$3:$G$3,$E107,VS!$D$5:$G$5)),J107) -> 9.2 | L107: 9.2 | M107: 1997 | N107: 2013 | O107: Existante | P107: VS | Q107: =IF(P107="VS",SUMIF(VS!$D$3:$G$3,$E107,VS!$D$7:$G$7),P107) -> 0.1 | R107: VS | S107: =IF(R107="VS",SUMIF(VS!$D$3:$G$3,$E107,VS!$D$8:$G$8),R107) -> 960 | T107: VS | U107: =IF(T107="VS",SUMIF(VS!$D$3:$G$3,$E107,VS!$D$9:$G$9),T107) -> 10 | X107: SULZER 16 ZAV 40 S
A108: 1997DIHFO | B108: DIHFO | C108: Tombo 3 | D108: 3 | E108: DI | F108: HFO | G108: DO | H108: 11.52 | I108: 0 | J108: 9.2 | K108: =IF(J108="VS",IF(B108="DIHFO",VS!$M$5,SUMIF(VS!$D$3:$G$3,$E108,VS!$D$5:$G$5)),J108) -> 9.2 | L108: 9.2 | M108: 1997 | N108: 2013 | O108: Existante | P108: VS | Q108: =IF(P108="VS",SUMIF(VS!$D$3:$G$3,$E108,VS!$D$7:$G$7),P108) -> 0.1 | R108: VS | S108: =IF(R108="VS",SUMIF(VS!$D$3:$G$3,$E108,VS!$D$8:$G$8),R108) -> 960 | T108: VS | U108: =IF(T108="VS",SUMIF(VS!$D$3:$G$3,$E108,VS!$D$9:$G$9),T108) -> 10 | X108: SULZER 16 ZAV 40 S
A109: 1999DIHFO | B109: DIHFO | C109: Tombo 3 | D109: 4 | E109: DI | F109: HFO | G109: DO | H109: 11.52 | I109: 0 | J109: 9.2 | K109: =IF(J109="VS",IF(B109="DIHFO",VS!$M$5,SUMIF(VS!$D$3:$G$3,$E109,VS!$D$5:$G$5)),J109) -> 9.2 | L109: 9.2 | M109: 1999 | N109: 2013 | O109: Existante | P109: VS | Q109: =IF(P109="VS",SUMIF(VS!$D$3:$G$3,$E109,VS!$D$7:$G$7),P109) -> 0.1 | R109: VS | S109: =IF(R109="VS",SUMIF(VS!$D$3:$G$3,$E109,VS!$D$8:$G$8),R109) -> 960 | T109: VS | U109: =IF(T109="VS",SUMIF(VS!$D$3:$G$3,$E109,VS!$D$9:$G$9),T109) -> 10 | X109: SULZER 16 ZAV 40 S
A110: 2004DIHFO | B110: DIHFO | C110: Tombo 5 | D110: 1 | E110: DI | F110: HFO | G110: DO | H110: 10.8 | I110: 9.5 | J110: 8.9 | K110: =IF(J110="VS",IF(B110="DIHFO",VS!$M$5,SUMIF(VS!$D$3:$G$3,$E110,VS!$D$5:$G$5)),J110) -> 8.9 | L110: 8.9 | M110: 2004 | N110: 2012 | O110: Existante | P110: VS | Q110: =IF(P110="VS",SUMIF(VS!$D$3:$G$3,$E110,VS!$D$7:$G$7),P110) -> 0.1 | R110: VS | S110: =IF(R110="VS",SUMIF(VS!$D$3:$G$3,$E110,VS!$D$8:$G$8),R110) -> 960 | T110: VS | U110: =IF(T110="VS",SUMIF(VS!$D$3:$G$3,$E110,VS!$D$9:$G$9),T110) -> 10 | X110: WARTSILA W 18 V 38
A111: 2004DIHFO | B111: DIHFO | C111: Tombo 5 | D111: 2 | E111: DI | F111: HFO | G111: DO | H111: 10.8 | I111: 9.5 | J111: 8.9 | K111: =IF(J111="VS",IF(B111="DIHFO",VS!$M$5,SUMIF(VS!$D$3:$G$3,$E111,VS!$D$5:$G$5)),J111) -> 8.9 | L111: 8.9 | M111: 2004 | N111: 2012 | O111: Existante | P111: VS | Q111: =IF(P111="VS",SUMIF(VS!$D$3:$G$3,$E111,VS!$D$7:$G$7),P111) -> 0.1 | R111: VS | S111: =IF(R111="VS",SUMIF(VS!$D$3:$G$3,$E111,VS!$D$8:$G$8),R111) -> 960 | T111: VS | U111: =IF(T111="VS",SUMIF(VS!$D$3:$G$3,$E111,VS!$D$9:$G$9),T111) -> 10 | X111: WARTSILA W 18 V 38
C113: =OFFSET(C$1,lang,0) -> Name of Station | D113: =OFFSET(D$1,lang,0) -> MESSAGE Name with Country Prefix | E113: =OFFSET(E$1,lang,0) -> MESSAGE Name | F113: =OFFSET(F$1,lang,0) -> Fuel | H113: =OFFSET(H$1,lang,0) -> Plant Capacity | I113: =OFFSET(I$1,lang,0) -> Available Capacity | K113: =OFFSET(K$1,lang,0) -> Heat Rate | N113: =OFFSET(N$1,lang,0) -> Decomissioning year | Q113: =OFFSET(Q$1,lang,0) -> Forced Outage | S113: =OFFSET(S$1,lang,0) -> Planned outage | U113: =OFFSET(U$1,lang,0) -> Variable O&M | W113: =OFFSET(W$1,lang,0) -> Fixed O&M | Y113: =OFFSET(Y$1,lang,0) -> hist string
H114: MW | I114: MW | K114: GJ/MWh | Q114: % | S114: h/yr | U114: US$/MWh | W114: US$/kW-yr
C115: =VLOOKUP(D115,NameConvs!$B$57:$E$69,4,FALSE) -> Guinea | D115: GUI | I115: =SUM(I116:I119) -> 19 | T115: =SUM(T116:T119) -> 133.38
B116: DIHFO | C116: =VLOOKUP(LEFT(B116,2),NameConvs!$D$33:$F$119,lang+2,FALSE)&" "&F116 -> Diesel Generators OHF | D116: =D115&E116 -> GUIEPOHFEXDI | E116: ="EP"&F116&"EX"&LEFT(B116,2) -> EPOHFEXDI | F116: =VLOOKUP(RIGHT(B116,LEN(B116)-2),NameConvs!$A$4:$C$14,3,FALSE) -> OHF | H116: =SUMIF($B$106:$B$111,$B116,$H$106:$H$111) -> 67.68 | I116: =SUMIF($B$106:$B$111,$B116,$I$106:$I$111) -> 19 | K116: =SUMPRODUCT(--($B$106:$B$111=$B116),$I$106:$I$111,K$106:K$111)/SUMPRODUCT(--($B$106:$B$111=$B116),$I$106:$I$111) -> 8.9 | N116: =IF(VLOOKUP(B116,$B$106:$N$111,N$5,FALSE)="VS","",VLOOKUP(B116,$B$106:$N$111,N$5,FALSE)) -> 2012 | Q116: =SUMPRODUCT(--($B$106:$B$111=$B116),$I$106:$I$111,Q$106:Q$111)/SUMPRODUCT(--($B$106:$B$111=$B116),$I$106:$I$111) -> 0.1 | R116: =S116/8760 -> 0.1095890411 | S116: =SUMPRODUCT(--($B$106:$B$111=$B116),$I$106:$I$111,S$106:S$111)/SUMPRODUCT(--($B$106:$B$111=$B116),$I$106:$I$111) -> 960 | T116: =(1-Q116)*(1-R116)*I116*8.76 -> 133.38 | U116: =SUMPRODUCT(--($B$106:$B$111=$B116),$I$106:$I$111,U$106:U$111)/SUMPRODUCT(--($B$106:$B$111=$B116),$I$106:$I$111) -> 10 | Y116: =Z116&AA116&AB116&AC116&AD116&AE116&AF116&AG116&AH116&AI116&AJ116&AK116&AL116&AM116&AN116&AO116&AP116&AQ116&AR116&AS116&AT116&AU116&AV116&AW116&AX116&AY116&AZ116&BA116&BB116&BC116&BD116&BE116&BF116&BG116&BH116&BI116&BJ116&BK116&BL116&BM116&BN116&BO116&BP116&BQ116&BR116&BS116&BT116&BU116&BV116&BW116&BX116 -> 2004 19 | Z116: =IF(SUMIF($A$106:$A$111,Z$7&$B116,$I$106:$I$111)=0,"",Z$7&" "&SUMIF($A$106:$A$111,Z$7&$B116,$I$106:$I$111)&" ") ->  | BF116: =IF(SUMIF($A$106:$A$111,BF$7&$B116,$I$106:$I$111)=0,"",BF$7&" "&SUMIF($A$106:$A$111,BF$7&$B116,$I$106:$I$111)&" ") ->  | BR116: 2004 19
B118: Sierra Leone
B119: SIE | C119: ﻿ | J119: 1ère | M119: Année | N119: Année | W119: Coût
F120: 1er | G120: 2e | I120: Capacité | J120: conso. | L120: 2e conso. | M120: de mise | N120: de | P120: Indisp. | T120: Coûts | W120: spéc.
D121: N° | E121: Type | F121: combu | G121: combu | H121: Capacité | I121: disponibl | J121: spéc. | L121: spéc. | M121: en | N121: déclasse | P121: fortuit | R121: Indisp. | T121: O&M | V121: Coûts | W121: investiss | X121: Fabricant et
C122: Nom de centrale | D122: unité | E122: unité | F122: stible | G122: stible | H122: installée | I122: e | J122: nette | L122: nette | M122: service | N122: ment | O122: Statut | P122: e | R122: Planifiée | T122: variables | V122: O&M fixes | W122: ement | X122: modèle
H123: [MW] | I123: [MW] | J123: [GJ/MWh] | L123: [GJ/MWh] | P123: [%] | R123: [h/an] | T123: [$/MWh] | V123: [$/kW/an] | W123: [$/kW]
A124: =M124&B124 -> 2006DIHFO | B124: =E124&F124 -> DIHFO | C124: Kingtom 1 | D124: 2 | E124: DI | F124: HFO | G124: DO | H124: 6.9 | I124: 6 | J124: VS | K124: =IF(J124="VS",IF(B124="DIHFO",VS!$M$5,SUMIF(VS!$D$3:$G$3,$E124,VS!$D$5:$G$5)),J124) -> 9.5 | L124: VS | M124: 2006 | N124: VS | O124: Existante | P124: VS | Q124: =IF(P124="VS",SUMIF(VS!$D$3:$G$3,$E124,VS!$D$7:$G$7),P124) -> 0.1 | R124: VS | S124: =IF(R124="VS",SUMIF(VS!$D$3:$G$3,$E124,VS!$D$8:$G$8),R124) -> 960 | T124: VS | U124: =IF(T124="VS",SUMIF(VS!$D$3:$G$3,$E124,VS!$D$9:$G$9),T124) -> 10 | X124: Mirrlees
A125: 2001DIHFO | B125: DIHFO | C125: Kingtom 1 | D125: 3 | E125: DI | F125: HFO | G125: DO | H125: 6.3 | I125: 0 | J125: VS | K125: =IF(J125="VS",IF(B125="DIHFO",VS!$M$5,SUMIF(VS!$D$3:$G$3,$E125,VS!$D$5:$G$5)),J125) -> 9.5 | L125: VS | M125: 2001 | N125: VS | O125: Existante | P125: VS | Q125: =IF(P125="VS",SUMIF(VS!$D$3:$G$3,$E125,VS!$D$7:$G$7),P125) -> 0.1 | R125: VS | S125: =IF(R125="VS",SUMIF(VS!$D$3:$G$3,$E125,VS!$D$8:$G$8),R125) -> 960 | T125: VS | U125: =IF(T125="VS",SUMIF(VS!$D$3:$G$3,$E125,VS!$D$9:$G$9),T125) -> 10 | X125: Mirrlees
A126: 2010DIHFO | B126: DIHFO | C126: Kingtom 2 JICA | D126: 1 | E126: DI | F126: HFO | G126: DO | H126: 5 | I126: 5 | J126: VS | K126: =IF(J126="VS",IF(B126="DIHFO",VS!$M$5,SUMIF(VS!$D$3:$G$3,$E126,VS!$D$5:$G$5)),J126) -> 9.5 | L126: VS | M126: 2010 | N126: VS | O126: Existante | P126: VS | Q126: =IF(P126="VS",SUMIF(VS!$D$3:$G$3,$E126,VS!$D$7:$G$7),P126) -> 0.1 | R126: VS | S126: =IF(R126="VS",SUMIF(VS!$D$3:$G$3,$E126,VS!$D$8:$G$8),R126) -> 960 | T126: VS | U126: =IF(T126="VS",SUMIF(VS!$D$3:$G$3,$E126,VS!$D$9:$G$9),T126) -> 10
A127: 2010DIHFO | B127: DIHFO | C127: Kingtom 2 JICA | D127: 2 | E127: DI | F127: HFO | G127: DO | H127: 5 | I127: 5 | J127: VS | K127: =IF(J127="VS",IF(B127="DIHFO",VS!$M$5,SUMIF(VS!$D$3:$G$3,$E127,VS!$D$5:$G$5)),J127) -> 9.5 | L127: VS | M127: 2010 | N127: VS | O127: Existante | P127: VS | Q127: =IF(P127="VS",SUMIF(VS!$D$3:$G$3,$E127,VS!$D$7:$G$7),P127) -> 0.1 | R127: VS | S127: =IF(R127="VS",SUMIF(VS!$D$3:$G$3,$E127,VS!$D$8:$G$8),R127) -> 960 | T127: VS | U127: =IF(T127="VS",SUMIF(VS!$D$3:$G$3,$E127,VS!$D$9:$G$9),T127) -> 10
A128: 2011DIHFO | B128: DIHFO | C128: Blackhall Road (Income Electrix) | D128: 1 | E128: DI | F128: HFO | G128: DO | H128: 7.56 | I128: 7.56 | J128: VS | K128: =IF(J128="VS",IF(B128="DIHFO",VS!$M$5,SUMIF(VS!$D$3:$G$3,$E128,VS!$D$5:$G$5)),J128) -> 9.5 | L128: VS | M128: 2011 | N128: VS | O128: Existante | P128: VS | Q128: =IF(P128="VS",SUMIF(VS!$D$3:$G$3,$E128,VS!$D$7:$G$7),P128) -> 0.1 | R128: VS | S128: =IF(R128="VS",SUMIF(VS!$D$3:$G$3,$E128,VS!$D$8:$G$8),R128) -> 960 | T128: VS | U128: =IF(T128="VS",SUMIF(VS!$D$3:$G$3,$E128,VS!$D$9:$G$9),T128) -> 10
A129: 2011DIHFO | B129: DIHFO | C129: Blackhall Road (Income Electrix) | D129: 2 | E129: DI | F129: HFO | G129: DO | H129: 7.56 | I129: 7.56 | J129: VS | K129: =IF(J129="VS",IF(B129="DIHFO",VS!$M$5,SUMIF(VS!$D$3:$G$3,$E129,VS!$D$5:$G$5)),J129) -> 9.5 | L129: VS | M129: 2011 | N129: VS | O129: Existante | P129: VS | Q129: =IF(P129="VS",SUMIF(VS!$D$3:$G$3,$E129,VS!$D$7:$G$7),P129) -> 0.1 | R129: VS | S129: =IF(R129="VS",SUMIF(VS!$D$3:$G$3,$E129,VS!$D$8:$G$8),R129) -> 960 | T129: VS | U129: =IF(T129="VS",SUMIF(VS!$D$3:$G$3,$E129,VS!$D$9:$G$9),T129) -> 10
A130: 2011DIHFO | B130: DIHFO | C130: Blackhall Road (Income Electrix) | D130: 3 | E130: DI | F130: HFO | G130: DO | H130: 7.56 | I130: 7.56 | J130: VS | K130: =IF(J130="VS",IF(B130="DIHFO",VS!$M$5,SUMIF(VS!$D$3:$G$3,$E130,VS!$D$5:$G$5)),J130) -> 9.5 | L130: VS | M130: 2011 | N130: VS | O130: Existante | P130: VS | Q130: =IF(P130="VS",SUMIF(VS!$D$3:$G$3,$E130,VS!$D$7:$G$7),P130) -> 0.1 | R130: VS | S130: =IF(R130="VS",SUMIF(VS!$D$3:$G$3,$E130,VS!$D$8:$G$8),R130) -> 960 | T130: VS | U130: =IF(T130="VS",SUMIF(VS!$D$3:$G$3,$E130,VS!$D$9:$G$9),T130) -> 10
A131: 1987DIDO | B131: DIDO | C131: Bo | D131: 1 | E131: DI | F131: DO | H131: 1 | I131: 1 | J131: VS | K131: =IF(J131="VS",IF(B131="DIHFO",VS!$M$5,SUMIF(VS!$D$3:$G$3,$E131,VS!$D$5:$G$5)),J131) -> 10.4 | M131: 1987 | N131: VS | O131: Existante | P131: VS | Q131: =IF(P131="VS",SUMIF(VS!$D$3:$G$3,$E131,VS!$D$7:$G$7),P131) -> 0.1 | R131: VS | S131: =IF(R131="VS",SUMIF(VS!$D$3:$G$3,$E131,VS!$D$8:$G$8),R131) -> 960 | T131: VS | U131: =IF(T131="VS",SUMIF(VS!$D$3:$G$3,$E131,VS!$D$9:$G$9),T131) -> 10
A132: 1987DIDO | B132: DIDO | C132: Bo | D132: 2 | E132: DI | F132: DO | H132: 2 | I132: 2 | J132: VS | K132: =IF(J132="VS",IF(B132="DIHFO",VS!$M$5,SUMIF(VS!$D$3:$G$3,$E132,VS!$D$5:$G$5)),J132) -> 10.4 | M132: 1987 | N132: VS | O132: Existante | P132: VS | Q132: =IF(P132="VS",SUMIF(VS!$D$3:$G$3,$E132,VS!$D$7:$G$7),P132) -> 0.1 | R132: VS | S132: =IF(R132="VS",SUMIF(VS!$D$3:$G$3,$E132,VS!$D$8:$G$8),R132) -> 960 | T132: VS | U132: =IF(T132="VS",SUMIF(VS!$D$3:$G$3,$E132,VS!$D$9:$G$9),T132) -> 10
A133: 1987DIDO | B133: DIDO | C133: Bo | D133: 3 | E133: DI | F133: DO | H133: 2 | I133: 2 | J133: VS | K133: =IF(J133="VS",IF(B133="DIHFO",VS!$M$5,SUMIF(VS!$D$3:$G$3,$E133,VS!$D$5:$G$5)),J133) -> 10.4 | M133: 1987 | N133: VS | O133: Existante | P133: VS | Q133: =IF(P133="VS",SUMIF(VS!$D$3:$G$3,$E133,VS!$D$7:$G$7),P133) -> 0.1 | R133: VS | S133: =IF(R133="VS",SUMIF(VS!$D$3:$G$3,$E133,VS!$D$8:$G$8),R133) -> 960 | T133: VS | U133: =IF(T133="VS",SUMIF(VS!$D$3:$G$3,$E133,VS!$D$9:$G$9),T133) -> 10
C135: =OFFSET(C$1,lang,0) -> Name of Station | D135: =OFFSET(D$1,lang,0) -> MESSAGE Name with Country Prefix | E135: =OFFSET(E$1,lang,0) -> MESSAGE Name | F135: =OFFSET(F$1,lang,0) -> Fuel | H135: =OFFSET(H$1,lang,0) -> Plant Capacity | I135: =OFFSET(I$1,lang,0) -> Available Capacity | K135: =OFFSET(K$1,lang,0) -> Heat Rate | N135: =OFFSET(N$1,lang,0) -> Decomissioning year | Q135: =OFFSET(Q$1,lang,0) -> Forced Outage | S135: =OFFSET(S$1,lang,0) -> Planned outage | U135: =OFFSET(U$1,lang,0) -> Variable O&M | W135: =OFFSET(W$1,lang,0) -> Fixed O&M | Y135: =OFFSET(Y$1,lang,0) -> hist string
H136: MW | I136: MW | K136: GJ/MWh | Q136: % | S136: h/yr | U136: US$/MWh | W136: US$/kW-yr
C137: =VLOOKUP(D137,NameConvs!$B$57:$E$69,4,FALSE) -> Sierra Leone | D137: SIE | I137: =SUM(I138:I141) -> 43.68 | T137: =SUM(T138:T141) -> 306.6336
B138: DIHFO | C138: =VLOOKUP(LEFT(B138,2),NameConvs!$D$33:$F$142,lang+2,FALSE)&" "&F138 -> Diesel Generators OHF | D138: =D$137&E138 -> SIEEPOHFEXDI | E138: ="EP"&F138&"EX"&LEFT(B138,2) -> EPOHFEXDI | F138: =VLOOKUP(RIGHT(B138,LEN(B138)-2),NameConvs!$A$4:$C$14,3,FALSE) -> OHF | H138: =SUMIF($B$124:$B$133,$B138,$H$124:$H$133) -> 45.88 | I138: =SUMIF($B$124:$B$133,$B138,$I$124:$I$133) -> 38.68 | K138: =SUMPRODUCT(--($B$124:$B$133=$B138),$I$124:$I$133,K$124:K$133)/SUMPRODUCT(--($B$124:$B$133=$B138),$I$124:$I$133) -> 9.5 | N138: =IF(VLOOKUP(B138,$B$124:$N$133,N$5,FALSE)="VS","",VLOOKUP(B138,$B$124:$N$133,N$5,FALSE)) ->  | Q138: =SUMPRODUCT(--($B$124:$B$133=$B138),$I$124:$I$133,Q$124:Q$133)/SUMPRODUCT(--($B$124:$B$133=$B138),$I$124:$I$133) -> 0.1 | R138: =S138/8760 -> 0.1095890411 | S138: =SUMPRODUCT(--($B$124:$B$133=$B138),$I$124:$I$133,S$124:S$133)/SUMPRODUCT(--($B$124:$B$133=$B138),$I$124:$I$133) -> 960 | T138: =(1-Q138)*(1-R138)*I138*8.76 -> 271.5336 | U138: =SUMPRODUCT(--($B$124:$B$133=$B138),$I$124:$I$133,U$124:U$133)/SUMPRODUCT(--($B$124:$B$133=$B138),$I$124:$I$133) -> 10 | Y138: =Z138&AA138&AB138&AC138&AD138&AE138&AF138&AG138&AH138&AI138&AJ138&AK138&AL138&AM138&AN138&AO138&AP138&AQ138&AR138&AS138&AT138&AU138&AV138&AW138&AX138&AY138&AZ138&BA138&BB138&BC138&BD138&BE138&BF138&BG138&BH138&BI138&BJ138&BK138&BL138&BM138&BN138&BO138&BP138&BQ138&BR138&BS138&BT138&BU138&BV138&BW138&BX138 -> 2006 6 2010 10 | Z138: =IF(SUMIF($A$124:$A$133,Z$7&$B138,$I$124:$I$133)=0,"",Z$7&" "&SUMIF($A$124:$A$133,Z$7&$B138,$I$124:$I$133)&" ") ->  | AJ138: =IF(SUMIF($A$124:$A$133,AJ$7&$B138,$I$124:$I$133)=0,"",AJ$7&" "&SUMIF($A$124:$A$133,AJ$7&$B138,$I$124:$I$133)&" ") ->  | AT138: =IF(SUMIF($A$124:$A$133,AT$7&$B138,$I$124:$I$133)=0,"",AT$7&" "&SUMIF($A$124:$A$133,AT$7&$B138,$I$124:$I$133)&" ") ->  | BD138: =IF(SUMIF($A$124:$A$133,BD$7&$B138,$I$124:$I$133)=0,"",BD$7&" "&SUMIF($A$124:$A$133,BD$7&$B138,$I$124:$I$133)&" ") ->  | BN138: =IF(SUMIF($A$124:$A$133,BN$7&$B138,$I$124:$I$133)=0,"",BN$7&" "&SUMIF($A$124:$A$133,BN$7&$B138,$I$124:$I$133)&" ") ->  | BT138: 2006 6 | BX138: 2010 10
B139: DIDO | C139: =VLOOKUP(LEFT(B139,2),NameConvs!$D$33:$F$142,lang+2,FALSE)&" "&F139 -> Diesel Generators ODS | D139: =D$137&E139 -> SIEEPODSEXDI | E139: ="EP"&F139&"EX"&LEFT(B139,2) -> EPODSEXDI | F139: =VLOOKUP(RIGHT(B139,LEN(B139)-2),NameConvs!$A$4:$C$14,3,FALSE) -> ODS | H139: =SUMIF($B$124:$B$133,$B139,$H$124:$H$133) -> 5 | I139: =SUMIF($B$124:$B$133,$B139,$I$124:$I$133) -> 5 | K139: =SUMPRODUCT(--($B$124:$B$133=$B139),$I$124:$I$133,K$124:K$133)/SUMPRODUCT(--($B$124:$B$133=$B139),$I$124:$I$133) -> 10.4 | N139: =IF(VLOOKUP(B139,$B$124:$N$133,N$5,FALSE)="VS","",VLOOKUP(B139,$B$124:$N$133,N$5,FALSE)) ->  | Q139: =SUMPRODUCT(--($B$124:$B$133=$B139),$I$124:$I$133,Q$124:Q$133)/SUMPRODUCT(--($B$124:$B$133=$B139),$I$124:$I$133) -> 0.1 | R139: =S139/8760 -> 0.1095890411 | S139: =SUMPRODUCT(--($B$124:$B$133=$B139),$I$124:$I$133,S$124:S$133)/SUMPRODUCT(--($B$124:$B$133=$B139),$I$124:$I$133) -> 960 | T139: =(1-Q139)*(1-R139)*I139*8.76 -> 35.1 | U139: =SUMPRODUCT(--($B$124:$B$133=$B139),$I$124:$I$133,U$124:U$133)/SUMPRODUCT(--($B$124:$B$133=$B139),$I$124:$I$133) -> 10 | Y139: =Z139&AA139&AB139&AC139&AD139&AE139&AF139&AG139&AH139&AI139&AJ139&AK139&AL139&AM139&AN139&AO139&AP139&AQ139&AR139&AS139&AT139&AU139&AV139&AW139&AX139&AY139&AZ139&BA139&BB139&BC139&BD139&BE139&BF139&BG139&BH139&BI139&BJ139&BK139&BL139&BM139&BN139&BO139&BP139&BQ139&BR139&BS139&BT139&BU139&BV139&BW139&BX139 -> 1987 5 | BA139: 1987 5
B141: Liberia
B142: LIB
C144: ﻿ | J144: 1ère | M144: Année | N144: Année | W144: Coût
F145: 1er | G145: 2e | I145: Capacité | J145: conso. | L145: 2e conso. | M145: de mise | N145: de | T145: Coûts | W145: spéc.
D146: N° | E146: Type | F146: combus | G146: combu | H146: Capacité | I146: disponib | J146: spéc. | L146: spéc. | M146: en | N146: déclasse | P146: Indisp. | R146: Indisp. | T146: O&M | V146: Coûts | W146: investis | X146: Fabricant et
C147: Nom de centrale | D147: unité | E147: unité | F147: tible | G147: stible | H147: installée | I147: le | J147: nette | L147: nette | M147: service | N147: ment | O147: Statut | P147: fortuite | R147: Planifiée | T147: variables | V147: O&Mfixes | W147: sement | X147: modèle
H148: [MW] | I148: [MW] | J148: [GJ/MWh] | L148: [GJ/MWh] | P148: [%] | R148: [h/an] | T148: [$/MWh] | V148: [$/kW/an] | W148: [$/kW]
A149: =M149&B149 -> 2006DIDO | B149: =E149&F149 -> DIDO | C149: Congo Town | D149: 1 | E149: DI | F149: DO | H149: 1 | I149: 1 | J149: 11.8 | K149: =IF(J149="VS",IF(B149="DIHFO",VS!$M$5,SUMIF(VS!$D$3:$G$3,$E149,VS!$D$5:$G$5)),J149) -> 11.8 | M149: 2006 | N149: VS | O149: Existante | P149: VS | Q149: =IF(P149="VS",SUMIF(VS!$D$3:$G$3,$E149,VS!$D$7:$G$7),P149) -> 0.1 | R149: VS | S149: =IF(R149="VS",SUMIF(VS!$D$3:$G$3,$E149,VS!$D$8:$G$8),R149) -> 960 | T149: VS | U149: =IF(T149="VS",SUMIF(VS!$D$3:$G$3,$E149,VS!$D$9:$G$9),T149) -> 10 | X149: Cummins
A150: 2006DIDO | B150: DIDO | C150: Congo Town | D150: 2 | E150: DI | F150: DO | H150: 1 | I150: 1 | J150: 11.8 | K150: =IF(J150="VS",IF(B150="DIHFO",VS!$M$5,SUMIF(VS!$D$3:$G$3,$E150,VS!$D$5:$G$5)),J150) -> 11.8 | M150: 2006 | N150: VS | O150: Existante | P150: VS | Q150: =IF(P150="VS",SUMIF(VS!$D$3:$G$3,$E150,VS!$D$7:$G$7),P150) -> 0.1 | R150: VS | S150: =IF(R150="VS",SUMIF(VS!$D$3:$G$3,$E150,VS!$D$8:$G$8),R150) -> 960 | T150: VS | U150: =IF(T150="VS",SUMIF(VS!$D$3:$G$3,$E150,VS!$D$9:$G$9),T150) -> 10 | X150: Cummins
A151: 2008DIDO | B151: DIDO | C151: Kru Town | D151: 1 | E151: DI | F151: DO | H151: 1 | I151: 1 | J151: 11.8 | K151: =IF(J151="VS",IF(B151="DIHFO",VS!$M$5,SUMIF(VS!$D$3:$G$3,$E151,VS!$D$5:$G$5)),J151) -> 11.8 | M151: 2008 | N151: VS | O151: Existante | P151: VS | Q151: =IF(P151="VS",SUMIF(VS!$D$3:$G$3,$E151,VS!$D$7:$G$7),P151) -> 0.1 | R151: VS | S151: =IF(R151="VS",SUMIF(VS!$D$3:$G$3,$E151,VS!$D$8:$G$8),R151) -> 960 | T151: VS | U151: =IF(T151="VS",SUMIF(VS!$D$3:$G$3,$E151,VS!$D$9:$G$9),T151) -> 10 | X151: Cummins
A152: 2008DIDO | B152: DIDO | C152: Kru Town | D152: 2 | E152: DI | F152: DO | H152: 1 | I152: 1 | J152: 11.8 | K152: =IF(J152="VS",IF(B152="DIHFO",VS!$M$5,SUMIF(VS!$D$3:$G$3,$E152,VS!$D$5:$G$5)),J152) -> 11.8 | M152: 2008 | N152: VS | O152: Existante | P152: VS | Q152: =IF(P152="VS",SUMIF(VS!$D$3:$G$3,$E152,VS!$D$7:$G$7),P152) -> 0.1 | R152: VS | S152: =IF(R152="VS",SUMIF(VS!$D$3:$G$3,$E152,VS!$D$8:$G$8),R152) -> 960 | T152: VS | U152: =IF(T152="VS",SUMIF(VS!$D$3:$G$3,$E152,VS!$D$9:$G$9),T152) -> 10 | X152: Cummins
A153: 2008DIDO | B153: DIDO | C153: Kru Town | D153: 3 | E153: DI | F153: DO | H153: 1 | I153: 1 | J153: 11.8 | K153: =IF(J153="VS",IF(B153="DIHFO",VS!$M$5,SUMIF(VS!$D$3:$G$3,$E153,VS!$D$5:$G$5)),J153) -> 11.8 | M153: 2008 | N153: VS | O153: Existante | P153: VS | Q153: =IF(P153="VS",SUMIF(VS!$D$3:$G$3,$E153,VS!$D$7:$G$7),P153) -> 0.1 | R153: VS | S153: =IF(R153="VS",SUMIF(VS!$D$3:$G$3,$E153,VS!$D$8:$G$8),R153) -> 960 | T153: VS | U153: =IF(T153="VS",SUMIF(VS!$D$3:$G$3,$E153,VS!$D$9:$G$9),T153) -> 10 | X153: Cummins
A154: 2008DIDO | B154: DIDO | C154: Kru Town | D154: 4 | E154: DI | F154: DO | H154: 1 | I154: 1 | J154: 11.8 | K154: =IF(J154="VS",IF(B154="DIHFO",VS!$M$5,SUMIF(VS!$D$3:$G$3,$E154,VS!$D$5:$G$5)),J154) -> 11.8 | M154: 2008 | N154: VS | O154: Existante | P154: VS | Q154: =IF(P154="VS",SUMIF(VS!$D$3:$G$3,$E154,VS!$D$7:$G$7),P154) -> 0.1 | R154: VS | S154: =IF(R154="VS",SUMIF(VS!$D$3:$G$3,$E154,VS!$D$8:$G$8),R154) -> 960 | T154: VS | U154: =IF(T154="VS",SUMIF(VS!$D$3:$G$3,$E154,VS!$D$9:$G$9),T154) -> 10 | X154: Cummins
A155: 2008DIDO | B155: DIDO | C155: Kru Town | D155: 5 | E155: DI | F155: DO | H155: 1 | I155: 1 | J155: 11.8 | K155: =IF(J155="VS",IF(B155="DIHFO",VS!$M$5,SUMIF(VS!$D$3:$G$3,$E155,VS!$D$5:$G$5)),J155) -> 11.8 | M155: 2008 | N155: VS | O155: Existante | P155: VS | Q155: =IF(P155="VS",SUMIF(VS!$D$3:$G$3,$E155,VS!$D$7:$G$7),P155) -> 0.1 | R155: VS | S155: =IF(R155="VS",SUMIF(VS!$D$3:$G$3,$E155,VS!$D$8:$G$8),R155) -> 960 | T155: VS | U155: =IF(T155="VS",SUMIF(VS!$D$3:$G$3,$E155,VS!$D$9:$G$9),T155) -> 10 | X155: Cummins
A156: 2007DIDO | B156: DIDO | C156: Paynesville | D156: 1 | E156: DI | F156: DO | H156: 0.32 | I156: 0.32 | J156: 11.8 | K156: =IF(J156="VS",IF(B156="DIHFO",VS!$M$5,SUMIF(VS!$D$3:$G$3,$E156,VS!$D$5:$G$5)),J156) -> 11.8 | M156: 2007 | N156: VS | O156: Existante | P156: VS | Q156: =IF(P156="VS",SUMIF(VS!$D$3:$G$3,$E156,VS!$D$7:$G$7),P156) -> 0.1 | R156: VS | S156: =IF(R156="VS",SUMIF(VS!$D$3:$G$3,$E156,VS!$D$8:$G$8),R156) -> 960 | T156: VS | U156: =IF(T156="VS",SUMIF(VS!$D$3:$G$3,$E156,VS!$D$9:$G$9),T156) -> 10 | X156: Cummins
A157: 2007DIDO | B157: DIDO | C157: Paynesville | D157: 2 | E157: DI | F157: DO | H157: 0.32 | I157: 0.32 | J157: 11.8 | K157: =IF(J157="VS",IF(B157="DIHFO",VS!$M$5,SUMIF(VS!$D$3:$G$3,$E157,VS!$D$5:$G$5)),J157) -> 11.8 | M157: 2007 | N157: VS | O157: Existante | P157: VS | Q157: =IF(P157="VS",SUMIF(VS!$D$3:$G$3,$E157,VS!$D$7:$G$7),P157) -> 0.1 | R157: VS | S157: =IF(R157="VS",SUMIF(VS!$D$3:$G$3,$E157,VS!$D$8:$G$8),R157) -> 960 | T157: VS | U157: =IF(T157="VS",SUMIF(VS!$D$3:$G$3,$E157,VS!$D$9:$G$9),T157) -> 10 | X157: Cummins
A158: 2008DIDO | B158: DIDO | C158: Bushrod | D158: 1 | E158: DI | F158: DO | H158: 1 | I158: 1 | J158: 11.8 | K158: =IF(J158="VS",IF(B158="DIHFO",VS!$M$5,SUMIF(VS!$D$3:$G$3,$E158,VS!$D$5:$G$5)),J158) -> 11.8 | M158: 2008 | N158: VS | O158: Existante | P158: VS | Q158: =IF(P158="VS",SUMIF(VS!$D$3:$G$3,$E158,VS!$D$7:$G$7),P158) -> 0.1 | R158: VS | S158: =IF(R158="VS",SUMIF(VS!$D$3:$G$3,$E158,VS!$D$8:$G$8),R158) -> 960 | T158: VS | U158: =IF(T158="VS",SUMIF(VS!$D$3:$G$3,$E158,VS!$D$9:$G$9),T158) -> 10 | X158: Cummins
A159: 2008DIDO | B159: DIDO | C159: Bushrod | D159: 2 | E159: DI | F159: DO | H159: 1 | I159: 1 | J159: 11.8 | K159: =IF(J159="VS",IF(B159="DIHFO",VS!$M$5,SUMIF(VS!$D$3:$G$3,$E159,VS!$D$5:$G$5)),J159) -> 11.8 | M159: 2008 | N159: VS | O159: Existante | P159: VS | Q159: =IF(P159="VS",SUMIF(VS!$D$3:$G$3,$E159,VS!$D$7:$G$7),P159) -> 0.1 | R159: VS | S159: =IF(R159="VS",SUMIF(VS!$D$3:$G$3,$E159,VS!$D$8:$G$8),R159) -> 960 | T159: VS | U159: =IF(T159="VS",SUMIF(VS!$D$3:$G$3,$E159,VS!$D$9:$G$9),T159) -> 10 | X159: Cummins
A160: 2010DIDO | B160: DIDO | C160: Bushrod | D160: 3 | E160: DI | F160: DO | H160: 1 | I160: 1 | J160: 11.8 | K160: =IF(J160="VS",IF(B160="DIHFO",VS!$M$5,SUMIF(VS!$D$3:$G$3,$E160,VS!$D$5:$G$5)),J160) -> 11.8 | M160: 2010 | N160: VS | O160: Existante | P160: VS | Q160: =IF(P160="VS",SUMIF(VS!$D$3:$G$3,$E160,VS!$D$7:$G$7),P160) -> 0.1 | R160: VS | S160: =IF(R160="VS",SUMIF(VS!$D$3:$G$3,$E160,VS!$D$8:$G$8),R160) -> 960 | T160: VS | U160: =IF(T160="VS",SUMIF(VS!$D$3:$G$3,$E160,VS!$D$9:$G$9),T160) -> 10 | X160: Cummins
A161: 2010DIDO | B161: DIDO | C161: Bushrod | D161: 4 | E161: DI | F161: DO | H161: 1 | I161: 1 | J161: 11.8 | K161: =IF(J161="VS",IF(B161="DIHFO",VS!$M$5,SUMIF(VS!$D$3:$G$3,$E161,VS!$D$5:$G$5)),J161) -> 11.8 | M161: 2010 | N161: VS | O161: Existante | P161: VS | Q161: =IF(P161="VS",SUMIF(VS!$D$3:$G$3,$E161,VS!$D$7:$G$7),P161) -> 0.1 | R161: VS | S161: =IF(R161="VS",SUMIF(VS!$D$3:$G$3,$E161,VS!$D$8:$G$8),R161) -> 960 | T161: VS | U161: =IF(T161="VS",SUMIF(VS!$D$3:$G$3,$E161,VS!$D$9:$G$9),T161) -> 10 | X161: Cummins
A162: 2010DIDO | B162: DIDO | C162: Bushrod | D162: 5 | E162: DI | F162: DO | H162: 1 | I162: 1 | J162: 11.8 | K162: =IF(J162="VS",IF(B162="DIHFO",VS!$M$5,SUMIF(VS!$D$3:$G$3,$E162,VS!$D$5:$G$5)),J162) -> 11.8 | M162: 2010 | N162: VS | O162: Existante | P162: VS | Q162: =IF(P162="VS",SUMIF(VS!$D$3:$G$3,$E162,VS!$D$7:$G$7),P162) -> 0.1 | R162: VS | S162: =IF(R162="VS",SUMIF(VS!$D$3:$G$3,$E162,VS!$D$8:$G$8),R162) -> 960 | T162: VS | U162: =IF(T162="VS",SUMIF(VS!$D$3:$G$3,$E162,VS!$D$9:$G$9),T162) -> 10 | X162: Cummins
C164: =OFFSET(C$1,lang,0) -> Name of Station | D164: =OFFSET(D$1,lang,0) -> MESSAGE Name with Country Prefix | E164: =OFFSET(E$1,lang,0) -> MESSAGE Name | F164: =OFFSET(F$1,lang,0) -> Fuel | H164: =OFFSET(H$1,lang,0) -> Plant Capacity | I164: =OFFSET(I$1,lang,0) -> Available Capacity | K164: =OFFSET(K$1,lang,0) -> Heat Rate | N164: =OFFSET(N$1,lang,0) -> Decomissioning year | Q164: =OFFSET(Q$1,lang,0) -> Forced Outage | S164: =OFFSET(S$1,lang,0) -> Planned outage | U164: =OFFSET(U$1,lang,0) -> Variable O&M | W164: =OFFSET(W$1,lang,0) -> Fixed O&M | Y164: =OFFSET(Y$1,lang,0) -> hist string
H165: MW | I165: MW | K165: GJ/MWh | Q165: % | S165: h/yr | U165: US$/MWh | W165: US$/kW-yr
C166: =VLOOKUP(D166,NameConvs!$B$57:$E$69,4,FALSE) -> Liberia | D166: LIB | I166: =SUM(I167:I170) -> 12.64 | T166: =SUM(T167:T170) -> 88.7328
B167: DIDO | C167: =VLOOKUP(LEFT(B167,2),NameConvs!$D$33:$F$172,lang+2,FALSE)&" "&F167 -> Diesel Generators ODS | D167: =D166&E167 -> LIBEPODSEXDI | E167: ="EP"&F167&"EX"&LEFT(B167,2) -> EPODSEXDI | F167: =VLOOKUP(RIGHT(B167,LEN(B167)-2),NameConvs!$A$4:$C$14,3,FALSE) -> ODS | H167: =SUMIF($B$149:$B$162,$B167,$H$149:$H$162) -> 12.64 | I167: =SUMIF($B$149:$B$162,$B167,$I$149:$I$162) -> 12.64 | K167: =SUMPRODUCT(--($B$149:$B$162=$B167),$I$149:$I$162,K$149:K$162)/SUMPRODUCT(--($B$149:$B$162=$B167),$I$149:$I$162) -> 11.8 | N167: =IF(VLOOKUP(B167,$B$149:$N$162,N$5,FALSE)="VS","",VLOOKUP(B167,$B$149:$N$162,N$5,FALSE)) ->  | Q167: =SUMPRODUCT(--($B$149:$B$162=$B167),$I$149:$I$162,Q$149:Q$162)/SUMPRODUCT(--($B$149:$B$162=$B167),$I$149:$I$162) -> 0.1 | R167: =S167/8760 -> 0.1095890411 | S167: =SUMPRODUCT(--($B$149:$B$162=$B167),$I$149:$I$162,S$149:S$162)/SUMPRODUCT(--($B$149:$B$162=$B167),$I$149:$I$162) -> 960 | T167: =(1-Q167)*(1-R167)*I167*8.76 -> 88.7328 | U167: =SUMPRODUCT(--($B$149:$B$162=$B167),$I$149:$I$162,U$149:U$162)/SUMPRODUCT(--($B$149:$B$162=$B167),$I$149:$I$162) -> 10 | Y167: =Z167&AA167&AB167&AC167&AD167&AE167&AF167&AG167&AH167&AI167&AJ167&AK167&AL167&AM167&AN167&AO167&AP167&AQ167&AR167&AS167&AT167&AU167&AV167&AW167&AX167&AY167&AZ167&BA167&BB167&BC167&BD167&BE167&BF167&BG167&BH167&BI167&BJ167&BK167&BL167&BM167&BN167&BO167&BP167&BQ167&BR167&BS167&BT167&BU167&BV167&BW167&BX167 -> 2006 2 2007 0.64 2008 7 2010 3 | Z167: =IF(SUMIF($A$149:$A$162,Z$7&$B167,$I$149:$I$162)=0,"",Z$7&" "&SUMIF($A$149:$A$162,Z$7&$B167,$I$149:$I$162)&" ") ->  | BF167: =IF(SUMIF($A$149:$A$162,BF$7&$B167,$I$149:$I$162)=0,"",BF$7&" "&SUMIF($A$149:$A$162,BF$7&$B167,$I$149:$I$162)&" ") ->  | BT167: 2006 2 | BU167: 2007 0.64 | BV167: 2008 7 | BX167: 2010 3
B169: Mali
B170: MAL
C172: ﻿ | J172: 1ère | M172: Année | N172: Année | W172: Coût
F173: 1er | G173: 2e | I173: Capacité | J173: conso. | L173: 2e conso. | M173: de mise | N173: de | T173: Coûts | W173: spéc.
D174: N° | E174: Type | F174: combus | G174: combus | H174: Capacité | I174: disponibl | J174: spéc. | L174: spéc. | M174: en | N174: déclasse | P174: Indisp. | R174: Indisp. | T174: O&M | V174: Coûts | W174: investiss
C175: Nom de centrale | D175: unité | E175: unité | F175: tible | G175: tible | H175: installée | I175: e | J175: nette | L175: nette | M175: service | N175: ment | O175: Statut | P175: fortuite | R175: Planifiée | T175: variables | V175: O&M fixes | W175: ement | X175: Fabricant et modèle
H176: [MW] | I176: [MW] | J176: [GJ/MWh] | L176: [GJ/MWh] | P176: [%] | R176: [h/an] | T176: [$/MWh] | V176: [$/kW/an] | W176: [$/kW]
A177: =M177&B177 -> 2000DIDO | B177: =E177&F177 -> DIDO | C177: Balingué | D177: 1 | E177: DI | F177: DO | H177: 6.25 | I177: 6.25 | J177: 9.4 | K177: =IF(J177="VS",IF(B177="DIHFO",VS!$M$5,SUMIF(VS!$D$3:$G$3,$E177,VS!$D$5:$G$5)),J177) -> 9.4 | M177: 2000 | N177: VS | O177: Existante | P177: VS | Q177: =IF(P177="VS",SUMIF(VS!$D$3:$G$3,$E177,VS!$D$7:$G$7),P177) -> 0.1 | R177: VS | S177: =IF(R177="VS",SUMIF(VS!$D$3:$G$3,$E177,VS!$D$8:$G$8),R177) -> 960 | T177: VS | U177: =IF(T177="VS",SUMIF(VS!$D$3:$G$3,$E177,VS!$D$9:$G$9),T177) -> 10 | X177: MWM | Y177: ‐BV 16 M 640
A178: 2000DIDO | B178: DIDO | C178: Balingué | D178: 2 | E178: DI | F178: DO | H178: 6.25 | I178: 6.25 | J178: 9.4 | K178: =IF(J178="VS",IF(B178="DIHFO",VS!$M$5,SUMIF(VS!$D$3:$G$3,$E178,VS!$D$5:$G$5)),J178) -> 9.4 | M178: 2000 | N178: VS | O178: Existante | P178: VS | Q178: =IF(P178="VS",SUMIF(VS!$D$3:$G$3,$E178,VS!$D$7:$G$7),P178) -> 0.1 | R178: VS | S178: =IF(R178="VS",SUMIF(VS!$D$3:$G$3,$E178,VS!$D$8:$G$8),R178) -> 960 | T178: VS | U178: =IF(T178="VS",SUMIF(VS!$D$3:$G$3,$E178,VS!$D$9:$G$9),T178) -> 10 | X178: MWM | Y178: ‐BV 16 M 640
A179: 2000DIDO | B179: DIDO | C179: Balingué | D179: 3 | E179: DI | F179: DO | H179: 6.25 | I179: 6.25 | J179: 9.4 | K179: =IF(J179="VS",IF(B179="DIHFO",VS!$M$5,SUMIF(VS!$D$3:$G$3,$E179,VS!$D$5:$G$5)),J179) -> 9.4 | M179: 2000 | N179: VS | O179: Existante | P179: VS | Q179: =IF(P179="VS",SUMIF(VS!$D$3:$G$3,$E179,VS!$D$7:$G$7),P179) -> 0.1 | R179: VS | S179: =IF(R179="VS",SUMIF(VS!$D$3:$G$3,$E179,VS!$D$8:$G$8),R179) -> 960 | T179: VS | U179: =IF(T179="VS",SUMIF(VS!$D$3:$G$3,$E179,VS!$D$9:$G$9),T179) -> 10 | X179: MWM | Y179: ‐BV 16 M 640
A180: 2001DIDO | B180: DIDO | C180: Balingué | D180: 4 | E180: DI | F180: DO | H180: 4.9 | I180: 4.9 | J180: 9.4 | K180: =IF(J180="VS",IF(B180="DIHFO",VS!$M$5,SUMIF(VS!$D$3:$G$3,$E180,VS!$D$5:$G$5)),J180) -> 9.4 | M180: 2001 | N180: VS | O180: Existante | P180: VS | Q180: =IF(P180="VS",SUMIF(VS!$D$3:$G$3,$E180,VS!$D$7:$G$7),P180) -> 0.1 | R180: VS | S180: =IF(R180="VS",SUMIF(VS!$D$3:$G$3,$E180,VS!$D$8:$G$8),R180) -> 960 | T180: VS | U180: =IF(T180="VS",SUMIF(VS!$D$3:$G$3,$E180,VS!$D$9:$G$9),T180) -> 10 | X180: MWM | Y180: ‐BV 12 M 640
A181: 2007DIDO | B181: DIDO | C181: Balingué | D181: 5 | E181: DI | F181: DO | H181: 2.2 | I181: 2.2 | J181: 9.4 | K181: =IF(J181="VS",IF(B181="DIHFO",VS!$M$5,SUMIF(VS!$D$3:$G$3,$E181,VS!$D$5:$G$5)),J181) -> 9.4 | M181: 2007 | N181: VS | O181: Existante | P181: VS | Q181: =IF(P181="VS",SUMIF(VS!$D$3:$G$3,$E181,VS!$D$7:$G$7),P181) -> 0.1 | R181: VS | S181: =IF(R181="VS",SUMIF(VS!$D$3:$G$3,$E181,VS!$D$8:$G$8),R181) -> 960 | T181: VS | U181: =IF(T181="VS",SUMIF(VS!$D$3:$G$3,$E181,VS!$D$9:$G$9),T181) -> 10 | X181: 20V4000G62
A182: 2007DIDO | B182: DIDO | C182: Balingué | D182: 6 | E182: DI | F182: DO | H182: 2.2 | I182: 2.2 | J182: 9.4 | K182: =IF(J182="VS",IF(B182="DIHFO",VS!$M$5,SUMIF(VS!$D$3:$G$3,$E182,VS!$D$5:$G$5)),J182) -> 9.4 | M182: 2007 | N182: VS | O182: Existante | P182: VS | Q182: =IF(P182="VS",SUMIF(VS!$D$3:$G$3,$E182,VS!$D$7:$G$7),P182) -> 0.1 | R182: VS | S182: =IF(R182="VS",SUMIF(VS!$D$3:$G$3,$E182,VS!$D$8:$G$8),R182) -> 960 | T182: VS | U182: =IF(T182="VS",SUMIF(VS!$D$3:$G$3,$E182,VS!$D$9:$G$9),T182) -> 10 | X182: 20V4000G62
A183: 2007DIDO | B183: DIDO | C183: Balingué | D183: 7 | E183: DI | F183: DO | H183: 2.2 | I183: 2.2 | J183: 9.4 | K183: =IF(J183="VS",IF(B183="DIHFO",VS!$M$5,SUMIF(VS!$D$3:$G$3,$E183,VS!$D$5:$G$5)),J183) -> 9.4 | M183: 2007 | N183: VS | O183: Existante | P183: VS | Q183: =IF(P183="VS",SUMIF(VS!$D$3:$G$3,$E183,VS!$D$7:$G$7),P183) -> 0.1 | R183: VS | S183: =IF(R183="VS",SUMIF(VS!$D$3:$G$3,$E183,VS!$D$8:$G$8),R183) -> 960 | T183: VS | U183: =IF(T183="VS",SUMIF(VS!$D$3:$G$3,$E183,VS!$D$9:$G$9),T183) -> 10 | X183: 20V4000G62
A184: 2007DIDO | B184: DIDO | C184: Balingué | D184: 8 | E184: DI | F184: DO | H184: 2.2 | I184: 2.2 | J184: 9.4 | K184: =IF(J184="VS",IF(B184="DIHFO",VS!$M$5,SUMIF(VS!$D$3:$G$3,$E184,VS!$D$5:$G$5)),J184) -> 9.4 | M184: 2007 | N184: VS | O184: Existante | P184: VS | Q184: =IF(P184="VS",SUMIF(VS!$D$3:$G$3,$E184,VS!$D$7:$G$7),P184) -> 0.1 | R184: VS | S184: =IF(R184="VS",SUMIF(VS!$D$3:$G$3,$E184,VS!$D$8:$G$8),R184) -> 960 | T184: VS | U184: =IF(T184="VS",SUMIF(VS!$D$3:$G$3,$E184,VS!$D$9:$G$9),T184) -> 10 | X184: 20V4000G62
A185: 1999GTDO | B185: GTDO | C185: Darsalam TAC | D185: 1 | E185: GT | F185: DO | H185: 24.6 | I185: 20 | J185: 15.6 | K185: =IF(J185="VS",IF(B185="DIHFO",VS!$M$5,SUMIF(VS!$D$3:$G$3,$E185,VS!$D$5:$G$5)),J185) -> 15.6 | M185: 1999 | N185: VS | O185: Existante | P185: VS | Q185: =IF(P185="VS",SUMIF(VS!$D$3:$G$3,$E185,VS!$D$7:$G$7),P185) -> 0.08 | R185: VS | S185: =IF(R185="VS",SUMIF(VS!$D$3:$G$3,$E185,VS!$D$8:$G$8),R185) -> 613 | T185: VS | U185: =IF(T185="VS",SUMIF(VS!$D$3:$G$3,$E185,VS!$D$9:$G$9),T185) -> 2.5 | X185: Alstom Frame 5PA
A186: 2007DIDO | B186: DIDO | C186: Darsalam | D186: 8 | E186: DI | F186: DO | H186: 2.2 | I186: 2.2 | J186: 10 | K186: =IF(J186="VS",IF(B186="DIHFO",VS!$M$5,SUMIF(VS!$D$3:$G$3,$E186,VS!$D$5:$G$5)),J186) -> 10 | M186: 2007 | N186: VS | O186: Existante | P186: VS | Q186: =IF(P186="VS",SUMIF(VS!$D$3:$G$3,$E186,VS!$D$7:$G$7),P186) -> 0.1 | R186: VS | S186: =IF(R186="VS",SUMIF(VS!$D$3:$G$3,$E186,VS!$D$8:$G$8),R186) -> 960 | T186: VS | U186: =IF(T186="VS",SUMIF(VS!$D$3:$G$3,$E186,VS!$D$9:$G$9),T186) -> 10 | X186: 20V4000G62
A187: 2007DIDO | B187: DIDO | C187: Darsalam | D187: 9 | E187: DI | F187: DO | H187: 2.2 | I187: 2.2 | J187: 10 | K187: =IF(J187="VS",IF(B187="DIHFO",VS!$M$5,SUMIF(VS!$D$3:$G$3,$E187,VS!$D$5:$G$5)),J187) -> 10 | M187: 2007 | N187: VS | O187: Existante | P187: VS | Q187: =IF(P187="VS",SUMIF(VS!$D$3:$G$3,$E187,VS!$D$7:$G$7),P187) -> 0.1 | R187: VS | S187: =IF(R187="VS",SUMIF(VS!$D$3:$G$3,$E187,VS!$D$8:$G$8),R187) -> 960 | T187: VS | U187: =IF(T187="VS",SUMIF(VS!$D$3:$G$3,$E187,VS!$D$9:$G$9),T187) -> 10 | X187: 20V4000G62
A188: 2007DIDO | B188: DIDO | C188: Darsalam | D188: 10 | E188: DI | F188: DO | H188: 2.2 | I188: 2.2 | J188: 10 | K188: =IF(J188="VS",IF(B188="DIHFO",VS!$M$5,SUMIF(VS!$D$3:$G$3,$E188,VS!$D$5:$G$5)),J188) -> 10 | M188: 2007 | N188: VS | O188: Existante | P188: VS | Q188: =IF(P188="VS",SUMIF(VS!$D$3:$G$3,$E188,VS!$D$7:$G$7),P188) -> 0.1 | R188: VS | S188: =IF(R188="VS",SUMIF(VS!$D$3:$G$3,$E188,VS!$D$8:$G$8),R188) -> 960 | T188: VS | U188: =IF(T188="VS",SUMIF(VS!$D$3:$G$3,$E188,VS!$D$9:$G$9),T188) -> 10 | X188: 20V4000G62
A189: 2007DIDO | B189: DIDO | C189: Darsalam | D189: 11 | E189: DI | F189: DO | H189: 2.2 | I189: 2.2 | J189: 10 | K189: =IF(J189="VS",IF(B189="DIHFO",VS!$M$5,SUMIF(VS!$D$3:$G$3,$E189,VS!$D$5:$G$5)),J189) -> 10 | M189: 2007 | N189: VS | O189: Existante | P189: VS | Q189: =IF(P189="VS",SUMIF(VS!$D$3:$G$3,$E189,VS!$D$7:$G$7),P189) -> 0.1 | R189: VS | S189: =IF(R189="VS",SUMIF(VS!$D$3:$G$3,$E189,VS!$D$8:$G$8),R189) -> 960 | T189: VS | U189: =IF(T189="VS",SUMIF(VS!$D$3:$G$3,$E189,VS!$D$9:$G$9),T189) -> 10 | X189: 20V4000G62
A190: 2010DIDO | B190: DIDO | C190: Aggreko location | E190: DI | F190: DO | H190: 13 | I190: 13 | J190: 9.6 | K190: =IF(J190="VS",IF(B190="DIHFO",VS!$M$5,SUMIF(VS!$D$3:$G$3,$E190,VS!$D$5:$G$5)),J190) -> 9.6 | M190: 2010 | N190: 2011 | O190: Existante | P190: VS | Q190: =IF(P190="VS",SUMIF(VS!$D$3:$G$3,$E190,VS!$D$7:$G$7),P190) -> 0.1 | R190: VS | S190: =IF(R190="VS",SUMIF(VS!$D$3:$G$3,$E190,VS!$D$8:$G$8),R190) -> 960 | T190: VS | U190: =IF(T190="VS",SUMIF(VS!$D$3:$G$3,$E190,VS!$D$9:$G$9),T190) -> 10
A191: 2010DIHFO | B191: DIHFO | C191: Sopam BOT | D191: 1 | E191: DI | F191: HFO | G191: DO | H191: 11.5 | I191: 11.5 | J191: 9.4 | K191: =IF(J191="VS",IF(B191="DIHFO",VS!$M$5,SUMIF(VS!$D$3:$G$3,$E191,VS!$D$5:$G$5)),J191) -> 9.4 | L191: 9.4 | M191: 2010 | N191: VS | O191: Existante | P191: VS | Q191: =IF(P191="VS",SUMIF(VS!$D$3:$G$3,$E191,VS!$D$7:$G$7),P191) -> 0.1 | R191: VS | S191: =IF(R191="VS",SUMIF(VS!$D$3:$G$3,$E191,VS!$D$8:$G$8),R191) -> 960 | T191: VS | U191: =IF(T191="VS",SUMIF(VS!$D$3:$G$3,$E191,VS!$D$9:$G$9),T191) -> 10
A192: 2010DIHFO | B192: DIHFO | C192: Sopam BOT | D192: 2 | E192: DI | F192: HFO | G192: DO | H192: 11.5 | I192: 11.5 | J192: 9.4 | K192: =IF(J192="VS",IF(B192="DIHFO",VS!$M$5,SUMIF(VS!$D$3:$G$3,$E192,VS!$D$5:$G$5)),J192) -> 9.4 | L192: 9.4 | M192: 2010 | N192: VS | O192: Existante | P192: VS | Q192: =IF(P192="VS",SUMIF(VS!$D$3:$G$3,$E192,VS!$D$7:$G$7),P192) -> 0.1 | R192: VS | S192: =IF(R192="VS",SUMIF(VS!$D$3:$G$3,$E192,VS!$D$8:$G$8),R192) -> 960 | T192: VS | U192: =IF(T192="VS",SUMIF(VS!$D$3:$G$3,$E192,VS!$D$9:$G$9),T192) -> 10
A193: 2010DIHFO | B193: DIHFO | C193: Sopam BOT | D193: 3 | E193: DI | F193: HFO | G193: DO | H193: 11.5 | I193: 11.5 | J193: 9.4 | K193: =IF(J193="VS",IF(B193="DIHFO",VS!$M$5,SUMIF(VS!$D$3:$G$3,$E193,VS!$D$5:$G$5)),J193) -> 9.4 | L193: 9.4 | M193: 2010 | N193: VS | O193: Existante | P193: VS | Q193: =IF(P193="VS",SUMIF(VS!$D$3:$G$3,$E193,VS!$D$7:$G$7),P193) -> 0.1 | R193: VS | S193: =IF(R193="VS",SUMIF(VS!$D$3:$G$3,$E193,VS!$D$8:$G$8),R193) -> 960 | T193: VS | U193: =IF(T193="VS",SUMIF(VS!$D$3:$G$3,$E193,VS!$D$9:$G$9),T193) -> 10
A194: 2010DIHFO | B194: DIHFO | C194: Sopam BOT | D194: 4 | E194: DI | F194: HFO | G194: DO | H194: 11.5 | I194: 11.5 | J194: 9.4 | K194: =IF(J194="VS",IF(B194="DIHFO",VS!$M$5,SUMIF(VS!$D$3:$G$3,$E194,VS!$D$5:$G$5)),J194) -> 9.4 | L194: 9.4 | M194: 2010 | N194: VS | O194: Existante | P194: VS | Q194: =IF(P194="VS",SUMIF(VS!$D$3:$G$3,$E194,VS!$D$7:$G$7),P194) -> 0.1 | R194: VS | S194: =IF(R194="VS",SUMIF(VS!$D$3:$G$3,$E194,VS!$D$8:$G$8),R194) -> 960 | T194: VS | U194: =IF(T194="VS",SUMIF(VS!$D$3:$G$3,$E194,VS!$D$9:$G$9),T194) -> 10
A195: 2010DIHFO | B195: DIHFO | C195: Sopam BOT | D195: 5 | E195: DI | F195: HFO | G195: DO | H195: 11.5 | I195: 11.5 | J195: 9.4 | K195: =IF(J195="VS",IF(B195="DIHFO",VS!$M$5,SUMIF(VS!$D$3:$G$3,$E195,VS!$D$5:$G$5)),J195) -> 9.4 | L195: 9.4 | M195: 2010 | N195: VS | O195: Existante | P195: VS | Q195: =IF(P195="VS",SUMIF(VS!$D$3:$G$3,$E195,VS!$D$7:$G$7),P195) -> 0.1 | R195: VS | S195: =IF(R195="VS",SUMIF(VS!$D$3:$G$3,$E195,VS!$D$8:$G$8),R195) -> 960 | T195: VS | U195: =IF(T195="VS",SUMIF(VS!$D$3:$G$3,$E195,VS!$D$9:$G$9),T195) -> 10
A196: 2005DIDO | B196: DIDO | C196: NIONO (CI) | E196: DI | F196: DO | H196: 2.6 | I196: 2.6 | J196: 12 | K196: =IF(J196="VS",IF(B196="DIHFO",VS!$M$5,SUMIF(VS!$D$3:$G$3,$E196,VS!$D$5:$G$5)),J196) -> 12 | M196: 2005 | N196: VS | O196: Existante | P196: VS | Q196: =IF(P196="VS",SUMIF(VS!$D$3:$G$3,$E196,VS!$D$7:$G$7),P196) -> 0.1 | R196: VS | S196: =IF(R196="VS",SUMIF(VS!$D$3:$G$3,$E196,VS!$D$8:$G$8),R196) -> 960 | T196: VS | U196: =IF(T196="VS",SUMIF(VS!$D$3:$G$3,$E196,VS!$D$9:$G$9),T196) -> 10
C198: =OFFSET(C$1,lang,0) -> Name of Station | D198: =OFFSET(D$1,lang,0) -> MESSAGE Name with Country Prefix | E198: =OFFSET(E$1,lang,0) -> MESSAGE Name | F198: =OFFSET(F$1,lang,0) -> Fuel | H198: =OFFSET(H$1,lang,0) -> Plant Capacity | I198: =OFFSET(I$1,lang,0) -> Available Capacity | K198: =OFFSET(K$1,lang,0) -> Heat Rate | N198: =OFFSET(N$1,lang,0) -> Decomissioning year | Q198: =OFFSET(Q$1,lang,0) -> Forced Outage | S198: =OFFSET(S$1,lang,0) -> Planned outage | U198: =OFFSET(U$1,lang,0) -> Variable O&M | W198: =OFFSET(W$1,lang,0) -> Fixed O&M | Y198: =OFFSET(Y$1,lang,0) -> hist string
H199: MW | I199: MW | K199: GJ/MWh | Q199: % | S199: h/yr | U199: US$/MWh | W199: US$/kW-yr
C200: =VLOOKUP(D200,NameConvs!$B$57:$E$69,4,FALSE) -> Mali | D200: MAL | I200: =SUM(I201:I204) -> 134.35 | T200: =SUM(T201:T204) -> 952.6418
B201: DIDO | C201: =VLOOKUP(LEFT(B201,2),NameConvs!$D$33:$F$206,lang+2,FALSE)&" "&F201 -> Diesel Generators ODS | D201: =D$200&E201 -> MALEPODSEXDI | E201: ="EP"&F201&"EX"&LEFT(B201,2) -> EPODSEXDI | F201: =VLOOKUP(RIGHT(B201,LEN(B201)-2),NameConvs!$A$4:$C$14,3,FALSE) -> ODS | H201: =SUMIF($B$177:$B$196,$B201,$H$177:$H$196) -> 56.85 | I201: =SUMIF($B$177:$B$196,$B201,$I$177:$I$196) -> 56.85 | K201: =SUMPRODUCT(--($B$177:$B$196=$B201),$I$177:$I$196,K$177:K$196)/SUMPRODUCT(--($B$177:$B$196=$B201),$I$177:$I$196) -> 9.657519789 | N201: =IF(VLOOKUP(B201,$B$177:$N$196,N$5,FALSE)="VS","",VLOOKUP(B201,$B$177:$N$196,N$5,FALSE)) ->  | Q201: =SUMPRODUCT(--($B$177:$B$196=$B201),$I$177:$I$196,Q$177:Q$196)/SUMPRODUCT(--($B$177:$B$196=$B201),$I$177:$I$196) -> 0.1 | R201: =S201/8760 -> 0.1095890411 | S201: =SUMPRODUCT(--($B$177:$B$196=$B201),$I$177:$I$196,S$177:S$196)/SUMPRODUCT(--($B$177:$B$196=$B201),$I$177:$I$196) -> 960 | T201: =(1-Q201)*(1-R201)*I201*8.76 -> 399.087 | U201: =SUMPRODUCT(--($B$177:$B$196=$B201),$I$177:$I$196,U$177:U$196)/SUMPRODUCT(--($B$177:$B$196=$B201),$I$177:$I$196) -> 10 | Y201: =Z201&AA201&AB201&AC201&AD201&AE201&AF201&AG201&AH201&AI201&AJ201&AK201&AL201&AM201&AN201&AO201&AP201&AQ201&AR201&AS201&AT201&AU201&AV201&AW201&AX201&AY201&AZ201&BA201&BB201&BC201&BD201&BE201&BF201&BG201&BH201&BI201&BJ201&BK201&BL201&BM201&BN201&BO201&BP201&BQ201&BR201&BS201&BT201&BU201&BV201&BW201&BX201 -> 2000 18.75 2001 4.9 2005 2.6 2007 17.6 2010 13 | Z201: =IF(SUMIF($A$177:$A$196,Z$7&$B201,$I$177:$I$196)=0,"",Z$7&" "&SUMIF($A$177:$A$196,Z$7&$B201,$I$177:$I$196)&" ") ->  | AJ201: =IF(SUMIF($A$177:$A$196,AJ$7&$B201,$I$177:$I$196)=0,"",AJ$7&" "&SUMIF($A$177:$A$196,AJ$7&$B201,$I$177:$I$196)&" ") ->  | AT201: =IF(SUMIF($A$177:$A$196,AT$7&$B201,$I$177:$I$196)=0,"",AT$7&" "&SUMIF($A$177:$A$196,AT$7&$B201,$I$177:$I$196)&" ") ->  | BD201: =IF(SUMIF($A$177:$A$196,BD$7&$B201,$I$177:$I$196)=0,"",BD$7&" "&SUMIF($A$177:$A$196,BD$7&$B201,$I$177:$I$196)&" ") ->  | BN201: =IF(SUMIF($A$177:$A$196,BN$7&$B201,$I$177:$I$196)=0,"",BN$7&" "&SUMIF($A$177:$A$196,BN$7&$B201,$I$177:$I$196)&" ") -> 2000 18.75 | BO201: 2001 4.9 | BS201: 2005 2.6 | BU201: 2007 17.6 | BX201: 2010 13
B202: GTDO | C202: =VLOOKUP(LEFT(B202,2),NameConvs!$D$33:$F$206,lang+2,FALSE)&" "&F202 -> Gas Turbine ODS | D202: =D$200&E202 -> MALEPODSEXGT | E202: ="EP"&F202&"EX"&LEFT(B202,2) -> EPODSEXGT | F202: =VLOOKUP(RIGHT(B202,LEN(B202)-2),NameConvs!$A$4:$C$14,3,FALSE) -> ODS | H202: =SUMIF($B$177:$B$196,$B202,$H$177:$H$196) -> 24.6 | I202: =SUMIF($B$177:$B$196,$B202,$I$177:$I$196) -> 20 | K202: =SUMPRODUCT(--($B$177:$B$196=$B202),$I$177:$I$196,K$177:K$196)/SUMPRODUCT(--($B$177:$B$196=$B202),$I$177:$I$196) -> 15.6 | N202: =IF(VLOOKUP(B202,$B$177:$N$196,N$5,FALSE)="VS","",VLOOKUP(B202,$B$177:$N$196,N$5,FALSE)) ->  | Q202: =SUMPRODUCT(--($B$177:$B$196=$B202),$I$177:$I$196,Q$177:Q$196)/SUMPRODUCT(--($B$177:$B$196=$B202),$I$177:$I$196) -> 0.08 | R202: =S202/8760 -> 0.06997716895 | S202: =SUMPRODUCT(--($B$177:$B$196=$B202),$I$177:$I$196,S$177:S$196)/SUMPRODUCT(--($B$177:$B$196=$B202),$I$177:$I$196) -> 613 | T202: =(1-Q202)*(1-R202)*I202*8.76 -> 149.9048 | U202: =SUMPRODUCT(--($B$177:$B$196=$B202),$I$177:$I$196,U$177:U$196)/SUMPRODUCT(--($B$177:$B$196=$B202),$I$177:$I$196) -> 2.5 | Y202: =Z202&AA202&AB202&AC202&AD202&AE202&AF202&AG202&AH202&AI202&AJ202&AK202&AL202&AM202&AN202&AO202&AP202&AQ202&AR202&AS202&AT202&AU202&AV202&AW202&AX202&AY202&AZ202&BA202&BB202&BC202&BD202&BE202&BF202&BG202&BH202&BI202&BJ202&BK202&BL202&BM202&BN202&BO202&BP202&BQ202&BR202&BS202&BT202&BU202&BV202&BW202&BX202 -> 1999 20 | BM202: 1999 20
B203: DIHFO | C203: =VLOOKUP(LEFT(B203,2),NameConvs!$D$33:$F$206,lang+2,FALSE)&" "&F203 -> Diesel Generators OHF | D203: =D$200&E203 -> MALEPOHFEXDI | E203: ="EP"&F203&"EX"&LEFT(B203,2) -> EPOHFEXDI | F203: =VLOOKUP(RIGHT(B203,LEN(B203)-2),NameConvs!$A$4:$C$14,3,FALSE) -> OHF | H203: =SUMIF($B$177:$B$196,$B203,$H$177:$H$196) -> 57.5 | I203: =SUMIF($B$177:$B$196,$B203,$I$177:$I$196) -> 57.5 | K203: =SUMPRODUCT(--($B$177:$B$196=$B203),$I$177:$I$196,K$177:K$196)/SUMPRODUCT(--($B$177:$B$196=$B203),$I$177:$I$196) -> 9.4 | N203: =IF(VLOOKUP(B203,$B$177:$N$196,N$5,FALSE)="VS","",VLOOKUP(B203,$B$177:$N$196,N$5,FALSE)) ->  | Q203: =SUMPRODUCT(--($B$177:$B$196=$B203),$I$177:$I$196,Q$177:Q$196)/SUMPRODUCT(--($B$177:$B$196=$B203),$I$177:$I$196) -> 0.1 | R203: =S203/8760 -> 0.1095890411 | S203: =SUMPRODUCT(--($B$177:$B$196=$B203),$I$177:$I$196,S$177:S$196)/SUMPRODUCT(--($B$177:$B$196=$B203),$I$177:$I$196) -> 960 | T203: =(1-Q203)*(1-R203)*I203*8.76 -> 403.65 | U203: =SUMPRODUCT(--($B$177:$B$196=$B203),$I$177:$I$196,U$177:U$196)/SUMPRODUCT(--($B$177:$B$196=$B203),$I$177:$I$196) -> 10 | Y203: =Z203&AA203&AB203&AC203&AD203&AE203&AF203&AG203&AH203&AI203&AJ203&AK203&AL203&AM203&AN203&AO203&AP203&AQ203&AR203&AS203&AT203&AU203&AV203&AW203&AX203&AY203&AZ203&BA203&BB203&BC203&BD203&BE203&BF203&BG203&BH203&BI203&BJ203&BK203&BL203&BM203&BN203&BO203&BP203&BQ203&BR203&BS203&BT203&BU203&BV203&BW203&BX203 -> 2010 57.5 | BX203: 2010 57.5
B205: Cote d'Ivoire
B206: CIV
C209: ﻿ | J209: 1ère | M209: Année | N209: Année | W209: Coût
F210: 1er | G210: 2e | I210: Capacité | J210: conso. | L210: 2e conso. | M210: de mise | N210: de | P210: Indisp. | T210: Coûts | W210: spéc.
D211: N° | E211: Type | F211: combust | G211: combusti | H211: Capacité | I211: disponibl | J211: spéc. | L211: spéc. | M211: en | N211: déclasse | P211: fortuit | R211: Indisp. | T211: O&M | V211: Coûts | W211: investiss | X211: Fabricant et
C212: Nom de centrale | D212: unité | E212: unité | F212: ible | G212: ble | H212: installée | I212: e | J212: nette | L212: nette | M212: service | N212: ment | O212: Statut | P212: e | R212: Planifiée | T212: variables | V212: O&M fixes | W212: ement | X212: modèle
H213: [MW] | I213: [MW] | J213: [GJ/MWh] | L213: [GJ/MWh] | P213: [%] | R213: [h/an] | T213: [$/MWh] | V213: [$/kW/an] | W213: [$/kW]
A214: =M214&B214 -> 2000GTAzito | B214: GTAzito | C214: Azito | D214: 1 | E214: GT | F214: NG | G214: DO | H214: 148 | I214: 146 | J214: 11.4 | K214: =IF(J214="VS",IF(B214="DIHFO",VS!$M$5,SUMIF(VS!$D$3:$G$3,$E214,VS!$D$5:$G$5)),J214) -> 11.4 | L214: 12.5 | M214: 2000 | N214: 2013 | O214: Existante | P214: 0.05 | Q214: =IF(P214="VS",SUMIF(VS!$D$3:$G$3,$E214,VS!$D$7:$G$7),P214) -> 0.05 | R214: 752 | S214: =IF(R214="VS",SUMIF(VS!$D$3:$G$3,$E214,VS!$D$8:$G$8),R214) -> 752 | T214: VS | U214: =IF(T214="VS",SUMIF(VS!$D$3:$G$3,$E214,VS!$D$9:$G$9),T214) -> 2.5 | X214: ABB GT13E2
A215: 2000GTAzito | B215: GTAzito | C215: Azito | D215: 2 | E215: GT | F215: NG | G215: DO | H215: 148 | I215: 144 | J215: 11.4 | K215: =IF(J215="VS",IF(B215="DIHFO",VS!$M$5,SUMIF(VS!$D$3:$G$3,$E215,VS!$D$5:$G$5)),J215) -> 11.4 | L215: 12.5 | M215: 2000 | N215: 2013 | O215: Existante | P215: 0.05 | Q215: =IF(P215="VS",SUMIF(VS!$D$3:$G$3,$E215,VS!$D$7:$G$7),P215) -> 0.05 | R215: 616 | S215: =IF(R215="VS",SUMIF(VS!$D$3:$G$3,$E215,VS!$D$8:$G$8),R215) -> 616 | T215: VS | U215: =IF(T215="VS",SUMIF(VS!$D$3:$G$3,$E215,VS!$D$9:$G$9),T215) -> 2.5 | X215: ABB GT13E2
A216: 1990GTVridi | B216: GTVridi | C216: Vridi 1 (TAG 5000) | D216: 1 | E216: GT | F216: NG | G216: HVO/DO | H216: 23.9 | I216: 21 | J216: 14.4 | K216: =IF(J216="VS",IF(B216="DIHFO",VS!$M$5,SUMIF(VS!$D$3:$G$3,$E216,VS!$D$5:$G$5)),J216) -> 14.4 | L216: 15.1 | M216: 1990 | N216: VS | O216: Existante | P216: 0.03 | Q216: =IF(P216="VS",SUMIF(VS!$D$3:$G$3,$E216,VS!$D$7:$G$7),P216) -> 0.03 | R216: 752 | S216: =IF(R216="VS",SUMIF(VS!$D$3:$G$3,$E216,VS!$D$8:$G$8),R216) -> 752 | T216: VS | U216: =IF(T216="VS",SUMIF(VS!$D$3:$G$3,$E216,VS!$D$9:$G$9),T216) -> 2.5 | X216: TAG 5000
A217: 1990GTVridi | B217: GTVridi | C217: Vridi 1 (TAG 5000) | D217: 2 | E217: GT | F217: NG | G217: HVO/DO | H217: 23.9 | I217: 21 | J217: 14.4 | K217: =IF(J217="VS",IF(B217="DIHFO",VS!$M$5,SUMIF(VS!$D$3:$G$3,$E217,VS!$D$5:$G$5)),J217) -> 14.4 | L217: 15.1 | M217: 1990 | N217: VS | O217: Existante | P217: 0.03 | Q217: =IF(P217="VS",SUMIF(VS!$D$3:$G$3,$E217,VS!$D$7:$G$7),P217) -> 0.03 | R217: 512 | S217: =IF(R217="VS",SUMIF(VS!$D$3:$G$3,$E217,VS!$D$8:$G$8),R217) -> 512 | T217: VS | U217: =IF(T217="VS",SUMIF(VS!$D$3:$G$3,$E217,VS!$D$9:$G$9),T217) -> 2.5 | X217: TAG 5000
A218: 1990GTVridi | B218: GTVridi | C218: Vridi 1 (TAG 5000) | D218: 3 | E218: GT | F218: NG | G218: HVO/DO | H218: 23.9 | I218: 21 | J218: 14.4 | K218: =IF(J218="VS",IF(B218="DIHFO",VS!$M$5,SUMIF(VS!$D$3:$G$3,$E218,VS!$D$5:$G$5)),J218) -> 14.4 | L218: 15.1 | M218: 1990 | N218: VS | O218: Existante | P218: 0.03 | Q218: =IF(P218="VS",SUMIF(VS!$D$3:$G$3,$E218,VS!$D$7:$G$7),P218) -> 0.03 | R218: 693 | S218: =IF(R218="VS",SUMIF(VS!$D$3:$G$3,$E218,VS!$D$8:$G$8),R218) -> 693 | T218: VS | U218: =IF(T218="VS",SUMIF(VS!$D$3:$G$3,$E218,VS!$D$9:$G$9),T218) -> 2.5 | X218: TAG 5000
A219: 1990GTVridi | B219: GTVridi | C219: Vridi 1 (TAG 5000) | D219: 4 | E219: GT | F219: NG | G219: HVO/DO | H219: 23.9 | I219: 21 | J219: 14.4 | K219: =IF(J219="VS",IF(B219="DIHFO",VS!$M$5,SUMIF(VS!$D$3:$G$3,$E219,VS!$D$5:$G$5)),J219) -> 14.4 | L219: 15.1 | M219: 1990 | N219: VS | O219: Existante | P219: 0.03 | Q219: =IF(P219="VS",SUMIF(VS!$D$3:$G$3,$E219,VS!$D$7:$G$7),P219) -> 0.03 | R219: 816 | S219: =IF(R219="VS",SUMIF(VS!$D$3:$G$3,$E219,VS!$D$8:$G$8),R219) -> 816 | T219: VS | U219: =IF(T219="VS",SUMIF(VS!$D$3:$G$3,$E219,VS!$D$9:$G$9),T219) -> 2.5 | X219: TAG 5000
A220: 1995GTC1prel | B220: GTC1prel | C220: Vridi 2 (CIPREL) | D220: 5 | E220: GT | F220: NG | G220: HVO/DO | H220: 34.5 | I220: 33 | J220: 12.1 | K220: =IF(J220="VS",IF(B220="DIHFO",VS!$M$5,SUMIF(VS!$D$3:$G$3,$E220,VS!$D$5:$G$5)),J220) -> 12.1 | L220: 13.9 | M220: 1995 | N220: VS | O220: Existante | P220: 0.05 | Q220: =IF(P220="VS",SUMIF(VS!$D$3:$G$3,$E220,VS!$D$7:$G$7),P220) -> 0.05 | R220: 600 | S220: =IF(R220="VS",SUMIF(VS!$D$3:$G$3,$E220,VS!$D$8:$G$8),R220) -> 600 | T220: VS | U220: =IF(T220="VS",SUMIF(VS!$D$3:$G$3,$E220,VS!$D$9:$G$9),T220) -> 2.5 | X220: TAG 6000
A221: 1995GTC1prel | B221: GTC1prel | C221: Vridi 2 (CIPREL) | D221: 6 | E221: GT | F221: NG | G221: HVO/DO | H221: 34.5 | I221: 33 | J221: 12.1 | K221: =IF(J221="VS",IF(B221="DIHFO",VS!$M$5,SUMIF(VS!$D$3:$G$3,$E221,VS!$D$5:$G$5)),J221) -> 12.1 | L221: 13.9 | M221: 1995 | N221: VS | O221: Existante | P221: 0.05 | Q221: =IF(P221="VS",SUMIF(VS!$D$3:$G$3,$E221,VS!$D$7:$G$7),P221) -> 0.05 | R221: 624 | S221: =IF(R221="VS",SUMIF(VS!$D$3:$G$3,$E221,VS!$D$8:$G$8),R221) -> 624 | T221: VS | U221: =IF(T221="VS",SUMIF(VS!$D$3:$G$3,$E221,VS!$D$9:$G$9),T221) -> 2.5 | X221: TAG 6000
A222: 1995GTC1prel | B222: GTC1prel | C222: Vridi 2 (CIPREL) | D222: 7 | E222: GT | F222: NG | G222: HVO/DO | H222: 34.5 | I222: 33 | J222: 12.1 | K222: =IF(J222="VS",IF(B222="DIHFO",VS!$M$5,SUMIF(VS!$D$3:$G$3,$E222,VS!$D$5:$G$5)),J222) -> 12.1 | L222: 13.9 | M222: 1995 | N222: VS | O222: Existante | P222: 0.05 | Q222: =IF(P222="VS",SUMIF(VS!$D$3:$G$3,$E222,VS!$D$7:$G$7),P222) -> 0.05 | R222: 610 | S222: =IF(R222="VS",SUMIF(VS!$D$3:$G$3,$E222,VS!$D$8:$G$8),R222) -> 610 | T222: VS | U222: =IF(T222="VS",SUMIF(VS!$D$3:$G$3,$E222,VS!$D$9:$G$9),T222) -> 2.5 | X222: TAG 6000
... 252 more rows

Sheet WAPP Hydro Existing
A1: English | B1: MESSAGE Name with Country Prefix | C1: Name of Station | D1: MESSAGE Name | E1: Hydro Type | F1: Plant Capacity | G1: Available Capacity | I1: Retirement Year | K1: Forced Outage | L1: Planned outage | M1: Variable O&M | N1: Fixed O&M | Q1: Average year | R1: Dry year | S1: hist string
A2: French | B2: Nom MESSAGE avec Prefixe pays | C2: Nom de Station | D2: Nom MESSAGE | E2: Type d'hydro | F2: Capacité installée | G2: Capacité disponible | I2: Anne declassement | K2: Indisp. Fortuite | L2: Indisp. Planifiée | M2: Coût O&M variable | N2: Coût O&M fixe | Q2: Energie Moyenne | R2: Energie garantie | S2: hist texte
B3: 1 | C3: =B3+1 -> 2 | D3: =C3+1 -> 3 | E3: 4 | F3: 5 | G3: 6 | H3: 7 | I3: 8 | J3: 9 | K3: 10 | L3: 11 | M3: 12 | N3: 13 | O3: 14 | P3: 15 | Q3: =P3+1 -> 16 | R3: =Q3+1 -> 17 | S3: =R3+1 -> 18 | T3: =S3+1 -> 19
C4: 1 | D4: =C4+1 -> 2 | E4: =D4+1 -> 3 | F4: 4 | G4: 5 | H4: 6 | I4: 7 | J4: 8 | K4: 9 | L4: 10 | M4: 11 | N4: 12 | O4: 13 | P4: 14 | Q4: 15 | R4: 16
A6: Senegal
A7: SEN
C9: ﻿ | G9: Capacité | H9: Annéede | M9: Coûts | O9: Coût spéc.
D10: N° | E10: Type d' | F10: Capacité | G10: disponibl | H10: miseen | I10: Année de | K10: Indisp. | L10: Indisp. | M10: O&M | N10: Coûts O&M | O10: investissem | P10: Fabricant et | Q10: Energie | R10: Energie
C11: Nom de centrale | D11: unité | E11: unité | F11: installée | G11: e | H11: service | I11: déclassement | J11: Statut | K11: fortuite | L11: planifiée | M11: variables | N11: fixes | O11: ent | P11: modèle | Q11: moyenne | R11: garantie
F12: [MW] | G12: [MW] | K12: [%] | L12: [h/an] | M12: [$/MWh] | N12: [$/kW/an] | O12: [$/kW] | Q12: [GWh/an] | R12: [GWh/an]
C13: Manantali (OMVS) part Sénégal 33% | E13: DAM | F13: 67.65 | G13: 67.65 | H13: 1988 | I13: VS | J13: Existante | K13: VS | L13: VS | M13: VS | Q13: 264 | R13: 165
C15: =OFFSET(C$1,lang,0) -> Name of Station | D15: =OFFSET(D$1,lang,0) -> MESSAGE Name | E15: =OFFSET(E$1,lang,0) -> Hydro Type | F15: =OFFSET(F$1,lang,0) -> Plant Capacity | G15: =OFFSET(G$1,lang,0) -> Available Capacity | I15: =OFFSET(I$1,lang,0) -> Retirement Year | K15: =OFFSET(K$1,lang,0) -> Forced Outage | L15: =OFFSET(L$1,lang,0) -> Planned outage | M15: =OFFSET(M$1,lang,0) -> Variable O&M | N15: =OFFSET(N$1,lang,0) -> Fixed O&M | Q15: =OFFSET(Q$1,lang,0) -> Average year | R15: =OFFSET(R$1,lang,0) -> Dry year | S15: =OFFSET(S$1,lang,0) -> hist string | T15: Load factor
F16: MW | G16: MW | K16: % | L16: days/yr | M16: $/MWh | N16: $/kW/yr | Q16: GWh | R16: GWh
C17: =VLOOKUP(D17,NameConvs!$B$57:$E$69,4,FALSE) -> Senegal | D17: SEN | G17: =G18 -> 67.65 | Q17: =Q18 -> 264 | R17: =R18 -> 165
B18: =$D17&D18 -> SENEPHYDEXMan | C18: Manantali (OMVS) part Sénégal 33% | D18: ="EPHYDEX"&LEFT(C18,3) -> EPHYDEXMan | E18: =VLOOKUP($C18,$C$13:$S$13,E$4,FALSE) -> DAM | F18: =F13 -> 67.65 | G18: =G13 -> 67.65 | H18: 1988 | J18: Existante | K18: 0.05 | L18: 570 | M18: 2 | Q18: 264 | R18: 165 | S18: =H18&" "&G18 -> 1988 67.65 | T18: =OFFSET(Q18,0,dy)/G18/8.76 -> 0.2784274418
A20: Gambia
A21: GAM
C22: None existing
A25: Guinea-Bissau
A26: GBI
C28: None existing
A30: Guinea
A31: GUI
C33: ﻿ | D33: N° | E33: d' | F33: Capacité | G33: Capacité | H33: miseen | I33: déclasse | K33: Indisp. | L33: Indisp. | M33: variable | N33: Coûts | O33: investisse | P33: Fabricant et | Q33: Energie | R33: Energie
C34: Nom de centrale | D34: unité | E34: unité | F34: installée | G34: disponible | H34: service | I34: ment | J34: Statut | K34: fortuite | L34: planifiée | M34: s | N34: O&M fixes | O34: ment | P34: modèle | Q34: moyenne | R34: garantie
F35: [MW] | G35: [MW] | K35: [%] | L35: [h/an] | M35: [$/MWh] | N35: [$/kW/an] | O35: [$/kW] | Q35: [GWh/an] | R35: [GWh/an]
C36: Banéah | D36: 1 | E36: DAM | F36: 2.5 | G36: 0 | H36: 1989 | I36: 2015 | J36: Existante | K36: VS | L36: VS | M36: VS | P36: Kaplan | Q36: 6.4 | R36: VS
C37: Banéah | D37: 2 | E37: DAM | F37: 2.5 | G37: 0 | H37: 1989 | I37: 2015 | J37: Existante | K37: VS | L37: VS | M37: VS | P37: Kaplan
C38: Donkéa | D38: 1 | E38: ROR | F38: 7.5 | G38: 6 | H38: 1970 | I38: 2015 | J38: Existante | K38: VS | L38: VS | M38: VS | P38: Francis | Q38: 72.4 | R38: 55.5
C39: Donkéa | D39: 2 | E39: ROR | F39: 7.5 | G39: 5 | H39: 1970 | I39: 2015 | J39: Existante | K39: VS | L39: VS | M39: VS | P39: Francis
C40: Grandes Chutes | D40: 1 | E40: DAM | F40: 5 | G40: 3 | H40: 1954 | I40: 2015 | J40: Existante | K40: VS | L40: VS | M40: VS | P40: Francis | Q40: 127 | R40: 99.2
C41: Grandes Chutes | D41: 2 | E41: DAM | F41: 5 | G41: 0 | H41: 1954 | I41: 2015 | J41: Existante | K41: VS | L41: VS | M41: VS | P41: Francis
C42: Grandes Chutes | D42: 3 | E42: DAM | F42: 8.5 | G42: 0 | H42: 1986 | I42: 2015 | J42: Existante | K42: VS | L42: VS | M42: VS | P42: Francis
C43: Grandes Chutes | D43: 4 | E43: DAM | F43: 8.5 | G43: 0 | H43: 1986 | I43: 2015 | J43: Existante | K43: VS | L43: VS | M43: VS | P43: Francis
C44: Garafiri | D44: 1 | E44: DAM | F44: 25 | G44: 25 | H44: 1999 | I44: VS | J44: Existante | K44: VS | L44: VS | M44: VS | P44: Francis | Q44: 258 | R44: 204
C45: Garafiri | D45: 2 | E45: DAM | F45: 25 | G45: 25 | H45: 1999 | I45: VS | J45: Existante | K45: VS | L45: VS | M45: VS | P45: Francis
C46: Garafiri | D46: 3 | E46: DAM | F46: 25 | G46: 25 | H46: 1999 | I46: VS | J46: Existante | K46: VS | L46: VS | M46: VS | P46: Francis
C47: Kinkon | D47: 1 | E47: DAM | F47: 0.85 | G47: 0.85 | H47: 1970/2006 | I47: VS | J47: Existante | K47: VS | L47: VS | M47: VS | P47: Francis | Q47: 11.6 | R47: 10.8
C48: Kinkon | D48: 2 | E48: DAM | F48: 0.85 | G48: 0.85 | H48: 1970/2006 | I48: VS | J48: Existante | K48: VS | L48: VS | M48: VS | P48: Francis
C49: Kinkon | D49: 3 | E49: DAM | F49: 0.85 | G49: 0.85 | H49: 1970/2006 | I49: VS | J49: Existante | K49: VS | L49: VS | M49: VS | P49: Francis
C50: Kinkon | D50: 4 | E50: DAM | F50: 0.85 | G50: 0.85 | H50: 1970/2006 | I50: VS | J50: Existante | K50: VS | L50: VS | M50: VS | P50: Francis
C51: Tinkisso | D51: 1 | E51: ROR | F51: 0.55 | G51: 0.5 | H51: 1974/2005 | I51: VS | J51: Existante | K51: VS | L51: VS | M51: VS | P51: Francis | Q51: 6.4 | R51: 4.6
C52: Tinkisso | D52: 2 | E52: ROR | F52: 0.55 | G52: 0.5 | H52: 1974/2005 | I52: VS | J52: Existante | K52: VS | L52: VS | M52: VS | P52: Francis
C53: Tinkisso | D53: 3 | E53: ROR | F53: 0.55 | G53: 0.5 | H53: 1974/2005 | I53: VS | J53: Existante | K53: VS | L53: VS | M53: VS | P53: Francis
C55: =OFFSET(C$1,lang,0) -> Name of Station | D55: =OFFSET(D$1,lang,0) -> MESSAGE Name | E55: =OFFSET(E$1,lang,0) -> Hydro Type | F55: =OFFSET(F$1,lang,0) -> Plant Capacity | G55: =OFFSET(G$1,lang,0) -> Available Capacity | I55: =OFFSET(I$1,lang,0) -> Retirement Year | K55: =OFFSET(K$1,lang,0) -> Forced Outage | L55: =OFFSET(L$1,lang,0) -> Planned outage | M55: =OFFSET(M$1,lang,0) -> Variable O&M | N55: =OFFSET(N$1,lang,0) -> Fixed O&M | Q55: =OFFSET(Q$1,lang,0) -> Average year | R55: =OFFSET(R$1,lang,0) -> Dry year | S55: =OFFSET(S$1,lang,0) -> hist string
F56: MW | G56: MW | K56: % | L56: days/yr | M56: $/MWh | N56: $/kW/yr | Q56: GWh | R56: GWh
C57: =VLOOKUP(D57,NameConvs!$B$57:$E$69,4,FALSE) -> Guinea | D57: =A31 -> GUI | G57: =SUM(G58:G63) -> 94.9 | Q57: =SUM(Q58:Q63) -> 481.8 | R57: =SUM(R58:R63) -> 378.964
B58: =$D57&D58 -> GUIEPHYDEXDABan | C58: Banéah | D58: ="EPHYDEX"&LEFT(E58,2)&LEFT(C58,3) -> EPHYDEXDABan | E58: =VLOOKUP($C58,$C$36:$S$53,E$4,FALSE) -> DAM | F58: =SUMIF($C$36:$C$53,$C58,F$36:F$53) -> 5 | G58: 1 | H58: =RIGHT(VLOOKUP(C58,$C$36:$M$53,H$4,FALSE),4) -> 1989 | I58: =IF(VLOOKUP(C58,$C$36:$M$53,I$4,FALSE)="VS","",VLOOKUP(C58,$C$36:$M$53,I$4,FALSE)) -> 2015 | K58: =IF(VLOOKUP($C58,$C$36:$M$53,K$4,FALSE)="VS",VS!$H$7,VLOOKUP($C58,$C$36:$M$53,K$4,FALSE)) -> 0.05 | L58: =IF(VLOOKUP($C58,$C$36:$M$53,L$4,FALSE)="VS",VS!$H$8,VLOOKUP($C58,$C$36:$M$53,L$4,FALSE)) -> 570 | M58: =IF(VLOOKUP($C58,$C$36:$M$53,M$4,FALSE)="VS",VS!$H$9,VLOOKUP($C58,$C$36:$M$53,M$4,FALSE)) -> 2 | Q58: =IF(VLOOKUP($C58,$C$36:$R$53,Q$4,FALSE)="VS",VS!$H$9,VLOOKUP($C58,$C$36:$R$53,Q$4,FALSE)) -> 6.4 | R58: =IF(VLOOKUP($C58,$C$36:$R$53,R$4,FALSE)="VS",Q58*0.76,VLOOKUP($C58,$C$36:$R$53,R$4,FALSE)) -> 4.864 | S58: =H58&" "&G58 -> 1989 1 | T58: =OFFSET(Q58,0,dy)/G58/8.76 -> 0.5552511416
B59: =$D$57&D59 -> GUIEPHYDEXRODon | C59: Donkéa | D59: EPHYDEXRODon | E59: ROR | F59: =SUMIF($C$36:$C$53,$C59,F$36:F$53) -> 15 | G59: 11 | H59: 1970 | I59: 2015 | K59: =IF(VLOOKUP($C59,$C$36:$M$53,K$4,FALSE)="VS",VS!$H$7,VLOOKUP($C59,$C$36:$M$53,K$4,FALSE)) -> 0.05 | L59: =IF(VLOOKUP($C59,$C$36:$M$53,L$4,FALSE)="VS",VS!$H$8,VLOOKUP($C59,$C$36:$M$53,L$4,FALSE)) -> 570 | M59: =IF(VLOOKUP($C59,$C$36:$M$53,M$4,FALSE)="VS",VS!$H$9,VLOOKUP($C59,$C$36:$M$53,M$4,FALSE)) -> 2 | Q59: =IF(VLOOKUP($C59,$C$36:$R$53,Q$4,FALSE)="VS",VS!$H$9,VLOOKUP($C59,$C$36:$R$53,Q$4,FALSE)) -> 72.4 | R59: 55.5 | S59: 1970 11 | T59: =OFFSET(Q59,0,dy)/G59/8.76 -> 0.5759651308
B60: =$D$57&D60 -> GUIEPHYDEXDAGra | C60: Grandes Chutes | D60: EPHYDEXDAGra | E60: DAM | F60: 27 | G60: 3 | H60: 1954 | I60: 2015 | K60: =IF(VLOOKUP($C60,$C$36:$M$53,K$4,FALSE)="VS",VS!$H$7,VLOOKUP($C60,$C$36:$M$53,K$4,FALSE)) -> 0.05 | L60: =IF(VLOOKUP($C60,$C$36:$M$53,L$4,FALSE)="VS",VS!$H$8,VLOOKUP($C60,$C$36:$M$53,L$4,FALSE)) -> 570 | M60: =IF(VLOOKUP($C60,$C$36:$M$53,M$4,FALSE)="VS",VS!$H$9,VLOOKUP($C60,$C$36:$M$53,M$4,FALSE)) -> 2 | Q60: =IF(VLOOKUP($C60,$C$36:$R$53,Q$4,FALSE)="VS",VS!$H$9,VLOOKUP($C60,$C$36:$R$53,Q$4,FALSE)) -> 127 | R60: 99.2 | S60: 1954 3 | T60: =MIN(0.9,OFFSET(Q60,0,dy)/G60/8.76) -> 0.9
B61: =$D$57&D61 -> GUIEPHYDEXDAGar | C61: Garafiri | D61: EPHYDEXDAGar | E61: DAM | F61: 75 | G61: 75 | H61: 1999 | K61: =IF(VLOOKUP($C61,$C$36:$M$53,K$4,FALSE)="VS",VS!$H$7,VLOOKUP($C61,$C$36:$M$53,K$4,FALSE)) -> 0.05 | L61: =IF(VLOOKUP($C61,$C$36:$M$53,L$4,FALSE)="VS",VS!$H$8,VLOOKUP($C61,$C$36:$M$53,L$4,FALSE)) -> 570 | M61: =IF(VLOOKUP($C61,$C$36:$M$53,M$4,FALSE)="VS",VS!$H$9,VLOOKUP($C61,$C$36:$M$53,M$4,FALSE)) -> 2 | Q61: =IF(VLOOKUP($C61,$C$36:$R$53,Q$4,FALSE)="VS",VS!$H$9,VLOOKUP($C61,$C$36:$R$53,Q$4,FALSE)) -> 258 | R61: 204 | S61: 1999 75 | T61: =OFFSET(Q61,0,dy)/G61/8.76 -> 0.3105022831
B62: =$D$57&D62 -> GUIEPHYDEXDAKin | C62: Kinkon | D62: EPHYDEXDAKin | E62: DAM | F62: 3.4 | G62: 3.4 | H62: 2006 | K62: =IF(VLOOKUP($C62,$C$36:$M$53,K$4,FALSE)="VS",VS!$H$7,VLOOKUP($C62,$C$36:$M$53,K$4,FALSE)) -> 0.05 | L62: =IF(VLOOKUP($C62,$C$36:$M$53,L$4,FALSE)="VS",VS!$H$8,VLOOKUP($C62,$C$36:$M$53,L$4,FALSE)) -> 570 | M62: =IF(VLOOKUP($C62,$C$36:$M$53,M$4,FALSE)="VS",VS!$H$9,VLOOKUP($C62,$C$36:$M$53,M$4,FALSE)) -> 2 | Q62: =IF(VLOOKUP($C62,$C$36:$R$53,Q$4,FALSE)="VS",VS!$H$9,VLOOKUP($C62,$C$36:$R$53,Q$4,FALSE)) -> 11.6 | R62: 10.8 | S62: 2006 3.4 | T62: =OFFSET(Q62,0,dy)/G62/8.76 -> 0.3626107977
B63: =$D$57&D63 -> GUIEPHYDEXROTin | C63: Tinkisso | D63: EPHYDEXROTin | E63: ROR | F63: 1.65 | G63: 1.5 | H63: 2005 | K63: =IF(VLOOKUP($C63,$C$36:$M$53,K$4,FALSE)="VS",VS!$H$7,VLOOKUP($C63,$C$36:$M$53,K$4,FALSE)) -> 0.05 | L63: =IF(VLOOKUP($C63,$C$36:$M$53,L$4,FALSE)="VS",VS!$H$8,VLOOKUP($C63,$C$36:$M$53,L$4,FALSE)) -> 570 | M63: =IF(VLOOKUP($C63,$C$36:$M$53,M$4,FALSE)="VS",VS!$H$9,VLOOKUP($C63,$C$36:$M$53,M$4,FALSE)) -> 2 | Q63: =IF(VLOOKUP($C63,$C$36:$R$53,Q$4,FALSE)="VS",VS!$H$9,VLOOKUP($C63,$C$36:$R$53,Q$4,FALSE)) -> 6.4 | R63: 4.6 | S63: 2005 1.5 | T63: =OFFSET(Q63,0,dy)/G63/8.76 -> 0.3500761035
A70: Sierra Leone
A71: SIE
C73: ﻿ | D73: N° | E73: Type | F73: Capacité | G73: Capacité | H73: miseen | I73: déclasse | K73: Indisp. | L73: Indisp. | M73: O&M | N73: Coûts | O73: investiss | P73: et | Q73: Energie | R73: Energie
C74: Nom de centrale | D74: unité | E74: unité | F74: installée | G74: disponible | H74: service | I74: ment | J74: Statut | K74: fortuite | L74: planifiée | M74: variables | N74: O&M fixes | O74: ement | P74: modèle | Q74: moyenne | R74: garantie
F75: [MW] | G75: [MW] | K75: [%] | L75: [h/an] | M75: [$/MWh] | N75: [$/kW/an] | O75: [$/kW] | Q75: [GWh/an] | R75: [GWh/an]
C76: Goma 1 | D76: 1 | E76: ROR | F76: 1.5 | G76: 1.5 | H76: 1986/2007 | J76: Existante | K76: VS | L76: VS | M76: VS | Q76: 30.8 | R76: 1.4
C77: Goma 1 | D77: 2 | E77: ROR | F77: 1.5 | G77: 1.5 | H77: 1986/2007 | J77: Existante | K77: VS | L77: VS | M77: VS
C78: Goma 1 | D78: 3 | E78: ROR | F78: 1.5 | G78: 1.5 | H78: 1986/2007 | J78: Existante | K78: VS | L78: VS | M78: VS
C79: Goma 1 | D79: 4 | E79: ROR | F79: 1.5 | G79: 1.5 | H79: 1986/2007 | J79: Existante | K79: VS | L79: VS | M79: VS
C80: Bumbuna 1 | D80: 1 | E80: DAM | F80: 25 | G80: 25 | H80: 2010 | J80: Existante | K80: VS | L80: VS | M80: VS | Q80: 290 | R80: 157
C81: Bumbuna 1 | D81: 2 | E81: DAM | F81: 25 | G81: 25 | H81: 2010 | J81: Existante | K81: VS | L81: VS | M81: VS
C83: =OFFSET(C$1,lang,0) -> Name of Station | D83: =OFFSET(D$1,lang,0) -> MESSAGE Name | E83: =OFFSET(E$1,lang,0) -> Hydro Type | F83: =OFFSET(F$1,lang,0) -> Plant Capacity | G83: =OFFSET(G$1,lang,0) -> Available Capacity | I83: =OFFSET(I$1,lang,0) -> Retirement Year | K83: =OFFSET(K$1,lang,0) -> Forced Outage | L83: =OFFSET(L$1,lang,0) -> Planned outage | M83: =OFFSET(M$1,lang,0) -> Variable O&M | N83: =OFFSET(N$1,lang,0) -> Fixed O&M | Q83: =OFFSET(Q$1,lang,0) -> Average year | R83: =OFFSET(R$1,lang,0) -> Dry year | S83: =OFFSET(S$1,lang,0) -> hist string
F84: MW | G84: MW | K84: % | L84: days/yr | M84: $/MWh | N84: $/kW/yr | Q84: GWh | R84: GWh
C85: =VLOOKUP(D85,NameConvs!$B$57:$E$69,4,FALSE) -> Sierra Leone | D85: SIE | G85: =SUM(G86:G87) -> 56 | Q85: =SUM(Q86:Q87) -> 320.8 | R85: =SUM(R86:R87) -> 158.4
B86: =$D85&D86 -> SIEEPHYDEXROGom | C86: Goma 1 | D86: ="EPHYDEX"&LEFT(E86,2)&LEFT(C86,3) -> EPHYDEXROGom | E86: =VLOOKUP($C86,$C$76:$S$81,E$4,FALSE) -> ROR | F86: =SUMIF($C$76:$C$81,$C86,F$76:F$81) -> 6 | G86: =SUMIF($C$76:$C$81,$C86,G$76:G$81) -> 6 | H86: =RIGHT(VLOOKUP(C86,$C$76:$M$81,H$4,FALSE),4) -> 2007 | K86: =IF(VLOOKUP($C86,$C$76:$M$81,K$4,FALSE)="VS",VS!$H$7,VLOOKUP($C86,$C$76:$M$81,K$4,FALSE)) -> 0.05 | L86: =IF(VLOOKUP($C86,$C$76:$M$81,L$4,FALSE)="VS",VS!$H$8,VLOOKUP($C86,$C$76:$M$81,L$4,FALSE)) -> 570 | M86: =IF(VLOOKUP($C86,$C$76:$M$81,M$4,FALSE)="VS",VS!$H$9,VLOOKUP($C86,$C$76:$M$81,M$4,FALSE)) -> 2 | Q86: =IF(VLOOKUP($C86,$C$76:$R$81,Q$4,FALSE)="VS",VS!$H$9,VLOOKUP($C86,$C$76:$R$81,Q$4,FALSE)) -> 30.8 | R86: =IF(VLOOKUP($C86,$C$76:$R$81,R$4,FALSE)="VS",Q86*0.76,VLOOKUP($C86,$C$76:$R$81,R$4,FALSE)) -> 1.4 | S86: =H86&" "&G86 -> 2007 6 | T86: =MIN(0.9,OFFSET(Q86,0,dy)/G86/8.76) -> 0.02663622527
B87: =$D85&D87 -> SIEEPHYDEXDABum | C87: Bumbuna 1 | D87: ="EPHYDEX"&LEFT(E87,2)&LEFT(C87,3) -> EPHYDEXDABum | E87: =VLOOKUP($C87,$C$76:$S$81,E$4,FALSE) -> DAM | F87: =SUMIF($C$76:$C$81,$C87,F$76:F$81) -> 50 | G87: =SUMIF($C$76:$C$81,$C87,G$76:G$81) -> 50 | H87: =RIGHT(VLOOKUP(C87,$C$76:$M$81,H$4,FALSE),4) -> 2010 | K87: =IF(VLOOKUP($C87,$C$76:$M$81,K$4,FALSE)="VS",VS!$H$7,VLOOKUP($C87,$C$76:$M$81,K$4,FALSE)) -> 0.05 | L87: =IF(VLOOKUP($C87,$C$76:$M$81,L$4,FALSE)="VS",VS!$H$8,VLOOKUP($C87,$C$76:$M$81,L$4,FALSE)) -> 570 | M87: =IF(VLOOKUP($C87,$C$76:$M$81,M$4,FALSE)="VS",VS!$H$9,VLOOKUP($C87,$C$76:$M$81,M$4,FALSE)) -> 2 | Q87: =IF(VLOOKUP($C87,$C$76:$R$81,Q$4,FALSE)="VS",VS!$H$9,VLOOKUP($C87,$C$76:$R$81,Q$4,FALSE)) -> 290 | R87: =IF(VLOOKUP($C87,$C$76:$R$81,R$4,FALSE)="VS",Q87*0.76,VLOOKUP($C87,$C$76:$R$81,R$4,FALSE)) -> 157 | S87: =H87&" "&G87 -> 2010 50 | T87: =MIN(0.9,OFFSET(Q87,0,dy)/G87/8.76) -> 0.3584474886
A89: Liberia
A90: LIB
C92: None existing
A95: Mali
A96: MAL
C98: ﻿ | D98: N° | E98: Type d' | F98: Capacité | G98: Capacité | H98: Miseen | I98: déclassem | K98: Indisp. | L98: Indisp. | M98: O&M | N98: Coûts | O98: investisse | Q98: Energie | R98: Energie
C99: Nom de centrale | D99: unité | E99: unité | F99: installée | G99: disponible | H99: service | I99: ent | J99: Statut | K99: fortuite | L99: planifiée | M99: variables | N99: O&M fixes | O99: ment | P99: Fabricant et modèle | Q99: moyenne | R99: garantie
F100: [MW] | G100: [MW] | K100: [%] | L100: [h/an] | M100: [$/MWh] | N100: [$/kW/an] | O100: [$/kW] | Q100: [GWh/an] | R100: [GWh/an]
C101: Selingué | D101: 1 | E101: DAM | F101: 11.55 | G101: 10.87 | H101: 1980 | I101: VS | J101: Existante | K101: VS | L101: VS | M101: VS | P101: VOITH RFA ‐Kaplan | Q101: 224.7 | R101: 197.7
C102: Selingué | D102: 2 | E102: DAM | F102: 11.55 | G102: 10.87 | H102: 1981 | I102: VS | J102: Existante | K102: VS | L102: VS | M102: VS | P102: VOITH RFA ‐Kaplan
C103: Selingué | D103: 3 | E103: DAM | F103: 11.55 | G103: 10.87 | H103: 1980 | I103: VS | J103: Existante | K103: VS | L103: VS | M103: VS | P103: VOITH RFA ‐Kaplan
C104: Selingué | D104: 4 | E104: DAM | F104: 11.55 | G104: 10.87 | H104: 1981 | I104: VS | J104: Existante | K104: VS | L104: VS | M104: VS | P104: VOITH RFA ‐Kaplan
C105: Sotuba | D105: 1 | E105: ROR | F105: 2.85 | G105: 2.85 | H105: 1966 | I105: VS | J105: Existante | K105: VS | L105: VS | M105: VS | P105: RIVA CALZON ‐Kaplan | Q105: 38.6 | R105: 37.4
C106: Sotuba | D106: 2 | E106: ROR | F106: 2.85 | G106: 2.85 | H106: 1966 | I106: VS | J106: Existante | K106: VS | L106: VS | M106: VS | P106: RIVA CALZON ‐Kaplan
C107: Manantali (OMVS) part Mali 52% | E107: DAM | F107: 104 | G107: 104 | H107: 1988 | I107: VS | J107: Existante | K107: VS | L107: VS | M107: VS | Q107: 420 | R107: 260
C109: =OFFSET(C$1,lang,0) -> Name of Station | D109: =OFFSET(D$1,lang,0) -> MESSAGE Name | E109: =OFFSET(E$1,lang,0) -> Hydro Type | F109: =OFFSET(F$1,lang,0) -> Plant Capacity | G109: =OFFSET(G$1,lang,0) -> Available Capacity | I109: =OFFSET(I$1,lang,0) -> Retirement Year | K109: =OFFSET(K$1,lang,0) -> Forced Outage | L109: =OFFSET(L$1,lang,0) -> Planned outage | M109: =OFFSET(M$1,lang,0) -> Variable O&M | N109: =OFFSET(N$1,lang,0) -> Fixed O&M | Q109: =OFFSET(Q$1,lang,0) -> Average year | R109: =OFFSET(R$1,lang,0) -> Dry year | S109: =OFFSET(S$1,lang,0) -> hist string
F110: MW | G110: MW | K110: % | L110: days/yr | M110: $/MWh | N110: $/kW/yr | Q110: GWh | R110: GWh
C111: =VLOOKUP(D111,NameConvs!$B$57:$E$69,4,FALSE) -> Mali | D111: MAL | G111: =SUM(G112:G114) -> 153.18 | Q111: =SUM(Q112:Q114) -> 683.3 | R111: =SUM(R112:R114) -> 495.1
B112: =$D$111&D112 -> MALEPHYDEXDASel | C112: Selingué | D112: ="EPHYDEX"&LEFT(E112,2)&LEFT(C112,3) -> EPHYDEXDASel | E112: =VLOOKUP($C112,$C$101:$S$107,E$4,FALSE) -> DAM | F112: =SUMIF($C$101:$C$107,$C112,F$101:F$107) -> 46.2 | G112: 43.48 | H112: =RIGHT(VLOOKUP(C112,$C$101:$M$107,H$4,FALSE),4) -> 1980 | I112: =IF(VLOOKUP(C112,$C$101:$M$107,I$4,FALSE)="VS","",VLOOKUP(C112,$C$101:$M$107,I$4,FALSE)) ->  | K112: =IF(VLOOKUP($C112,$C$101:$M$107,K$4,FALSE)="VS",VS!$H$7,VLOOKUP($C112,$C$101:$M$107,K$4,FALSE)) -> 0.05 | L112: =IF(VLOOKUP($C112,$C$101:$M$107,L$4,FALSE)="VS",VS!$H$8,VLOOKUP($C112,$C$101:$M$107,L$4,FALSE)) -> 570 | M112: =IF(VLOOKUP($C112,$C$101:$M$107,M$4,FALSE)="VS",VS!$H$9,VLOOKUP($C112,$C$101:$M$107,M$4,FALSE)) -> 2 | Q112: =IF(VLOOKUP($C112,$C$101:$R$107,Q$4,FALSE)="VS",VS!$H$9,VLOOKUP($C112,$C$101:$R$107,Q$4,FALSE)) -> 224.7 | R112: =IF(VLOOKUP($C112,$C$101:$R$107,R$4,FALSE)="VS",Q112*0.76,VLOOKUP($C112,$C$101:$R$107,R$4,FALSE)) -> 197.7 | S112: =H112&" "&G112 -> 1980 43.48 | T112: =MIN(0.9,OFFSET(Q112,0,dy)/G112/8.76) -> 0.5190545803
B113: =$D$111&D113 -> MALEPHYDEXROSot | C113: Sotuba | D113: ="EPHYDEX"&LEFT(E113,2)&LEFT(C113,3) -> EPHYDEXROSot | E113: =VLOOKUP($C113,$C$101:$S$107,E$4,FALSE) -> ROR | F113: 5.7 | G113: 5.7 | H113: =RIGHT(VLOOKUP(C113,$C$101:$M$107,H$4,FALSE),4) -> 1966 | I113: =IF(VLOOKUP(C113,$C$101:$M$107,I$4,FALSE)="VS","",VLOOKUP(C113,$C$101:$M$107,I$4,FALSE)) ->  | K113: =IF(VLOOKUP($C113,$C$101:$M$107,K$4,FALSE)="VS",VS!$H$7,VLOOKUP($C113,$C$101:$M$107,K$4,FALSE)) -> 0.05 | L113: =IF(VLOOKUP($C113,$C$101:$M$107,L$4,FALSE)="VS",VS!$H$8,VLOOKUP($C113,$C$101:$M$107,L$4,FALSE)) -> 570 | M113: =IF(VLOOKUP($C113,$C$101:$M$107,M$4,FALSE)="VS",VS!$H$9,VLOOKUP($C113,$C$101:$M$107,M$4,FALSE)) -> 2 | Q113: =IF(VLOOKUP($C113,$C$101:$R$107,Q$4,FALSE)="VS",VS!$H$9,VLOOKUP($C113,$C$101:$R$107,Q$4,FALSE)) -> 38.6 | R113: =IF(VLOOKUP($C113,$C$101:$R$107,R$4,FALSE)="VS",Q113*0.76,VLOOKUP($C113,$C$101:$R$107,R$4,FALSE)) -> 37.4 | S113: =H113&" "&G113 -> 1966 5.7 | T113: =MIN(0.9,OFFSET(Q113,0,dy)/G113/8.76) -> 0.7490186654
B114: =$D$111&D114 -> MALEPHYDEXDAMan | C114: Manantali (OMVS) part Mali 52% | D114: ="EPHYDEX"&LEFT(E114,2)&LEFT(C114,3) -> EPHYDEXDAMan | E114: =VLOOKUP($C114,$C$101:$S$107,E$4,FALSE) -> DAM | F114: 104 | G114: 104 | H114: =RIGHT(VLOOKUP(C114,$C$101:$M$107,H$4,FALSE),4) -> 1988 | I114: =IF(VLOOKUP(C114,$C$101:$M$107,I$4,FALSE)="VS","",VLOOKUP(C114,$C$101:$M$107,I$4,FALSE)) ->  | K114: =IF(VLOOKUP($C114,$C$101:$M$107,K$4,FALSE)="VS",VS!$H$7,VLOOKUP($C114,$C$101:$M$107,K$4,FALSE)) -> 0.05 | L114: =IF(VLOOKUP($C114,$C$101:$M$107,L$4,FALSE)="VS",VS!$H$8,VLOOKUP($C114,$C$101:$M$107,L$4,FALSE)) -> 570 | M114: =IF(VLOOKUP($C114,$C$101:$M$107,M$4,FALSE)="VS",VS!$H$9,VLOOKUP($C114,$C$101:$M$107,M$4,FALSE)) -> 2 | Q114: =IF(VLOOKUP($C114,$C$101:$R$107,Q$4,FALSE)="VS",VS!$H$9,VLOOKUP($C114,$C$101:$R$107,Q$4,FALSE)) -> 420 | R114: =IF(VLOOKUP($C114,$C$101:$R$107,R$4,FALSE)="VS",Q114*0.76,VLOOKUP($C114,$C$101:$R$107,R$4,FALSE)) -> 260 | S114: =H114&" "&G114 -> 1988 104 | T114: =MIN(0.9,OFFSET(Q114,0,dy)/G114/8.76) -> 0.2853881279
A116: Cote d'Ivoire
A117: CIV
C119: ﻿ | D119: N° | E119: Type | F119: Capacité | G119: disponibl | H119: miseen | I119: déclasse | K119: Indisp. | L119: Indisp. | M119: O&M | N119: Coûts | O119: investissem | P119: Fabricant | Q119: Energie | R119: Energie
C120: Nom de centrale | D120: unité | E120: unité | F120: installée | G120: e | H120: service | I120: ment | J120: Statut | K120: fortuite | L120: planifiée | M120: variables | N120: O&M fixes | O120: ent | P120: et modèle | Q120: moyenne | R120: garantie
F121: [MW] | G121: [MW] | K121: [%] | L121: [h/an] | M121: [$/MWh] | N121: [$/kW/an] | O121: [$/kW] | Q121: [GWh/an] | R121: [GWh/an]
C122: Ayame 1 | D122: 1 | E122: DAM | F122: 9.6 | G122: 9.6 | H122: 1959/1998 | I122: VS | J122: Existante | K122: 0.03 | L122: 632 | M122: VS | P122: Kaplan | Q122: 60 | R122: VS
C123: Ayame 1 | D123: 2 | E123: DAM | F123: 9.6 | G123: 9.6 | H123: 1959/1998 | I123: VS | J123: Existante | K123: 0.03 | L123: 888 | M123: VS | P123: Kaplan
C124: Ayame 2 | D124: 1 | E124: DAM | F124: 15.2 | G124: 15.2 | H124: 1965/1998 | I124: VS | J124: Existante | K124: 0.03 | L124: 1920 | M124: VS | P124: Kaplan | Q124: 90 | R124: VS
C125: Ayame 2 | D125: 2 | E125: DAM | F125: 15.2 | G125: 15.2 | H125: 1965/1998 | I125: VS | J125: Existante | K125: 0.03 | L125: 744 | M125: VS | P125: Kaplan
C126: Buyo | D126: 1 | E126: DAM | F126: 54.9 | G126: 54.9 | H126: 1980 | I126: VS | J126: Existante | K126: 0.03 | L126: 752 | M126: VS | P126: Kaplan | Q126: 900 | R126: VS
C127: Buyo | D127: 2 | E127: DAM | F127: 54.9 | G127: 54.9 | H127: 1980 | I127: VS | J127: Existante | K127: 0.03 | L127: 1112 | M127: VS | P127: Kaplan
C128: Buyo | D128: 3 | E128: DAM | F128: 54.9 | G128: 54.9 | H128: 1980 | I128: VS | J128: Existante | K128: 0.03 | L128: 2904 | M128: VS | P128: Kaplan
C129: Kossou | D129: 1 | E129: DAM | F129: 58.5 | G129: 58.5 | H129: 1972/2004 | I129: VS | J129: Existante | K129: 0.03 | L129: 856 | M129: VS | P129: Francis | Q129: 505 | R129: VS
C130: Kossou | D130: 2 | E130: DAM | F130: 58.5 | G130: 58.5 | H130: 1972/2004 | I130: VS | J130: Existante | K130: 0.03 | L130: 888 | M130: VS | P130: Francis
C131: Kossou | D131: 3 | E131: DAM | F131: 58.5 | G131: 58.5 | H131: 1972/2004 | I131: VS | J131: Existante | K131: 0.03 | L131: 904 | M131: VS | P131: Francis
C132: Taabo | D132: 1 | E132: DAM | F132: 70.2 | G132: 60 | H132: 1979/2004 | I132: VS | J132: Existante | K132: 0.03 | L132: 872 | M132: VS | P132: Francis | Q132: 850 | R132: VS
C133: Taabo | D133: 2 | E133: DAM | F133: 70.2 | G133: 70 | H133: 1979/2004 | I133: VS | J133: Existante | K133: 0.03 | L133: 672 | M133: VS | P133: Francis
C134: Taabo | D134: 3 | E134: DAM | F134: 70.2 | G134: 60 | H134: 1979/2004 | I134: VS | J134: Existante | K134: 0.03 | L134: 608 | M134: VS | P134: Francis
C135: Faye | D135: 1 | E135: ROR | F135: 2.5 | G135: 2.5 | H135: 1984 | I135: VS | J135: Existante | K135: 0.03 | L135: 96 | M135: VS | Q135: 19 | R135: VS
C136: Faye | D136: 2 | E136: ROR | F136: 2.5 | G136: 2.5 | H136: 1984 | I136: VS | J136: Existante | K136: 0.03 | L136: 232 | M136: VS
C138: =OFFSET(C$1,lang,0) -> Name of Station | D138: =OFFSET(D$1,lang,0) -> MESSAGE Name | E138: =OFFSET(E$1,lang,0) -> Hydro Type | F138: =OFFSET(F$1,lang,0) -> Plant Capacity | G138: =OFFSET(G$1,lang,0) -> Available Capacity | I138: =OFFSET(I$1,lang,0) -> Retirement Year | K138: =OFFSET(K$1,lang,0) -> Forced Outage | L138: =OFFSET(L$1,lang,0) -> Planned outage | M138: =OFFSET(M$1,lang,0) -> Variable O&M | N138: =OFFSET(N$1,lang,0) -> Fixed O&M | Q138: =OFFSET(Q$1,lang,0) -> Average year | R138: =OFFSET(R$1,lang,0) -> Dry year | S138: =OFFSET(S$1,lang,0) -> hist string
F139: MW | G139: MW | K139: % | L139: days/yr | M139: $/MWh | N139: $/kW/yr | Q139: GWh | R139: GWh
C140: =VLOOKUP(D140,NameConvs!$B$57:$E$69,4,FALSE) -> Cote d'Ivoire | D140: CIV | G140: =SUM(G141:G146) -> 584.8 | Q140: =SUM(Q141:Q146) -> 2424 | R140: =SUM(R141:R146) -> 1842.24
B141: =$D$140&D141 -> CIVEPHYDEXDAAy1 | C141: Ayame 1 | D141: ="EPHYDEX"&LEFT(E141,2)&LEFT(C141,2)&"1" -> EPHYDEXDAAy1 | E141: =VLOOKUP($C141,$C$122:$S$136,E$4,FALSE) -> DAM | F141: =SUMIF($C$122:$C$136,$C141,F$122:F$136) -> 19.2 | G141: 19.2 | H141: =RIGHT(VLOOKUP(C141,$C$122:$M$136,H$4,FALSE),4) -> 1998 | I141: =IF(VLOOKUP(C141,$C$122:$M$136,I$4,FALSE)="VS","",VLOOKUP(C141,$C$122:$M$136,I$4,FALSE)) ->  | K141: =IF(VLOOKUP($C141,$C$122:$M$136,K$4,FALSE)="VS",VS!$H$7,VLOOKUP($C141,$C$122:$M$136,K$4,FALSE)) -> 0.03 | L141: =IF(VLOOKUP($C141,$C$122:$M$136,L$4,FALSE)="VS",VS!$H$8,VLOOKUP($C141,$C$122:$M$136,L$4,FALSE)) -> 632 | M141: =IF(VLOOKUP($C141,$C$122:$M$136,M$4,FALSE)="VS",VS!$H$9,VLOOKUP($C141,$C$122:$M$136,M$4,FALSE)) -> 2 | Q141: =IF(VLOOKUP($C141,$C$122:$R$136,Q$4,FALSE)="VS",VS!$H$9,VLOOKUP($C141,$C$122:$R$136,Q$4,FALSE)) -> 60 | R141: =IF(VLOOKUP($C141,$C$122:$R$136,R$4,FALSE)="VS",Q141*0.76,VLOOKUP($C141,$C$122:$R$136,R$4,FALSE)) -> 45.6 | S141: =H141&" "&G141 -> 1998 19.2 | T141: =MIN(0.9,OFFSET(Q141,0,dy)/G141/8.76) -> 0.2711187215
B142: CIVEPHYDEXDAAy2 | C142: Ayame 2 | D142: ="EPHYDEX"&LEFT(E142,2)&LEFT(C142,2)&"2" -> EPHYDEXDAAy2 | E142: DAM | F142: 30.4 | G142: 30.4 | H142: 1998 | K142: =IF(VLOOKUP($C142,$C$122:$M$136,K$4,FALSE)="VS",VS!$H$7,VLOOKUP($C142,$C$122:$M$136,K$4,FALSE)) -> 0.03 | L142: =IF(VLOOKUP($C142,$C$122:$M$136,L$4,FALSE)="VS",VS!$H$8,VLOOKUP($C142,$C$122:$M$136,L$4,FALSE)) -> 1920 | M142: =IF(VLOOKUP($C142,$C$122:$M$136,M$4,FALSE)="VS",VS!$H$9,VLOOKUP($C142,$C$122:$M$136,M$4,FALSE)) -> 2 | Q142: =IF(VLOOKUP($C142,$C$122:$R$136,Q$4,FALSE)="VS",VS!$H$9,VLOOKUP($C142,$C$122:$R$136,Q$4,FALSE)) -> 90 | R142: 68.4 | S142: 1998 30.4 | T142: 0.2568493151
B143: CIVEPHYDEXDABuy | C143: Buyo | D143: ="EPHYDEX"&LEFT(E143,2)&LEFT(C143,3) -> EPHYDEXDABuy | E143: DAM | F143: 164.7 | G143: 164.7 | H143: 1980 | K143: =IF(VLOOKUP($C143,$C$122:$M$136,K$4,FALSE)="VS",VS!$H$7,VLOOKUP($C143,$C$122:$M$136,K$4,FALSE)) -> 0.03 | L143: =IF(VLOOKUP($C143,$C$122:$M$136,L$4,FALSE)="VS",VS!$H$8,VLOOKUP($C143,$C$122:$M$136,L$4,FALSE)) -> 752 | M143: =IF(VLOOKUP($C143,$C$122:$M$136,M$4,FALSE)="VS",VS!$H$9,VLOOKUP($C143,$C$122:$M$136,M$4,FALSE)) -> 2 | Q143: =IF(VLOOKUP($C143,$C$122:$R$136,Q$4,FALSE)="VS",VS!$H$9,VLOOKUP($C143,$C$122:$R$136,Q$4,FALSE)) -> 900 | R143: 684 | S143: 1980 164.7 | T143: 0.4740873818
B144: CIVEPHYDEXDAKos | C144: Kossou | D144: ="EPHYDEX"&LEFT(E144,2)&LEFT(C144,3) -> EPHYDEXDAKos | E144: DAM | F144: 175.5 | G144: 175.5 | H144: 2004 | K144: =IF(VLOOKUP($C144,$C$122:$M$136,K$4,FALSE)="VS",VS!$H$7,VLOOKUP($C144,$C$122:$M$136,K$4,FALSE)) -> 0.03 | L144: =IF(VLOOKUP($C144,$C$122:$M$136,L$4,FALSE)="VS",VS!$H$8,VLOOKUP($C144,$C$122:$M$136,L$4,FALSE)) -> 856 | M144: =IF(VLOOKUP($C144,$C$122:$M$136,M$4,FALSE)="VS",VS!$H$9,VLOOKUP($C144,$C$122:$M$136,M$4,FALSE)) -> 2 | Q144: =IF(VLOOKUP($C144,$C$122:$R$136,Q$4,FALSE)="VS",VS!$H$9,VLOOKUP($C144,$C$122:$R$136,Q$4,FALSE)) -> 505 | R144: 383.8 | S144: 2004 175.5 | T144: 0.2496455008
B145: CIVEPHYDEXDATaa | C145: Taabo | D145: ="EPHYDEX"&LEFT(E145,2)&LEFT(C145,3) -> EPHYDEXDATaa | E145: DAM | F145: 210.6 | G145: 190 | H145: 2004 | K145: =IF(VLOOKUP($C145,$C$122:$M$136,K$4,FALSE)="VS",VS!$H$7,VLOOKUP($C145,$C$122:$M$136,K$4,FALSE)) -> 0.03 | L145: =IF(VLOOKUP($C145,$C$122:$M$136,L$4,FALSE)="VS",VS!$H$8,VLOOKUP($C145,$C$122:$M$136,L$4,FALSE)) -> 872 | M145: =IF(VLOOKUP($C145,$C$122:$M$136,M$4,FALSE)="VS",VS!$H$9,VLOOKUP($C145,$C$122:$M$136,M$4,FALSE)) -> 2 | Q145: =IF(VLOOKUP($C145,$C$122:$R$136,Q$4,FALSE)="VS",VS!$H$9,VLOOKUP($C145,$C$122:$R$136,Q$4,FALSE)) -> 850 | R145: 646 | S145: 2004 190 | T145: 0.3881278539
B146: CIVEPHYDEXROFay | C146: Faye | D146: ="EPHYDEX"&LEFT(E146,2)&LEFT(C146,3) -> EPHYDEXROFay | E146: ROR | F146: 5 | G146: 5 | H146: 1984 | K146: =IF(VLOOKUP($C146,$C$122:$M$136,K$4,FALSE)="VS",VS!$H$7,VLOOKUP($C146,$C$122:$M$136,K$4,FALSE)) -> 0.03 | L146: =IF(VLOOKUP($C146,$C$122:$M$136,L$4,FALSE)="VS",VS!$H$8,VLOOKUP($C146,$C$122:$M$136,L$4,FALSE)) -> 96 | M146: =IF(VLOOKUP($C146,$C$122:$M$136,M$4,FALSE)="VS",VS!$H$9,VLOOKUP($C146,$C$122:$M$136,M$4,FALSE)) -> 2 | Q146: =IF(VLOOKUP($C146,$C$122:$R$136,Q$4,FALSE)="VS",VS!$H$9,VLOOKUP($C146,$C$122:$R$136,Q$4,FALSE)) -> 19 | R146: 14.44 | S146: 1984 5 | T146: 0.3296803653
A148: Ghana
A149: GHA
C151: ﻿ | D151: N° | E151: Type d' | F151: Capacité | G151: Capacité | H151: miseen | I151: déclassem | K151: Indisp. | L151: Indisp. | M151: O&M | N151: Coûts O&M | O151: investiss | P151: et | Q151: Energie | R151: Energie
C152: Nom de centrale | D152: unité | E152: unité | F152: installée | G152: disponible | H152: service | I152: ent | J152: Statut | K152: fortuite | L152: planifiée | M152: variables | N152: fixes | O152: ement | P152: modèle | Q152: moyenne | R152: garantie
F153: [MW] | G153: [MW] | K153: [%] | L153: [h/an] | M153: [$/MWh] | N153: [$/kW/an] | O153: [$/kW] | Q153: [GWh/an] | R153: [GWh/an]
C154: Akosombo | D154: 1 | E154: DAM | F154: 170 | G154: 150 | H154: 1965/2005 | I154: VS | J154: Existante | K154: 0.02 | L154: 359 | Q154: 4171 | R154: 3100
C155: Akosombo | D155: 2 | E155: DAM | F155: 170 | G155: 150 | H155: 1965/2005 | I155: VS | J155: Existante | K155: 0.02 | L155: 359
C156: Akosombo | D156: 3 | E156: DAM | F156: 170 | G156: 150 | H156: 1965/2005 | I156: VS | J156: Existante | K156: 0.02 | L156: 359 | M156: 0.1 | N156: 14.3
C157: Akosombo | D157: 4 | E157: DAM | F157: 170 | G157: 150 | H157: 1965/2005 | I157: VS | J157: Existante | K157: 0.02 | L157: 359
C158: Akosombo | D158: 5 | E158: DAM | F158: 170 | G158: 150 | H158: 1972/2005 | I158: VS | J158: Existante | K158: 0.02 | L158: 359
C159: Akosombo | D159: 6 | E159: DAM | F159: 170 | G159: 150 | H159: 1972/2005 | I159: VS | J159: Existante | K159: 0.02 | L159: 359
C160: Kpong | D160: 1 | E160: ROR | F160: 40 | G160: 36 | H160: 1982 | I160: VS | J160: Existante | K160: 0.02 | L160: 359 | M160: 0.1 | N160: 14.3 | Q160: 880 | R160: 622
C161: Kpong | D161: 2 | E161: ROR | F161: 40 | G161: 36 | H161: 1982 | I161: VS | J161: Existante | K161: 0.02 | L161: 359
C162: Kpong | D162: 3 | E162: ROR | F162: 40 | G162: 36 | H162: 1982 | I162: VS | J162: Existante | K162: 0.02 | L162: 359
C163: Kpong | D163: 4 | E163: ROR | F163: 40 | G163: 36 | H163: 1982 | I163: VS | J163: Existante | K163: 0.02 | L163: 359
C165: =OFFSET(C$1,lang,0) -> Name of Station | D165: =OFFSET(D$1,lang,0) -> MESSAGE Name | E165: =OFFSET(E$1,lang,0) -> Hydro Type | F165: =OFFSET(F$1,lang,0) -> Plant Capacity | G165: =OFFSET(G$1,lang,0) -> Available Capacity | I165: =OFFSET(I$1,lang,0) -> Retirement Year | K165: =OFFSET(K$1,lang,0) -> Forced Outage | L165: =OFFSET(L$1,lang,0) -> Planned outage | M165: =OFFSET(M$1,lang,0) -> Variable O&M | N165: =OFFSET(N$1,lang,0) -> Fixed O&M | Q165: =OFFSET(Q$1,lang,0) -> Average year | R165: =OFFSET(R$1,lang,0) -> Dry year | S165: =OFFSET(S$1,lang,0) -> hist string
F166: MW | G166: MW | K166: % | L166: days/yr | M166: $/MWh | N166: $/kW/yr | Q166: GWh | R166: GWh
C167: =VLOOKUP(D167,NameConvs!$B$57:$E$69,4,FALSE) -> Ghana | D167: GHA | G167: =SUM(G168:G169) -> 1044 | Q167: =SUM(Q168:Q169) -> 5051 | R167: =SUM(R168:R169) -> 3722
B168: =$D$167&D168 -> GHAEPHYDEXDAAko | C168: Akosombo | D168: ="EPHYDEX"&LEFT(E168,2)&LEFT(C168,3) -> EPHYDEXDAAko | E168: =VLOOKUP($C168,$C$154:$S$163,E$4,FALSE) -> DAM | F168: =SUMIF($C$154:$C$163,$C168,F$154:F$163) -> 1020 | G168: =SUMIF($C$154:$C$163,$C168,G$154:G$163) -> 900 | H168: =RIGHT(VLOOKUP(C168,$C$154:$M$163,H$4,FALSE),4) -> 2005 | I168: =IF(VLOOKUP(C168,$C$154:$M$163,I$4,FALSE)="VS","",VLOOKUP(C168,$C$154:$M$163,I$4,FALSE)) ->  | K168: =IF(VLOOKUP($C168,$C$154:$M$163,K$4,FALSE)="VS",VS!$H$7,VLOOKUP($C168,$C$154:$M$163,K$4,FALSE)) -> 0.02 | L168: =IF(VLOOKUP($C168,$C$154:$M$163,L$4,FALSE)="VS",VS!$H$8,VLOOKUP($C168,$C$154:$M$163,L$4,FALSE)) -> 359 | M168: =IF(VLOOKUP($C168,$C$154:$M$163,M$4,FALSE)="VS",VS!$H$9,VLOOKUP($C168,$C$154:$M$163,M$4,FALSE)) -> 0 | Q168: =IF(VLOOKUP($C168,$C$154:$R$163,Q$4,FALSE)="VS",VS!$H$9,VLOOKUP($C168,$C$154:$R$163,Q$4,FALSE)) -> 4171 | R168: =IF(VLOOKUP($C168,$C$154:$R$163,R$4,FALSE)="VS",Q168*0.76,VLOOKUP($C168,$C$154:$R$163,R$4,FALSE)) -> 3100 | S168: =H168&" "&G168 -> 2005 900 | T168: =MIN(0.9,OFFSET(Q168,0,dy)/G168/8.76) -> 0.3932014206
B169: =$D$167&D169 -> GHAEPHYDEXROKpo | C169: Kpong | D169: ="EPHYDEX"&LEFT(E169,2)&LEFT(C169,3) -> EPHYDEXROKpo | E169: =VLOOKUP($C169,$C$154:$S$163,E$4,FALSE) -> ROR | F169: =SUMIF($C$154:$C$163,$C169,F$154:F$163) -> 160 | G169: =SUMIF($C$154:$C$163,$C169,G$154:G$163) -> 144 | H169: =RIGHT(VLOOKUP(C169,$C$154:$M$163,H$4,FALSE),4) -> 1982 | I169: =IF(VLOOKUP(C169,$C$154:$M$163,I$4,FALSE)="VS","",VLOOKUP(C169,$C$154:$M$163,I$4,FALSE)) ->  | K169: =IF(VLOOKUP($C169,$C$154:$M$163,K$4,FALSE)="VS",VS!$H$7,VLOOKUP($C169,$C$154:$M$163,K$4,FALSE)) -> 0.02 | L169: =IF(VLOOKUP($C169,$C$154:$M$163,L$4,FALSE)="VS",VS!$H$8,VLOOKUP($C169,$C$154:$M$163,L$4,FALSE)) -> 359 | M169: =IF(VLOOKUP($C169,$C$154:$M$163,M$4,FALSE)="VS",VS!$H$9,VLOOKUP($C169,$C$154:$M$163,M$4,FALSE)) -> 0.1 | Q169: =IF(VLOOKUP($C169,$C$154:$R$163,Q$4,FALSE)="VS",VS!$H$9,VLOOKUP($C169,$C$154:$R$163,Q$4,FALSE)) -> 880 | R169: =IF(VLOOKUP($C169,$C$154:$R$163,R$4,FALSE)="VS",Q169*0.76,VLOOKUP($C169,$C$154:$R$163,R$4,FALSE)) -> 622 | S169: =H169&" "&G169 -> 1982 144 | T169: =MIN(0.9,OFFSET(Q169,0,dy)/G169/8.76) -> 0.4930872653
A171: Togo/Benin
A172: TBN
C174: Nom de | D174: N° | E174: Type d' | F174: Capacité | G174: disponib | H174: miseen | I174: déclasse | K174: Indisp. | L174: Indisp. | M174: O&M | N174: Coûts O&M | O174: investisse | P174: et | Q174: Energie | R174: Energie | T174: ﻿
C175: centrale | D175: unité | E175: unité | F175: installée | G175: le | H175: service | I175: ment | J175: Statut | K175: fortuite | L175: planifiée | M175: variables | N175: fixes | O175: ment | P175: modèle | Q175: moyenne | R175: garantie | T175: Pays
F176: [MW] | G176: [MW] | K176: [%] | L176: [h/an] | M176: [$/MWh] | N176: [$/kW/an] | O176: [$/kW] | Q176: [GWh/an] | R176: [GWh/an]
C177: Nangbeto | D177: 1 | E177: DAM | F177: 32.8 | G177: 32.5 | H177: 1987 | I177: VS | J177: Existante | K177: VS | L177: 504 | Q177: 172.7 | R177: 91 | T177: Togo
C178: Nangbeto | D178: 2 | E178: DAM | F178: 32.8 | G178: 32.5 | H178: 1987 | I178: VS | J178: Existante | K178: VS | L178: 504 | T178: Togo
C180: =OFFSET(C$1,lang,0) -> Name of Station | D180: =OFFSET(D$1,lang,0) -> MESSAGE Name | E180: =OFFSET(E$1,lang,0) -> Hydro Type | F180: =OFFSET(F$1,lang,0) -> Plant Capacity | G180: =OFFSET(G$1,lang,0) -> Available Capacity | I180: =OFFSET(I$1,lang,0) -> Retirement Year | K180: =OFFSET(K$1,lang,0) -> Forced Outage | L180: =OFFSET(L$1,lang,0) -> Planned outage | M180: =OFFSET(M$1,lang,0) -> Variable O&M | N180: =OFFSET(N$1,lang,0) -> Fixed O&M | Q180: =OFFSET(Q$1,lang,0) -> Average year | R180: =OFFSET(R$1,lang,0) -> Dry year | S180: =OFFSET(S$1,lang,0) -> hist string
F181: MW | G181: MW | K181: % | L181: days/yr | M181: $/MWh | N181: $/kW/yr | Q181: GWh | R181: GWh
C182: =VLOOKUP(D182,NameConvs!$B$57:$E$69,4,FALSE) -> Togo/Benin | D182: TBN | G182: =G183 -> 65 | Q182: =Q183 -> 172.7 | R182: =R183 -> 91
B183: =$D182&D183 -> TBNEPHYDEXDANan | C183: Nangbeto | D183: ="EPHYDEX"&LEFT(E183,2)&LEFT(C183,3) -> EPHYDEXDANan | E183: =VLOOKUP($C183,$C$177:$S$178,E$4,FALSE) -> DAM | F183: =SUMIF($C$177:$C$178,$C183,F$177:F$178) -> 65.6 | G183: =SUMIF($C$177:$C$178,$C183,G$177:G$178) -> 65 | H183: =RIGHT(VLOOKUP(C183,$C$177:$M$178,H$4,FALSE),4) -> 1987 | I183: =IF(VLOOKUP(C183,$C$177:$M$178,I$4,FALSE)="VS","",VLOOKUP(C183,$C$177:$M$178,I$4,FALSE)) ->  | K183: =IF(VLOOKUP($C183,$C$177:$M$178,K$4,FALSE)="VS",VS!$H$7,VLOOKUP($C183,$C$177:$M$178,K$4,FALSE)) -> 0.05 | L183: =IF(VLOOKUP($C183,$C$177:$M$178,L$4,FALSE)="VS",VS!$H$8,VLOOKUP($C183,$C$177:$M$178,L$4,FALSE)) -> 504 | M183: =IF(VLOOKUP($C183,$C$177:$M$178,M$4,FALSE)="VS",VS!$H$9,VLOOKUP($C183,$C$177:$M$178,M$4,FALSE)) -> 0 | Q183: =IF(VLOOKUP($C183,$C$177:$R$178,Q$4,FALSE)="VS",VS!$H$9,VLOOKUP($C183,$C$177:$R$178,Q$4,FALSE)) -> 172.7 | R183: =IF(VLOOKUP($C183,$C$177:$R$178,R$4,FALSE)="VS",Q183*0.76,VLOOKUP($C183,$C$177:$R$178,R$4,FALSE)) -> 91 | S183: =H183&" "&G183 -> 1987 65 | T183: =MIN(0.9,OFFSET(Q183,0,dy)/G183/8.76) -> 0.1598173516
A185: Burkina Faso
A186: BUR
C188: ﻿ | D188: N° | E188: Type d' | F188: Capacité | G188: disponib | H188: miseen | I188: déclassem | K188: Indisp. | L188: Indisp. | M188: O&M | N188: Coûts O&M | O188: investissem | P188: Fabricant et | Q188: Energie | R188: Energie
C189: Nom de centrale | D189: unité | E189: unité | F189: installée | G189: le | H189: service | I189: ent | J189: Statut | K189: fortuite | L189: planifiée | M189: variables | N189: fixes | O189: ent | P189: modèle | Q189: moyenne | R189: garantie
F190: [MW] | G190: [MW] | K190: [%] | L190: [h/an] | M190: [$/MWh] | N190: [$/kW/an] | O190: [$/kW] | Q190: [GWh/an] | R190: [GWh/an]
C191: Bagre | D191: 1 | E191: DAM | F191: 7.2 | G191: 5.76 | H191: 1993 | I191: 2018 | J191: Existante | K191: VS | L191: VS | M191: VS | P191: Sulzer Kaplan | Q191: 55.8 | R191: 20.7
C192: Bagre | D192: 2 | E192: DAM | F192: 7.2 | G192: 5.76 | H192: 1993 | I192: 2018 | J192: Existante | K192: VS | L192: VS | M192: VS | P192: Sulzer Kaplan
C193: Kompienga | D193: 1 | E193: DAM | F193: 6.184 | G193: 4.947 | H193: 1988 | I193: 2013 | J193: Existante | K193: VS | L193: VS | M193: VS | P193: VOITH Kaplan | Q193: 30.9 | R193: 16.3
C194: Kompienga | D194: 2 | E194: DAM | F194: 6.184 | G194: 4.947 | H194: 1988 | I194: 2013 | J194: Existante | K194: VS | L194: VS | M194: VS | P194: VOITH Kaplan
C195: Niofila | D195: 1 | E195: ROR | F195: 0.56 | G195: 0.448 | H195: 1996 | I195: 2021 | J195: Existante | K195: VS | L195: VS | M195: VS | P195: Sulzer Francis | Q195: 3.3 | R195: 2.8
C196: Niofila | D196: 2 | E196: ROR | F196: 0.56 | G196: 0.448 | H196: 1996 | I196: 2021 | J196: Existante | K196: VS | L196: VS | M196: VS | P196: Sulzer Francis
C197: Niofila | D197: 3 | E197: ROR | F197: 0.56 | G197: 0.448 | H197: 1996 | I197: 2021 | J197: Existante | K197: VS | L197: VS | M197: VS | P197: Sulzer Francis
C198: Tourni | D198: 1 | E198: ROR | F198: 0.3 | G198: 0.24 | H198: 1996 | I198: 2021 | J198: Existante | K198: VS | L198: VS | M198: VS | P198: Sulzer Francis | Q198: 1 | R198: 0.7
C199: Tourni | D199: 2 | E199: ROR | F199: 0.3 | G199: 0.24 | H199: 1996 | I199: 2021 | J199: Existante | K199: VS | L199: VS | M199: VS | P199: Sulzer Francis
C201: =OFFSET(C$1,lang,0) -> Name of Station | D201: =OFFSET(D$1,lang,0) -> MESSAGE Name | E201: =OFFSET(E$1,lang,0) -> Hydro Type | F201: =OFFSET(F$1,lang,0) -> Plant Capacity | G201: =OFFSET(G$1,lang,0) -> Available Capacity | I201: =OFFSET(I$1,lang,0) -> Retirement Year | K201: =OFFSET(K$1,lang,0) -> Forced Outage | L201: =OFFSET(L$1,lang,0) -> Planned outage | M201: =OFFSET(M$1,lang,0) -> Variable O&M | N201: =OFFSET(N$1,lang,0) -> Fixed O&M | Q201: =OFFSET(Q$1,lang,0) -> Average year | R201: =OFFSET(R$1,lang,0) -> Dry year | S201: =OFFSET(S$1,lang,0) -> hist string
F202: MW | G202: MW | K202: % | L202: days/yr | M202: $/MWh | N202: $/kW/yr | Q202: GWh | R202: GWh
C203: =VLOOKUP(D203,NameConvs!$B$57:$E$69,4,FALSE) -> Burkina | D203: BUR | G203: =SUM(G204:G207) -> 23.238 | Q203: =SUM(Q204:Q207) -> 91 | R203: =SUM(R204:R207) -> 40.5
B204: =$D$203&D204 -> BUREPHYDEXDABag | C204: Bagre | D204: ="EPHYDEX"&LEFT(E204,2)&LEFT(C204,3) -> EPHYDEXDABag | E204: =VLOOKUP($C204,$C$191:$S$199,E$4,FALSE) -> DAM | F204: =SUMIF($C$191:$C$199,$C204,F$191:F$199) -> 14.4 | G204: =SUMIF($C$191:$C$199,$C204,G$191:G$199) -> 11.52 | H204: =RIGHT(VLOOKUP(C204,$C$191:$M$199,H$4,FALSE),4) -> 1993 | I204: =IF(VLOOKUP(C204,$C$191:$M$199,I$4,FALSE)="VS","",VLOOKUP(C204,$C$191:$M$199,I$4,FALSE)) -> 2018 | K204: =IF(VLOOKUP($C204,$C$191:$M$199,K$4,FALSE)="VS",VS!$H$7,VLOOKUP($C204,$C$191:$M$199,K$4,FALSE)) -> 0.05 | L204: =IF(VLOOKUP($C204,$C$191:$M$199,L$4,FALSE)="VS",VS!$H$8,VLOOKUP($C204,$C$191:$M$199,L$4,FALSE)) -> 570 | M204: =IF(VLOOKUP($C204,$C$191:$M$199,M$4,FALSE)="VS",VS!$H$9,VLOOKUP($C204,$C$191:$M$199,M$4,FALSE)) -> 2 | Q204: =IF(VLOOKUP($C204,$C$191:$R$199,Q$4,FALSE)="VS",VS!$H$9,VLOOKUP($C204,$C$191:$R$199,Q$4,FALSE)) -> 55.8 | R204: =IF(VLOOKUP($C204,$C$191:$R$199,R$4,FALSE)="VS",Q204*0.76,VLOOKUP($C204,$C$191:$R$199,R$4,FALSE)) -> 20.7 | S204: =H204&" "&G204 -> 1993 11.52 | T204: =MIN(0.9,OFFSET(Q204,0,dy)/G204/8.76) -> 0.2051227169
B205: =$D$203&D205 -> BUREPHYDEXDAKom | C205: Kompienga | D205: ="EPHYDEX"&LEFT(E205,2)&LEFT(C205,3) -> EPHYDEXDAKom | E205: =VLOOKUP($C205,$C$191:$S$199,E$4,FALSE) -> DAM | F205: =SUMIF($C$191:$C$199,$C205,F$191:F$199) -> 12.368 | G205: 9.894 | H205: =RIGHT(VLOOKUP(C205,$C$191:$M$199,H$4,FALSE),4) -> 1988 | I205: =IF(VLOOKUP(C205,$C$191:$M$199,I$4,FALSE)="VS","",VLOOKUP(C205,$C$191:$M$199,I$4,FALSE)) -> 2013 | K205: =IF(VLOOKUP($C205,$C$191:$M$199,K$4,FALSE)="VS",VS!$H$7,VLOOKUP($C205,$C$191:$M$199,K$4,FALSE)) -> 0.05 | L205: =IF(VLOOKUP($C205,$C$191:$M$199,L$4,FALSE)="VS",VS!$H$8,VLOOKUP($C205,$C$191:$M$199,L$4,FALSE)) -> 570 | M205: =IF(VLOOKUP($C205,$C$191:$M$199,M$4,FALSE)="VS",VS!$H$9,VLOOKUP($C205,$C$191:$M$199,M$4,FALSE)) -> 2 | Q205: =IF(VLOOKUP($C205,$C$191:$R$199,Q$4,FALSE)="VS",VS!$H$9,VLOOKUP($C205,$C$191:$R$199,Q$4,FALSE)) -> 30.9 | R205: =IF(VLOOKUP($C205,$C$191:$R$199,R$4,FALSE)="VS",Q205*0.76,VLOOKUP($C205,$C$191:$R$199,R$4,FALSE)) -> 16.3 | S205: =H205&" "&G205 -> 1988 9.894 | T205: =MIN(0.9,OFFSET(Q205,0,dy)/G205/8.76) -> 0.1880665649
B206: =$D$203&D206 -> BUREPHYDEXRONio | C206: Niofila | D206: ="EPHYDEX"&LEFT(E206,2)&LEFT(C206,3) -> EPHYDEXRONio | E206: =VLOOKUP($C206,$C$191:$S$199,E$4,FALSE) -> ROR | F206: 1.68 | G206: 1.344 | H206: =RIGHT(VLOOKUP(C206,$C$191:$M$199,H$4,FALSE),4) -> 1996 | I206: =IF(VLOOKUP(C206,$C$191:$M$199,I$4,FALSE)="VS","",VLOOKUP(C206,$C$191:$M$199,I$4,FALSE)) -> 2021 | K206: =IF(VLOOKUP($C206,$C$191:$M$199,K$4,FALSE)="VS",VS!$H$7,VLOOKUP($C206,$C$191:$M$199,K$4,FALSE)) -> 0.05 | L206: =IF(VLOOKUP($C206,$C$191:$M$199,L$4,FALSE)="VS",VS!$H$8,VLOOKUP($C206,$C$191:$M$199,L$4,FALSE)) -> 570 | M206: =IF(VLOOKUP($C206,$C$191:$M$199,M$4,FALSE)="VS",VS!$H$9,VLOOKUP($C206,$C$191:$M$199,M$4,FALSE)) -> 2 | Q206: =IF(VLOOKUP($C206,$C$191:$R$199,Q$4,FALSE)="VS",VS!$H$9,VLOOKUP($C206,$C$191:$R$199,Q$4,FALSE)) -> 3.3 | R206: =IF(VLOOKUP($C206,$C$191:$R$199,R$4,FALSE)="VS",Q206*0.76,VLOOKUP($C206,$C$191:$R$199,R$4,FALSE)) -> 2.8 | S206: =H206&" "&G206 -> 1996 1.344 | T206: =MIN(0.9,OFFSET(Q206,0,dy)/G206/8.76) -> 0.2378234399
B207: =$D$203&D207 -> BUREPHYDEXROTou | C207: Tourni | D207: ="EPHYDEX"&LEFT(E207,2)&LEFT(C207,3) -> EPHYDEXROTou | E207: =VLOOKUP($C207,$C$191:$S$199,E$4,FALSE) -> ROR | F207: 0.6 | G207: 0.48 | H207: =RIGHT(VLOOKUP(C207,$C$191:$M$199,H$4,FALSE),4) -> 1996 | I207: =IF(VLOOKUP(C207,$C$191:$M$199,I$4,FALSE)="VS","",VLOOKUP(C207,$C$191:$M$199,I$4,FALSE)) -> 2021 | K207: =IF(VLOOKUP($C207,$C$191:$M$199,K$4,FALSE)="VS",VS!$H$7,VLOOKUP($C207,$C$191:$M$199,K$4,FALSE)) -> 0.05 | L207: =IF(VLOOKUP($C207,$C$191:$M$199,L$4,FALSE)="VS",VS!$H$8,VLOOKUP($C207,$C$191:$M$199,L$4,FALSE)) -> 570 | M207: =IF(VLOOKUP($C207,$C$191:$M$199,M$4,FALSE)="VS",VS!$H$9,VLOOKUP($C207,$C$191:$M$199,M$4,FALSE)) -> 2 | Q207: =IF(VLOOKUP($C207,$C$191:$R$199,Q$4,FALSE)="VS",VS!$H$9,VLOOKUP($C207,$C$191:$R$199,Q$4,FALSE)) -> 1 | R207: =IF(VLOOKUP($C207,$C$191:$R$199,R$4,FALSE)="VS",Q207*0.76,VLOOKUP($C207,$C$191:$R$199,R$4,FALSE)) -> 0.7 | S207: =H207&" "&G207 -> 1996 0.48 | T207: =MIN(0.9,OFFSET(Q207,0,dy)/G207/8.76) -> 0.1664764079
A209: Niger
A210: NIG
C212: none existing
A215: Nigeria
A216: NGA
C218: ﻿ | H218: Annéede | M218: Coûts | O218: Coût spéc.
C219: Nom de | D219: N° | F219: Capacité | G219: Capacité | H219: miseen | I219: Année de | K219: Indisp. | L219: Indisp. | M219: O&M | N219: Coûts O&M | O219: investissem | P219: Fabricant et | Q219: Energie | R219: Energie
C220: centrale | D220: unité | E220: Type d' unité | F220: installée | G220: disponible | H220: service | I220: déclassement | J220: Statut | K220: fortuite | L220: planifiée | M220: variables | N220: fixes | O220: ent | P220: modèle | Q220: moyenne | R220: garantie
F221: [MW] | G221: [MW] | K221: [%] | L221: [h/an] | M221: [$/MWh] | N221: [$/kW/an] | O221: [$/kW] | Q221: [GWh/an] | R221: [GWh/an]
C222: Shiroro | D222: 1 | E222: DAM | F222: 150 | G222: 480.3 | H222: 1989 | I222: VS | J222: Existante | K222: VS | L222: VS | M222: VS | P222: RADE KONCAR | Q222: 2628 | R222: 1945
C223: Shiroro | D223: 2 | E223: DAM | F223: 150 | H223: 1989 | I223: VS | J223: Existante | K223: VS | L223: VS | M223: VS | P223: RADE KONCAR
C224: Shiroro | D224: 3 | E224: DAM | F224: 150 | H224: 1989 | I224: VS | J224: Existante | K224: VS | L224: VS | M224: VS | P224: RADE KONCAR
C225: Shiroro | D225: 4 | E225: DAM | F225: 150 | H225: 1989 | I225: VS | J225: Existante | K225: VS | L225: VS | M225: VS | P225: RADE KONCAR
C226: Jebba | D226: 2G1 | E226: DAM | F226: 101.2 | G226: 458 | H226: 1986 | I226: VS | J226: Existante | K226: VS | L226: VS | M226: VS | P226: HITACHI | Q226: 2373 | R226: 1401
C227: Jebba | D227: 2G2 | E227: DAM | F227: 101.2 | H227: 1986 | I227: VS | J227: Existante | K227: VS | L227: VS | M227: VS | P227: HITACHI
C228: Jebba | D228: 2G3 | E228: DAM | F228: 101.2 | H228: 1986 | I228: VS | J228: Existante | K228: VS | L228: VS | M228: VS | P228: HITACHI
C229: Jebba | D229: 2G4 | E229: DAM | F229: 101.2 | H229: 1986 | I229: VS | J229: Existante | K229: VS | L229: VS | M229: VS | P229: HITACHI
C230: Jebba | D230: 2G5 | E230: DAM | F230: 101.2 | H230: 1986 | I230: VS | J230: Existante | K230: VS | L230: VS | M230: VS | P230: HITACHI
C231: Jebba | D231: 2G6 | E231: DAM | F231: 101.2 | H231: 1986 | I231: VS | J231: Existante | K231: VS | L231: VS | M231: VS | P231: HITACHI
C232: Kainji | D232: 1G5 | E232: DAM | F232: 119.7 | G232: 0 | H232: 1968 | I232: VS | J232: Existante | K232: VS | L232: VS | M232: VS | P232: HITACHI | Q232: 2475 | R232: 1286
C233: Kainji | D233: 1G6 | E233: DAM | F233: 119.7 | G233: 120 | H233: 1968 | I233: VS | J233: Existante | K233: VS | L233: VS | M233: VS | P233: HITACHI
C234: Kainji | D234: 1G7 | E234: DAM | F234: 80.8 | G234: 50 | H234: 1968 | I234: VS | J234: Existante | K234: VS | L234: VS | M234: VS | P234: ASEA
C235: Kainji | D235: 1G8 | E235: DAM | F235: 80.8 | G235: 50 | H235: 1968 | I235: VS | J235: Existante | K235: VS | L235: VS | M235: VS | P235: ASEA
C236: Kainji | D236: 1G9 | E236: DAM | F236: 80.8 | G236: 50 | H236: 1968 | I236: VS | J236: Existante | K236: VS | L236: VS | M236: VS | P236: ASEA
C237: Kainji | D237: 1G10 | E237: DAM | F237: 80.8 | G237: 50 | H237: 1968 | I237: VS | J237: Existante | K237: VS | L237: VS | M237: VS | P237: ASEA
C238: Kainji | D238: 1G11 | E238: DAM | F238: 109.3 | G238: 100 | H238: 1968 | I238: VS | J238: Existante | K238: VS | L238: VS | M238: VS | P238: HITACHI
C239: Kainji | D239: 1G12 | E239: DAM | F239: 109.3 | G239: 0 | H239: 1968 | I239: VS | J239: Existante | K239: VS | L239: VS | M239: VS | P239: HITACHI
C241: =OFFSET(C$1,lang,0) -> Name of Station | D241: =OFFSET(D$1,lang,0) -> MESSAGE Name | E241: =OFFSET(E$1,lang,0) -> Hydro Type | F241: =OFFSET(F$1,lang,0) -> Plant Capacity | G241: =OFFSET(G$1,lang,0) -> Available Capacity | I241: =OFFSET(I$1,lang,0) -> Retirement Year | K241: =OFFSET(K$1,lang,0) -> Forced Outage | L241: =OFFSET(L$1,lang,0) -> Planned outage | M241: =OFFSET(M$1,lang,0) -> Variable O&M | N241: =OFFSET(N$1,lang,0) -> Fixed O&M | Q241: =OFFSET(Q$1,lang,0) -> Average year | R241: =OFFSET(R$1,lang,0) -> Dry year | S241: =OFFSET(S$1,lang,0) -> hist string
F242: MW | G242: MW | K242: % | L242: days/yr | M242: $/MWh | N242: $/kW/yr | Q242: GWh | R242: GWh
... 4 more rows

Sheet tmp
B3: Kandadji
B4: Gambou
B5: Dyodyonga

Sheet MSG_Exist
A1: 1 | B1: =A1+1 -> 2 | C1: =B1+1 -> 3 | D1: 4 | E1: 5 | F1: 6 | G1: 7 | H1: 8 | I1: 9 | J1: 10 | K1: 11 | L1: 12 | M1: 13 | N1: =M1+1 -> 14 | O1: 15 | P1: 16 | Q1: 17 | R1: 18 | S1: 19 | T1: 20 | U1: 21 | V1: 22 | W1: 23 | X1: 24 | Y1: 25 | Z1: 26 | AA1: 27
A2: English | B2: MESSAGE Name | C2: Main Input | D2: Main Output | E2: name | F2: Main Input | G2: Main Output (switch c) | H2: var costs (switch c) | I2: plant factor | J2: operation time | K2: Plant life | L2: Fixed Costs | M2: bdc (up) | N2: hist. cap. (switch hc)
A3: French | B3: Nom MESSAGE | C3: intrant principal | D3: extrant principal | E3: nom | F3: =C3 -> intrant principal | G3: extrant principal (ast: c) | H3: couts var | I3: facteur d'installation | J3: temps de fonctionnement | K3: duree de vie | L3: couts fixes | M3: =M2 -> bdc (up) | N3: cap. Hist. (ast: hc)
A4: Monetary conversion | B4: 1
U5: Fuel data | W5: Data for results
A6: With country prefix | B6: ='WAPP Thermal Existing'!C46 -> Senegal | C6: =OFFSET(C$2,lang,0) -> Main Input | D6: Main Output | E6: name | F6: Main Input | G6: Main Output (switch c) | H6: var costs (switch c) | I6: plant factor | J6: operation time | K6: Plant life | L6: Fixed Costs | M6: bdc (up) | N6: hist. cap. (switch hc) | O6: technology type | W6: Fuel Costs | X6: emission factor | Y6: Investment cost | Z6: life | AA6: annualized cost
B7: =OFFSET(B$2,lang,0) -> MESSAGE Name | E7: alt | H7: US$'00/kWyr | L7: US$'00/kW/yr | M7: MW | N7: MW | R7: Firm Capacity | S7: Renewable? | T7: Loss Factor | U7: Input Fuel | V7: Output Fuel | W7: $/kWyr | X7: ton/kWyr | Y7: $/kW | AA7: $/kw-yr
A8: ='WAPP Thermal Existing'!D47 -> SENEPOHFEXST | B8: =RIGHT(A8,LEN(A8)-3) -> EPOHFEXST | C8: =VLOOKUP(MID(B8,3,3),NameConvs!$C$3:$E$19,lang+2,0)&"/"&OFFSET(NameConvs!$H$16,0,lang) -> HFO/Primary | D8: =OFFSET(NameConvs!$D$11,0,lang)&"/"&OFFSET(NameConvs!$H$17,0,lang) -> Electricity/Secondary | E8: a | F8: 1 | G8: =1/(VLOOKUP($A8,'WAPP Thermal Existing'!$D$1:$W$504,'WAPP Thermal Existing'!$K$4,0)/3.6) -> 0.2790697674 | H8: =VLOOKUP($A8,'WAPP Thermal Existing'!$D$1:$W$504,'WAPP Thermal Existing'!U$4,0)*8.76*$B$4 -> 27.156 | I8: =1-VLOOKUP($A8,'WAPP Thermal Existing'!$D$1:$W$504,'WAPP Thermal Existing'!Q$4,0) -> 0.92 | J8: =1-VLOOKUP($A8,'WAPP Thermal Existing'!$D$1:$W$504,'WAPP Thermal Existing'!S$4,0)/8760 -> 0.9300228311 | K8: =IF(VLOOKUP($A8,'WAPP Thermal Existing'!$D$1:$W$504,'WAPP Thermal Existing'!N$4,0)="",SUMIF(VS!$D$3:$K$3,MID(B8,8,2),VS!$D$6:$K$6),VLOOKUP($A8,'WAPP Thermal Existing'!$D$1:$W$504,'WAPP Thermal Existing'!N$4,0)-LEFT(N8,4)) -> 35 | L8: =VLOOKUP($A8,'WAPP Thermal Existing'!$D$1:$W$504,'WAPP Thermal Existing'!W$4,0)*$B$4 -> 0 | M8: 0 | N8: =VLOOKUP($A8,'WAPP Thermal Existing'!$D$1:$Y$504,'WAPP Thermal Existing'!Y$4,0) -> 1966 20 1976 13 1978 20 | O8: =MID(B8,8,2) -> ST | R8: 1 | S8: =IF(OR(MID(B8,3,1)="W",MID(B8,3,1)="S",MID(B8,3,1)="H",MID(B8,3,1)="B",MID(B8,3,2)="GE"),1,0) -> 0 | T8: =IF(V8="e-t",1,SUMIF(NameConvs!$B$57:$B$69,LEFT(A8,3),NameConvs!$H$57:$H$69)) -> 1 | U8: =VLOOKUP(C8,EnergyForms,2,FALSE) -> h-p | V8: =IF(ISNA(VLOOKUP(D8&"/"&LEFT(A8,3),EnergyForms2,2,FALSE)),VLOOKUP(D8,EnergyForms,2,FALSE),VLOOKUP(D8&"/"&LEFT(A8,3),EnergyForms2,2,FALSE)) -> e-K | W8: =SUMIF(MSG_Fueldata!$A$2:$A$202,LEFT($A8,3)&MID(B8,3,3),MSG_Fueldata!$E$2:$E$202)/$G8 -> 0 | X8: =SUMIF(MSG_Fueldata!$A$2:$A$202,LEFT($A8,3)&MID(B8,3,3),MSG_Fueldata!$F$2:$F$202)/$G8 -> 9.11603268 | Y8: =IF(AND(O8="DI",MID(B8,3,3)="OHF"),VS!$M$11,SUMIF(VS!$D$3:$K$3,O8,VS!$D$11:$K$11)) -> 2488.6656 | Z8: =K8 -> 35 | AA8: =-PMT(disc_rate,Z8,Y8) -> 258.0490022
A9: ='WAPP Thermal Existing'!D48 -> SENEPOHFEXDI | B9: =RIGHT(A9,LEN(A9)-3) -> EPOHFEXDI | C9: =VLOOKUP(MID(B9,3,3),NameConvs!$C$3:$E$19,lang+2,0)&"/"&OFFSET(NameConvs!$H$16,0,lang) -> HFO/Primary | D9: =OFFSET(NameConvs!$D$11,0,lang)&"/"&OFFSET(NameConvs!$H$17,0,lang) -> Electricity/Secondary | E9: b | F9: 1 | G9: =1/(VLOOKUP($A9,'WAPP Thermal Existing'!$D$1:$W$504,'WAPP Thermal Existing'!$K$4,0)/3.6) -> 0.3998871059 | H9: =VLOOKUP($A9,'WAPP Thermal Existing'!$D$1:$W$504,'WAPP Thermal Existing'!U$4,0)*8.76*$B$4 -> 87.6 | I9: =1-VLOOKUP($A9,'WAPP Thermal Existing'!$D$1:$W$504,'WAPP Thermal Existing'!Q$4,0) -> 0.9 | J9: =1-VLOOKUP($A9,'WAPP Thermal Existing'!$D$1:$W$504,'WAPP Thermal Existing'!S$4,0)/8760 -> 0.8904109589 | K9: =IF(VLOOKUP($A9,'WAPP Thermal Existing'!$D$1:$W$504,'WAPP Thermal Existing'!N$4,0)="",SUMIF(VS!$D$3:$K$3,MID(B9,8,2),VS!$D$6:$K$6),VLOOKUP($A9,'WAPP Thermal Existing'!$D$1:$W$504,'WAPP Thermal Existing'!N$4,0)-LEFT(N9,4)) -> 30 | L9: =VLOOKUP($A9,'WAPP Thermal Existing'!$D$1:$W$504,'WAPP Thermal Existing'!W$4,0)*$B$4 -> 0 | M9: 0 | N9: =VLOOKUP($A9,'WAPP Thermal Existing'!$D$1:$Y$504,'WAPP Thermal Existing'!Y$4,0) -> 1989 36 1997 18 2003 30 2006 64 2008 67.5 2009 60 | O9: =MID(B9,8,2) -> DI | R9: =R8 -> 1 | S9: =IF(OR(MID(B9,3,1)="W",MID(B9,3,1)="S",MID(B9,3,1)="H",MID(B9,3,1)="B",MID(B9,3,2)="GE"),1,0) -> 0 | T9: =IF(V9="e-t",1,SUMIF(NameConvs!$B$57:$B$69,LEFT(A9,3),NameConvs!$H$57:$H$69)) -> 1 | U9: =VLOOKUP(C9,EnergyForms,2,FALSE) -> h-p | V9: =IF(ISNA(VLOOKUP(D9&"/"&LEFT(A9,3),EnergyForms2,2,FALSE)),VLOOKUP(D9,EnergyForms,2,FALSE),VLOOKUP(D9&"/"&LEFT(A9,3),EnergyForms2,2,FALSE)) -> e-K | W9: =SUMIF(MSG_Fueldata!$A$2:$A$118,LEFT($A9,3)&MID(B9,3,3),MSG_Fueldata!$E$2:$E$118)/$G9 -> 0 | X9: =SUMIF(MSG_Fueldata!$A$2:$A$202,LEFT($A9,3)&MID(B9,3,3),MSG_Fueldata!$F$2:$F$202)/$G9 -> 6.36181833 | Y9: =IF(AND(O9="DI",MID(B9,3,3)="OHF"),VS!$M$11,SUMIF(VS!$D$3:$K$3,O9,VS!$D$11:$K$11)) -> 1417.5 | Z9: =K9 -> 30 | AA9: =-PMT(disc_rate,Z9,Y9) -> 150.3673344
A10: ='WAPP Thermal Existing'!D49 -> SENEPODSEXGT | B10: =RIGHT(A10,LEN(A10)-3) -> EPODSEXGT | C10: =VLOOKUP(MID(B10,3,3),NameConvs!$C$3:$E$19,lang+2,0)&"/"&OFFSET(NameConvs!$H$16,0,lang) -> Diesel/Primary | D10: =OFFSET(NameConvs!$D$11,0,lang)&"/"&OFFSET(NameConvs!$H$17,0,lang) -> Electricity/Secondary | E10: a | F10: 1 | G10: =1/(VLOOKUP($A10,'WAPP Thermal Existing'!$D$1:$W$504,'WAPP Thermal Existing'!$K$4,0)/3.6) -> 0.2208588957 | H10: =VLOOKUP($A10,'WAPP Thermal Existing'!$D$1:$W$504,'WAPP Thermal Existing'!U$4,0)*8.76*$B$4 -> 21.9 | I10: =1-VLOOKUP($A10,'WAPP Thermal Existing'!$D$1:$W$504,'WAPP Thermal Existing'!Q$4,0) -> 0.92 | J10: =1-VLOOKUP($A10,'WAPP Thermal Existing'!$D$1:$W$504,'WAPP Thermal Existing'!S$4,0)/8760 -> 0.9300228311 | K10: =IF(VLOOKUP($A10,'WAPP Thermal Existing'!$D$1:$W$504,'WAPP Thermal Existing'!N$4,0)="",SUMIF(VS!$D$3:$K$3,MID(B10,8,2),VS!$D$6:$K$6),VLOOKUP($A10,'WAPP Thermal Existing'!$D$1:$W$504,'WAPP Thermal Existing'!N$4,0)-LEFT(N10,4)) -> 25 | L10: =VLOOKUP($A10,'WAPP Thermal Existing'!$D$1:$W$504,'WAPP Thermal Existing'!W$4,0)*$B$4 -> 0 | M10: 0 | N10: =VLOOKUP($A10,'WAPP Thermal Existing'!$D$1:$Y$504,'WAPP Thermal Existing'!Y$4,0) -> 1984 18 1995 18 1999 30 | O10: =MID(B10,8,2) -> GT | R10: =R9 -> 1 | S10: =IF(OR(MID(B10,3,1)="W",MID(B10,3,1)="S",MID(B10,3,1)="H",MID(B10,3,1)="B",MID(B10,3,2)="GE"),1,0) -> 0 | T10: =IF(V10="e-t",1,SUMIF(NameConvs!$B$57:$B$69,LEFT(A10,3),NameConvs!$H$57:$H$69)) -> 1 | U10: =VLOOKUP(C10,EnergyForms,2,FALSE) -> o-p | V10: =IF(ISNA(VLOOKUP(D10&"/"&LEFT(A10,3),EnergyForms2,2,FALSE)),VLOOKUP(D10,EnergyForms,2,FALSE),VLOOKUP(D10&"/"&LEFT(A10,3),EnergyForms2,2,FALSE)) -> e-K | W10: =SUMIF(MSG_Fueldata!$A$2:$A$118,LEFT($A10,3)&MID(B10,3,3),MSG_Fueldata!$E$2:$E$118)/$G10 -> 0 | X10: =SUMIF(MSG_Fueldata!$A$2:$A$202,LEFT($A10,3)&MID(B10,3,3),MSG_Fueldata!$F$2:$F$202)/$G10 -> 10.57630716 | Y10: =IF(AND(O10="DI",MID(B10,3,3)="OHF"),VS!$M$11,SUMIF(VS!$D$3:$K$3,O10,VS!$D$11:$K$11)) -> 633.15 | Z10: =K10 -> 25 | AA10: =-PMT(disc_rate,Z10,Y10) -> 69.75291491
A11: ='WAPP Thermal Existing'!D50 -> SENEPGASEXCC | B11: =RIGHT(A11,LEN(A11)-3) -> EPGASEXCC | C11: =VLOOKUP(MID(B11,3,3),NameConvs!$C$3:$E$19,lang+2,0)&"/"&OFFSET(NameConvs!$H$16,0,lang) -> Gas/Primary | D11: =OFFSET(NameConvs!$D$11,0,lang)&"/"&OFFSET(NameConvs!$H$17,0,lang) -> Electricity/Secondary | E11: a | F11: 1 | G11: =1/(VLOOKUP($A11,'WAPP Thermal Existing'!$D$1:$W$504,'WAPP Thermal Existing'!$K$4,0)/3.6) -> 0.3913043478 | H11: =VLOOKUP($A11,'WAPP Thermal Existing'!$D$1:$W$504,'WAPP Thermal Existing'!U$4,0)*8.76*$B$4 -> 17.52 | I11: =1-VLOOKUP($A11,'WAPP Thermal Existing'!$D$1:$W$504,'WAPP Thermal Existing'!Q$4,0) -> 0.92 | J11: =1-VLOOKUP($A11,'WAPP Thermal Existing'!$D$1:$W$504,'WAPP Thermal Existing'!S$4,0)/8760 -> 0.9300228311 | K11: =IF(VLOOKUP($A11,'WAPP Thermal Existing'!$D$1:$W$504,'WAPP Thermal Existing'!N$4,0)="",SUMIF(VS!$D$3:$K$3,MID(B11,8,2),VS!$D$6:$K$6),VLOOKUP($A11,'WAPP Thermal Existing'!$D$1:$W$504,'WAPP Thermal Existing'!N$4,0)-LEFT(N11,4)) -> 25 | L11: =VLOOKUP($A11,'WAPP Thermal Existing'!$D$1:$W$504,'WAPP Thermal Existing'!W$4,0)*$B$4 -> 0 | M11: 0 | N11: =VLOOKUP($A11,'WAPP Thermal Existing'!$D$1:$Y$504,'WAPP Thermal Existing'!Y$4,0) -> 2000 49 | O11: =MID(B11,8,2) -> CC | R11: =R10 -> 1 | S11: =IF(OR(MID(B11,3,1)="W",MID(B11,3,1)="S",MID(B11,3,1)="H",MID(B11,3,1)="B",MID(B11,3,2)="GE"),1,0) -> 0 | T11: =IF(V11="e-t",1,SUMIF(NameConvs!$B$57:$B$69,LEFT(A11,3),NameConvs!$H$57:$H$69)) -> 1 | U11: =VLOOKUP(C11,EnergyForms,2,FALSE) -> g-p | V11: =IF(ISNA(VLOOKUP(D11&"/"&LEFT(A11,3),EnergyForms2,2,FALSE)),VLOOKUP(D11,EnergyForms,2,FALSE),VLOOKUP(D11&"/"&LEFT(A11,3),EnergyForms2,2,FALSE)) -> e-K | W11: =SUMIF(MSG_Fueldata!$A$2:$A$118,LEFT($A11,3)&MID(B11,3,3),MSG_Fueldata!$E$2:$E$118)/$G11 -> 0 | X11: =SUMIF(MSG_Fueldata!$A$2:$A$202,LEFT($A11,3)&MID(B11,3,3),MSG_Fueldata!$F$2:$F$202)/$G11 -> 4.523333333 | Y11: =IF(AND(O11="DI",MID(B11,3,3)="OHF"),VS!$M$11,SUMIF(VS!$D$3:$K$3,O11,VS!$D$11:$K$11)) -> 956.5696 | Z11: =K11 -> 25 | AA11: =-PMT(disc_rate,Z11,Y11) -> 105.3834287
A12: ='WAPP Hydro Existing'!B18 -> SENEPHYDEXMan | B12: =RIGHT(A12,LEN(A12)-3) -> EPHYDEXMan | C12: ="" ->  | D12: =OFFSET(NameConvs!$D$11,0,lang)&"/"&OFFSET(NameConvs!$H$17,0,lang) -> Electricity/Secondary | E12: a | F12: ="" ->  | G12: 1 | H12: =VLOOKUP($A12,'WAPP Hydro Existing'!$B$4:$S$300,'WAPP Hydro Existing'!$M$3,0)*8.76*$B$4 -> 17.52 | I12: =IF(VLOOKUP($A12,'WAPP Hydro Existing'!$B$4:$S$300,'WAPP Hydro Existing'!$E$3,0)="ROR",VLOOKUP($A12,'WAPP Hydro Existing'!$B$4:$T$300,'WAPP Hydro Existing'!$T$3,0),1-VLOOKUP($A12,'WAPP Hydro Existing'!$B$4:$T$300,'WAPP Hydro Existing'!$K$3,0)) -> 0.95 | J12: =IF(VLOOKUP($A12,'WAPP Hydro Existing'!$B$4:$S$300,'WAPP Hydro Existing'!$E$3,0)="ROR",1,VLOOKUP($A12,'WAPP Hydro Existing'!$B$4:$T$300,'WAPP Hydro Existing'!$T$3,0)/I12) -> 0.2930815177 | K12: =IF(VLOOKUP($A12,'WAPP Hydro Existing'!$B$4:$S$300,'WAPP Hydro Existing'!$I$3,0)="",100,VLOOKUP($A12,'WAPP Hydro Existing'!$B$4:$S$300,'WAPP Hydro Existing'!$I$3,0)-LEFT(N12,4)) -> 100 | L12: =VLOOKUP($A12,'WAPP Hydro Existing'!$B$4:$S$300,'WAPP Hydro Existing'!$N$3,0)*$B$4 -> 0 | M12: 0 | N12: =VLOOKUP($A12,'WAPP Hydro Existing'!$B$4:$S$300,'WAPP Hydro Existing'!$S$3,0) -> 1988 67.65 | O12: =MID(B12,3,3) -> HYD | R12: =R11 -> 1 | S12: =IF(OR(MID(B12,3,1)="W",MID(B12,3,1)="S",MID(B12,3,1)="H",MID(B12,3,1)="B",MID(B12,3,2)="GE"),1,0) -> 1 | T12: =IF(V12="e-t",1,SUMIF(NameConvs!$B$57:$B$69,LEFT(A12,3),NameConvs!$H$57:$H$69)) -> 1 | V12: =V11 -> e-K | Y12: =IF(AND(O12="DI",MID(B12,3,3)="OHF"),VS!$M$11,SUMIF(VS!$D$3:$K$3,O12,VS!$D$11:$K$11)) -> 2400 | Z12: =K12 -> 100 | AA12: =-PMT(disc_rate,Z12,Y12) -> 240.017417
A13: =LEFT(A12,3) -> SEN | B13: 5 | C13: =ROW()-B13-1 -> 7
A15: With country prefix | B15: ='WAPP Thermal Existing'!C75 -> Gambia | C15: =OFFSET(C$2,lang,0) -> Main Input | D15: Main Output | E15: name | F15: Main Input | G15: Main Output (switch c) | H15: var costs (switch c) | I15: plant factor | J15: operation time | K15: Plant life | L15: Fixed Costs | M15: bdc (up) | N15: hist. cap. (switch hc) | O15: technology type | W15: Fuel Costs | X15: emission factor | Y15: Investment cost | Z15: life | AA15: annualized cost
B16: =OFFSET(B$2,lang,0) -> MESSAGE Name | E16: alt | H16: US$'00/kWyr | L16: US$'00/kW/yr | M16: MW | N16: MW | U16: Input Fuel | V16: Output Fuel | W16: $/kWyr | X16: ton/kWyr | Y16: $/kW | AA16: $/kw-yr
A17: ='WAPP Thermal Existing'!D76 -> GAMEPODSEXDI | B17: =RIGHT(A17,LEN(A17)-3) -> EPODSEXDI | C17: =VLOOKUP(MID(B17,3,3),NameConvs!$C$3:$E$19,lang+2,0)&"/"&OFFSET(NameConvs!$H$16,0,lang) -> Diesel/Primary | D17: =OFFSET(NameConvs!$D$11,0,lang)&"/"&OFFSET(NameConvs!$H$17,0,lang) -> Electricity/Secondary | E17: a | F17: 1 | G17: =1/(VLOOKUP($A17,'WAPP Thermal Existing'!$D$1:$W$504,'WAPP Thermal Existing'!$K$4,0)/3.6) -> 0.288 | H17: =VLOOKUP($A17,'WAPP Thermal Existing'!$D$1:$W$504,'WAPP Thermal Existing'!U$4,0)*8.76*$B$4 -> 87.6 | I17: =1-VLOOKUP($A17,'WAPP Thermal Existing'!$D$1:$W$504,'WAPP Thermal Existing'!Q$4,0) -> 0.9 | J17: =1-VLOOKUP($A17,'WAPP Thermal Existing'!$D$1:$W$504,'WAPP Thermal Existing'!S$4,0)/8760 -> 0.8904109589 | K17: =IF(VLOOKUP($A17,'WAPP Thermal Existing'!$D$1:$W$504,'WAPP Thermal Existing'!N$4,0)="",SUMIF(VS!$D$3:$K$3,MID(B17,8,2),VS!$D$6:$K$6),VLOOKUP($A17,'WAPP Thermal Existing'!$D$1:$W$504,'WAPP Thermal Existing'!N$4,0)-LEFT(N17,4)) -> 30 | L17: =VLOOKUP($A17,'WAPP Thermal Existing'!$D$1:$W$504,'WAPP Thermal Existing'!W$4,0)*$B$4 -> 0 | M17: 0 | N17: =VLOOKUP($A17,'WAPP Thermal Existing'!$D$1:$Y$504,'WAPP Thermal Existing'!Y$4,0) -> 1981 2.6 | O17: =MID(B17,8,2) -> DI | R17: 1 | S17: =IF(OR(MID(B17,3,1)="W",MID(B17,3,1)="S",MID(B17,3,1)="H",MID(B17,3,1)="B",MID(B17,3,2)="GE"),1,0) -> 0 | T17: =IF(V17="e-t",1,SUMIF(NameConvs!$B$57:$B$69,LEFT(A17,3),NameConvs!$H$57:$H$69)) -> 1 | U17: =VLOOKUP(C17,EnergyForms,2,FALSE) -> o-p | V17: =IF(ISNA(VLOOKUP(D17&"/"&LEFT(A17,3),EnergyForms2,2,FALSE)),VLOOKUP(D17,EnergyForms,2,FALSE),VLOOKUP(D17&"/"&LEFT(A17,3),EnergyForms2,2,FALSE)) -> e-C | W17: =SUMIF(MSG_Fueldata!$A$2:$A$202,LEFT($A17,3)&MID(B17,3,3),MSG_Fueldata!$E$2:$E$202)/$G17 -> 0 | X17: =SUMIF(MSG_Fueldata!$A$2:$A$202,LEFT($A17,3)&MID(B17,3,3),MSG_Fueldata!$F$2:$F$202)/$G17 -> 8.110665 | Y17: =IF(AND(O17="DI",MID(B17,3,3)="OHF"),VS!$M$11,SUMIF(VS!$D$3:$K$3,O17,VS!$D$11:$K$11)) -> 1123.5 | Z17: =K17 -> 30 | AA17: =-PMT(disc_rate,Z17,Y17) -> 119.1800354
A18: ='WAPP Thermal Existing'!D77 -> GAMEPOHFEXDI | B18: =RIGHT(A18,LEN(A18)-3) -> EPOHFEXDI | C18: =VLOOKUP(MID(B18,3,3),NameConvs!$C$3:$E$19,lang+2,0)&"/"&OFFSET(NameConvs!$H$16,0,lang) -> HFO/Primary | D18: =OFFSET(NameConvs!$D$11,0,lang)&"/"&OFFSET(NameConvs!$H$17,0,lang) -> Electricity/Secondary | E18: a | F18: 1 | G18: =1/(VLOOKUP($A18,'WAPP Thermal Existing'!$D$1:$W$504,'WAPP Thermal Existing'!$K$4,0)/3.6) -> 0.3699309797 | H18: =VLOOKUP($A18,'WAPP Thermal Existing'!$D$1:$W$504,'WAPP Thermal Existing'!U$4,0)*8.76*$B$4 -> 87.6 | I18: =1-VLOOKUP($A18,'WAPP Thermal Existing'!$D$1:$W$504,'WAPP Thermal Existing'!Q$4,0) -> 0.9 | J18: =1-VLOOKUP($A18,'WAPP Thermal Existing'!$D$1:$W$504,'WAPP Thermal Existing'!S$4,0)/8760 -> 0.8904109589 | K18: =IF(VLOOKUP($A18,'WAPP Thermal Existing'!$D$1:$W$504,'WAPP Thermal Existing'!N$4,0)="",SUMIF(VS!$D$3:$K$3,MID(B18,8,2),VS!$D$6:$K$6),VLOOKUP($A18,'WAPP Thermal Existing'!$D$1:$W$504,'WAPP Thermal Existing'!N$4,0)-LEFT(N18,4)) -> 30 | L18: =VLOOKUP($A18,'WAPP Thermal Existing'!$D$1:$W$504,'WAPP Thermal Existing'!W$4,0)*$B$4 -> 0 | M18: 0 | N18: =VLOOKUP($A18,'WAPP Thermal Existing'!$D$1:$Y$504,'WAPP Thermal Existing'!Y$4,0) -> 1997 2.6 2001 16.5 2006 11 2007 11 2009 5.5 | O18: =MID(B18,8,2) -> DI | R18: =R17 -> 1 | S18: =IF(OR(MID(B18,3,1)="W",MID(B18,3,1)="S",MID(B18,3,1)="H",MID(B18,3,1)="B",MID(B18,3,2)="GE"),1,0) -> 0 | T18: =IF(V18="e-t",1,SUMIF(NameConvs!$B$57:$B$69,LEFT(A18,3),NameConvs!$H$57:$H$69)) -> 1 | U18: =VLOOKUP(C18,EnergyForms,2,FALSE) -> h-p | V18: =IF(ISNA(VLOOKUP(D18&"/"&LEFT(A18,3),EnergyForms2,2,FALSE)),VLOOKUP(D18,EnergyForms,2,FALSE),VLOOKUP(D18&"/"&LEFT(A18,3),EnergyForms2,2,FALSE)) -> e-C | W18: =SUMIF(MSG_Fueldata!$A$2:$A$202,LEFT($A18,3)&MID(B18,3,3),MSG_Fueldata!$E$2:$E$202)/$G18 -> 0 | X18: =SUMIF(MSG_Fueldata!$A$2:$A$202,LEFT($A18,3)&MID(B18,3,3),MSG_Fueldata!$F$2:$F$202)/$G18 -> 6.876983165 | Y18: =IF(AND(O18="DI",MID(B18,3,3)="OHF"),VS!$M$11,SUMIF(VS!$D$3:$K$3,O18,VS!$D$11:$K$11)) -> 1417.5 | Z18: =K18 -> 30 | AA18: =-PMT(disc_rate,Z18,Y18) -> 150.3673344
A19: =LEFT(A18,3) -> GAM | B19: 2 | C19: =ROW()-B19-1 -> 16
A21: With country prefix | B21: ='WAPP Thermal Existing'!C95 -> Guinea-Bissau | C21: =OFFSET(C$2,lang,0) -> Main Input | D21: Main Output | E21: name | F21: Main Input | G21: Main Output (switch c) | H21: var costs (switch c) | I21: plant factor | J21: operation time | K21: Plant life | L21: Fixed Costs | M21: bdc (up) | N21: hist. cap. (switch hc) | O21: technology type | W21: Fuel Costs | X21: emission factor | Y21: Investment cost | Z21: life | AA21: annualized cost
B22: =OFFSET(B$2,lang,0) -> MESSAGE Name | E22: alt | H22: US$'00/kWyr | L22: US$'00/kW/yr | M22: MW | N22: MW | U22: Input Fuel | V22: Output Fuel | W22: $/kWyr | X22: ton/kWyr | Y22: $/kW | AA22: $/kw-yr
A23: ='WAPP Thermal Existing'!D96 -> GBIEPODSEXDI | B23: =RIGHT(A23,LEN(A23)-3) -> EPODSEXDI | C23: =VLOOKUP(MID(B23,3,3),NameConvs!$C$3:$E$19,lang+2,0)&"/"&OFFSET(NameConvs!$H$16,0,lang) -> Diesel/Primary | D23: =OFFSET(NameConvs!$D$11,0,lang)&"/"&OFFSET(NameConvs!$H$17,0,lang) -> Electricity/Secondary | E23: a | F23: 1 | G23: =1/(VLOOKUP($A23,'WAPP Thermal Existing'!$D$1:$W$504,'WAPP Thermal Existing'!$K$4,0)/3.6) -> 0.3636363636 | H23: =VLOOKUP($A23,'WAPP Thermal Existing'!$D$1:$W$504,'WAPP Thermal Existing'!U$4,0)*8.76*$B$4 -> 87.6 | I23: =1-VLOOKUP($A23,'WAPP Thermal Existing'!$D$1:$W$504,'WAPP Thermal Existing'!Q$4,0) -> 0.75 | J23: =1-VLOOKUP($A23,'WAPP Thermal Existing'!$D$1:$W$504,'WAPP Thermal Existing'!S$4,0)/8760 -> 0.8904109589 | K23: =IF(VLOOKUP($A23,'WAPP Thermal Existing'!$D$1:$W$504,'WAPP Thermal Existing'!N$4,0)="",SUMIF(VS!$D$3:$K$3,MID(B23,8,2),VS!$D$6:$K$6),VLOOKUP($A23,'WAPP Thermal Existing'!$D$1:$W$504,'WAPP Thermal Existing'!N$4,0)-LEFT(N23,4)) -> 30 | L23: =VLOOKUP($A23,'WAPP Thermal Existing'!$D$1:$W$504,'WAPP Thermal Existing'!W$4,0)*$B$4 -> 0 | M23: 0 | N23: =VLOOKUP($A23,'WAPP Thermal Existing'!$D$1:$Y$504,'WAPP Thermal Existing'!Y$4,0) -> 2005 1.7 2008 1.972 | O23: =MID(B23,8,2) -> DI | R23: 1 | S23: =IF(OR(MID(B23,3,1)="W",MID(B23,3,1)="S",MID(B23,3,1)="H",MID(B23,3,1)="B",MID(B23,3,2)="GE"),1,0) -> 0 | T23: =IF(V23="e-t",1,SUMIF(NameConvs!$B$57:$B$69,LEFT(A23,3),NameConvs!$H$57:$H$69)) -> 1 | U23: =VLOOKUP(C23,EnergyForms,2,FALSE) -> o-p | V23: =IF(ISNA(VLOOKUP(D23&"/"&LEFT(A23,3),EnergyForms2,2,FALSE)),VLOOKUP(D23,EnergyForms,2,FALSE),VLOOKUP(D23&"/"&LEFT(A23,3),EnergyForms2,2,FALSE)) -> e-F | W23: =SUMIF(MSG_Fueldata!$A$2:$A$202,LEFT($A23,3)&MID(B23,3,3),MSG_Fueldata!$E$2:$E$202)/$G23 -> 0 | X23: =SUMIF(MSG_Fueldata!$A$2:$A$202,LEFT($A23,3)&MID(B23,3,3),MSG_Fueldata!$F$2:$F$202)/$G23 -> 6.42364668 | Y23: =IF(AND(O23="DI",MID(B23,3,3)="OHF"),VS!$M$11,SUMIF(VS!$D$3:$K$3,O23,VS!$D$11:$K$11)) -> 1123.5 | Z23: =K23 -> 30 | AA23: =-PMT(disc_rate,Z23,Y23) -> 119.1800354
A24: =LEFT(A23,3) -> GBI | B24: 1 | C24: =ROW()-B24-1 -> 22
A26: With country prefix | B26: ='WAPP Thermal Existing'!C115 -> Guinea | C26: =OFFSET(C$2,lang,0) -> Main Input | D26: Main Output | E26: name | F26: Main Input | G26: Main Output (switch c) | H26: var costs (switch c) | I26: plant factor | J26: operation time | K26: Plant life | L26: Fixed Costs | M26: bdc (up) | N26: hist. cap. (switch hc) | O26: technology type | W26: Fuel Costs | X26: emission factor | Y26: Investment cost | Z26: life | AA26: annualized cost
B27: =OFFSET(B$2,lang,0) -> MESSAGE Name | E27: alt | H27: US$'00/kWyr | L27: US$'00/kW/yr | M27: MW | N27: MW | U27: Input Fuel | V27: Output Fuel | W27: $/kWyr | X27: ton/kWyr | Y27: $/kW | AA27: $/kw-yr
A28: ='WAPP Thermal Existing'!D116 -> GUIEPOHFEXDI | B28: =RIGHT(A28,LEN(A28)-3) -> EPOHFEXDI | C28: =VLOOKUP(MID(B28,3,3),NameConvs!$C$3:$E$19,lang+2,0)&"/"&OFFSET(NameConvs!$H$16,0,lang) -> HFO/Primary | D28: =OFFSET(NameConvs!$D$11,0,lang)&"/"&OFFSET(NameConvs!$H$17,0,lang) -> Electricity/Secondary | E28: a | F28: 1 | G28: =1/(VLOOKUP($A28,'WAPP Thermal Existing'!$D$1:$W$504,'WAPP Thermal Existing'!$K$4,0)/3.6) -> 0.404494382 | H28: =VLOOKUP($A28,'WAPP Thermal Existing'!$D$1:$W$504,'WAPP Thermal Existing'!U$4,0)*8.76*$B$4 -> 87.6 | I28: =1-VLOOKUP($A28,'WAPP Thermal Existing'!$D$1:$W$504,'WAPP Thermal Existing'!Q$4,0) -> 0.9 | J28: =1-VLOOKUP($A28,'WAPP Thermal Existing'!$D$1:$W$504,'WAPP Thermal Existing'!S$4,0)/8760 -> 0.8904109589 | K28: =IF(VLOOKUP($A28,'WAPP Thermal Existing'!$D$1:$W$504,'WAPP Thermal Existing'!N$4,0)="",SUMIF(VS!$D$3:$K$3,MID(B28,8,2),VS!$D$6:$K$6),VLOOKUP($A28,'WAPP Thermal Existing'!$D$1:$W$504,'WAPP Thermal Existing'!N$4,0)-LEFT(N28,4)) -> 8 | L28: =VLOOKUP($A28,'WAPP Thermal Existing'!$D$1:$W$504,'WAPP Thermal Existing'!W$4,0)*$B$4 -> 0 | M28: 0 | N28: =VLOOKUP($A28,'WAPP Thermal Existing'!$D$1:$Y$504,'WAPP Thermal Existing'!Y$4,0) -> 2004 19 | O28: =MID(B28,8,2) -> DI | R28: 1 | S28: =IF(OR(MID(B28,3,1)="W",MID(B28,3,1)="S",MID(B28,3,1)="H",MID(B28,3,1)="B",MID(B28,3,2)="GE"),1,0) -> 0 | T28: =IF(V28="e-t",1,SUMIF(NameConvs!$B$57:$B$69,LEFT(A28,3),NameConvs!$H$57:$H$69)) -> 1 | U28: =VLOOKUP(C28,EnergyForms,2,FALSE) -> h-p | V28: =IF(ISNA(VLOOKUP(D28&"/"&LEFT(A28,3),EnergyForms2,2,FALSE)),VLOOKUP(D28,EnergyForms,2,FALSE),VLOOKUP(D28&"/"&LEFT(A28,3),EnergyForms2,2,FALSE)) -> e-E | W28: =SUMIF(MSG_Fueldata!$A$2:$A$202,LEFT($A28,3)&MID(B28,3,3),MSG_Fueldata!$E$2:$E$202)/$G28 -> 0 | X28: =SUMIF(MSG_Fueldata!$A$2:$A$202,LEFT($A28,3)&MID(B28,3,3),MSG_Fueldata!$F$2:$F$202)/$G28 -> 6.28935588 | Y28: =IF(AND(O28="DI",MID(B28,3,3)="OHF"),VS!$M$11,SUMIF(VS!$D$3:$K$3,O28,VS!$D$11:$K$11)) -> 1417.5 | Z28: =K28 -> 8 | AA28: =-PMT(disc_rate,Z28,Y28) -> 265.7018949
A29: ='WAPP Hydro Existing'!B58 -> GUIEPHYDEXDABan | B29: EPHYDEXDABan | C29: ="" ->  | D29: =OFFSET(NameConvs!$D$11,0,lang)&"/"&OFFSET(NameConvs!$H$17,0,lang) -> Electricity/Secondary | E29: a | F29: ="" ->  | G29: 1 | H29: 0 | I29: =IF(VLOOKUP($A29,'WAPP Hydro Existing'!$B$4:$S$300,'WAPP Hydro Existing'!$E$3,0)="ROR",VLOOKUP($A29,'WAPP Hydro Existing'!$B$4:$T$300,'WAPP Hydro Existing'!$T$3,0),1-VLOOKUP($A29,'WAPP Hydro Existing'!$B$4:$T$300,'WAPP Hydro Existing'!$K$3,0)) -> 0.95 | J29: =IF(VLOOKUP($A29,'WAPP Hydro Existing'!$B$4:$S$300,'WAPP Hydro Existing'!$E$3,0)="ROR",1,VLOOKUP($A29,'WAPP Hydro Existing'!$B$4:$T$300,'WAPP Hydro Existing'!$T$3,0)/I29) -> 0.5844748858 | K29: =IF(VLOOKUP($A29,'WAPP Hydro Existing'!$B$4:$S$300,'WAPP Hydro Existing'!$I$3,0)="",100,VLOOKUP($A29,'WAPP Hydro Existing'!$B$4:$S$300,'WAPP Hydro Existing'!$I$3,0)-LEFT(N29,4)) -> 26 | L29: =VLOOKUP($A29,'WAPP Hydro Existing'!$B$4:$S$300,'WAPP Hydro Existing'!$N$3,0)*$B$4 -> 0 | M29: 0 | N29: =VLOOKUP($A29,'WAPP Hydro Existing'!$B$4:$S$300,'WAPP Hydro Existing'!$S$3,0) -> 1989 1 | O29: =MID(B29,3,3) -> HYD | R29: =R28 -> 1 | S29: 1 | T29: =IF(V29="e-t",1,SUMIF(NameConvs!$B$57:$B$69,LEFT(A29,3),NameConvs!$H$57:$H$69)) -> 1 | V29: =V28 -> e-E | Y29: =IF(AND(O29="DI",MID(B29,3,3)="OHF"),VS!$M$11,SUMIF(VS!$D$3:$K$3,O29,VS!$D$11:$K$11)) -> 2400 | Z29: =K29 -> 26 | AA29: 261.9816926
A30: ='WAPP Hydro Existing'!B59 -> GUIEPHYDEXRODon | B30: EPHYDEXRODon | C30: ="" ->  | D30: =OFFSET(NameConvs!$D$11,0,lang)&"/"&OFFSET(NameConvs!$H$17,0,lang) -> Electricity/Secondary | E30: b | F30: ="" ->  | G30: 1 | H30: 0 | I30: =IF(VLOOKUP($A30,'WAPP Hydro Existing'!$B$4:$S$300,'WAPP Hydro Existing'!$E$3,0)="ROR",VLOOKUP($A30,'WAPP Hydro Existing'!$B$4:$T$300,'WAPP Hydro Existing'!$T$3,0),1-VLOOKUP($A30,'WAPP Hydro Existing'!$B$4:$T$300,'WAPP Hydro Existing'!$K$3,0)) -> 0.95 | J30: =IF(VLOOKUP($A30,'WAPP Hydro Existing'!$B$4:$S$300,'WAPP Hydro Existing'!$E$3,0)="ROR",1,VLOOKUP($A30,'WAPP Hydro Existing'!$B$4:$T$300,'WAPP Hydro Existing'!$T$3,0)/I30) -> 0.606279085 | K30: =IF(VLOOKUP($A30,'WAPP Hydro Existing'!$B$4:$S$300,'WAPP Hydro Existing'!$I$3,0)="",100,VLOOKUP($A30,'WAPP Hydro Existing'!$B$4:$S$300,'WAPP Hydro Existing'!$I$3,0)-LEFT(N30,4)) -> 45 | L30: =VLOOKUP($A30,'WAPP Hydro Existing'!$B$4:$S$300,'WAPP Hydro Existing'!$N$3,0)*$B$4 -> 0 | M30: 0 | N30: =VLOOKUP($A30,'WAPP Hydro Existing'!$B$4:$S$300,'WAPP Hydro Existing'!$S$3,0) -> 1970 11 | O30: HYD | R30: 1 | S30: 1 | T30: =IF(V30="e-t",1,SUMIF(NameConvs!$B$57:$B$69,LEFT(A30,3),NameConvs!$H$57:$H$69)) -> 1 | V30: e-E | Y30: =IF(AND(O30="DI",MID(B30,3,3)="OHF"),VS!$M$11,SUMIF(VS!$D$3:$K$3,O30,VS!$D$11:$K$11)) -> 2400 | Z30: 45 | AA30: 243.3384113
A31: ='WAPP Hydro Existing'!B60 -> GUIEPHYDEXDAGra | B31: EPHYDEXDAGra | C31: ="" ->  | D31: =OFFSET(NameConvs!$D$11,0,lang)&"/"&OFFSET(NameConvs!$H$17,0,lang) -> Electricity/Secondary | E31: c | F31: ="" ->  | G31: 1 | H31: 0 | I31: =IF(VLOOKUP($A31,'WAPP Hydro Existing'!$B$4:$S$300,'WAPP Hydro Existing'!$E$3,0)="ROR",VLOOKUP($A31,'WAPP Hydro Existing'!$B$4:$T$300,'WAPP Hydro Existing'!$T$3,0),1-VLOOKUP($A31,'WAPP Hydro Existing'!$B$4:$T$300,'WAPP Hydro Existing'!$K$3,0)) -> 0.95 | J31: =IF(VLOOKUP($A31,'WAPP Hydro Existing'!$B$4:$S$300,'WAPP Hydro Existing'!$E$3,0)="ROR",1,VLOOKUP($A31,'WAPP Hydro Existing'!$B$4:$T$300,'WAPP Hydro Existing'!$T$3,0)/I31) -> 0.9473684211 | K31: =IF(VLOOKUP($A31,'WAPP Hydro Existing'!$B$4:$S$300,'WAPP Hydro Existing'!$I$3,0)="",100,VLOOKUP($A31,'WAPP Hydro Existing'!$B$4:$S$300,'WAPP Hydro Existing'!$I$3,0)-LEFT(N31,4)) -> 61 | L31: =VLOOKUP($A31,'WAPP Hydro Existing'!$B$4:$S$300,'WAPP Hydro Existing'!$N$3,0)*$B$4 -> 0 | M31: 0 | N31: =VLOOKUP($A31,'WAPP Hydro Existing'!$B$4:$S$300,'WAPP Hydro Existing'!$S$3,0) -> 1954 3 | O31: HYD | R31: 1 | S31: 1 | T31: =IF(V31="e-t",1,SUMIF(NameConvs!$B$57:$B$69,LEFT(A31,3),NameConvs!$H$57:$H$69)) -> 1 | V31: e-E | Y31: =IF(AND(O31="DI",MID(B31,3,3)="OHF"),VS!$M$11,SUMIF(VS!$D$3:$K$3,O31,VS!$D$11:$K$11)) -> 2400 | Z31: 61 | AA31: 240.7187139
A32: ='WAPP Hydro Existing'!B61 -> GUIEPHYDEXDAGar | B32: EPHYDEXDAGar | C32: ="" ->  | D32: =OFFSET(NameConvs!$D$11,0,lang)&"/"&OFFSET(NameConvs!$H$17,0,lang) -> Electricity/Secondary | E32: d | F32: ="" ->  | G32: 1 | H32: 0 | I32: =IF(VLOOKUP($A32,'WAPP Hydro Existing'!$B$4:$S$300,'WAPP Hydro Existing'!$E$3,0)="ROR",VLOOKUP($A32,'WAPP Hydro Existing'!$B$4:$T$300,'WAPP Hydro Existing'!$T$3,0),1-VLOOKUP($A32,'WAPP Hydro Existing'!$B$4:$T$300,'WAPP Hydro Existing'!$K$3,0)) -> 0.95 | J32: =IF(VLOOKUP($A32,'WAPP Hydro Existing'!$B$4:$S$300,'WAPP Hydro Existing'!$E$3,0)="ROR",1,VLOOKUP($A32,'WAPP Hydro Existing'!$B$4:$T$300,'WAPP Hydro Existing'!$T$3,0)/I32) -> 0.3268445085 | K32: =IF(VLOOKUP($A32,'WAPP Hydro Existing'!$B$4:$S$300,'WAPP Hydro Existing'!$I$3,0)="",100,VLOOKUP($A32,'WAPP Hydro Existing'!$B$4:$S$300,'WAPP Hydro Existing'!$I$3,0)-LEFT(N32,4)) -> 100 | L32: =VLOOKUP($A32,'WAPP Hydro Existing'!$B$4:$S$300,'WAPP Hydro Existing'!$N$3,0)*$B$4 -> 0 | M32: 0 | N32: =VLOOKUP($A32,'WAPP Hydro Existing'!$B$4:$S$300,'WAPP Hydro Existing'!$S$3,0) -> 1999 75 | O32: HYD | R32: 1 | S32: 1 | T32: =IF(V32="e-t",1,SUMIF(NameConvs!$B$57:$B$69,LEFT(A32,3),NameConvs!$H$57:$H$69)) -> 1 | V32: e-E | Y32: =IF(AND(O32="DI",MID(B32,3,3)="OHF"),VS!$M$11,SUMIF(VS!$D$3:$K$3,O32,VS!$D$11:$K$11)) -> 2400 | Z32: 100 | AA32: 240.017417
A33: ='WAPP Hydro Existing'!B62 -> GUIEPHYDEXDAKin | B33: EPHYDEXDAKin | C33: ="" ->  | D33: =OFFSET(NameConvs!$D$11,0,lang)&"/"&OFFSET(NameConvs!$H$17,0,lang) -> Electricity/Secondary | E33: e | F33: ="" ->  | G33: 1 | H33: 0 | I33: =IF(VLOOKUP($A33,'WAPP Hydro Existing'!$B$4:$S$300,'WAPP Hydro Existing'!$E$3,0)="ROR",VLOOKUP($A33,'WAPP Hydro Existing'!$B$4:$T$300,'WAPP Hydro Existing'!$T$3,0),1-VLOOKUP($A33,'WAPP Hydro Existing'!$B$4:$T$300,'WAPP Hydro Existing'!$K$3,0)) -> 0.95 | J33: =IF(VLOOKUP($A33,'WAPP Hydro Existing'!$B$4:$S$300,'WAPP Hydro Existing'!$E$3,0)="ROR",1,VLOOKUP($A33,'WAPP Hydro Existing'!$B$4:$T$300,'WAPP Hydro Existing'!$T$3,0)/I33) -> 0.3816955766 | K33: =IF(VLOOKUP($A33,'WAPP Hydro Existing'!$B$4:$S$300,'WAPP Hydro Existing'!$I$3,0)="",100,VLOOKUP($A33,'WAPP Hydro Existing'!$B$4:$S$300,'WAPP Hydro Existing'!$I$3,0)-LEFT(N33,4)) -> 100 | L33: =VLOOKUP($A33,'WAPP Hydro Existing'!$B$4:$S$300,'WAPP Hydro Existing'!$N$3,0)*$B$4 -> 0 | M33: 0 | N33: =VLOOKUP($A33,'WAPP Hydro Existing'!$B$4:$S$300,'WAPP Hydro Existing'!$S$3,0) -> 2006 3.4 | O33: HYD | R33: 1 | S33: 1 | T33: =IF(V33="e-t",1,SUMIF(NameConvs!$B$57:$B$69,LEFT(A33,3),NameConvs!$H$57:$H$69)) -> 1 | V33: e-E | Y33: =IF(AND(O33="DI",MID(B33,3,3)="OHF"),VS!$M$11,SUMIF(VS!$D$3:$K$3,O33,VS!$D$11:$K$11)) -> 2400 | Z33: 100 | AA33: 240.017417
A34: ='WAPP Hydro Existing'!B63 -> GUIEPHYDEXROTin | B34: EPHYDEXROTin | C34: ="" ->  | D34: =OFFSET(NameConvs!$D$11,0,lang)&"/"&OFFSET(NameConvs!$H$17,0,lang) -> Electricity/Secondary | E34: f | F34: ="" ->  | G34: 1 | H34: 0 | I34: =IF(VLOOKUP($A34,'WAPP Hydro Existing'!$B$4:$S$300,'WAPP Hydro Existing'!$E$3,0)="ROR",VLOOKUP($A34,'WAPP Hydro Existing'!$B$4:$T$300,'WAPP Hydro Existing'!$T$3,0),1-VLOOKUP($A34,'WAPP Hydro Existing'!$B$4:$T$300,'WAPP Hydro Existing'!$K$3,0)) -> 0.95 | J34: =IF(VLOOKUP($A34,'WAPP Hydro Existing'!$B$4:$S$300,'WAPP Hydro Existing'!$E$3,0)="ROR",1,VLOOKUP($A34,'WAPP Hydro Existing'!$B$4:$T$300,'WAPP Hydro Existing'!$T$3,0)/I34) -> 0.3685011616 | K34: =IF(VLOOKUP($A34,'WAPP Hydro Existing'!$B$4:$S$300,'WAPP Hydro Existing'!$I$3,0)="",100,VLOOKUP($A34,'WAPP Hydro Existing'!$B$4:$S$300,'WAPP Hydro Existing'!$I$3,0)-LEFT(N34,4)) -> 100 | L34: =VLOOKUP($A34,'WAPP Hydro Existing'!$B$4:$S$300,'WAPP Hydro Existing'!$N$3,0)*$B$4 -> 0 | M34: 0 | N34: =VLOOKUP($A34,'WAPP Hydro Existing'!$B$4:$S$300,'WAPP Hydro Existing'!$S$3,0) -> 2005 1.5 | O34: HYD | R34: 1 | S34: 1 | T34: =IF(V34="e-t",1,SUMIF(NameConvs!$B$57:$B$69,LEFT(A34,3),NameConvs!$H$57:$H$69)) -> 1 | V34: e-E | Y34: =IF(AND(O34="DI",MID(B34,3,3)="OHF"),VS!$M$11,SUMIF(VS!$D$3:$K$3,O34,VS!$D$11:$K$11)) -> 2400 | Z34: 100 | AA34: 240.017417
A35: =LEFT(A34,3) -> GUI | B35: 7 | C35: =ROW()-B35-1 -> 27
A37: With country prefix | B37: ='WAPP Thermal Existing'!C137 -> Sierra Leone | C37: =OFFSET(C$2,lang,0) -> Main Input | D37: Main Output | E37: name | F37: Main Input | G37: Main Output (switch c) | H37: var costs (switch c) | I37: plant factor | J37: operation time | K37: Plant life | L37: Fixed Costs | M37: bdc (up) | N37: hist. cap. (switch hc) | O37: technology type | W37: Fuel Costs | X37: emission factor | Y37: Investment cost | Z37: life | AA37: annualized cost
B38: =OFFSET(B$2,lang,0) -> MESSAGE Name | E38: alt | H38: US$'00/kWyr | L38: US$'00/kW/yr | M38: MW | N38: MW | U38: Input Fuel | V38: Output Fuel | W38: $/kWyr | X38: ton/kWyr | Y38: $/kW | AA38: $/kw-yr
A39: ='WAPP Thermal Existing'!D138 -> SIEEPOHFEXDI | B39: =RIGHT(A39,LEN(A39)-3) -> EPOHFEXDI | C39: =VLOOKUP(MID(B39,3,3),NameConvs!$C$3:$E$19,lang+2,0)&"/"&OFFSET(NameConvs!$H$16,0,lang) -> HFO/Primary | D39: =OFFSET(NameConvs!$D$11,0,lang)&"/"&OFFSET(NameConvs!$H$17,0,lang) -> Electricity/Secondary | E39: a | F39: 1 | G39: =1/(VLOOKUP($A39,'WAPP Thermal Existing'!$D$1:$W$504,'WAPP Thermal Existing'!$K$4,0)/3.6) -> 0.3789473684 | H39: =VLOOKUP($A39,'WAPP Thermal Existing'!$D$1:$W$504,'WAPP Thermal Existing'!U$4,0)*8.76*$B$4 -> 87.6 | I39: =1-VLOOKUP($A39,'WAPP Thermal Existing'!$D$1:$W$504,'WAPP Thermal Existing'!Q$4,0) -> 0.9 | J39: =1-VLOOKUP($A39,'WAPP Thermal Existing'!$D$1:$W$504,'WAPP Thermal Existing'!S$4,0)/8760 -> 0.8904109589 | K39: =IF(VLOOKUP($A39,'WAPP Thermal Existing'!$D$1:$W$504,'WAPP Thermal Existing'!N$4,0)="",SUMIF(VS!$D$3:$K$3,MID(B39,8,2),VS!$D$6:$K$6),VLOOKUP($A39,'WAPP Thermal Existing'!$D$1:$W$504,'WAPP Thermal Existing'!N$4,0)-LEFT(N39,4)) -> 30 | L39: =VLOOKUP($A39,'WAPP Thermal Existing'!$D$1:$W$504,'WAPP Thermal Existing'!W$4,0)*$B$4 -> 0 | M39: 0 | N39: =VLOOKUP($A39,'WAPP Thermal Existing'!$D$1:$Y$504,'WAPP Thermal Existing'!Y$4,0) -> 2006 6 2010 10 | O39: =MID(B39,8,2) -> DI | R39: 1 | S39: =IF(OR(MID(B39,3,1)="W",MID(B39,3,1)="S",MID(B39,3,1)="H",MID(B39,3,1)="B",MID(B39,3,2)="GE"),1,0) -> 0 | T39: =IF(V39="e-t",1,SUMIF(NameConvs!$B$57:$B$69,LEFT(A39,3),NameConvs!$H$57:$H$69)) -> 1 | U39: =VLOOKUP(C39,EnergyForms,2,FALSE) -> h-p | V39: =IF(ISNA(VLOOKUP(D39&"/"&LEFT(A39,3),EnergyForms2,2,FALSE)),VLOOKUP(D39,EnergyForms,2,FALSE),VLOOKUP(D39&"/"&LEFT(A39,3),EnergyForms2,2,FALSE)) -> e-L | W39: =SUMIF(MSG_Fueldata!$A$2:$A$202,LEFT($A39,3)&MID(B39,3,3),MSG_Fueldata!$E$2:$E$202)/$G39 -> 0 | X39: =SUMIF(MSG_Fueldata!$A$2:$A$202,LEFT($A39,3)&MID(B39,3,3),MSG_Fueldata!$F$2:$F$202)/$G39 -> 6.7133574 | Y39: =IF(AND(O39="DI",MID(B39,3,3)="OHF"),VS!$M$11,SUMIF(VS!$D$3:$K$3,O39,VS!$D$11:$K$11)) -> 1417.5 | Z39: =K39 -> 30 | AA39: =-PMT(disc_rate,Z39,Y39) -> 150.3673344
A40: ='WAPP Thermal Existing'!D139 -> SIEEPODSEXDI | B40: =RIGHT(A40,LEN(A40)-3) -> EPODSEXDI | C40: =VLOOKUP(MID(B40,3,3),NameConvs!$C$3:$E$19,lang+2,0)&"/"&OFFSET(NameConvs!$H$16,0,lang) -> Diesel/Primary | D40: =OFFSET(NameConvs!$D$11,0,lang)&"/"&OFFSET(NameConvs!$H$17,0,lang) -> Electricity/Secondary | E40: b | F40: 1 | G40: =1/(VLOOKUP($A40,'WAPP Thermal Existing'!$D$1:$W$504,'WAPP Thermal Existing'!$K$4,0)/3.6) -> 0.3461538462 | H40: =VLOOKUP($A40,'WAPP Thermal Existing'!$D$1:$W$504,'WAPP Thermal Existing'!U$4,0)*8.76*$B$4 -> 87.6 | I40: =1-VLOOKUP($A40,'WAPP Thermal Existing'!$D$1:$W$504,'WAPP Thermal Existing'!Q$4,0) -> 0.9 | J40: =1-VLOOKUP($A40,'WAPP Thermal Existing'!$D$1:$W$504,'WAPP Thermal Existing'!S$4,0)/8760 -> 0.8904109589 | K40: =IF(VLOOKUP($A40,'WAPP Thermal Existing'!$D$1:$W$504,'WAPP Thermal Existing'!N$4,0)="",SUMIF(VS!$D$3:$K$3,MID(B40,8,2),VS!$D$6:$K$6),VLOOKUP($A40,'WAPP Thermal Existing'!$D$1:$W$504,'WAPP Thermal Existing'!N$4,0)-LEFT(N40,4)) -> 30 | L40: =VLOOKUP($A40,'WAPP Thermal Existing'!$D$1:$W$504,'WAPP Thermal Existing'!W$4,0)*$B$4 -> 0 | M40: 0 | N40: =VLOOKUP($A40,'WAPP Thermal Existing'!$D$1:$Y$504,'WAPP Thermal Existing'!Y$4,0) -> 1987 5 | O40: =MID(B40,8,2) -> DI | R40: =R39 -> 1 | S40: =IF(OR(MID(B40,3,1)="W",MID(B40,3,1)="S",MID(B40,3,1)="H",MID(B40,3,1)="B",MID(B40,3,2)="GE"),1,0) -> 0 | T40: =IF(V40="e-t",1,SUMIF(NameConvs!$B$57:$B$69,LEFT(A40,3),NameConvs!$H$57:$H$69)) -> 1 | U40: =VLOOKUP(C40,EnergyForms,2,FALSE) -> o-p | V40: =IF(ISNA(VLOOKUP(D40&"/"&LEFT(A40,3),EnergyForms2,2,FALSE)),VLOOKUP(D40,EnergyForms,2,FALSE),VLOOKUP(D40&"/"&LEFT(A40,3),EnergyForms2,2,FALSE)) -> e-L | W40: =SUMIF(MSG_Fueldata!$A$2:$A$202,LEFT($A40,3)&MID(B40,3,3),MSG_Fueldata!$E$2:$E$202)/$G40 -> 0 | X40: =SUMIF(MSG_Fueldata!$A$2:$A$202,LEFT($A40,3)&MID(B40,3,3),MSG_Fueldata!$F$2:$F$202)/$G40 -> 6.74807328 | Y40: =IF(AND(O40="DI",MID(B40,3,3)="OHF"),VS!$M$11,SUMIF(VS!$D$3:$K$3,O40,VS!$D$11:$K$11)) -> 1123.5 | Z40: =K40 -> 30 | AA40: =-PMT(disc_rate,Z40,Y40) -> 119.1800354
A41: ='WAPP Hydro Existing'!B86 -> SIEEPHYDEXROGom | B41: =RIGHT(A41,LEN(A41)-3) -> EPHYDEXROGom | C41: ="" ->  | D41: =OFFSET(NameConvs!$D$11,0,lang)&"/"&OFFSET(NameConvs!$H$17,0,lang) -> Electricity/Secondary | E41: a | F41: ="" ->  | G41: 1 | H41: =VLOOKUP($A41,'WAPP Hydro Existing'!$B$4:$S$300,'WAPP Hydro Existing'!$M$3,0)*8.76*$B$4 -> 17.52 | I41: =IF(VLOOKUP($A41,'WAPP Hydro Existing'!$B$4:$S$300,'WAPP Hydro Existing'!$E$3,0)="ROR",VLOOKUP($A41,'WAPP Hydro Existing'!$B$4:$T$300,'WAPP Hydro Existing'!$T$3,0),1-VLOOKUP($A41,'WAPP Hydro Existing'!$B$4:$T$300,'WAPP Hydro Existing'!$K$3,0)) -> 0.95 | J41: =IF(VLOOKUP($A41,'WAPP Hydro Existing'!$B$4:$S$300,'WAPP Hydro Existing'!$E$3,0)="ROR",1,VLOOKUP($A41,'WAPP Hydro Existing'!$B$4:$T$300,'WAPP Hydro Existing'!$T$3,0)/I41) -> 0.02803813186 | K41: =IF(VLOOKUP($A41,'WAPP Hydro Existing'!$B$4:$S$300,'WAPP Hydro Existing'!$I$3,0)="",100,VLOOKUP($A41,'WAPP Hydro Existing'!$B$4:$S$300,'WAPP Hydro Existing'!$I$3,0)-LEFT(N41,4)) -> 100 | L41: =VLOOKUP($A41,'WAPP Hydro Existing'!$B$4:$S$300,'WAPP Hydro Existing'!$N$3,0)*$B$4 -> 0 | M41: 0 | N41: =VLOOKUP($A41,'WAPP Hydro Existing'!$B$4:$S$300,'WAPP Hydro Existing'!$S$3,0) -> 2007 6 | O41: =MID(B41,3,3) -> HYD | R41: =R40 -> 1 | S41: =IF(OR(MID(B41,3,1)="W",MID(B41,3,1)="S",MID(B41,3,1)="H",MID(B41,3,1)="B",MID(B41,3,2)="GE"),1,0) -> 1 | T41: =IF(V41="e-t",1,SUMIF(NameConvs!$B$57:$B$69,LEFT(A41,3),NameConvs!$H$57:$H$69)) -> 1 | V41: =V40 -> e-L | Y41: =IF(AND(O41="DI",MID(B41,3,3)="OHF"),VS!$M$11,SUMIF(VS!$D$3:$K$3,O41,VS!$D$11:$K$11)) -> 2400 | Z41: =K41 -> 100 | AA41: =-PMT(disc_rate,Z41,Y41) -> 240.017417
A42: ='WAPP Hydro Existing'!B87 -> SIEEPHYDEXDABum | B42: =RIGHT(A42,LEN(A42)-3) -> EPHYDEXDABum | C42: ="" ->  | D42: =OFFSET(NameConvs!$D$11,0,lang)&"/"&OFFSET(NameConvs!$H$17,0,lang) -> Electricity/Secondary | E42: b | F42: ="" ->  | G42: 1 | H42: =VLOOKUP($A42,'WAPP Hydro Existing'!$B$4:$S$300,'WAPP Hydro Existing'!$M$3,0)*8.76*$B$4 -> 17.52 | I42: =IF(VLOOKUP($A42,'WAPP Hydro Existing'!$B$4:$S$300,'WAPP Hydro Existing'!$E$3,0)="ROR",VLOOKUP($A42,'WAPP Hydro Existing'!$B$4:$T$300,'WAPP Hydro Existing'!$T$3,0),1-VLOOKUP($A42,'WAPP Hydro Existing'!$B$4:$T$300,'WAPP Hydro Existing'!$K$3,0)) -> 0.95 | J42: =IF(VLOOKUP($A42,'WAPP Hydro Existing'!$B$4:$S$300,'WAPP Hydro Existing'!$E$3,0)="ROR",1,VLOOKUP($A42,'WAPP Hydro Existing'!$B$4:$T$300,'WAPP Hydro Existing'!$T$3,0)/I42) -> 0.3773131459 | K42: =IF(VLOOKUP($A42,'WAPP Hydro Existing'!$B$4:$S$300,'WAPP Hydro Existing'!$I$3,0)="",100,VLOOKUP($A42,'WAPP Hydro Existing'!$B$4:$S$300,'WAPP Hydro Existing'!$I$3,0)-LEFT(N42,4)) -> 100 | L42: =VLOOKUP($A42,'WAPP Hydro Existing'!$B$4:$S$300,'WAPP Hydro Existing'!$N$3,0)*$B$4 -> 0 | M42: 0 | N42: =VLOOKUP($A42,'WAPP Hydro Existing'!$B$4:$S$300,'WAPP Hydro Existing'!$S$3,0) -> 2010 50 | O42: =MID(B42,3,3) -> HYD | R42: =R41 -> 1 | S42: =IF(OR(MID(B42,3,1)="W",MID(B42,3,1)="S",MID(B42,3,1)="H",MID(B42,3,1)="B",MID(B42,3,2)="GE"),1,0) -> 1 | T42: =IF(V42="e-t",1,SUMIF(NameConvs!$B$57:$B$69,LEFT(A42,3),NameConvs!$H$57:$H$69)) -> 1 | V42: =V41 -> e-L | Y42: =IF(AND(O42="DI",MID(B42,3,3)="OHF"),VS!$M$11,SUMIF(VS!$D$3:$K$3,O42,VS!$D$11:$K$11)) -> 2400 | Z42: =K42 -> 100 | AA42: =-PMT(disc_rate,Z42,Y42) -> 240.017417
A43: =LEFT(A42,3) -> SIE | B43: 4 | C43: =ROW()-B43-1 -> 38
A45: With country prefix | B45: ='WAPP Thermal Existing'!C166 -> Liberia | C45: =OFFSET(C$2,lang,0) -> Main Input | D45: Main Output | E45: name | F45: Main Input | G45: Main Output (switch c) | H45: var costs (switch c) | I45: plant factor | J45: operation time | K45: Plant life | L45: Fixed Costs | M45: bdc (up) | N45: hist. cap. (switch hc) | O45: technology type | W45: Fuel Costs | X45: emission factor | Y45: Investment cost | Z45: life | AA45: annualized cost
B46: =OFFSET(B$2,lang,0) -> MESSAGE Name | E46: alt | H46: US$'00/kWyr | L46: US$'00/kW/yr | M46: MW | N46: MW | U46: Input Fuel | V46: Output Fuel | W46: $/kWyr | X46: ton/kWyr | Y46: $/kW | AA46: $/kw-yr
A47: ='WAPP Thermal Existing'!D167 -> LIBEPODSEXDI | B47: =RIGHT(A47,LEN(A47)-3) -> EPODSEXDI | C47: =VLOOKUP(MID(B47,3,3),NameConvs!$C$3:$E$19,lang+2,0)&"/"&OFFSET(NameConvs!$H$16,0,lang) -> Diesel/Primary | D47: =OFFSET(NameConvs!$D$11,0,lang)&"/"&OFFSET(NameConvs!$H$17,0,lang) -> Electricity/Secondary | E47: a | F47: 1 | G47: =1/(VLOOKUP($A47,'WAPP Thermal Existing'!$D$1:$W$504,'WAPP Thermal Existing'!$K$4,0)/3.6) -> 0.3050847458 | H47: =VLOOKUP($A47,'WAPP Thermal Existing'!$D$1:$W$504,'WAPP Thermal Existing'!U$4,0)*8.76*$B$4 -> 87.6 | I47: =1-VLOOKUP($A47,'WAPP Thermal Existing'!$D$1:$W$504,'WAPP Thermal Existing'!Q$4,0) -> 0.9 | J47: =1-VLOOKUP($A47,'WAPP Thermal Existing'!$D$1:$W$504,'WAPP Thermal Existing'!S$4,0)/8760 -> 0.8904109589 | K47: =IF(VLOOKUP($A47,'WAPP Thermal Existing'!$D$1:$W$504,'WAPP Thermal Existing'!N$4,0)="",SUMIF(VS!$D$3:$K$3,MID(B47,8,2),VS!$D$6:$K$6),VLOOKUP($A47,'WAPP Thermal Existing'!$D$1:$W$504,'WAPP Thermal Existing'!N$4,0)-LEFT(N47,4)) -> 30 | L47: =VLOOKUP($A47,'WAPP Thermal Existing'!$D$1:$W$504,'WAPP Thermal Existing'!W$4,0)*$B$4 -> 0 | M47: 0 | N47: =VLOOKUP($A47,'WAPP Thermal Existing'!$D$1:$Y$504,'WAPP Thermal Existing'!Y$4,0) -> 2006 2 2007 0.64 2008 7 2010 3 | O47: =MID(B47,8,2) -> DI | R47: 1 | S47: =IF(OR(MID(B47,3,1)="W",MID(B47,3,1)="S",MID(B47,3,1)="H",MID(B47,3,1)="B",MID(B47,3,2)="GE"),1,0) -> 0 | T47: =IF(V47="e-t",1,SUMIF(NameConvs!$B$57:$B$69,LEFT(A47,3),NameConvs!$H$57:$H$69)) -> 1 | U47: =VLOOKUP(C47,EnergyForms,2,FALSE) -> o-p | V47: =IF(ISNA(VLOOKUP(D47&"/"&LEFT(A47,3),EnergyForms2,2,FALSE)),VLOOKUP(D47,EnergyForms,2,FALSE),VLOOKUP(D47&"/"&LEFT(A47,3),EnergyForms2,2,FALSE)) -> e-G | W47: =SUMIF(MSG_Fueldata!$A$2:$A$202,LEFT($A47,3)&MID(B47,3,3),MSG_Fueldata!$E$2:$E$202)/$G47 -> 0 | X47: =SUMIF(MSG_Fueldata!$A$2:$A$202,LEFT($A47,3)&MID(B47,3,3),MSG_Fueldata!$F$2:$F$202)/$G47 -> 7.65646776 | Y47: =IF(AND(O47="DI",MID(B47,3,3)="OHF"),VS!$M$11,SUMIF(VS!$D$3:$K$3,O47,VS!$D$11:$K$11)) -> 1123.5 | Z47: =K47 -> 30 | AA47: =-PMT(disc_rate,Z47,Y47) -> 119.1800354
A48: =LEFT(A47,3) -> LIB | B48: 1 | C48: =ROW()-B48-1 -> 46
A50: With country prefix | B50: ='WAPP Thermal Existing'!C200 -> Mali | C50: =OFFSET(C$2,lang,0) -> Main Input | D50: Main Output | E50: name | F50: Main Input | G50: Main Output (switch c) | H50: var costs (switch c) | I50: plant factor | J50: operation time | K50: Plant life | L50: Fixed Costs | M50: bdc (up) | N50: hist. cap. (switch hc) | O50: technology type | W50: Fuel Costs | X50: emission factor | Y50: Investment cost | Z50: life | AA50: annualized cost
B51: =OFFSET(B$2,lang,0) -> MESSAGE Name | E51: alt | H51: US$'00/kWyr | L51: US$'00/kW/yr | M51: MW | N51: MW | U51: Input Fuel | V51: Output Fuel | W51: $/kWyr | X51: ton/kWyr | Y51: $/kW | AA51: $/kw-yr
A52: ='WAPP Thermal Existing'!D201 -> MALEPODSEXDI | B52: =RIGHT(A52,LEN(A52)-3) -> EPODSEXDI | C52: =VLOOKUP(MID(B52,3,3),NameConvs!$C$3:$E$19,lang+2,0)&"/"&OFFSET(NameConvs!$H$16,0,lang) -> Diesel/Primary | D52: =OFFSET(NameConvs!$D$11,0,lang)&"/"&OFFSET(NameConvs!$H$17,0,lang) -> Electricity/Secondary | E52: a | F52: 1 | G52: =1/(VLOOKUP($A52,'WAPP Thermal Existing'!$D$1:$W$504,'WAPP Thermal Existing'!$K$4,0)/3.6) -> 0.3727665155 | H52: =VLOOKUP($A52,'WAPP Thermal Existing'!$D$1:$W$504,'WAPP Thermal Existing'!U$4,0)*8.76*$B$4 -> 87.6 | I52: =1-VLOOKUP($A52,'WAPP Thermal Existing'!$D$1:$W$504,'WAPP Thermal Existing'!Q$4,0) -> 0.9 | J52: =1-VLOOKUP($A52,'WAPP Thermal Existing'!$D$1:$W$504,'WAPP Thermal Existing'!S$4,0)/8760 -> 0.8904109589 | K52: =IF(VLOOKUP($A52,'WAPP Thermal Existing'!$D$1:$W$504,'WAPP Thermal Existing'!N$4,0)="",SUMIF(VS!$D$3:$K$3,MID(B52,8,2),VS!$D$6:$K$6),VLOOKUP($A52,'WAPP Thermal Existing'!$D$1:$W$504,'WAPP Thermal Existing'!N$4,0)-LEFT(N52,4)) -> 30 | L52: =VLOOKUP($A52,'WAPP Thermal Existing'!$D$1:$W$504,'WAPP Thermal Existing'!W$4,0)*$B$4 -> 0 | M52: 0 | N52: =VLOOKUP($A52,'WAPP Thermal Existing'!$D$1:$Y$504,'WAPP Thermal Existing'!Y$4,0) -> 2000 18.75 2001 4.9 2005 2.6 2007 17.6 2010 13 | O52: =MID(B52,8,2) -> DI | R52: 1 | S52: =IF(OR(MID(B52,3,1)="W",MID(B52,3,1)="S",MID(B52,3,1)="H",MID(B52,3,1)="B",MID(B52,3,2)="GE"),1,0) -> 0 | T52: =IF(V52="e-t",1,SUMIF(NameConvs!$B$57:$B$69,LEFT(A52,3),NameConvs!$H$57:$H$69)) -> 1 | U52: =VLOOKUP(C52,EnergyForms,2,FALSE) -> o-p | V52: =IF(ISNA(VLOOKUP(D52&"/"&LEFT(A52,3),EnergyForms2,2,FALSE)),VLOOKUP(D52,EnergyForms,2,FALSE),VLOOKUP(D52&"/"&LEFT(A52,3),EnergyForms2,2,FALSE)) -> e-H | W52: =SUMIF(MSG_Fueldata!$A$2:$A$202,LEFT($A52,3)&MID(B52,3,3),MSG_Fueldata!$E$2:$E$202)/$G52 -> 0 | X52: =SUMIF(MSG_Fueldata!$A$2:$A$202,LEFT($A52,3)&MID(B52,3,3),MSG_Fueldata!$F$2:$F$202)/$G52 -> 6.266312619 | Y52: =IF(AND(O52="DI",MID(B52,3,3)="OHF"),VS!$M$11,SUMIF(VS!$D$3:$K$3,O52,VS!$D$11:$K$11)) -> 1123.5 | Z52: =K52 -> 30 | AA52: =-PMT(disc_rate,Z52,Y52) -> 119.1800354
A53: ='WAPP Thermal Existing'!D202 -> MALEPODSEXGT | B53: EPODSEXGT | C53: =VLOOKUP(MID(B53,3,3),NameConvs!$C$3:$E$19,lang+2,0)&"/"&OFFSET(NameConvs!$H$16,0,lang) -> Diesel/Primary | D53: =OFFSET(NameConvs!$D$11,0,lang)&"/"&OFFSET(NameConvs!$H$17,0,lang) -> Electricity/Secondary | E53: b | F53: 1 | G53: =1/(VLOOKUP($A53,'WAPP Thermal Existing'!$D$1:$W$504,'WAPP Thermal Existing'!$K$4,0)/3.6) -> 0.2307692308 | H53: =VLOOKUP($A53,'WAPP Thermal Existing'!$D$1:$W$504,'WAPP Thermal Existing'!U$4,0)*8.76*$B$4 -> 21.9 | I53: =1-VLOOKUP($A53,'WAPP Thermal Existing'!$D$1:$W$504,'WAPP Thermal Existing'!Q$4,0) -> 0.92 | J53: =1-VLOOKUP($A53,'WAPP Thermal Existing'!$D$1:$W$504,'WAPP Thermal Existing'!S$4,0)/8760 -> 0.9300228311 | K53: =IF(VLOOKUP($A53,'WAPP Thermal Existing'!$D$1:$W$504,'WAPP Thermal Existing'!N$4,0)="",SUMIF(VS!$D$3:$K$3,MID(B53,8,2),VS!$D$6:$K$6),VLOOKUP($A53,'WAPP Thermal Existing'!$D$1:$W$504,'WAPP Thermal Existing'!N$4,0)-LEFT(N53,4)) -> 25 | L53: =VLOOKUP($A53,'WAPP Thermal Existing'!$D$1:$W$504,'WAPP Thermal Existing'!W$4,0)*$B$4 -> 0 | M53: 0 | N53: =VLOOKUP($A53,'WAPP Thermal Existing'!$D$1:$Y$504,'WAPP Thermal Existing'!Y$4,0) -> 1999 20 | O53: =MID(B53,8,2) -> GT | R53: =R52 -> 1 | S53: 0 | T53: =IF(V53="e-t",1,SUMIF(NameConvs!$B$57:$B$69,LEFT(A53,3),NameConvs!$H$57:$H$69)) -> 1 | U53: =VLOOKUP(C53,EnergyForms,2,FALSE) -> o-p | V53: =IF(ISNA(VLOOKUP(D53&"/"&LEFT(A53,3),EnergyForms2,2,FALSE)),VLOOKUP(D53,EnergyForms,2,FALSE),VLOOKUP(D53&"/"&LEFT(A53,3),EnergyForms2,2,FALSE)) -> e-H | W53: =SUMIF(MSG_Fueldata!$A$2:$A$202,LEFT($A53,3)&MID(B53,3,3),MSG_Fueldata!$E$2:$E$202)/$G53 -> 0 | X53: =SUMIF(MSG_Fueldata!$A$2:$A$202,LEFT($A53,3)&MID(B53,3,3),MSG_Fueldata!$F$2:$F$202)/$G53 -> 10.12210992 | Y53: =IF(AND(O53="DI",MID(B53,3,3)="OHF"),VS!$M$11,SUMIF(VS!$D$3:$K$3,O53,VS!$D$11:$K$11)) -> 633.15 | Z53: 25 | AA53: 69.75291491
A54: ='WAPP Thermal Existing'!D203 -> MALEPOHFEXDI | B54: EPOHFEXDI | C54: =VLOOKUP(MID(B54,3,3),NameConvs!$C$3:$E$19,lang+2,0)&"/"&OFFSET(NameConvs!$H$16,0,lang) -> HFO/Primary | D54: =OFFSET(NameConvs!$D$11,0,lang)&"/"&OFFSET(NameConvs!$H$17,0,lang) -> Electricity/Secondary | E54: a | F54: 1 | G54: =1/(VLOOKUP($A54,'WAPP Thermal Existing'!$D$1:$W$504,'WAPP Thermal Existing'!$K$4,0)/3.6) -> 0.3829787234 | H54: =VLOOKUP($A54,'WAPP Thermal Existing'!$D$1:$W$504,'WAPP Thermal Existing'!U$4,0)*8.76*$B$4 -> 87.6 | I54: =1-VLOOKUP($A54,'WAPP Thermal Existing'!$D$1:$W$504,'WAPP Thermal Existing'!Q$4,0) -> 0.9 | J54: =1-VLOOKUP($A54,'WAPP Thermal Existing'!$D$1:$W$504,'WAPP Thermal Existing'!S$4,0)/8760 -> 0.8904109589 | K54: =IF(VLOOKUP($A54,'WAPP Thermal Existing'!$D$1:$W$504,'WAPP Thermal Existing'!N$4,0)="",SUMIF(VS!$D$3:$K$3,MID(B54,8,2),VS!$D$6:$K$6),VLOOKUP($A54,'WAPP Thermal Existing'!$D$1:$W$504,'WAPP Thermal Existing'!N$4,0)-LEFT(N54,4)) -> 30 | L54: =VLOOKUP($A54,'WAPP Thermal Existing'!$D$1:$W$504,'WAPP Thermal Existing'!W$4,0)*$B$4 -> 0 | M54: 2 | N54: =VLOOKUP($A54,'WAPP Thermal Existing'!$D$1:$Y$504,'WAPP Thermal Existing'!Y$4,0) -> 2010 57.5 | O54: =MID(B54,8,2) -> DI | R54: =R53 -> 1 | S54: 0 | T54: =IF(V54="e-t",1,SUMIF(NameConvs!$B$57:$B$69,LEFT(A54,3),NameConvs!$H$57:$H$69)) -> 1 | U54: =VLOOKUP(C54,EnergyForms,2,FALSE) -> h-p | V54: =IF(ISNA(VLOOKUP(D54&"/"&LEFT(A54,3),EnergyForms2,2,FALSE)),VLOOKUP(D54,EnergyForms,2,FALSE),VLOOKUP(D54&"/"&LEFT(A54,3),EnergyForms2,2,FALSE)) -> e-H | W54: =SUMIF(MSG_Fueldata!$A$2:$A$202,LEFT($A54,3)&MID(B54,3,3),MSG_Fueldata!$E$2:$E$202)/$G54 -> 0 | X54: =SUMIF(MSG_Fueldata!$A$2:$A$202,LEFT($A54,3)&MID(B54,3,3),MSG_Fueldata!$F$2:$F$202)/$G54 -> 6.64269048 | Y54: =IF(AND(O54="DI",MID(B54,3,3)="OHF"),VS!$M$11,SUMIF(VS!$D$3:$K$3,O54,VS!$D$11:$K$11)) -> 1417.5 | Z54: 30 | AA54: 150.3673344
A55: ='WAPP Hydro Existing'!B112 -> MALEPHYDEXDASel | B55: EPHYDEXDASel | C55: ="" ->  | D55: =OFFSET(NameConvs!$D$11,0,lang)&"/"&OFFSET(NameConvs!$H$17,0,lang) -> Electricity/Secondary | E55: a | F55: ="" ->  | G55: 1 | H55: =VLOOKUP($A55,'WAPP Hydro Existing'!$B$4:$S$300,'WAPP Hydro Existing'!$M$3,0)*8.76*$B$4 -> 17.52 | I55: =IF(VLOOKUP($A55,'WAPP Hydro Existing'!$B$4:$S$300,'WAPP Hydro Existing'!$E$3,0)="ROR",VLOOKUP($A55,'WAPP Hydro Existing'!$B$4:$T$300,'WAPP Hydro Existing'!$T$3,0),1-VLOOKUP($A55,'WAPP Hydro Existing'!$B$4:$T$300,'WAPP Hydro Existing'!$K$3,0)) -> 0.95 | J55: =IF(VLOOKUP($A55,'WAPP Hydro Existing'!$B$4:$S$300,'WAPP Hydro Existing'!$E$3,0)="ROR",1,VLOOKUP($A55,'WAPP Hydro Existing'!$B$4:$T$300,'WAPP Hydro Existing'!$T$3,0)/I55) -> 0.5463732424 | K55: =IF(VLOOKUP($A55,'WAPP Hydro Existing'!$B$4:$S$300,'WAPP Hydro Existing'!$I$3,0)="",100,VLOOKUP($A55,'WAPP Hydro Existing'!$B$4:$S$300,'WAPP Hydro Existing'!$I$3,0)-LEFT(N55,4)) -> 100 | L55: =VLOOKUP($A55,'WAPP Hydro Existing'!$B$4:$S$300,'WAPP Hydro Existing'!$N$3,0)*$B$4 -> 0 | M55: 0 | N55: =VLOOKUP($A55,'WAPP Hydro Existing'!$B$4:$S$300,'WAPP Hydro Existing'!$S$3,0) -> 1980 43.48 | O55: =MID(B55,3,3) -> HYD | R55: =R54 -> 1 | S55: 1 | T55: =IF(V55="e-t",1,SUMIF(NameConvs!$B$57:$B$69,LEFT(A55,3),NameConvs!$H$57:$H$69)) -> 1 | V55: =V54 -> e-H | W55: 0 | X55: 0 | Y55: =IF(AND(O55="DI",MID(B55,3,3)="OHF"),VS!$M$11,SUMIF(VS!$D$3:$K$3,O55,VS!$D$11:$K$11)) -> 2400 | Z55: 100 | AA55: 240.017417
A56: ='WAPP Hydro Existing'!B113 -> MALEPHYDEXROSot | B56: EPHYDEXROSot | C56: ="" ->  | D56: =OFFSET(NameConvs!$D$11,0,lang)&"/"&OFFSET(NameConvs!$H$17,0,lang) -> Electricity/Secondary | E56: b | F56: ="" ->  | G56: 1 | H56: =VLOOKUP($A56,'WAPP Hydro Existing'!$B$4:$S$300,'WAPP Hydro Existing'!$M$3,0)*8.76*$B$4 -> 17.52 | I56: =IF(VLOOKUP($A56,'WAPP Hydro Existing'!$B$4:$S$300,'WAPP Hydro Existing'!$E$3,0)="ROR",VLOOKUP($A56,'WAPP Hydro Existing'!$B$4:$T$300,'WAPP Hydro Existing'!$T$3,0),1-VLOOKUP($A56,'WAPP Hydro Existing'!$B$4:$T$300,'WAPP Hydro Existing'!$K$3,0)) -> 0.7490186654 | J56: =IF(VLOOKUP($A56,'WAPP Hydro Existing'!$B$4:$S$300,'WAPP Hydro Existing'!$E$3,0)="ROR",1,VLOOKUP($A56,'WAPP Hydro Existing'!$B$4:$T$300,'WAPP Hydro Existing'!$T$3,0)/I56) -> 1 | K56: =IF(VLOOKUP($A56,'WAPP Hydro Existing'!$B$4:$S$300,'WAPP Hydro Existing'!$I$3,0)="",100,VLOOKUP($A56,'WAPP Hydro Existing'!$B$4:$S$300,'WAPP Hydro Existing'!$I$3,0)-LEFT(N56,4)) -> 100 | L56: =VLOOKUP($A56,'WAPP Hydro Existing'!$B$4:$S$300,'WAPP Hydro Existing'!$N$3,0)*$B$4 -> 0 | M56: 0 | N56: =VLOOKUP($A56,'WAPP Hydro Existing'!$B$4:$S$300,'WAPP Hydro Existing'!$S$3,0) -> 1966 5.7 | O56: =MID(B56,3,3) -> HYD | R56: =R55 -> 1 | S56: 1 | T56: =IF(V56="e-t",1,SUMIF(NameConvs!$B$57:$B$69,LEFT(A56,3),NameConvs!$H$57:$H$69)) -> 1 | V56: =V55 -> e-H | W56: 0 | X56: 0 | Y56: =IF(AND(O56="DI",MID(B56,3,3)="OHF"),VS!$M$11,SUMIF(VS!$D$3:$K$3,O56,VS!$D$11:$K$11)) -> 2400 | Z56: 100 | AA56: 240.017417
A57: ='WAPP Hydro Existing'!B114 -> MALEPHYDEXDAMan | B57: EPHYDEXDAMan | C57: ="" ->  | D57: =OFFSET(NameConvs!$D$11,0,lang)&"/"&OFFSET(NameConvs!$H$17,0,lang) -> Electricity/Secondary | E57: c | F57: ="" ->  | G57: 1 | H57: =VLOOKUP($A57,'WAPP Hydro Existing'!$B$4:$S$300,'WAPP Hydro Existing'!$M$3,0)*8.76*$B$4 -> 17.52 | I57: =IF(VLOOKUP($A57,'WAPP Hydro Existing'!$B$4:$S$300,'WAPP Hydro Existing'!$E$3,0)="ROR",VLOOKUP($A57,'WAPP Hydro Existing'!$B$4:$T$300,'WAPP Hydro Existing'!$T$3,0),1-VLOOKUP($A57,'WAPP Hydro Existing'!$B$4:$T$300,'WAPP Hydro Existing'!$K$3,0)) -> 0.95 | J57: =IF(VLOOKUP($A57,'WAPP Hydro Existing'!$B$4:$S$300,'WAPP Hydro Existing'!$E$3,0)="ROR",1,VLOOKUP($A57,'WAPP Hydro Existing'!$B$4:$T$300,'WAPP Hydro Existing'!$T$3,0)/I57) -> 0.3004085556 | K57: =IF(VLOOKUP($A57,'WAPP Hydro Existing'!$B$4:$S$300,'WAPP Hydro Existing'!$I$3,0)="",100,VLOOKUP($A57,'WAPP Hydro Existing'!$B$4:$S$300,'WAPP Hydro Existing'!$I$3,0)-LEFT(N57,4)) -> 100 | L57: =VLOOKUP($A57,'WAPP Hydro Existing'!$B$4:$S$300,'WAPP Hydro Existing'!$N$3,0)*$B$4 -> 0 | M57: 0 | N57: =VLOOKUP($A57,'WAPP Hydro Existing'!$B$4:$S$300,'WAPP Hydro Existing'!$S$3,0) -> 1988 104 | O57: =MID(B57,3,3) -> HYD | R57: =R56 -> 1 | S57: 1 | T57: =IF(V57="e-t",1,SUMIF(NameConvs!$B$57:$B$69,LEFT(A57,3),NameConvs!$H$57:$H$69)) -> 1 | V57: =V56 -> e-H | W57: 0 | X57: 0 | Y57: =IF(AND(O57="DI",MID(B57,3,3)="OHF"),VS!$M$11,SUMIF(VS!$D$3:$K$3,O57,VS!$D$11:$K$11)) -> 2400 | Z57: 100 | AA57: 240.017417
A58: =LEFT(A57,3) -> MAL | B58: 6 | C58: =ROW()-B58-1 -> 51
A60: With country prefix | B60: ='WAPP Thermal Existing'!C230 -> Cote d'Ivoire | C60: =OFFSET(C$2,lang,0) -> Main Input | D60: Main Output | E60: name | F60: Main Input | G60: Main Output (switch c) | H60: var costs (switch c) | I60: plant factor | J60: operation time | K60: Plant life | L60: Fixed Costs | M60: bdc (up) | N60: hist. cap. (switch hc) | O60: technology type | W60: Fuel Costs | X60: emission factor | Y60: Investment cost | Z60: life | AA60: annualized cost
B61: =OFFSET(B$2,lang,0) -> MESSAGE Name | E61: alt | H61: US$'00/kWyr | L61: US$'00/kW/yr | M61: MW | N61: MW | U61: Input Fuel | V61: Output Fuel | W61: $/kWyr | X61: ton/kWyr | Y61: $/kW | AA61: $/kw-yr
A62: ='WAPP Thermal Existing'!D231 -> CIVEPGASEXGTAz | B62: =RIGHT(A62,LEN(A62)-3) -> EPGASEXGTAz | C62: =VLOOKUP(MID(B62,3,3),NameConvs!$C$3:$E$19,lang+2,0)&"/"&OFFSET(NameConvs!$H$16,0,lang) -> Gas/Primary | D62: =OFFSET(NameConvs!$D$11,0,lang)&"/"&OFFSET(NameConvs!$H$17,0,lang) -> Electricity/Secondary | E62: a | F62: 1 | G62: =1/(VLOOKUP($A62,'WAPP Thermal Existing'!$D$1:$W$504,'WAPP Thermal Existing'!$K$4,0)/3.6) -> 0.3157894737 | H62: =VLOOKUP($A62,'WAPP Thermal Existing'!$D$1:$W$504,'WAPP Thermal Existing'!U$4,0)*8.76*$B$4 -> 21.9 | I62: =1-VLOOKUP($A62,'WAPP Thermal Existing'!$D$1:$W$504,'WAPP Thermal Existing'!Q$4,0) -> 0.95 | J62: =1-VLOOKUP($A62,'WAPP Thermal Existing'!$D$1:$W$504,'WAPP Thermal Existing'!S$4,0)/8760 -> 0.9218642733 | K62: =IF(VLOOKUP($A62,'WAPP Thermal Existing'!$D$1:$W$504,'WAPP Thermal Existing'!N$4,0)="",SUMIF(VS!$D$3:$K$3,MID(B62,8,2),VS!$D$6:$K$6),VLOOKUP($A62,'WAPP Thermal Existing'!$D$1:$W$504,'WAPP Thermal Existing'!N$4,0)-LEFT(N62,4)) -> 13 | L62: =VLOOKUP($A62,'WAPP Thermal Existing'!$D$1:$W$504,'WAPP Thermal Existing'!W$4,0)*$B$4 -> 0 | M62: 0 | N62: =VLOOKUP($A62,'WAPP Thermal Existing'!$D$1:$Y$504,'WAPP Thermal Existing'!Y$4,0) -> 2000 290 | O62: =MID(B62,8,2) -> GT | R62: 1 | S62: =IF(OR(MID(B62,3,1)="W",MID(B62,3,1)="S",MID(B62,3,1)="H",MID(B62,3,1)="B",MID(B62,3,2)="GE"),1,0) -> 0 | T62: =IF(V62="e-t",1,SUMIF(NameConvs!$B$57:$B$69,LEFT(A62,3),NameConvs!$H$57:$H$69)) -> 1 | U62: =VLOOKUP(C62,EnergyForms,2,FALSE) -> g-p | V62: =IF(ISNA(VLOOKUP(D62&"/"&LEFT(A62,3),EnergyForms2,2,FALSE)),VLOOKUP(D62,EnergyForms,2,FALSE),VLOOKUP(D62&"/"&LEFT(A62,3),EnergyForms2,2,FALSE)) -> e-B | W62: =SUMIF(MSG_Fueldata!$A$2:$A$202,LEFT($A62,3)&MID(B62,3,3),MSG_Fueldata!$E$2:$E$202)/$G62 -> 0 | X62: =SUMIF(MSG_Fueldata!$A$2:$A$202,LEFT($A62,3)&MID(B62,3,3),MSG_Fueldata!$F$2:$F$202)/$G62 -> 5.605 | Y62: =IF(AND(O62="DI",MID(B62,3,3)="OHF"),VS!$M$11,SUMIF(VS!$D$3:$K$3,O62,VS!$D$11:$K$11)) -> 633.15 | Z62: =K62 -> 13 | AA62: =-PMT(disc_rate,Z62,Y62) -> 89.13392232
A63: ='WAPP Thermal Existing'!D232 -> CIVEPGASEXGTVr | B63: =RIGHT(A63,LEN(A63)-3) -> EPGASEXGTVr | C63: =VLOOKUP(MID(B63,3,3),NameConvs!$C$3:$E$19,lang+2,0)&"/"&OFFSET(NameConvs!$H$16,0,lang) -> Gas/Primary | D63: =OFFSET(NameConvs!$D$11,0,lang)&"/"&OFFSET(NameConvs!$H$17,0,lang) -> Electricity/Secondary | E63: a | F63: 1 | G63: =1/(VLOOKUP($A63,'WAPP Thermal Existing'!$D$1:$W$504,'WAPP Thermal Existing'!$K$4,0)/3.6) -> 0.25 | H63: =VLOOKUP($A63,'WAPP Thermal Existing'!$D$1:$W$504,'WAPP Thermal Existing'!U$4,0)*8.76*$B$4 -> 21.9 | I63: =1-VLOOKUP($A63,'WAPP Thermal Existing'!$D$1:$W$504,'WAPP Thermal Existing'!Q$4,0) -> 0.97 | J63: =1-VLOOKUP($A63,'WAPP Thermal Existing'!$D$1:$W$504,'WAPP Thermal Existing'!S$4,0)/8760 -> 0.9208618721 | K63: =IF(VLOOKUP($A63,'WAPP Thermal Existing'!$D$1:$W$504,'WAPP Thermal Existing'!N$4,0)="",SUMIF(VS!$D$3:$K$3,MID(B63,8,2),VS!$D$6:$K$6),VLOOKUP($A63,'WAPP Thermal Existing'!$D$1:$W$504,'WAPP Thermal Existing'!N$4,0)-LEFT(N63,4)) -> 25 | L63: =VLOOKUP($A63,'WAPP Thermal Existing'!$D$1:$W$504,'WAPP Thermal Existing'!W$4,0)*$B$4 -> 0 | M63: 0 | N63: =VLOOKUP($A63,'WAPP Thermal Existing'!$D$1:$Y$504,'WAPP Thermal Existing'!Y$4,0) -> 1990 84 | O63: =MID(B63,8,2) -> GT | R63: 1 | S63: =IF(OR(MID(B63,3,1)="W",MID(B63,3,1)="S",MID(B63,3,1)="H",MID(B63,3,1)="B",MID(B63,3,2)="GE"),1,0) -> 0 | T63: =IF(V63="e-t",1,SUMIF(NameConvs!$B$57:$B$69,LEFT(A63,3),NameConvs!$H$57:$H$69)) -> 1 | U63: =VLOOKUP(C63,EnergyForms,2,FALSE) -> g-p | V63: =IF(ISNA(VLOOKUP(D63&"/"&LEFT(A63,3),EnergyForms2,2,FALSE)),VLOOKUP(D63,EnergyForms,2,FALSE),VLOOKUP(D63&"/"&LEFT(A63,3),EnergyForms2,2,FALSE)) -> e-B | W63: =SUMIF(MSG_Fueldata!$A$2:$A$202,LEFT($A63,3)&MID(B63,3,3),MSG_Fueldata!$E$2:$E$202)/$G63 -> 0 | X63: =SUMIF(MSG_Fueldata!$A$2:$A$202,LEFT($A63,3)&MID(B63,3,3),MSG_Fueldata!$F$2:$F$202)/$G63 -> 7.08 | Y63: =IF(AND(O63="DI",MID(B63,3,3)="OHF"),VS!$M$11,SUMIF(VS!$D$3:$K$3,O63,VS!$D$11:$K$11)) -> 633.15 | Z63: =K63 -> 25 | AA63: =-PMT(disc_rate,Z63,Y63) -> 69.75291491
A64: ='WAPP Thermal Existing'!D233 -> CIVEPGASEXGTC1 | B64: =RIGHT(A64,LEN(A64)-3) -> EPGASEXGTC1 | C64: =VLOOKUP(MID(B64,3,3),NameConvs!$C$3:$E$19,lang+2,0)&"/"&OFFSET(NameConvs!$H$16,0,lang) -> Gas/Primary | D64: =OFFSET(NameConvs!$D$11,0,lang)&"/"&OFFSET(NameConvs!$H$17,0,lang) -> Electricity/Secondary | E64: a | F64: 1 | G64: =1/(VLOOKUP($A64,'WAPP Thermal Existing'!$D$1:$W$504,'WAPP Thermal Existing'!$K$4,0)/3.6) -> 0.2975206612 | H64: =VLOOKUP($A64,'WAPP Thermal Existing'!$D$1:$W$504,'WAPP Thermal Existing'!U$4,0)*8.76*$B$4 -> 21.9 | I64: =1-VLOOKUP($A64,'WAPP Thermal Existing'!$D$1:$W$504,'WAPP Thermal Existing'!Q$4,0) -> 0.95 | J64: =1-VLOOKUP($A64,'WAPP Thermal Existing'!$D$1:$W$504,'WAPP Thermal Existing'!S$4,0)/8760 -> 0.9272162427 | K64: =IF(VLOOKUP($A64,'WAPP Thermal Existing'!$D$1:$W$504,'WAPP Thermal Existing'!N$4,0)="",SUMIF(VS!$D$3:$K$3,MID(B64,8,2),VS!$D$6:$K$6),VLOOKUP($A64,'WAPP Thermal Existing'!$D$1:$W$504,'WAPP Thermal Existing'!N$4,0)-LEFT(N64,4)) -> 25 | L64: =VLOOKUP($A64,'WAPP Thermal Existing'!$D$1:$W$504,'WAPP Thermal Existing'!W$4,0)*$B$4 -> 0 | M64: 0 | N64: =VLOOKUP($A64,'WAPP Thermal Existing'!$D$1:$Y$504,'WAPP Thermal Existing'!Y$4,0) -> 1995 99 1997 111 | O64: =MID(B64,8,2) -> GT | R64: 1 | S64: =IF(OR(MID(B64,3,1)="W",MID(B64,3,1)="S",MID(B64,3,1)="H",MID(B64,3,1)="B",MID(B64,3,2)="GE"),1,0) -> 0 | T64: =IF(V64="e-t",1,SUMIF(NameConvs!$B$57:$B$69,LEFT(A64,3),NameConvs!$H$57:$H$69)) -> 1 | U64: =VLOOKUP(C64,EnergyForms,2,FALSE) -> g-p | V64: =IF(ISNA(VLOOKUP(D64&"/"&LEFT(A64,3),EnergyForms2,2,FALSE)),VLOOKUP(D64,EnergyForms,2,FALSE),VLOOKUP(D64&"/"&LEFT(A64,3),EnergyForms2,2,FALSE)) -> e-B | W64: =SUMIF(MSG_Fueldata!$A$2:$A$202,LEFT($A64,3)&MID(B64,3,3),MSG_Fueldata!$E$2:$E$202)/$G64 -> 0 | X64: =SUMIF(MSG_Fueldata!$A$2:$A$202,LEFT($A64,3)&MID(B64,3,3),MSG_Fueldata!$F$2:$F$202)/$G64 -> 5.949166667 | Y64: =IF(AND(O64="DI",MID(B64,3,3)="OHF"),VS!$M$11,SUMIF(VS!$D$3:$K$3,O64,VS!$D$11:$K$11)) -> 633.15 | Z64: =K64 -> 25 | AA64: =-PMT(disc_rate,Z64,Y64) -> 69.75291491
A65: ='WAPP Thermal Existing'!D234 -> CIVEPGASEXGTC3 | B65: =RIGHT(A65,LEN(A65)-3) -> EPGASEXGTC3 | C65: =VLOOKUP(MID(B65,3,3),NameConvs!$C$3:$E$19,lang+2,0)&"/"&OFFSET(NameConvs!$H$16,0,lang) -> Gas/Primary | D65: =OFFSET(NameConvs!$D$11,0,lang)&"/"&OFFSET(NameConvs!$H$17,0,lang) -> Electricity/Secondary | E65: a | F65: 1 | G65: =1/(VLOOKUP($A65,'WAPP Thermal Existing'!$D$1:$W$504,'WAPP Thermal Existing'!$K$4,0)/3.6) -> 0.2975206612 | H65: =VLOOKUP($A65,'WAPP Thermal Existing'!$D$1:$W$504,'WAPP Thermal Existing'!U$4,0)*8.76*$B$4 -> 21.9 | I65: =1-VLOOKUP($A65,'WAPP Thermal Existing'!$D$1:$W$504,'WAPP Thermal Existing'!Q$4,0) -> 0.95 | J65: =1-VLOOKUP($A65,'WAPP Thermal Existing'!$D$1:$W$504,'WAPP Thermal Existing'!S$4,0)/8760 -> 0.9273972603 | K65: 4 | L65: =VLOOKUP($A65,'WAPP Thermal Existing'!$D$1:$W$504,'WAPP Thermal Existing'!W$4,0)*$B$4 -> 0 | M65: 0 | N65: =VLOOKUP($A65,'WAPP Thermal Existing'!$D$1:$Y$504,'WAPP Thermal Existing'!Y$4,0) -> 2010 111 | O65: =MID(B65,8,2) -> GT | R65: 1 | S65: =IF(OR(MID(B65,3,1)="W",MID(B65,3,1)="S",MID(B65,3,1)="H",MID(B65,3,1)="B",MID(B65,3,2)="GE"),1,0) -> 0 | T65: =IF(V65="e-t",1,SUMIF(NameConvs!$B$57:$B$69,LEFT(A65,3),NameConvs!$H$57:$H$69)) -> 1 | U65: =VLOOKUP(C65,EnergyForms,2,FALSE) -> g-p | V65: =IF(ISNA(VLOOKUP(D65&"/"&LEFT(A65,3),EnergyForms2,2,FALSE)),VLOOKUP(D65,EnergyForms,2,FALSE),VLOOKUP(D65&"/"&LEFT(A65,3),EnergyForms2,2,FALSE)) -> e-B | W65: =SUMIF(MSG_Fueldata!$A$2:$A$202,LEFT($A65,3)&MID(B65,3,3),MSG_Fueldata!$E$2:$E$202)/$G65 -> 0 | X65: =SUMIF(MSG_Fueldata!$A$2:$A$202,LEFT($A65,3)&MID(B65,3,3),MSG_Fueldata!$F$2:$F$202)/$G65 -> 5.949166667 | Y65: =IF(AND(O65="DI",MID(B65,3,3)="OHF"),VS!$M$11,SUMIF(VS!$D$3:$K$3,O65,VS!$D$11:$K$11)) -> 633.15 | Z65: =K65 -> 4 | AA65: =-PMT(disc_rate,Z65,Y65) -> 199.7403394
A66: ='WAPP Thermal Existing'!D235 -> CIVEPGASEXGTAg | B66: =RIGHT(A66,LEN(A66)-3) -> EPGASEXGTAg | C66: =VLOOKUP(MID(B66,3,3),NameConvs!$C$3:$E$19,lang+2,0)&"/"&OFFSET(NameConvs!$H$16,0,lang) -> Gas/Primary | D66: =OFFSET(NameConvs!$D$11,0,lang)&"/"&OFFSET(NameConvs!$H$17,0,lang) -> Electricity/Secondary | E66: a | F66: 1 | G66: =1/(VLOOKUP($A66,'WAPP Thermal Existing'!$D$1:$W$504,'WAPP Thermal Existing'!$K$4,0)/3.6) -> 0.2975206612 | H66: =VLOOKUP($A66,'WAPP Thermal Existing'!$D$1:$W$504,'WAPP Thermal Existing'!U$4,0)*8.76*$B$4 -> 21.9 | I66: =1-VLOOKUP($A66,'WAPP Thermal Existing'!$D$1:$W$504,'WAPP Thermal Existing'!Q$4,0) -> 0.95 | J66: =1-VLOOKUP($A66,'WAPP Thermal Existing'!$D$1:$W$504,'WAPP Thermal Existing'!S$4,0)/8760 -> 0.9285388128 | K66: 3 | L66: =VLOOKUP($A66,'WAPP Thermal Existing'!$D$1:$W$504,'WAPP Thermal Existing'!W$4,0)*$B$4 -> 0 | M66: 0 | N66: =VLOOKUP($A66,'WAPP Thermal Existing'!$D$1:$Y$504,'WAPP Thermal Existing'!Y$4,0) -> 2010 70 | O66: =MID(B66,8,2) -> GT | R66: 1 | S66: =IF(OR(MID(B66,3,1)="W",MID(B66,3,1)="S",MID(B66,3,1)="H",MID(B66,3,1)="B",MID(B66,3,2)="GE"),1,0) -> 0 | T66: =IF(V66="e-t",1,SUMIF(NameConvs!$B$57:$B$69,LEFT(A66,3),NameConvs!$H$57:$H$69)) -> 1 | U66: =VLOOKUP(C66,EnergyForms,2,FALSE) -> g-p | V66: =IF(ISNA(VLOOKUP(D66&"/"&LEFT(A66,3),EnergyForms2,2,FALSE)),VLOOKUP(D66,EnergyForms,2,FALSE),VLOOKUP(D66&"/"&LEFT(A66,3),EnergyForms2,2,FALSE)) -> e-B | W66: =SUMIF(MSG_Fueldata!$A$2:$A$202,LEFT($A66,3)&MID(B66,3,3),MSG_Fueldata!$E$2:$E$202)/$G66 -> 0 | X66: =SUMIF(MSG_Fueldata!$A$2:$A$202,LEFT($A66,3)&MID(B66,3,3),MSG_Fueldata!$F$2:$F$202)/$G66 -> 5.949166667 | Y66: =IF(AND(O66="DI",MID(B66,3,3)="OHF"),VS!$M$11,SUMIF(VS!$D$3:$K$3,O66,VS!$D$11:$K$11)) -> 633.15 | Z66: =K66 -> 3 | AA66: =-PMT(disc_rate,Z66,Y66) -> 254.5989879
A67: ='WAPP Hydro Existing'!B141 -> CIVEPHYDEXDAAy1 | B67: EPHYDEXDAAy1 | C67: ="" ->  | D67: =OFFSET(NameConvs!$D$11,0,lang)&"/"&OFFSET(NameConvs!$H$17,0,lang) -> Electricity/Secondary | E67: a | F67: ="" ->  | G67: 1 | H67: =VLOOKUP($A67,'WAPP Hydro Existing'!$B$4:$S$300,'WAPP Hydro Existing'!$M$3,0)*8.76*$B$4 -> 17.52 | I67: =IF(VLOOKUP($A67,'WAPP Hydro Existing'!$B$4:$S$300,'WAPP Hydro Existing'!$E$3,0)="ROR",VLOOKUP($A67,'WAPP Hydro Existing'!$B$4:$T$300,'WAPP Hydro Existing'!$T$3,0),1-VLOOKUP($A67,'WAPP Hydro Existing'!$B$4:$T$300,'WAPP Hydro Existing'!$K$3,0)) -> 0.97 | J67: =IF(VLOOKUP($A67,'WAPP Hydro Existing'!$B$4:$S$300,'WAPP Hydro Existing'!$E$3,0)="ROR",1,VLOOKUP($A67,'WAPP Hydro Existing'!$B$4:$T$300,'WAPP Hydro Existing'!$T$3,0)/I67) -> 0.2795038366 | K67: =IF(VLOOKUP($A67,'WAPP Hydro Existing'!$B$4:$S$300,'WAPP Hydro Existing'!$I$3,0)="",100,VLOOKUP($A67,'WAPP Hydro Existing'!$B$4:$S$300,'WAPP Hydro Existing'!$I$3,0)-LEFT(N67,4)) -> 100 | L67: =VLOOKUP($A67,'WAPP Hydro Existing'!$B$4:$S$300,'WAPP Hydro Existing'!$N$3,0)*$B$4 -> 0 | M67: 0 | N67: =VLOOKUP($A67,'WAPP Hydro Existing'!$B$4:$S$300,'WAPP Hydro Existing'!$S$3,0) -> 1998 19.2 | O67: =MID(B67,3,3) -> HYD | R67: =R62 -> 1 | S67: 1 | T67: =IF(V67="e-t",1,SUMIF(NameConvs!$B$57:$B$69,LEFT(A67,3),NameConvs!$H$57:$H$69)) -> 1 | V67: =V62 -> e-B | W67: 0 | X67: 0 | Y67: =IF(AND(O67="DI",MID(B67,3,3)="OHF"),VS!$M$11,SUMIF(VS!$D$3:$K$3,O67,VS!$D$11:$K$11)) -> 2400 | Z67: =K67 -> 100 | AA67: 240.017417
A68: ='WAPP Hydro Existing'!B142 -> CIVEPHYDEXDAAy2 | B68: EPHYDEXDAAy2 | C68: ="" ->  | D68: =OFFSET(NameConvs!$D$11,0,lang)&"/"&OFFSET(NameConvs!$H$17,0,lang) -> Electricity/Secondary | E68: b | F68: ="" ->  | G68: 1 | H68: =VLOOKUP($A68,'WAPP Hydro Existing'!$B$4:$S$300,'WAPP Hydro Existing'!$M$3,0)*8.76*$B$4 -> 17.52 | I68: =IF(VLOOKUP($A68,'WAPP Hydro Existing'!$B$4:$S$300,'WAPP Hydro Existing'!$E$3,0)="ROR",VLOOKUP($A68,'WAPP Hydro Existing'!$B$4:$T$300,'WAPP Hydro Existing'!$T$3,0),1-VLOOKUP($A68,'WAPP Hydro Existing'!$B$4:$T$300,'WAPP Hydro Existing'!$K$3,0)) -> 0.97 | J68: =IF(VLOOKUP($A68,'WAPP Hydro Existing'!$B$4:$S$300,'WAPP Hydro Existing'!$E$3,0)="ROR",1,VLOOKUP($A68,'WAPP Hydro Existing'!$B$4:$T$300,'WAPP Hydro Existing'!$T$3,0)/I68) -> 0.2647931083 | K68: =IF(VLOOKUP($A68,'WAPP Hydro Existing'!$B$4:$S$300,'WAPP Hydro Existing'!$I$3,0)="",100,VLOOKUP($A68,'WAPP Hydro Existing'!$B$4:$S$300,'WAPP Hydro Existing'!$I$3,0)-LEFT(N68,4)) -> 100 | L68: =VLOOKUP($A68,'WAPP Hydro Existing'!$B$4:$S$300,'WAPP Hydro Existing'!$N$3,0)*$B$4 -> 0 | M68: 0 | N68: =VLOOKUP($A68,'WAPP Hydro Existing'!$B$4:$S$300,'WAPP Hydro Existing'!$S$3,0) -> 1998 30.4 | O68: HYD | R68: =R67 -> 1 | S68: 1 | T68: =IF(V68="e-t",1,SUMIF(NameConvs!$B$57:$B$69,LEFT(A68,3),NameConvs!$H$57:$H$69)) -> 1 | V68: =V67 -> e-B | W68: 0 | X68: 0 | Y68: =IF(AND(O68="DI",MID(B68,3,3)="OHF"),VS!$M$11,SUMIF(VS!$D$3:$K$3,O68,VS!$D$11:$K$11)) -> 2400 | Z68: 100 | AA68: 240.017417
A69: ='WAPP Hydro Existing'!B143 -> CIVEPHYDEXDABuy | B69: EPHYDEXDABuy | C69: ="" ->  | D69: =OFFSET(NameConvs!$D$11,0,lang)&"/"&OFFSET(NameConvs!$H$17,0,lang) -> Electricity/Secondary | E69: c | F69: ="" ->  | G69: 1 | H69: =VLOOKUP($A69,'WAPP Hydro Existing'!$B$4:$S$300,'WAPP Hydro Existing'!$M$3,0)*8.76*$B$4 -> 17.52 | I69: =IF(VLOOKUP($A69,'WAPP Hydro Existing'!$B$4:$S$300,'WAPP Hydro Existing'!$E$3,0)="ROR",VLOOKUP($A69,'WAPP Hydro Existing'!$B$4:$T$300,'WAPP Hydro Existing'!$T$3,0),1-VLOOKUP($A69,'WAPP Hydro Existing'!$B$4:$T$300,'WAPP Hydro Existing'!$K$3,0)) -> 0.97 | J69: =IF(VLOOKUP($A69,'WAPP Hydro Existing'!$B$4:$S$300,'WAPP Hydro Existing'!$E$3,0)="ROR",1,VLOOKUP($A69,'WAPP Hydro Existing'!$B$4:$T$300,'WAPP Hydro Existing'!$T$3,0)/I69) -> 0.4887498781 | K69: =IF(VLOOKUP($A69,'WAPP Hydro Existing'!$B$4:$S$300,'WAPP Hydro Existing'!$I$3,0)="",100,VLOOKUP($A69,'WAPP Hydro Existing'!$B$4:$S$300,'WAPP Hydro Existing'!$I$3,0)-LEFT(N69,4)) -> 100 | L69: =VLOOKUP($A69,'WAPP Hydro Existing'!$B$4:$S$300,'WAPP Hydro Existing'!$N$3,0)*$B$4 -> 0 | M69: 0 | N69: =VLOOKUP($A69,'WAPP Hydro Existing'!$B$4:$S$300,'WAPP Hydro Existing'!$S$3,0) -> 1980 164.7 | O69: HYD | R69: =R68 -> 1 | S69: 1 | T69: =IF(V69="e-t",1,SUMIF(NameConvs!$B$57:$B$69,LEFT(A69,3),NameConvs!$H$57:$H$69)) -> 1 | V69: =V68 -> e-B | W69: 0 | X69: 0 | Y69: =IF(AND(O69="DI",MID(B69,3,3)="OHF"),VS!$M$11,SUMIF(VS!$D$3:$K$3,O69,VS!$D$11:$K$11)) -> 2400 | Z69: 100 | AA69: 240.017417
A70: ='WAPP Hydro Existing'!B144 -> CIVEPHYDEXDAKos | B70: EPHYDEXDAKos | C70: ="" ->  | D70: =OFFSET(NameConvs!$D$11,0,lang)&"/"&OFFSET(NameConvs!$H$17,0,lang) -> Electricity/Secondary | E70: d | F70: ="" ->  | G70: 1 | H70: =VLOOKUP($A70,'WAPP Hydro Existing'!$B$4:$S$300,'WAPP Hydro Existing'!$M$3,0)*8.76*$B$4 -> 17.52 | I70: =IF(VLOOKUP($A70,'WAPP Hydro Existing'!$B$4:$S$300,'WAPP Hydro Existing'!$E$3,0)="ROR",VLOOKUP($A70,'WAPP Hydro Existing'!$B$4:$T$300,'WAPP Hydro Existing'!$T$3,0),1-VLOOKUP($A70,'WAPP Hydro Existing'!$B$4:$T$300,'WAPP Hydro Existing'!$K$3,0)) -> 0.97 | J70: =IF(VLOOKUP($A70,'WAPP Hydro Existing'!$B$4:$S$300,'WAPP Hydro Existing'!$E$3,0)="ROR",1,VLOOKUP($A70,'WAPP Hydro Existing'!$B$4:$T$300,'WAPP Hydro Existing'!$T$3,0)/I70) -> 0.2573664957 | K70: =IF(VLOOKUP($A70,'WAPP Hydro Existing'!$B$4:$S$300,'WAPP Hydro Existing'!$I$3,0)="",100,VLOOKUP($A70,'WAPP Hydro Existing'!$B$4:$S$300,'WAPP Hydro Existing'!$I$3,0)-LEFT(N70,4)) -> 100 | L70: =VLOOKUP($A70,'WAPP Hydro Existing'!$B$4:$S$300,'WAPP Hydro Existing'!$N$3,0)*$B$4 -> 0 | M70: 0 | N70: =VLOOKUP($A70,'WAPP Hydro Existing'!$B$4:$S$300,'WAPP Hydro Existing'!$S$3,0) -> 2004 175.5 | O70: HYD | R70: =R69 -> 1 | S70: 1 | T70: =IF(V70="e-t",1,SUMIF(NameConvs!$B$57:$B$69,LEFT(A70,3),NameConvs!$H$57:$H$69)) -> 1 | V70: =V69 -> e-B | W70: 0 | X70: 0 | Y70: =IF(AND(O70="DI",MID(B70,3,3)="OHF"),VS!$M$11,SUMIF(VS!$D$3:$K$3,O70,VS!$D$11:$K$11)) -> 2400 | Z70: 100 | AA70: 240.017417
A71: ='WAPP Hydro Existing'!B145 -> CIVEPHYDEXDATaa | B71: EPHYDEXDATaa | C71: ="" ->  | D71: =OFFSET(NameConvs!$D$11,0,lang)&"/"&OFFSET(NameConvs!$H$17,0,lang) -> Electricity/Secondary | E71: e | F71: ="" ->  | G71: 1 | H71: =VLOOKUP($A71,'WAPP Hydro Existing'!$B$4:$S$300,'WAPP Hydro Existing'!$M$3,0)*8.76*$B$4 -> 17.52 | I71: =IF(VLOOKUP($A71,'WAPP Hydro Existing'!$B$4:$S$300,'WAPP Hydro Existing'!$E$3,0)="ROR",VLOOKUP($A71,'WAPP Hydro Existing'!$B$4:$T$300,'WAPP Hydro Existing'!$T$3,0),1-VLOOKUP($A71,'WAPP Hydro Existing'!$B$4:$T$300,'WAPP Hydro Existing'!$K$3,0)) -> 0.97 | J71: =IF(VLOOKUP($A71,'WAPP Hydro Existing'!$B$4:$S$300,'WAPP Hydro Existing'!$E$3,0)="ROR",1,VLOOKUP($A71,'WAPP Hydro Existing'!$B$4:$T$300,'WAPP Hydro Existing'!$T$3,0)/I71) -> 0.4001318081 | K71: =IF(VLOOKUP($A71,'WAPP Hydro Existing'!$B$4:$S$300,'WAPP Hydro Existing'!$I$3,0)="",100,VLOOKUP($A71,'WAPP Hydro Existing'!$B$4:$S$300,'WAPP Hydro Existing'!$I$3,0)-LEFT(N71,4)) -> 100 | L71: =VLOOKUP($A71,'WAPP Hydro Existing'!$B$4:$S$300,'WAPP Hydro Existing'!$N$3,0)*$B$4 -> 0 | M71: 0 | N71: =VLOOKUP($A71,'WAPP Hydro Existing'!$B$4:$S$300,'WAPP Hydro Existing'!$S$3,0) -> 2004 190 | O71: HYD | R71: =R70 -> 1 | S71: 1 | T71: =IF(V71="e-t",1,SUMIF(NameConvs!$B$57:$B$69,LEFT(A71,3),NameConvs!$H$57:$H$69)) -> 1 | V71: =V70 -> e-B | W71: 0 | X71: 0 | Y71: =IF(AND(O71="DI",MID(B71,3,3)="OHF"),VS!$M$11,SUMIF(VS!$D$3:$K$3,O71,VS!$D$11:$K$11)) -> 2400 | Z71: 100 | AA71: 240.017417
A72: ='WAPP Hydro Existing'!B146 -> CIVEPHYDEXROFay | B72: EPHYDEXROFay | C72: ="" ->  | D72: =OFFSET(NameConvs!$D$11,0,lang)&"/"&OFFSET(NameConvs!$H$17,0,lang) -> Electricity/Secondary | E72: f | F72: ="" ->  | G72: 1 | H72: =VLOOKUP($A72,'WAPP Hydro Existing'!$B$4:$S$300,'WAPP Hydro Existing'!$M$3,0)*8.76*$B$4 -> 17.52 | I72: =IF(VLOOKUP($A72,'WAPP Hydro Existing'!$B$4:$S$300,'WAPP Hydro Existing'!$E$3,0)="ROR",VLOOKUP($A72,'WAPP Hydro Existing'!$B$4:$T$300,'WAPP Hydro Existing'!$T$3,0),1-VLOOKUP($A72,'WAPP Hydro Existing'!$B$4:$T$300,'WAPP Hydro Existing'!$K$3,0)) -> 0.3296803653 | J72: =IF(VLOOKUP($A72,'WAPP Hydro Existing'!$B$4:$S$300,'WAPP Hydro Existing'!$E$3,0)="ROR",1,VLOOKUP($A72,'WAPP Hydro Existing'!$B$4:$T$300,'WAPP Hydro Existing'!$T$3,0)/I72) -> 1 | K72: =IF(VLOOKUP($A72,'WAPP Hydro Existing'!$B$4:$S$300,'WAPP Hydro Existing'!$I$3,0)="",100,VLOOKUP($A72,'WAPP Hydro Existing'!$B$4:$S$300,'WAPP Hydro Existing'!$I$3,0)-LEFT(N72,4)) -> 100 | L72: =VLOOKUP($A72,'WAPP Hydro Existing'!$B$4:$S$300,'WAPP Hydro Existing'!$N$3,0)*$B$4 -> 0 | M72: 0 | N72: =VLOOKUP($A72,'WAPP Hydro Existing'!$B$4:$S$300,'WAPP Hydro Existing'!$S$3,0) -> 1984 5 | O72: HYD | R72: =R71 -> 1 | S72: =IF(OR(MID(B72,3,1)="W",MID(B72,3,1)="S",MID(B72,3,1)="H",MID(B72,3,1)="B",MID(B72,3,2)="GE"),1,0) -> 1 | T72: =IF(V72="e-t",1,SUMIF(NameConvs!$B$57:$B$69,LEFT(A72,3),NameConvs!$H$57:$H$69)) -> 1 | V72: =V71 -> e-B | W72: 0 | X72: 0 | Y72: =IF(AND(O72="DI",MID(B72,3,3)="OHF"),VS!$M$11,SUMIF(VS!$D$3:$K$3,O72,VS!$D$11:$K$11)) -> 2400 | Z72: 100 | AA72: 240.017417
A73: =LEFT(A72,3) -> CIV | B73: 11 | C73: =ROW()-B73-1 -> 61
A75: With country prefix | B75: ='WAPP Thermal Existing'!C263 -> Ghana | C75: =OFFSET(C$2,lang,0) -> Main Input | D75: Main Output | E75: name | F75: Main Input | G75: Main Output (switch c) | H75: var costs (switch c) | I75: plant factor | J75: operation time | K75: Plant life | L75: Fixed Costs | M75: bdc (up) | N75: hist. cap. (switch hc) | O75: technology type | W75: Fuel Costs | X75: emission factor | Y75: Investment cost | Z75: life | AA75: annualized cost
B76: =OFFSET(B$2,lang,0) -> MESSAGE Name | E76: alt | H76: US$'00/kWyr | L76: US$'00/kW/yr | M76: MW | N76: MW | U76: Input Fuel | V76: Output Fuel | W76: $/kWyr | X76: ton/kWyr | Y76: $/kW | AA76: $/kw-yr
A77: ='WAPP Thermal Existing'!D264 -> GHAEPOLCEXCC | B77: =RIGHT(A77,LEN(A77)-3) -> EPOLCEXCC | C77: =VLOOKUP(MID(B77,3,3),NameConvs!$C$3:$E$19,lang+2,0)&"/"&OFFSET(NameConvs!$H$16,0,lang) -> Crude/Primary | D77: =OFFSET(NameConvs!$D$11,0,lang)&"/"&OFFSET(NameConvs!$H$17,0,lang) -> Electricity/Secondary | E77: a | F77: 1 | G77: =1/(VLOOKUP($A77,'WAPP Thermal Existing'!$D$1:$W$504,'WAPP Thermal Existing'!$K$4,0)/3.6) -> 0.4137931034 | H77: =VLOOKUP($A77,'WAPP Thermal Existing'!$D$1:$W$504,'WAPP Thermal Existing'!U$4,0)*8.76*$B$4 -> 43.8 | I77: =1-VLOOKUP($A77,'WAPP Thermal Existing'!$D$1:$W$504,'WAPP Thermal Existing'!Q$4,0) -> 0.782 | J77: =1-VLOOKUP($A77,'WAPP Thermal Existing'!$D$1:$W$504,'WAPP Thermal Existing'!S$4,0)/8760 -> 0.9178082192 | K77: =IF(VLOOKUP($A77,'WAPP Thermal Existing'!$D$1:$W$504,'WAPP Thermal Existing'!N$4,0)="",SUMIF(VS!$D$3:$K$3,MID(B77,8,2),VS!$D$6:$K$6),VLOOKUP($A77,'WAPP Thermal Existing'!$D$1:$W$504,'WAPP Thermal Existing'!N$4,0)-LEFT(N77,4)) -> 25 | L77: =VLOOKUP($A77,'WAPP Thermal Existing'!$D$1:$W$504,'WAPP Thermal Existing'!W$4,0)*$B$4 -> 0 | M77: 0 | N77: =VLOOKUP($A77,'WAPP Thermal Existing'!$D$1:$Y$504,'WAPP Thermal Existing'!Y$4,0) -> 1998 300 | O77: =MID(B77,8,2) -> CC | R77: 1 | S77: =IF(OR(MID(B77,3,1)="W",MID(B77,3,1)="S",MID(B77,3,1)="H",MID(B77,3,1)="B",MID(B77,3,2)="GE"),1,0) -> 0 | T77: =IF(V77="e-t",1,SUMIF(NameConvs!$B$57:$B$69,LEFT(A77,3),NameConvs!$H$57:$H$69)) -> 1 | U77: =VLOOKUP(C77,EnergyForms,2,FALSE) -> p-p | V77: =IF(ISNA(VLOOKUP(D77&"/"&LEFT(A77,3),EnergyForms2,2,FALSE)),VLOOKUP(D77,EnergyForms,2,FALSE),VLOOKUP(D77&"/"&LEFT(A77,3),EnergyForms2,2,FALSE)) -> e-D | W77: =SUMIF(MSG_Fueldata!$A$2:$A$202,LEFT($A77,3)&MID(B77,3,3),MSG_Fueldata!$E$2:$E$202)/$G77 -> 0 | X77: =SUMIF(MSG_Fueldata!$A$2:$A$202,LEFT($A77,3)&MID(B77,3,3),MSG_Fueldata!$F$2:$F$202)/$G77 -> 5.58862596 | Y77: =IF(AND(O77="DI",MID(B77,3,3)="OHF"),VS!$M$11,SUMIF(VS!$D$3:$K$3,O77,VS!$D$11:$K$11)) -> 956.5696 | Z77: =K77 -> 25 | AA77: =-PMT(disc_rate,Z77,Y77) -> 105.3834287
A78: ='WAPP Thermal Existing'!D265 -> GHAEPOLCEXGT | B78: EPOLCEXGT | C78: =VLOOKUP(MID(B78,3,3),NameConvs!$C$3:$E$19,lang+2,0)&"/"&OFFSET(NameConvs!$H$16,0,lang) -> Crude/Primary | D78: =OFFSET(NameConvs!$D$11,0,lang)&"/"&OFFSET(NameConvs!$H$17,0,lang) -> Electricity/Secondary | E78: b | F78: 1 | G78: =1/(VLOOKUP($A78,'WAPP Thermal Existing'!$D$1:$W$504,'WAPP Thermal Existing'!$K$4,0)/3.6) -> 0.2872340426 | H78: =VLOOKUP($A78,'WAPP Thermal Existing'!$D$1:$W$504,'WAPP Thermal Existing'!U$4,0)*8.76*$B$4 -> 56.94 | I78: =1-VLOOKUP($A78,'WAPP Thermal Existing'!$D$1:$W$504,'WAPP Thermal Existing'!Q$4,0) -> 0.874 | J78: =1-VLOOKUP($A78,'WAPP Thermal Existing'!$D$1:$W$504,'WAPP Thermal Existing'!S$4,0)/8760 -> 0.9342465753 | K78: 13 | L78: =VLOOKUP($A78,'WAPP Thermal Existing'!$D$1:$W$504,'WAPP Thermal Existing'!W$4,0)*$B$4 -> 0 | M78: 0 | N78: =VLOOKUP($A78,'WAPP Thermal Existing'!$D$1:$Y$504,'WAPP Thermal Existing'!Y$4,0) -> 2001 300 | O78: =MID(B78,8,2) -> GT | R78: =R77 -> 1 | S78: 0 | T78: =IF(V78="e-t",1,SUMIF(NameConvs!$B$57:$B$69,LEFT(A78,3),NameConvs!$H$57:$H$69)) -> 1 | U78: =VLOOKUP(C78,EnergyForms,2,FALSE) -> p-p | V78: =IF(ISNA(VLOOKUP(D78&"/"&LEFT(A78,3),EnergyForms2,2,FALSE)),VLOOKUP(D78,EnergyForms,2,FALSE),VLOOKUP(D78&"/"&LEFT(A78,3),EnergyForms2,2,FALSE)) -> e-D | W78: =SUMIF(MSG_Fueldata!$A$2:$A$202,LEFT($A78,3)&MID(B78,3,3),MSG_Fueldata!$E$2:$E$202)/$G78 -> 0 | X78: =SUMIF(MSG_Fueldata!$A$2:$A$202,LEFT($A78,3)&MID(B78,3,3),MSG_Fueldata!$F$2:$F$202)/$G78 -> 8.05104736 | Y78: =IF(AND(O78="DI",MID(B78,3,3)="OHF"),VS!$M$11,SUMIF(VS!$D$3:$K$3,O78,VS!$D$11:$K$11)) -> 633.15 | Z78: 13 | AA78: 89.13392232
A79: ='WAPP Thermal Existing'!D266 -> GHAEPODSEXGT | B79: EPODSEXGT | C79: =VLOOKUP(MID(B79,3,3),NameConvs!$C$3:$E$19,lang+2,0)&"/"&OFFSET(NameConvs!$H$16,0,lang) -> Diesel/Primary | D79: =OFFSET(NameConvs!$D$11,0,lang)&"/"&OFFSET(NameConvs!$H$17,0,lang) -> Electricity/Secondary | E79: a | F79: 1 | G79: =1/(VLOOKUP($A79,'WAPP Thermal Existing'!$D$1:$W$504,'WAPP Thermal Existing'!$K$4,0)/3.6) -> 0.2919847328 | H79: =VLOOKUP($A79,'WAPP Thermal Existing'!$D$1:$W$504,'WAPP Thermal Existing'!U$4,0)*8.76*$B$4 -> 39.42 | I79: =1-VLOOKUP($A79,'WAPP Thermal Existing'!$D$1:$W$504,'WAPP Thermal Existing'!Q$4,0) -> 0.8596470588 | J79: =1-VLOOKUP($A79,'WAPP Thermal Existing'!$D$1:$W$504,'WAPP Thermal Existing'!S$4,0)/8760 -> 0.9342465753 | K79: =IF(VLOOKUP($A79,'WAPP Thermal Existing'!$D$1:$W$504,'WAPP Thermal Existing'!N$4,0)="",SUMIF(VS!$D$3:$K$3,MID(B79,8,2),VS!$D$6:$K$6),VLOOKUP($A79,'WAPP Thermal Existing'!$D$1:$W$504,'WAPP Thermal Existing'!N$4,0)-LEFT(N79,4)) -> 25 | L79: =VLOOKUP($A79,'WAPP Thermal Existing'!$D$1:$W$504,'WAPP Thermal Existing'!W$4,0)*$B$4 -> 0 | M79: 0 | N79: =VLOOKUP($A79,'WAPP Thermal Existing'!$D$1:$Y$504,'WAPP Thermal Existing'!Y$4,0) -> 2007 40 2010 45 | O79: =MID(B79,8,2) -> GT | R79: =R78 -> 1 | S79: 0 | T79: =IF(V79="e-t",1,SUMIF(NameConvs!$B$57:$B$69,LEFT(A79,3),NameConvs!$H$57:$H$69)) -> 1 | U79: =VLOOKUP(C79,EnergyForms,2,FALSE) -> o-p | V79: =IF(ISNA(VLOOKUP(D79&"/"&LEFT(A79,3),EnergyForms2,2,FALSE)),VLOOKUP(D79,EnergyForms,2,FALSE),VLOOKUP(D79&"/"&LEFT(A79,3),EnergyForms2,2,FALSE)) -> e-D | W79: =SUMIF(MSG_Fueldata!$A$2:$A$202,LEFT($A79,3)&MID(B79,3,3),MSG_Fueldata!$E$2:$E$202)/$G79 -> 0 | X79: =SUMIF(MSG_Fueldata!$A$2:$A$202,LEFT($A79,3)&MID(B79,3,3),MSG_Fueldata!$F$2:$F$202)/$G79 -> 7.999978278 | Y79: =IF(AND(O79="DI",MID(B79,3,3)="OHF"),VS!$M$11,SUMIF(VS!$D$3:$K$3,O79,VS!$D$11:$K$11)) -> 633.15 | Z79: 25 | AA79: 69.75291491
A80: ='WAPP Thermal Existing'!D267 -> GHAEPGASEXCC | B80: EPGASEXCC | C80: =VLOOKUP(MID(B80,3,3),NameConvs!$C$3:$E$19,lang+2,0)&"/"&OFFSET(NameConvs!$H$16,0,lang) -> Gas/Primary | D80: =OFFSET(NameConvs!$D$11,0,lang)&"/"&OFFSET(NameConvs!$H$17,0,lang) -> Electricity/Secondary | E80: a | F80: 1 | G80: =1/(VLOOKUP($A80,'WAPP Thermal Existing'!$D$1:$W$504,'WAPP Thermal Existing'!$K$4,0)/3.6) -> 0.4390243902 | H80: =VLOOKUP($A80,'WAPP Thermal Existing'!$D$1:$W$504,'WAPP Thermal Existing'!U$4,0)*8.76*$B$4 -> 17.52 | I80: =1-VLOOKUP($A80,'WAPP Thermal Existing'!$D$1:$W$504,'WAPP Thermal Existing'!Q$4,0) -> 0.926 | J80: =1-VLOOKUP($A80,'WAPP Thermal Existing'!$D$1:$W$504,'WAPP Thermal Existing'!S$4,0)/8760 -> 0.9178082192 | K80: =IF(VLOOKUP($A80,'WAPP Thermal Existing'!$D$1:$W$504,'WAPP Thermal Existing'!N$4,0)="",SUMIF(VS!$D$3:$K$3,MID(B80,8,2),VS!$D$6:$K$6),VLOOKUP($A80,'WAPP Thermal Existing'!$D$1:$W$504,'WAPP Thermal Existing'!N$4,0)-LEFT(N80,4)) -> 25 | L80: =VLOOKUP($A80,'WAPP Thermal Existing'!$D$1:$W$504,'WAPP Thermal Existing'!W$4,0)*$B$4 -> 0 | M80: 0 | N80: =VLOOKUP($A80,'WAPP Thermal Existing'!$D$1:$Y$504,'WAPP Thermal Existing'!Y$4,0) -> 2010 180 | O80: =MID(B80,8,2) -> CC | R80: =R79 -> 1 | S80: 0 | T80: =IF(V80="e-t",1,SUMIF(NameConvs!$B$57:$B$69,LEFT(A80,3),NameConvs!$H$57:$H$69)) -> 1 | U80: =VLOOKUP(C80,EnergyForms,2,FALSE) -> g-p | V80: =IF(ISNA(VLOOKUP(D80&"/"&LEFT(A80,3),EnergyForms2,2,FALSE)),VLOOKUP(D80,EnergyForms,2,FALSE),VLOOKUP(D80&"/"&LEFT(A80,3),EnergyForms2,2,FALSE)) -> e-D | W80: =SUMIF(MSG_Fueldata!$A$2:$A$202,LEFT($A80,3)&MID(B80,3,3),MSG_Fueldata!$E$2:$E$202)/$G80 -> 0 | X80: =SUMIF(MSG_Fueldata!$A$2:$A$202,LEFT($A80,3)&MID(B80,3,3),MSG_Fueldata!$F$2:$F$202)/$G80 -> 4.031666667 | Y80: =IF(AND(O80="DI",MID(B80,3,3)="OHF"),VS!$M$11,SUMIF(VS!$D$3:$K$3,O80,VS!$D$11:$K$11)) -> 956.5696 | Z80: 25 | AA80: 105.3834287
A81: ='WAPP Hydro Existing'!B168 -> GHAEPHYDEXDAAko | B81: EPHYDEXDAAko | C81: ="" ->  | D81: =OFFSET(NameConvs!$D$11,0,lang)&"/"&OFFSET(NameConvs!$H$17,0,lang) -> Electricity/Secondary | E81: a | F81: ="" ->  | G81: 1 | H81: =VLOOKUP($A81,'WAPP Hydro Existing'!$B$4:$S$300,'WAPP Hydro Existing'!$M$3,0)*8.76*$B$4 -> 0 | I81: =IF(VLOOKUP($A81,'WAPP Hydro Existing'!$B$4:$S$300,'WAPP Hydro Existing'!$E$3,0)="ROR",VLOOKUP($A81,'WAPP Hydro Existing'!$B$4:$T$300,'WAPP Hydro Existing'!$T$3,0),1-VLOOKUP($A81,'WAPP Hydro Existing'!$B$4:$T$300,'WAPP Hydro Existing'!$K$3,0)) -> 0.98 | J81: =IF(VLOOKUP($A81,'WAPP Hydro Existing'!$B$4:$S$300,'WAPP Hydro Existing'!$E$3,0)="ROR",1,VLOOKUP($A81,'WAPP Hydro Existing'!$B$4:$T$300,'WAPP Hydro Existing'!$T$3,0)/I81) -> 0.4012259394 | K81: =IF(VLOOKUP($A81,'WAPP Hydro Existing'!$B$4:$S$300,'WAPP Hydro Existing'!$I$3,0)="",100,VLOOKUP($A81,'WAPP Hydro Existing'!$B$4:$S$300,'WAPP Hydro Existing'!$I$3,0)-LEFT(N81,4)) -> 100 | L81: =VLOOKUP($A81,'WAPP Hydro Existing'!$B$4:$S$300,'WAPP Hydro Existing'!$N$3,0)*$B$4 -> 0 | M81: 0 | N81: =VLOOKUP($A81,'WAPP Hydro Existing'!$B$4:$S$300,'WAPP Hydro Existing'!$S$3,0) -> 2005 900 | O81: =MID(B81,3,3) -> HYD | R81: =R80 -> 1 | S81: 1 | T81: =IF(V81="e-t",1,SUMIF(NameConvs!$B$57:$B$69,LEFT(A81,3),NameConvs!$H$57:$H$69)) -> 1 | V81: =V80 -> e-D | W81: 0 | X81: 0 | Y81: =IF(AND(O81="DI",MID(B81,3,3)="OHF"),VS!$M$11,SUMIF(VS!$D$3:$K$3,O81,VS!$D$11:$K$11)) -> 2400 | Z81: 100 | AA81: 240.017417
A82: ='WAPP Hydro Existing'!B169 -> GHAEPHYDEXROKpo | B82: EPHYDEXROKpo | C82: ="" ->  | D82: =OFFSET(NameConvs!$D$11,0,lang)&"/"&OFFSET(NameConvs!$H$17,0,lang) -> Electricity/Secondary | E82: b | F82: ="" ->  | G82: 1 | H82: =VLOOKUP($A82,'WAPP Hydro Existing'!$B$4:$S$300,'WAPP Hydro Existing'!$M$3,0)*8.76*$B$4 -> 0.876 | I82: =IF(VLOOKUP($A82,'WAPP Hydro Existing'!$B$4:$S$300,'WAPP Hydro Existing'!$E$3,0)="ROR",VLOOKUP($A82,'WAPP Hydro Existing'!$B$4:$T$300,'WAPP Hydro Existing'!$T$3,0),1-VLOOKUP($A82,'WAPP Hydro Existing'!$B$4:$T$300,'WAPP Hydro Existing'!$K$3,0)) -> 0.4930872653 | J82: =IF(VLOOKUP($A82,'WAPP Hydro Existing'!$B$4:$S$300,'WAPP Hydro Existing'!$E$3,0)="ROR",1,VLOOKUP($A82,'WAPP Hydro Existing'!$B$4:$T$300,'WAPP Hydro Existing'!$T$3,0)/I82) -> 1 | K82: =IF(VLOOKUP($A82,'WAPP Hydro Existing'!$B$4:$S$300,'WAPP Hydro Existing'!$I$3,0)="",100,VLOOKUP($A82,'WAPP Hydro Existing'!$B$4:$S$300,'WAPP Hydro Existing'!$I$3,0)-LEFT(N82,4)) -> 100 | L82: =VLOOKUP($A82,'WAPP Hydro Existing'!$B$4:$S$300,'WAPP Hydro Existing'!$N$3,0)*$B$4 -> 0 | M82: 0 | N82: =VLOOKUP($A82,'WAPP Hydro Existing'!$B$4:$S$300,'WAPP Hydro Existing'!$S$3,0) -> 1982 144 | O82: =MID(B82,3,3) -> HYD | R82: =R81 -> 1 | S82: 1 | T82: =IF(V82="e-t",1,SUMIF(NameConvs!$B$57:$B$69,LEFT(A82,3),NameConvs!$H$57:$H$69)) -> 1 | V82: =V81 -> e-D | W82: 0 | X82: 0 | Y82: =IF(AND(O82="DI",MID(B82,3,3)="OHF"),VS!$M$11,SUMIF(VS!$D$3:$K$3,O82,VS!$D$11:$K$11)) -> 2400 | Z82: 100 | AA82: 240.017417
A83: =LEFT(A82,3) -> GHA | B83: 6 | C83: =ROW()-B83-1 -> 76
A85: With country prefix | B85: ='WAPP Thermal Existing'!C295 -> Togo/Benin | C85: =OFFSET(C$2,lang,0) -> Main Input | D85: Main Output | E85: name | F85: Main Input | G85: Main Output (switch c) | H85: var costs (switch c) | I85: plant factor | J85: operation time | K85: Plant life | L85: Fixed Costs | M85: bdc (up) | N85: hist. cap. (switch hc) | O85: technology type | W85: Fuel Costs | X85: emission factor | Y85: Investment cost | Z85: life | AA85: annualized cost
B86: =OFFSET(B$2,lang,0) -> MESSAGE Name | E86: alt | H86: US$'00/kWyr | L86: US$'00/kW/yr | M86: MW | N86: MW | U86: Input Fuel | V86: Output Fuel | W86: $/kWyr | X86: ton/kWyr | Y86: $/kW | AA86: $/kw-yr
A87: ='WAPP Thermal Existing'!D296 -> TBNEPGASEXGT | B87: =RIGHT(A87,LEN(A87)-3) -> EPGASEXGT | C87: =VLOOKUP(MID(B87,3,3),NameConvs!$C$3:$E$19,lang+2,0)&"/"&OFFSET(NameConvs!$H$16,0,lang) -> Gas/Primary | D87: =OFFSET(NameConvs!$D$11,0,lang)&"/"&OFFSET(NameConvs!$H$17,0,lang) -> Electricity/Secondary | E87: a | F87: 1 | G87: =1/(VLOOKUP($A87,'WAPP Thermal Existing'!$D$1:$W$504,'WAPP Thermal Existing'!$K$4,0)/3.6) -> 0.2706532736 | H87: =VLOOKUP($A87,'WAPP Thermal Existing'!$D$1:$W$504,'WAPP Thermal Existing'!U$4,0)*8.76*$B$4 -> 21.9 | I87: =1-VLOOKUP($A87,'WAPP Thermal Existing'!$D$1:$W$504,'WAPP Thermal Existing'!Q$4,0) -> 0.92 | J87: =1-VLOOKUP($A87,'WAPP Thermal Existing'!$D$1:$W$504,'WAPP Thermal Existing'!S$4,0)/8760 -> 0.9300228311 | K87: =IF(VLOOKUP($A87,'WAPP Thermal Existing'!$D$1:$W$504,'WAPP Thermal Existing'!N$4,0)="",SUMIF(VS!$D$3:$K$3,MID(B87,8,2),VS!$D$6:$K$6),VLOOKUP($A87,'WAPP Thermal Existing'!$D$1:$W$504,'WAPP Thermal Existing'!N$4,0)-LEFT(N87,4)) -> 27 | L87: =VLOOKUP($A87,'WAPP Thermal Existing'!$D$1:$W$504,'WAPP Thermal Existing'!W$4,0)*$B$4 -> 0 | M87: 0 | N87: =VLOOKUP($A87,'WAPP Thermal Existing'!$D$1:$Y$504,'WAPP Thermal Existing'!Y$4,0) -> 1998 40 2010 99.732 | O87: =MID(B87,8,2) -> GT | R87: 1 | S87: =IF(OR(MID(B87,3,1)="W",MID(B87,3,1)="S",MID(B87,3,1)="H",MID(B87,3,1)="B",MID(B87,3,2)="GE"),1,0) -> 0 | T87: =IF(V87="e-t",1,SUMIF(NameConvs!$B$57:$B$69,LEFT(A87,3),NameConvs!$H$57:$H$69)) -> 1 | U87: =VLOOKUP(C87,EnergyForms,2,FALSE) -> g-p | V87: =IF(ISNA(VLOOKUP(D87&"/"&LEFT(A87,3),EnergyForms2,2,FALSE)),VLOOKUP(D87,EnergyForms,2,FALSE),VLOOKUP(D87&"/"&LEFT(A87,3),EnergyForms2,2,FALSE)) -> e-M | W87: =SUMIF(MSG_Fueldata!$A$2:$A$202,LEFT($A87,3)&MID(B87,3,3),MSG_Fueldata!$E$2:$E$202)/$G87 -> 0 | X87: =SUMIF(MSG_Fueldata!$A$2:$A$202,LEFT($A87,3)&MID(B87,3,3),MSG_Fueldata!$F$2:$F$202)/$G87 -> 6.539732464 | Y87: =IF(AND(O87="DI",MID(B87,3,3)="OHF"),VS!$M$11,SUMIF(VS!$D$3:$K$3,O87,VS!$D$11:$K$11)) -> 633.15 | Z87: =K87 -> 27 | AA87: =-PMT(disc_rate,Z87,Y87) -> 68.54332621
A88: ='WAPP Thermal Existing'!D297 -> TBNEPODSEXDI | B88: =RIGHT(A88,LEN(A88)-3) -> EPODSEXDI | C88: =VLOOKUP(MID(B88,3,3),NameConvs!$C$3:$E$19,lang+2,0)&"/"&OFFSET(NameConvs!$H$16,0,lang) -> Diesel/Primary | D88: =OFFSET(NameConvs!$D$11,0,lang)&"/"&OFFSET(NameConvs!$H$17,0,lang) -> Electricity/Secondary | E88: a | F88: 1 | G88: =1/(VLOOKUP($A88,'WAPP Thermal Existing'!$D$1:$W$504,'WAPP Thermal Existing'!$K$4,0)/3.6) -> 0.3380435774 | H88: =VLOOKUP($A88,'WAPP Thermal Existing'!$D$1:$W$504,'WAPP Thermal Existing'!U$4,0)*8.76*$B$4 -> 87.6 | I88: =1-VLOOKUP($A88,'WAPP Thermal Existing'!$D$1:$W$504,'WAPP Thermal Existing'!Q$4,0) -> 0.9 | J88: =1-VLOOKUP($A88,'WAPP Thermal Existing'!$D$1:$W$504,'WAPP Thermal Existing'!S$4,0)/8760 -> 0.8904109589 | K88: =IF(VLOOKUP($A88,'WAPP Thermal Existing'!$D$1:$W$504,'WAPP Thermal Existing'!N$4,0)="",SUMIF(VS!$D$3:$K$3,MID(B88,8,2),VS!$D$6:$K$6),VLOOKUP($A88,'WAPP Thermal Existing'!$D$1:$W$504,'WAPP Thermal Existing'!N$4,0)-LEFT(N88,4)) -> 45 | L88: =VLOOKUP($A88,'WAPP Thermal Existing'!$D$1:$W$504,'WAPP Thermal Existing'!W$4,0)*$B$4 -> 0 | M88: 0 | N88: =VLOOKUP($A88,'WAPP Thermal Existing'!$D$1:$Y$504,'WAPP Thermal Existing'!Y$4,0) -> 1968 4 | O88: =MID(B88,8,2) -> DI | R88: =R87 -> 1 | S88: =IF(OR(MID(B88,3,1)="W",MID(B88,3,1)="S",MID(B88,3,1)="H",MID(B88,3,1)="B",MID(B88,3,2)="GE"),1,0) -> 0 | T88: =IF(V88="e-t",1,SUMIF(NameConvs!$B$57:$B$69,LEFT(A88,3),NameConvs!$H$57:$H$69)) -> 1 | U88: =VLOOKUP(C88,EnergyForms,2,FALSE) -> o-p | V88: =IF(ISNA(VLOOKUP(D88&"/"&LEFT(A88,3),EnergyForms2,2,FALSE)),VLOOKUP(D88,EnergyForms,2,FALSE),VLOOKUP(D88&"/"&LEFT(A88,3),EnergyForms2,2,FALSE)) -> e-M | W88: =SUMIF(MSG_Fueldata!$A$2:$A$202,LEFT($A88,3)&MID(B88,3,3),MSG_Fueldata!$E$2:$E$202)/$G88 -> 0 | X88: =SUMIF(MSG_Fueldata!$A$2:$A$202,LEFT($A88,3)&MID(B88,3,3),MSG_Fueldata!$F$2:$F$202)/$G88 -> 6.909971603 | Y88: =IF(AND(O88="DI",MID(B88,3,3)="OHF"),VS!$M$11,SUMIF(VS!$D$3:$K$3,O88,VS!$D$11:$K$11)) -> 1123.5 | Z88: =K88 -> 45 | AA88: =-PMT(disc_rate,Z88,Y88) -> 113.9127938
A89: ='WAPP Thermal Existing'!D298 -> TBNEPOHFEXDI | B89: =RIGHT(A89,LEN(A89)-3) -> EPOHFEXDI | C89: =VLOOKUP(MID(B89,3,3),NameConvs!$C$3:$E$19,lang+2,0)&"/"&OFFSET(NameConvs!$H$16,0,lang) -> HFO/Primary | D89: =OFFSET(NameConvs!$D$11,0,lang)&"/"&OFFSET(NameConvs!$H$17,0,lang) -> Electricity/Secondary | E89: a | F89: 1 | G89: =1/(VLOOKUP($A89,'WAPP Thermal Existing'!$D$1:$W$504,'WAPP Thermal Existing'!$K$4,0)/3.6) -> 0.2790697674 | H89: =VLOOKUP($A89,'WAPP Thermal Existing'!$D$1:$W$504,'WAPP Thermal Existing'!U$4,0)*8.76*$B$4 -> 87.6 | I89: =1-VLOOKUP($A89,'WAPP Thermal Existing'!$D$1:$W$504,'WAPP Thermal Existing'!Q$4,0) -> 0.9 | J89: =1-VLOOKUP($A89,'WAPP Thermal Existing'!$D$1:$W$504,'WAPP Thermal Existing'!S$4,0)/8760 -> 0.8904109589 | K89: =IF(VLOOKUP($A89,'WAPP Thermal Existing'!$D$1:$W$504,'WAPP Thermal Existing'!N$4,0)="",SUMIF(VS!$D$3:$K$3,MID(B89,8,2),VS!$D$6:$K$6),VLOOKUP($A89,'WAPP Thermal Existing'!$D$1:$W$504,'WAPP Thermal Existing'!N$4,0)-LEFT(N89,4)) -> 36 | L89: =VLOOKUP($A89,'WAPP Thermal Existing'!$D$1:$W$504,'WAPP Thermal Existing'!W$4,0)*$B$4 -> 0 | M89: 0 | N89: =VLOOKUP($A89,'WAPP Thermal Existing'!$D$1:$Y$504,'WAPP Thermal Existing'!Y$4,0) -> 1979 5 | O89: =MID(B89,8,2) -> DI | R89: =R88 -> 1 | S89: =IF(OR(MID(B89,3,1)="W",MID(B89,3,1)="S",MID(B89,3,1)="H",MID(B89,3,1)="B",MID(B89,3,2)="GE"),1,0) -> 0 | T89: =IF(V89="e-t",1,SUMIF(NameConvs!$B$57:$B$69,LEFT(A89,3),NameConvs!$H$57:$H$69)) -> 1 | U89: =VLOOKUP(C89,EnergyForms,2,FALSE) -> h-p | V89: =IF(ISNA(VLOOKUP(D89&"/"&LEFT(A89,3),EnergyForms2,2,FALSE)),VLOOKUP(D89,EnergyForms,2,FALSE),VLOOKUP(D89&"/"&LEFT(A89,3),EnergyForms2,2,FALSE)) -> e-M | W89: =SUMIF(MSG_Fueldata!$A$2:$A$202,LEFT($A89,3)&MID(B89,3,3),MSG_Fueldata!$E$2:$E$202)/$G89 -> 0 | X89: =SUMIF(MSG_Fueldata!$A$2:$A$202,LEFT($A89,3)&MID(B89,3,3),MSG_Fueldata!$F$2:$F$202)/$G89 -> 9.11603268 | Y89: =IF(AND(O89="DI",MID(B89,3,3)="OHF"),VS!$M$11,SUMIF(VS!$D$3:$K$3,O89,VS!$D$11:$K$11)) -> 1417.5 | Z89: =K89 -> 36 | AA89: =-PMT(disc_rate,Z89,Y89) -> 146.488793
A90: ='WAPP Hydro Existing'!B183 -> TBNEPHYDEXDANan | B90: =RIGHT(A90,LEN(A90)-3) -> EPHYDEXDANan | C90: ="" ->  | D90: =OFFSET(NameConvs!$D$11,0,lang)&"/"&OFFSET(NameConvs!$H$17,0,lang) -> Electricity/Secondary | E90: a | F90: ="" ->  | G90: 1 | H90: =VLOOKUP($A90,'WAPP Hydro Existing'!$B$4:$S$300,'WAPP Hydro Existing'!$M$3,0)*8.76*$B$4 -> 0 | I90: =IF(VLOOKUP($A90,'WAPP Hydro Existing'!$B$4:$S$300,'WAPP Hydro Existing'!$E$3,0)="ROR",VLOOKUP($A90,'WAPP Hydro Existing'!$B$4:$T$300,'WAPP Hydro Existing'!$T$3,0),1-VLOOKUP($A90,'WAPP Hydro Existing'!$B$4:$T$300,'WAPP Hydro Existing'!$K$3,0)) -> 0.95 | J90: =IF(VLOOKUP($A90,'WAPP Hydro Existing'!$B$4:$S$300,'WAPP Hydro Existing'!$E$3,0)="ROR",1,VLOOKUP($A90,'WAPP Hydro Existing'!$B$4:$T$300,'WAPP Hydro Existing'!$T$3,0)/I90) -> 0.1682287912 | K90: =IF(VLOOKUP($A90,'WAPP Hydro Existing'!$B$4:$S$300,'WAPP Hydro Existing'!$I$3,0)="",100,VLOOKUP($A90,'WAPP Hydro Existing'!$B$4:$S$300,'WAPP Hydro Existing'!$I$3,0)-LEFT(N90,4)) -> 100 | L90: =VLOOKUP($A90,'WAPP Hydro Existing'!$B$4:$S$300,'WAPP Hydro Existing'!$N$3,0)*$B$4 -> 0 | M90: 0 | N90: =VLOOKUP($A90,'WAPP Hydro Existing'!$B$4:$S$300,'WAPP Hydro Existing'!$S$3,0) -> 1987 65 | O90: =MID(B90,3,3) -> HYD | R90: =R89 -> 1 | S90: =IF(OR(MID(B90,3,1)="W",MID(B90,3,1)="S",MID(B90,3,1)="H",MID(B90,3,1)="B",MID(B90,3,2)="GE"),1,0) -> 1 | T90: =IF(V90="e-t",1,SUMIF(NameConvs!$B$57:$B$69,LEFT(A90,3),NameConvs!$H$57:$H$69)) -> 1 | V90: =V89 -> e-M | W90: 0 | X90: 0 | Y90: =IF(AND(O90="DI",MID(B90,3,3)="OHF"),VS!$M$11,SUMIF(VS!$D$3:$K$3,O90,VS!$D$11:$K$11)) -> 2400 | Z90: =K90 -> 100 | AA90: =-PMT(disc_rate,Z90,Y90) -> 240.017417
A91: =LEFT(A90,3) -> TBN | B91: 4 | C91: =ROW()-B91-1 -> 86
A93: With country prefix | B93: ='WAPP Thermal Existing'!C356 -> Burkina | C93: =OFFSET(C$2,lang,0) -> Main Input | D93: Main Output | E93: name | F93: Main Input | G93: Main Output (switch c) | H93: var costs (switch c) | I93: plant factor | J93: operation time | K93: Plant life | L93: Fixed Costs | M93: bdc (up) | N93: hist. cap. (switch hc) | O93: technology type | W93: Fuel Costs | X93: emission factor | Y93: Investment cost | Z93: life | AA93: annualized cost
B94: =OFFSET(B$2,lang,0) -> MESSAGE Name | E94: alt | H94: US$'00/kWyr | L94: US$'00/kW/yr | M94: MW | N94: MW | U94: Input Fuel | V94: Output Fuel | W94: $/kWyr | X94: ton/kWyr | Y94: $/kW | AA94: $/kw-yr
A95: ='WAPP Thermal Existing'!D357 -> BUREPODSEXDI | B95: =RIGHT(A95,LEN(A95)-3) -> EPODSEXDI | C95: =VLOOKUP(MID(B95,3,3),NameConvs!$C$3:$E$19,lang+2,0)&"/"&OFFSET(NameConvs!$H$16,0,lang) -> Diesel/Primary | D95: =OFFSET(NameConvs!$D$11,0,lang)&"/"&OFFSET(NameConvs!$H$17,0,lang) -> Electricity/Secondary | E95: a | F95: 1 | G95: =1/(VLOOKUP($A95,'WAPP Thermal Existing'!$D$1:$W$504,'WAPP Thermal Existing'!$K$4,0)/3.6) -> 0.3438183978 | H95: =VLOOKUP($A95,'WAPP Thermal Existing'!$D$1:$W$504,'WAPP Thermal Existing'!U$4,0)*8.76*$B$4 -> 87.6 | I95: =1-VLOOKUP($A95,'WAPP Thermal Existing'!$D$1:$W$504,'WAPP Thermal Existing'!Q$4,0) -> 0.9160931248 | J95: =1-VLOOKUP($A95,'WAPP Thermal Existing'!$D$1:$W$504,'WAPP Thermal Existing'!S$4,0)/8760 -> 0.8528613975 | K95: =IF(VLOOKUP($A95,'WAPP Thermal Existing'!$D$1:$W$504,'WAPP Thermal Existing'!N$4,0)="",SUMIF(VS!$D$3:$K$3,MID(B95,8,2),VS!$D$6:$K$6),VLOOKUP($A95,'WAPP Thermal Existing'!$D$1:$W$504,'WAPP Thermal Existing'!N$4,0)-LEFT(N95,4)) -> 30 | L95: =VLOOKUP($A95,'WAPP Thermal Existing'!$D$1:$W$504,'WAPP Thermal Existing'!W$4,0)*$B$4 -> 0 | M95: 0 | N95: =VLOOKUP($A95,'WAPP Thermal Existing'!$D$1:$Y$504,'WAPP Thermal Existing'!Y$4,0) -> 1969 0.32 1974 0.8 1976 1 1977 2 1978 1.6 1991 5 1993 1.28 1999 5.4 2003 2.5 2010 7.59 | O95: =MID(B95,8,2) -> DI | R95: 1 | S95: =IF(OR(MID(B95,3,1)="W",MID(B95,3,1)="S",MID(B95,3,1)="H",MID(B95,3,1)="B",MID(B95,3,2)="GE"),1,0) -> 0 | T95: =IF(V95="e-t",1,SUMIF(NameConvs!$B$57:$B$69,LEFT(A95,3),NameConvs!$H$57:$H$69)) -> 1 | U95: =VLOOKUP(C95,EnergyForms,2,FALSE) -> o-p | V95: =IF(ISNA(VLOOKUP(D95&"/"&LEFT(A95,3),EnergyForms2,2,FALSE)),VLOOKUP(D95,EnergyForms,2,FALSE),VLOOKUP(D95&"/"&LEFT(A95,3),EnergyForms2,2,FALSE)) -> e-A | W95: =SUMIF(MSG_Fueldata!$A$2:$A$202,LEFT($A95,3)&MID(B95,3,3),MSG_Fueldata!$E$2:$E$202)/$G95 -> 0 | X95: =SUMIF(MSG_Fueldata!$A$2:$A$202,LEFT($A95,3)&MID(B95,3,3),MSG_Fueldata!$F$2:$F$202)/$G95 -> 6.793910781 | Y95: =IF(AND(O95="DI",MID(B95,3,3)="OHF"),VS!$M$11,SUMIF(VS!$D$3:$K$3,O95,VS!$D$11:$K$11)) -> 1123.5 | Z95: =K95 -> 30 | AA95: =-PMT(disc_rate,Z95,Y95) -> 119.1800354
A96: ='WAPP Thermal Existing'!D358 -> BUREPOHFEXDI | B96: EPOHFEXDI | C96: =VLOOKUP(MID(B96,3,3),NameConvs!$C$3:$E$19,lang+2,0)&"/"&OFFSET(NameConvs!$H$16,0,lang) -> HFO/Primary | D96: =OFFSET(NameConvs!$D$11,0,lang)&"/"&OFFSET(NameConvs!$H$17,0,lang) -> Electricity/Secondary | E96: a | F96: 1 | G96: =1/(VLOOKUP($A96,'WAPP Thermal Existing'!$D$1:$W$504,'WAPP Thermal Existing'!$K$4,0)/3.6) -> 0.3738872404 | H96: =VLOOKUP($A96,'WAPP Thermal Existing'!$D$1:$W$504,'WAPP Thermal Existing'!U$4,0)*8.76*$B$4 -> 87.6 | I96: =1-VLOOKUP($A96,'WAPP Thermal Existing'!$D$1:$W$504,'WAPP Thermal Existing'!Q$4,0) -> 0.906710084 | J96: =1-VLOOKUP($A96,'WAPP Thermal Existing'!$D$1:$W$504,'WAPP Thermal Existing'!S$4,0)/8760 -> 0.8749539542 | K96: =IF(VLOOKUP($A96,'WAPP Thermal Existing'!$D$1:$W$504,'WAPP Thermal Existing'!N$4,0)="",SUMIF(VS!$D$3:$K$3,MID(B96,8,2),VS!$D$6:$K$6),VLOOKUP($A96,'WAPP Thermal Existing'!$D$1:$W$504,'WAPP Thermal Existing'!N$4,0)-LEFT(N96,4)) -> 30 | L96: =VLOOKUP($A96,'WAPP Thermal Existing'!$D$1:$W$504,'WAPP Thermal Existing'!W$4,0)*$B$4 -> 0 | M96: 0 | N96: =VLOOKUP($A96,'WAPP Thermal Existing'!$D$1:$Y$504,'WAPP Thermal Existing'!Y$4,0) -> 1978 4 1979 4 1980 4 1982 12 1988 3.5 1990 3.5 1995 7 1998 3.5 2000 15.5 2003 6 2004 6 2006 32 2010 18 | O96: =MID(B96,8,2) -> DI | R96: =R95 -> 1 | S96: 0 | T96: =IF(V96="e-t",1,SUMIF(NameConvs!$B$57:$B$69,LEFT(A96,3),NameConvs!$H$57:$H$69)) -> 1 | U96: =VLOOKUP(C96,EnergyForms,2,FALSE) -> h-p | V96: =IF(ISNA(VLOOKUP(D96&"/"&LEFT(A96,3),EnergyForms2,2,FALSE)),VLOOKUP(D96,EnergyForms,2,FALSE),VLOOKUP(D96&"/"&LEFT(A96,3),EnergyForms2,2,FALSE)) -> e-A | W96: =SUMIF(MSG_Fueldata!$A$2:$A$202,LEFT($A96,3)&MID(B96,3,3),MSG_Fueldata!$E$2:$E$202)/$G96 -> 0 | X96: =SUMIF(MSG_Fueldata!$A$2:$A$202,LEFT($A96,3)&MID(B96,3,3),MSG_Fueldata!$F$2:$F$202)/$G96 -> 6.804214869 | Y96: =IF(AND(O96="DI",MID(B96,3,3)="OHF"),VS!$M$11,SUMIF(VS!$D$3:$K$3,O96,VS!$D$11:$K$11)) -> 1417.5 | Z96: 30 | AA96: 150.3673344
A97: ='WAPP Hydro Existing'!B204 -> BUREPHYDEXDABag | B97: EPHYDEXDABag | C97: ="" ->  | D97: =OFFSET(NameConvs!$D$11,0,lang)&"/"&OFFSET(NameConvs!$H$17,0,lang) -> Electricity/Secondary | E97: a | F97: ="" ->  | G97: 1 | H97: =VLOOKUP($A97,'WAPP Hydro Existing'!$B$4:$S$300,'WAPP Hydro Existing'!$M$3,0)*8.76*$B$4 -> 17.52 | I97: =IF(VLOOKUP($A97,'WAPP Hydro Existing'!$B$4:$S$300,'WAPP Hydro Existing'!$E$3,0)="ROR",VLOOKUP($A97,'WAPP Hydro Existing'!$B$4:$T$300,'WAPP Hydro Existing'!$T$3,0),1-VLOOKUP($A97,'WAPP Hydro Existing'!$B$4:$T$300,'WAPP Hydro Existing'!$K$3,0)) -> 0.95 | J97: =IF(VLOOKUP($A97,'WAPP Hydro Existing'!$B$4:$S$300,'WAPP Hydro Existing'!$E$3,0)="ROR",1,VLOOKUP($A97,'WAPP Hydro Existing'!$B$4:$T$300,'WAPP Hydro Existing'!$T$3,0)/I97) -> 0.2159186494 | K97: 100 | L97: =VLOOKUP($A97,'WAPP Hydro Existing'!$B$4:$S$300,'WAPP Hydro Existing'!$N$3,0)*$B$4 -> 0 | M97: 0 | N97: =VLOOKUP($A97,'WAPP Hydro Existing'!$B$4:$S$300,'WAPP Hydro Existing'!$S$3,0) -> 1993 11.52 | O97: =MID(B97,3,3) -> HYD | R97: =R96 -> 1 | S97: 1 | T97: =IF(V97="e-t",1,SUMIF(NameConvs!$B$57:$B$69,LEFT(A97,3),NameConvs!$H$57:$H$69)) -> 1 | V97: =V96 -> e-A | W97: 0 | X97: 0 | Y97: =IF(AND(O97="DI",MID(B97,3,3)="OHF"),VS!$M$11,SUMIF(VS!$D$3:$K$3,O97,VS!$D$11:$K$11)) -> 2400 | Z97: 100 | AA97: 240.017417
A98: ='WAPP Hydro Existing'!B205 -> BUREPHYDEXDAKom | B98: EPHYDEXDAKom | C98: ="" ->  | D98: =OFFSET(NameConvs!$D$11,0,lang)&"/"&OFFSET(NameConvs!$H$17,0,lang) -> Electricity/Secondary | E98: b | F98: ="" ->  | G98: 1 | H98: =VLOOKUP($A98,'WAPP Hydro Existing'!$B$4:$S$300,'WAPP Hydro Existing'!$M$3,0)*8.76*$B$4 -> 17.52 | I98: =IF(VLOOKUP($A98,'WAPP Hydro Existing'!$B$4:$S$300,'WAPP Hydro Existing'!$E$3,0)="ROR",VLOOKUP($A98,'WAPP Hydro Existing'!$B$4:$T$300,'WAPP Hydro Existing'!$T$3,0),1-VLOOKUP($A98,'WAPP Hydro Existing'!$B$4:$T$300,'WAPP Hydro Existing'!$K$3,0)) -> 0.95 | J98: =IF(VLOOKUP($A98,'WAPP Hydro Existing'!$B$4:$S$300,'WAPP Hydro Existing'!$E$3,0)="ROR",1,VLOOKUP($A98,'WAPP Hydro Existing'!$B$4:$T$300,'WAPP Hydro Existing'!$T$3,0)/I98) -> 0.1979648052 | K98: 100 | L98: =VLOOKUP($A98,'WAPP Hydro Existing'!$B$4:$S$300,'WAPP Hydro Existing'!$N$3,0)*$B$4 -> 0 | M98: 0 | N98: =VLOOKUP($A98,'WAPP Hydro Existing'!$B$4:$S$300,'WAPP Hydro Existing'!$S$3,0) -> 1988 9.894 | O98: =MID(B98,3,3) -> HYD | R98: =R97 -> 1 | S98: 1 | T98: =IF(V98="e-t",1,SUMIF(NameConvs!$B$57:$B$69,LEFT(A98,3),NameConvs!$H$57:$H$69)) -> 1 | V98: =V97 -> e-A | W98: 0 | X98: 0 | Y98: =IF(AND(O98="DI",MID(B98,3,3)="OHF"),VS!$M$11,SUMIF(VS!$D$3:$K$3,O98,VS!$D$11:$K$11)) -> 2400 | Z98: 100 | AA98: 240.017417
A99: ='WAPP Hydro Existing'!B206 -> BUREPHYDEXRONio | B99: EPHYDEXRONio | C99: ="" ->  | D99: =OFFSET(NameConvs!$D$11,0,lang)&"/"&OFFSET(NameConvs!$H$17,0,lang) -> Electricity/Secondary | E99: c | F99: ="" ->  | G99: 1 | H99: =VLOOKUP($A99,'WAPP Hydro Existing'!$B$4:$S$300,'WAPP Hydro Existing'!$M$3,0)*8.76*$B$4 -> 17.52 | I99: =IF(VLOOKUP($A99,'WAPP Hydro Existing'!$B$4:$S$300,'WAPP Hydro Existing'!$E$3,0)="ROR",VLOOKUP($A99,'WAPP Hydro Existing'!$B$4:$T$300,'WAPP Hydro Existing'!$T$3,0),1-VLOOKUP($A99,'WAPP Hydro Existing'!$B$4:$T$300,'WAPP Hydro Existing'!$K$3,0)) -> 0.2378234399 | J99: =IF(VLOOKUP($A99,'WAPP Hydro Existing'!$B$4:$S$300,'WAPP Hydro Existing'!$E$3,0)="ROR",1,VLOOKUP($A99,'WAPP Hydro Existing'!$B$4:$T$300,'WAPP Hydro Existing'!$T$3,0)/I99) -> 1 | K99: 100 | L99: =VLOOKUP($A99,'WAPP Hydro Existing'!$B$4:$S$300,'WAPP Hydro Existing'!$N$3,0)*$B$4 -> 0 | M99: 0 | N99: =VLOOKUP($A99,'WAPP Hydro Existing'!$B$4:$S$300,'WAPP Hydro Existing'!$S$3,0) -> 1996 1.344 | O99: =MID(B99,3,3) -> HYD | R99: =R98 -> 1 | S99: 1 | T99: =IF(V99="e-t",1,SUMIF(NameConvs!$B$57:$B$69,LEFT(A99,3),NameConvs!$H$57:$H$69)) -> 1 | V99: =V98 -> e-A | W99: 0 | X99: 0 | Y99: =IF(AND(O99="DI",MID(B99,3,3)="OHF"),VS!$M$11,SUMIF(VS!$D$3:$K$3,O99,VS!$D$11:$K$11)) -> 2400 | Z99: 100 | AA99: 240.017417
A100: ='WAPP Hydro Existing'!B207 -> BUREPHYDEXROTou | B100: EPHYDEXROTou | C100: ="" ->  | D100: =OFFSET(NameConvs!$D$11,0,lang)&"/"&OFFSET(NameConvs!$H$17,0,lang) -> Electricity/Secondary | E100: d | F100: ="" ->  | G100: 1 | H100: =VLOOKUP($A100,'WAPP Hydro Existing'!$B$4:$S$300,'WAPP Hydro Existing'!$M$3,0)*8.76*$B$4 -> 17.52 | I100: =IF(VLOOKUP($A100,'WAPP Hydro Existing'!$B$4:$S$300,'WAPP Hydro Existing'!$E$3,0)="ROR",VLOOKUP($A100,'WAPP Hydro Existing'!$B$4:$T$300,'WAPP Hydro Existing'!$T$3,0),1-VLOOKUP($A100,'WAPP Hydro Existing'!$B$4:$T$300,'WAPP Hydro Existing'!$K$3,0)) -> 0.1664764079 | J100: =IF(VLOOKUP($A100,'WAPP Hydro Existing'!$B$4:$S$300,'WAPP Hydro Existing'!$E$3,0)="ROR",1,VLOOKUP($A100,'WAPP Hydro Existing'!$B$4:$T$300,'WAPP Hydro Existing'!$T$3,0)/I100) -> 1 | K100: 100 | L100: =VLOOKUP($A100,'WAPP Hydro Existing'!$B$4:$S$300,'WAPP Hydro Existing'!$N$3,0)*$B$4 -> 0 | M100: 0 | N100: =VLOOKUP($A100,'WAPP Hydro Existing'!$B$4:$S$300,'WAPP Hydro Existing'!$S$3,0) -> 1996 0.48 | O100: =MID(B100,3,3) -> HYD | R100: =R99 -> 1 | S100: 1 | T100: =IF(V100="e-t",1,SUMIF(NameConvs!$B$57:$B$69,LEFT(A100,3),NameConvs!$H$57:$H$69)) -> 1 | V100: =V99 -> e-A | W100: 0 | X100: 0 | Y100: =IF(AND(O100="DI",MID(B100,3,3)="OHF"),VS!$M$11,SUMIF(VS!$D$3:$K$3,O100,VS!$D$11:$K$11)) -> 2400 | Z100: 100 | AA100: 240.017417
A101: =LEFT(A100,3) -> BUR | B101: 6 | C101: =ROW()-B101-1 -> 94
A103: With country prefix | B103: ='WAPP Thermal Existing'!C383 -> Niger | C103: =OFFSET(C$2,lang,0) -> Main Input | D103: Main Output | E103: name | F103: Main Input | G103: Main Output (switch c) | H103: var costs (switch c) | I103: plant factor | J103: operation time | K103: Plant life | L103: Fixed Costs | M103: bdc (up) | N103: hist. cap. (switch hc) | O103: technology type | W103: Fuel Costs | X103: emission factor | Y103: Investment cost | Z103: life | AA103: annualized cost
B104: =OFFSET(B$2,lang,0) -> MESSAGE Name | E104: alt | H104: US$'00/kWyr | L104: US$'00/kW/yr | M104: MW | N104: MW | U104: Input Fuel | V104: Output Fuel | W104: $/kWyr | X104: ton/kWyr | Y104: $/kW | AA104: $/kw-yr
A105: ='WAPP Thermal Existing'!D384 -> NIGEPCOAEXST | B105: =RIGHT(A105,LEN(A105)-3) -> EPCOAEXST | C105: =VLOOKUP(MID(B105,3,3),NameConvs!$C$3:$E$19,lang+2,0)&"/"&OFFSET(NameConvs!$H$16,0,lang) -> Coal/Primary | D105: =OFFSET(NameConvs!$D$11,0,lang)&"/"&OFFSET(NameConvs!$H$17,0,lang) -> Electricity/Secondary | E105: a | F105: 1 | G105: =1/(VLOOKUP($A105,'WAPP Thermal Existing'!$D$1:$W$504,'WAPP Thermal Existing'!$K$4,0)/3.6) -> 0.3333333333 | H105: =VLOOKUP($A105,'WAPP Thermal Existing'!$D$1:$W$504,'WAPP Thermal Existing'!U$4,0)*8.76*$B$4 -> 27.156 | I105: =1-VLOOKUP($A105,'WAPP Thermal Existing'!$D$1:$W$504,'WAPP Thermal Existing'!Q$4,0) -> 0.92 | J105: =1-VLOOKUP($A105,'WAPP Thermal Existing'!$D$1:$W$504,'WAPP Thermal Existing'!S$4,0)/8760 -> 0.9300228311 | K105: =IF(VLOOKUP($A105,'WAPP Thermal Existing'!$D$1:$W$504,'WAPP Thermal Existing'!N$4,0)="",SUMIF(VS!$D$3:$K$3,MID(B105,8,2),VS!$D$6:$K$6),VLOOKUP($A105,'WAPP Thermal Existing'!$D$1:$W$504,'WAPP Thermal Existing'!N$4,0)-LEFT(N105,4)) -> 35 | L105: =VLOOKUP($A105,'WAPP Thermal Existing'!$D$1:$W$504,'WAPP Thermal Existing'!W$4,0)*$B$4 -> 0 | M105: 0 | N105: =VLOOKUP($A105,'WAPP Thermal Existing'!$D$1:$Y$504,'WAPP Thermal Existing'!Y$4,0) -> 1980 32 | O105: =MID(B105,8,2) -> ST | R105: 1 | S105: =IF(OR(MID(B105,3,1)="W",MID(B105,3,1)="S",MID(B105,3,1)="H",MID(B105,3,1)="B",MID(B105,3,2)="GE"),1,0) -> 0 | T105: =IF(V105="e-t",1,SUMIF(NameConvs!$B$57:$B$69,LEFT(A105,3),NameConvs!$H$57:$H$69)) -> 1 | U105: =VLOOKUP(C105,EnergyForms,2,FALSE) -> c-p | V105: =IF(ISNA(VLOOKUP(D105&"/"&LEFT(A105,3),EnergyForms2,2,FALSE)),VLOOKUP(D105,EnergyForms,2,FALSE),VLOOKUP(D105&"/"&LEFT(A105,3),EnergyForms2,2,FALSE)) -> e-I | W105: =SUMIF(MSG_Fueldata!$A$2:$A$202,LEFT($A105,3)&MID(B105,3,3),MSG_Fueldata!$E$2:$E$202)/$G105 -> 0 | X105: =SUMIF(MSG_Fueldata!$A$2:$A$202,LEFT($A105,3)&MID(B105,3,3),MSG_Fueldata!$F$2:$F$202)/$G105 -> 9.12 | Y105: =IF(AND(O105="DI",MID(B105,3,3)="OHF"),VS!$M$11,SUMIF(VS!$D$3:$K$3,O105,VS!$D$11:$K$11)) -> 2488.6656 | Z105: =K105 -> 35 | AA105: =-PMT(disc_rate,Z105,Y105) -> 258.0490022
A106: ='WAPP Thermal Existing'!D385 -> NIGEPODSEXDI | B106: =RIGHT(A106,LEN(A106)-3) -> EPODSEXDI | C106: =VLOOKUP(MID(B106,3,3),NameConvs!$C$3:$E$19,lang+2,0)&"/"&OFFSET(NameConvs!$H$16,0,lang) -> Diesel/Primary | D106: =OFFSET(NameConvs!$D$11,0,lang)&"/"&OFFSET(NameConvs!$H$17,0,lang) -> Electricity/Secondary | E106: a | F106: 1 | G106: =1/(VLOOKUP($A106,'WAPP Thermal Existing'!$D$1:$W$504,'WAPP Thermal Existing'!$K$4,0)/3.6) -> 0.3461538462 | H106: =VLOOKUP($A106,'WAPP Thermal Existing'!$D$1:$W$504,'WAPP Thermal Existing'!U$4,0)*8.76*$B$4 -> 87.6 | I106: =1-VLOOKUP($A106,'WAPP Thermal Existing'!$D$1:$W$504,'WAPP Thermal Existing'!Q$4,0) -> 0.9 | J106: =1-VLOOKUP($A106,'WAPP Thermal Existing'!$D$1:$W$504,'WAPP Thermal Existing'!S$4,0)/8760 -> 0.8904109589 | K106: =IF(VLOOKUP($A106,'WAPP Thermal Existing'!$D$1:$W$504,'WAPP Thermal Existing'!N$4,0)="",SUMIF(VS!$D$3:$K$3,MID(B106,8,2),VS!$D$6:$K$6),VLOOKUP($A106,'WAPP Thermal Existing'!$D$1:$W$504,'WAPP Thermal Existing'!N$4,0)-LEFT(N106,4)) -> 30 | L106: =VLOOKUP($A106,'WAPP Thermal Existing'!$D$1:$W$504,'WAPP Thermal Existing'!W$4,0)*$B$4 -> 0 | M106: 0 | N106: =VLOOKUP($A106,'WAPP Thermal Existing'!$D$1:$Y$504,'WAPP Thermal Existing'!Y$4,0) -> 1977 3.6 1980 1 | O106: =MID(B106,8,2) -> DI | R106: =R105 -> 1 | S106: =IF(OR(MID(B106,3,1)="W",MID(B106,3,1)="S",MID(B106,3,1)="H",MID(B106,3,1)="B",MID(B106,3,2)="GE"),1,0) -> 0 | T106: =IF(V106="e-t",1,SUMIF(NameConvs!$B$57:$B$69,LEFT(A106,3),NameConvs!$H$57:$H$69)) -> 1 | U106: =VLOOKUP(C106,EnergyForms,2,FALSE) -> o-p | V106: =IF(ISNA(VLOOKUP(D106&"/"&LEFT(A106,3),EnergyForms2,2,FALSE)),VLOOKUP(D106,EnergyForms,2,FALSE),VLOOKUP(D106&"/"&LEFT(A106,3),EnergyForms2,2,FALSE)) -> e-I | W106: =SUMIF(MSG_Fueldata!$A$2:$A$202,LEFT($A106,3)&MID(B106,3,3),MSG_Fueldata!$E$2:$E$202)/$G106 -> 0 | X106: =SUMIF(MSG_Fueldata!$A$2:$A$202,LEFT($A106,3)&MID(B106,3,3),MSG_Fueldata!$F$2:$F$202)/$G106 -> 6.74807328 | Y106: =IF(AND(O106="DI",MID(B106,3,3)="OHF"),VS!$M$11,SUMIF(VS!$D$3:$K$3,O106,VS!$D$11:$K$11)) -> 1123.5 | Z106: =K106 -> 30 | AA106: =-PMT(disc_rate,Z106,Y106) -> 119.1800354
A107: ='WAPP Thermal Existing'!D386 -> NIGEPOHFEXDI | B107: =RIGHT(A107,LEN(A107)-3) -> EPOHFEXDI | C107: =VLOOKUP(MID(B107,3,3),NameConvs!$C$3:$E$19,lang+2,0)&"/"&OFFSET(NameConvs!$H$16,0,lang) -> HFO/Primary | D107: =OFFSET(NameConvs!$D$11,0,lang)&"/"&OFFSET(NameConvs!$H$17,0,lang) -> Electricity/Secondary | E107: a | F107: 1 | G107: =1/(VLOOKUP($A107,'WAPP Thermal Existing'!$D$1:$W$504,'WAPP Thermal Existing'!$K$4,0)/3.6) -> 0.3789473684 | H107: =VLOOKUP($A107,'WAPP Thermal Existing'!$D$1:$W$504,'WAPP Thermal Existing'!U$4,0)*8.76*$B$4 -> 87.6 | I107: =1-VLOOKUP($A107,'WAPP Thermal Existing'!$D$1:$W$504,'WAPP Thermal Existing'!Q$4,0) -> 0.9 | J107: =1-VLOOKUP($A107,'WAPP Thermal Existing'!$D$1:$W$504,'WAPP Thermal Existing'!S$4,0)/8760 -> 0.8904109589 | K107: =IF(VLOOKUP($A107,'WAPP Thermal Existing'!$D$1:$W$504,'WAPP Thermal Existing'!N$4,0)="",SUMIF(VS!$D$3:$K$3,MID(B107,8,2),VS!$D$6:$K$6),VLOOKUP($A107,'WAPP Thermal Existing'!$D$1:$W$504,'WAPP Thermal Existing'!N$4,0)-LEFT(N107,4)) -> 30 | L107: =VLOOKUP($A107,'WAPP Thermal Existing'!$D$1:$W$504,'WAPP Thermal Existing'!W$4,0)*$B$4 -> 0 | M107: 0 | N107: =VLOOKUP($A107,'WAPP Thermal Existing'!$D$1:$Y$504,'WAPP Thermal Existing'!Y$4,0) -> 1985 10 | O107: =MID(B107,8,2) -> DI | R107: =R106 -> 1 | S107: =IF(OR(MID(B107,3,1)="W",MID(B107,3,1)="S",MID(B107,3,1)="H",MID(B107,3,1)="B",MID(B107,3,2)="GE"),1,0) -> 0 | T107: =IF(V107="e-t",1,SUMIF(NameConvs!$B$57:$B$69,LEFT(A107,3),NameConvs!$H$57:$H$69)) -> 1 | U107: =VLOOKUP(C107,EnergyForms,2,FALSE) -> h-p | V107: =IF(ISNA(VLOOKUP(D107&"/"&LEFT(A107,3),EnergyForms2,2,FALSE)),VLOOKUP(D107,EnergyForms,2,FALSE),VLOOKUP(D107&"/"&LEFT(A107,3),EnergyForms2,2,FALSE)) -> e-I | W107: =SUMIF(MSG_Fueldata!$A$2:$A$202,LEFT($A107,3)&MID(B107,3,3),MSG_Fueldata!$E$2:$E$202)/$G107 -> 0 | X107: =SUMIF(MSG_Fueldata!$A$2:$A$202,LEFT($A107,3)&MID(B107,3,3),MSG_Fueldata!$F$2:$F$202)/$G107 -> 6.7133574 | Y107: =IF(AND(O107="DI",MID(B107,3,3)="OHF"),VS!$M$11,SUMIF(VS!$D$3:$K$3,O107,VS!$D$11:$K$11)) -> 1417.5 | Z107: =K107 -> 30 | AA107: =-PMT(disc_rate,Z107,Y107) -> 150.3673344
A108: ='WAPP Thermal Existing'!D387 -> NIGEPGASEXGT | B108: =RIGHT(A108,LEN(A108)-3) -> EPGASEXGT | C108: =VLOOKUP(MID(B108,3,3),NameConvs!$C$3:$E$19,lang+2,0)&"/"&OFFSET(NameConvs!$H$16,0,lang) -> Gas/Primary | D108: =OFFSET(NameConvs!$D$11,0,lang)&"/"&OFFSET(NameConvs!$H$17,0,lang) -> Electricity/Secondary | E108: a | F108: 1 | G108: =1/(VLOOKUP($A108,'WAPP Thermal Existing'!$D$1:$W$504,'WAPP Thermal Existing'!$K$4,0)/3.6) -> 0.2834645669 | H108: =VLOOKUP($A108,'WAPP Thermal Existing'!$D$1:$W$504,'WAPP Thermal Existing'!U$4,0)*8.76*$B$4 -> 21.9 | I108: =1-VLOOKUP($A108,'WAPP Thermal Existing'!$D$1:$W$504,'WAPP Thermal Existing'!Q$4,0) -> 0.92 | J108: =1-VLOOKUP($A108,'WAPP Thermal Existing'!$D$1:$W$504,'WAPP Thermal Existing'!S$4,0)/8760 -> 0.9300228311 | K108: =IF(VLOOKUP($A108,'WAPP Thermal Existing'!$D$1:$W$504,'WAPP Thermal Existing'!N$4,0)="",SUMIF(VS!$D$3:$K$3,MID(B108,8,2),VS!$D$6:$K$6),VLOOKUP($A108,'WAPP Thermal Existing'!$D$1:$W$504,'WAPP Thermal Existing'!N$4,0)-LEFT(N108,4)) -> 25 | L108: =VLOOKUP($A108,'WAPP Thermal Existing'!$D$1:$W$504,'WAPP Thermal Existing'!W$4,0)*$B$4 -> 0 | M108: 0 | N108: =VLOOKUP($A108,'WAPP Thermal Existing'!$D$1:$Y$504,'WAPP Thermal Existing'!Y$4,0) -> 1980 20 | O108: =MID(B108,8,2) -> GT | R108: =R107 -> 1 | S108: =IF(OR(MID(B108,3,1)="W",MID(B108,3,1)="S",MID(B108,3,1)="H",MID(B108,3,1)="B",MID(B108,3,2)="GE"),1,0) -> 0 | T108: =IF(V108="e-t",1,SUMIF(NameConvs!$B$57:$B$69,LEFT(A108,3),NameConvs!$H$57:$H$69)) -> 1 | U108: =VLOOKUP(C108,EnergyForms,2,FALSE) -> g-p | V108: =IF(ISNA(VLOOKUP(D108&"/"&LEFT(A108,3),EnergyForms2,2,FALSE)),VLOOKUP(D108,EnergyForms,2,FALSE),VLOOKUP(D108&"/"&LEFT(A108,3),EnergyForms2,2,FALSE)) -> e-I | W108: =SUMIF(MSG_Fueldata!$A$2:$A$202,LEFT($A108,3)&MID(B108,3,3),MSG_Fueldata!$E$2:$E$202)/$G108 -> 0 | X108: =SUMIF(MSG_Fueldata!$A$2:$A$202,LEFT($A108,3)&MID(B108,3,3),MSG_Fueldata!$F$2:$F$202)/$G108 -> 0 | Y108: =IF(AND(O108="DI",MID(B108,3,3)="OHF"),VS!$M$11,SUMIF(VS!$D$3:$K$3,O108,VS!$D$11:$K$11)) -> 633.15 | Z108: =K108 -> 25 | AA108: =-PMT(disc_rate,Z108,Y108) -> 69.75291491
A109: =LEFT(A108,3) -> NIG | B109: 4 | C109: =ROW()-B109-1 -> 104
A111: With country prefix | B111: ='WAPP Thermal Existing'!C491 -> Nigeria | C111: =OFFSET(C$2,lang,0) -> Main Input | D111: Main Output | E111: name | F111: Main Input | G111: Main Output (switch c) | H111: var costs (switch c) | I111: plant factor | J111: operation time | K111: Plant life | L111: Fixed Costs | M111: bdc (up) | N111: hist. cap. (switch hc) | O111: technology type | W111: Fuel Costs | X111: emission factor | Y111: Investment cost | Z111: life | AA111: annualized cost
B112: =OFFSET(B$2,lang,0) -> MESSAGE Name | E112: alt | H112: US$'00/kWyr | L112: US$'00/kW/yr | M112: MW | N112: MW | U112: Input Fuel | V112: Output Fuel | W112: $/kWyr | X112: ton/kWyr | Y112: $/kW | AA112: $/kw-yr
A113: ='WAPP Thermal Existing'!D492 -> NGAEPGASEXGT | B113: =RIGHT(A113,LEN(A113)-3) -> EPGASEXGT | C113: =VLOOKUP(MID(B113,3,3),NameConvs!$C$3:$E$19,lang+2,0)&"/"&OFFSET(NameConvs!$H$16,0,lang) -> Gas/Primary | D113: =OFFSET(NameConvs!$D$11,0,lang)&"/"&OFFSET(NameConvs!$H$17,0,lang) -> Electricity/Secondary | E113: a | F113: 1 | G113: =1/(VLOOKUP($A113,'WAPP Thermal Existing'!$D$1:$W$504,'WAPP Thermal Existing'!$K$4,0)/3.6) -> 0.2834645669 | H113: =VLOOKUP($A113,'WAPP Thermal Existing'!$D$1:$W$504,'WAPP Thermal Existing'!U$4,0)*8.76*$B$4 -> 21.9 | I113: =1-VLOOKUP($A113,'WAPP Thermal Existing'!$D$1:$W$504,'WAPP Thermal Existing'!Q$4,0) -> 0.92 | J113: =1-VLOOKUP($A113,'WAPP Thermal Existing'!$D$1:$W$504,'WAPP Thermal Existing'!S$4,0)/8760 -> 0.9300228311 | K113: =IF(VLOOKUP($A113,'WAPP Thermal Existing'!$D$1:$W$504,'WAPP Thermal Existing'!N$4,0)="",SUMIF(VS!$D$3:$K$3,MID(B113,8,2),VS!$D$6:$K$6),VLOOKUP($A113,'WAPP Thermal Existing'!$D$1:$W$504,'WAPP Thermal Existing'!N$4,0)-LEFT(N113,4)) -> 25 | L113: =VLOOKUP($A113,'WAPP Thermal Existing'!$D$1:$W$504,'WAPP Thermal Existing'!W$4,0)*$B$4 -> 0 | M113: 0 | N113: =VLOOKUP($A113,'WAPP Thermal Existing'!$D$1:$Y$504,'WAPP Thermal Existing'!Y$4,0) -> 1965 10 1980 75 1982 75 1988 243.5 2000 284 2001 386.4 2007 1447.8 2009 37 | O113: =MID(B113,8,2) -> GT | R113: 1 | S113: =IF(OR(MID(B113,3,1)="W",MID(B113,3,1)="S",MID(B113,3,1)="H",MID(B113,3,1)="B",MID(B113,3,2)="GE"),1,0) -> 0 | T113: =IF(V113="e-t",1,SUMIF(NameConvs!$B$57:$B$69,LEFT(A113,3),NameConvs!$H$57:$H$69)) -> 1 | U113: =VLOOKUP(C113,EnergyForms,2,FALSE) -> g-p | V113: =IF(ISNA(VLOOKUP(D113&"/"&LEFT(A113,3),EnergyForms2,2,FALSE)),VLOOKUP(D113,EnergyForms,2,FALSE),VLOOKUP(D113&"/"&LEFT(A113,3),EnergyForms2,2,FALSE)) -> e-J | W113: =SUMIF(MSG_Fueldata!$A$2:$A$202,LEFT($A113,3)&MID(B113,3,3),MSG_Fueldata!$E$2:$E$202)/$G113 -> 0 | X113: =SUMIF(MSG_Fueldata!$A$2:$A$202,LEFT($A113,3)&MID(B113,3,3),MSG_Fueldata!$F$2:$F$202)/$G113 -> 6.244166667 | Y113: =IF(AND(O113="DI",MID(B113,3,3)="OHF"),VS!$M$11,SUMIF(VS!$D$3:$K$3,O113,VS!$D$11:$K$11)) -> 633.15 | Z113: =K113 -> 25 | AA113: =-PMT(disc_rate,Z113,Y113) -> 69.75291491
A114: ='WAPP Thermal Existing'!D493 -> NGAEPGASEXST | B114: =RIGHT(A114,LEN(A114)-3) -> EPGASEXST | C114: =VLOOKUP(MID(B114,3,3),NameConvs!$C$3:$E$19,lang+2,0)&"/"&OFFSET(NameConvs!$H$16,0,lang) -> Gas/Primary | D114: =OFFSET(NameConvs!$D$11,0,lang)&"/"&OFFSET(NameConvs!$H$17,0,lang) -> Electricity/Secondary | E114: b | F114: 1 | G114: =1/(VLOOKUP($A114,'WAPP Thermal Existing'!$D$1:$W$504,'WAPP Thermal Existing'!$K$4,0)/3.6) -> 0.3404349361 | H114: =VLOOKUP($A114,'WAPP Thermal Existing'!$D$1:$W$504,'WAPP Thermal Existing'!U$4,0)*8.76*$B$4 -> 27.156 | I114: =1-VLOOKUP($A114,'WAPP Thermal Existing'!$D$1:$W$504,'WAPP Thermal Existing'!Q$4,0) -> 0.92 | J114: =1-VLOOKUP($A114,'WAPP Thermal Existing'!$D$1:$W$504,'WAPP Thermal Existing'!S$4,0)/8760 -> 0.9300228311 | K114: =IF(VLOOKUP($A114,'WAPP Thermal Existing'!$D$1:$W$504,'WAPP Thermal Existing'!N$4,0)="",SUMIF(VS!$D$3:$K$3,MID(B114,8,2),VS!$D$6:$K$6),VLOOKUP($A114,'WAPP Thermal Existing'!$D$1:$W$504,'WAPP Thermal Existing'!N$4,0)-LEFT(N114,4)) -> 35 | L114: =VLOOKUP($A114,'WAPP Thermal Existing'!$D$1:$W$504,'WAPP Thermal Existing'!W$4,0)*$B$4 -> 0 | M114: 0 | N114: =VLOOKUP($A114,'WAPP Thermal Existing'!$D$1:$Y$504,'WAPP Thermal Existing'!Y$4,0) -> 1979 199.1 1986 1100 | O114: =MID(B114,8,2) -> ST | R114: =R113 -> 1 | S114: =IF(OR(MID(B114,3,1)="W",MID(B114,3,1)="S",MID(B114,3,1)="H",MID(B114,3,1)="B",MID(B114,3,2)="GE"),1,0) -> 0 | T114: =IF(V114="e-t",1,SUMIF(NameConvs!$B$57:$B$69,LEFT(A114,3),NameConvs!$H$57:$H$69)) -> 1 | U114: =VLOOKUP(C114,EnergyForms,2,FALSE) -> g-p | V114: =IF(ISNA(VLOOKUP(D114&"/"&LEFT(A114,3),EnergyForms2,2,FALSE)),VLOOKUP(D114,EnergyForms,2,FALSE),VLOOKUP(D114&"/"&LEFT(A114,3),EnergyForms2,2,FALSE)) -> e-J | W114: =SUMIF(MSG_Fueldata!$A$2:$A$202,LEFT($A114,3)&MID(B114,3,3),MSG_Fueldata!$E$2:$E$202)/$G114 -> 0 | X114: =SUMIF(MSG_Fueldata!$A$2:$A$202,LEFT($A114,3)&MID(B114,3,3),MSG_Fueldata!$F$2:$F$202)/$G114 -> 5.199231372 | Y114: =IF(AND(O114="DI",MID(B114,3,3)="OHF"),VS!$M$11,SUMIF(VS!$D$3:$K$3,O114,VS!$D$11:$K$11)) -> 2488.6656 | Z114: =K114 -> 35 | AA114: =-PMT(disc_rate,Z114,Y114) -> 258.0490022
A115: ='WAPP Hydro Existing'!B244 -> NGAEPHYDEXDAShi | B115: =RIGHT(A115,LEN(A115)-3) -> EPHYDEXDAShi | C115: ="" ->  | D115: =OFFSET(NameConvs!$D$11,0,lang)&"/"&OFFSET(NameConvs!$H$17,0,lang) -> Electricity/Secondary | E115: a | F115: ="" ->  | G115: 1 | H115: =VLOOKUP($A115,'WAPP Hydro Existing'!$B$4:$S$300,'WAPP Hydro Existing'!$M$3,0)*8.76*$B$4 -> 17.52 | I115: =IF(VLOOKUP($A115,'WAPP Hydro Existing'!$B$4:$S$300,'WAPP Hydro Existing'!$E$3,0)="ROR",VLOOKUP($A115,'WAPP Hydro Existing'!$B$4:$T$300,'WAPP Hydro Existing'!$T$3,0),1-VLOOKUP($A115,'WAPP Hydro Existing'!$B$4:$T$300,'WAPP Hydro Existing'!$K$3,0)) -> 0.95 | J115: =IF(VLOOKUP($A115,'WAPP Hydro Existing'!$B$4:$S$300,'WAPP Hydro Existing'!$E$3,0)="ROR",1,VLOOKUP($A115,'WAPP Hydro Existing'!$B$4:$T$300,'WAPP Hydro Existing'!$T$3,0)/I115) -> 0.4866080705 | K115: =IF(VLOOKUP($A115,'WAPP Hydro Existing'!$B$4:$S$300,'WAPP Hydro Existing'!$I$3,0)="",100,VLOOKUP($A115,'WAPP Hydro Existing'!$B$4:$S$300,'WAPP Hydro Existing'!$I$3,0)-LEFT(N115,4)) -> 100 | L115: =VLOOKUP($A115,'WAPP Hydro Existing'!$B$4:$S$300,'WAPP Hydro Existing'!$N$3,0)*$B$4 -> 0 | M115: 0 | N115: =VLOOKUP($A115,'WAPP Hydro Existing'!$B$4:$S$300,'WAPP Hydro Existing'!$S$3,0) -> 1989 480.3 | O115: =MID(B115,3,3) -> HYD | R115: =R114 -> 1 | S115: =IF(OR(MID(B115,3,1)="W",MID(B115,3,1)="S",MID(B115,3,1)="H",MID(B115,3,1)="B",MID(B115,3,2)="GE"),1,0) -> 1 | T115: =IF(V115="e-t",1,SUMIF(NameConvs!$B$57:$B$69,LEFT(A115,3),NameConvs!$H$57:$H$69)) -> 1 | V115: =V114 -> e-J | W115: 0 | X115: 0 | Y115: =IF(AND(O115="DI",MID(B115,3,3)="OHF"),VS!$M$11,SUMIF(VS!$D$3:$K$3,O115,VS!$D$11:$K$11)) -> 2400 | Z115: =K115 -> 100 | AA115: =-PMT(disc_rate,Z115,Y115) -> 240.017417
